Workbook

Sheet aux_ue (hidden)
A2: =+INDEX(B5:B14,A4) -> Trigo mole | B2: =+INDEX(B5:B14,B4) -> Trigo duro | E2: =+INDEX(F5:F35,E4) -> Portugal | F2: =+INDEX(F5:F35,F4) -> Portugal | H2: =+I5&A3&E3 -> AreaSoft wheatPortugal
A3: =+INDEX(A5:A14,A4) -> Soft wheat | B3: =+INDEX(A5:A14,B4) -> Durum wheat | E3: =+INDEX(E5:E35,E4) -> Portugal | F3: =+INDEX(E5:E35,F4) -> Portugal | H3: =+I5&B3&F3 -> AreaDurum wheatPortugal
A4: 2 | B4: 3 | E4: 25 | F4: 25 | I4: =+INDEX(J7:J9,I6) -> Área | K4: =+INDEX(K7:K9,I6) -> (1000 ha) | L4: =+INDEX(L7:L9,I6) -> 0 | P4: 1 | Q4: Cereais para grão
A5: Total cereals | B5: Cereais totais | C5: 0 | E5: Austria | F5: Áustria | G5: 1 | I5: =+INDEX(I7:I9,I6) -> Area | P5: 2 | Q5: Trigo
A6: Soft wheat | B6: Trigo mole | C6: 1 | E6: Belgium | F6: Bélgica | G6: 2 | I6: 1 | P6: 3 | Q6: Trigo mole
A7: Durum wheat | B7: Trigo duro | C7: 2 | E7: Bulgaria | F7: Bulgária | G7: 3 | I7: Area | J7: Área | K7: (1000 ha) | L7: 0 | P7: 4 | Q7: Trigo duro
A8: Rye | B8: Centeio | C8: 3 | E8: Croatia | F8: Croácia | G8: 4 | I8: Gross production | J8: Produção | K8: (mil ton) | L8: 0 | P8: 5 | Q8: Centeio
A9: Oat | B9: Aveia | C9: 4 | E9: Cyprus | F9: Chipre | G9: 5 | I9: Yield | J9: Produtividade | K9: (ton/ha) | L9: 1 | P9: 6 | Q9: Aveia
A10: Barley | B10: Cevada | C10: 5 | E10: Czech Republic | F10: República Checa | G10: 6 | P10: 7 | Q10: Cevada
A11: Triticale | B11: Triticale | C11: 6 | E11: Denmark | F11: Dinamarca | G11: 7 | P11: 8 | Q11: Triticale
A12: Grain maize | B12: Milho da grão | C12: 7 | E12: Estonia | F12: Estônia | G12: 8 | P12: 9 | Q12: Milho
A13: Sorghum | B13: Sorgo | C13: 8 | E13: EU-15 | F13: UE-15 | G13: 9 | P13: 10 | Q13: Milho regadio
A14: Other cereals | B14: Outros cereais | C14: 9 | E14: EU-28 | F14: UE-28 | G14: 10 | P14: 11 | Q14: Milho sequeiro
E15: EU-N13 | F15: UE-N13 | G15: 11 | P15: 12 | Q15: Arroz
E16: Finland | F16: Finlândia | G16: 12 | I16: =CONCATENATE("Evolução da ",I4," ",K4," por cultura e Estado Membro") -> Evolução da Área (1000 ha) por cultura e Estado Membro
E17: France | F17: França | G17: 13 | I17: =CONCATENATE("Evolução da ",I4," (IND100 = 1993)"," por cultura e Estado Membro") -> Evolução da Área (IND100 = 1993) por cultura e Estado Membro
E18: Germany | F18: Alemanha | G18: 14
E19: Greece | F19: Grécia | G19: 15
E20: Hungary | F20: Hungria | G20: 16
E21: Ireland | F21: Irlanda | G21: 17
E22: Italy | F22: Itália | G22: 18
E23: Latvia | F23: Letônia | G23: 19
E24: Lithuania | F24: Lituânia | G24: 20
E25: Luxembourg | F25: Luxemburgo | G25: 21
E26: Malta | F26: Malta | G26: 22
E27: Netherlands | F27: Países Baixos | G27: 23
E28: Poland | F28: Polónia | G28: 24
E29: Portugal | F29: Portugal | G29: 25
E30: Romania | F30: Roménia | G30: 26
E31: Slovakia | F31: Eslováquia | G31: 27
E32: Slovenia | F32: Eslovénia | G32: 28
E33: Spain | F33: Espanha | G33: 29
E34: Sweden | F34: Suécia | G34: 30
E35: United Kingdom | F35: Reino Unido | G35: 31

Sheet data_EU (hidden)
A1: Concate | B1: Type | C1: Product | D1: Member State | E1: trimavg | F1: 1993 | G1: 1994 | H1: 1995 | I1: 1996 | J1: 1997 | K1: 1998 | L1: 1999 | M1: 2000 | N1: 2001 | O1: 2002 | P1: 2003 | Q1: 2004 | R1: 2005 | S1: 2006 | T1: 2007 | U1: 2008 | V1: 2009 | W1: 2010 | X1: 2011 | Y1: 2012 | Z1: 2013 | AA1: 2014 | AB1: 2015 | AC1: 2016 | AD1: 2017 | AE1: 2018 | AF1: 2019 | AG1: 2020 | AH1: 2021
A2: AreaSoft wheatEU-28 | B2: Area | C2: Soft wheat | D2: EU-28 | E2: 23428.93 | F2: 23639.765 | G2: 23624.501 | H2: 24297.364 | I2: 24046.272 | J2: 25495.397 | K2: 25363.354 | L2: 23333.6 | M2: 23053.99111 | N2: 22776.67222 | O2: 23180.16333 | P2: 20967.56444 | Q2: 22678.07556 | R2: 22949.57667 | S2: 22017.49778 | T2: 22168.35 | U2: 23584.8 | V2: 22936.45 | W2: 23145.33 | X2: 23707.52 | Y2: 23271.41 | Z2: 23405.74 | AA2: 24419.31 | AB2: 24327.1 | AC2: 24255.28 | AD2: 23385.84 | AE2: 23018.82 | AF2: 23882.13 | AG2: 22129.12
A3: AreaSoft wheatEU-15 | B3: Area | C3: Soft wheat | D3: EU-15 | E3: 14671.79667 | F3: 12929.1 | G3: 12815.3 | H3: 13410.6 | I3: 13749.6 | J3: 14062.4 | K3: 14019.8 | L3: 13519.7 | M3: 14235.66 | N3: 12978.1 | O3: 14054.48 | P3: 13312.81 | Q3: 13896.97 | R3: 14048.52 | S3: 13845.38 | T3: 13867.84 | U3: 14842.83 | V3: 13814.48 | W3: 14465.13 | X3: 15061.65 | Y3: 14469.96 | Z3: 14189.89 | AA3: 14962.25 | AB3: 14888.44 | AC3: 14656.99 | AD3: 14521.15333
A4: AreaSoft wheatEU-N13 | B4: Area | C4: Soft wheat | D4: EU-N13 | E4: 9363.26 | F4: 8952.865 | G4: 8999.201 | H4: 9029.164 | I4: 8321.672 | J4: 9397.997 | K4: 9299.554 | L4: 7967.9 | M4: 8879.96 | N4: 9857.95 | O4: 9175.7 | P4: 7678.5 | Q4: 8806.03 | R4: 8905.34 | S4: 8201.44 | T4: 8325.06 | U4: 8741.92 | V4: 9121.94 | W4: 8683.32 | X4: 8645.91 | Y4: 8807.21 | Z4: 9198.05 | AA4: 9455.54 | AB4: 9436.19 | AC4: 9624.06 | AD4: 9084.981111
A5: AreaSoft wheatBelgium | B5: Area | C5: Soft wheat | D5: Belgium | E5: 199.0133333 | F5: 203.6 | G5: 202.9 | H5: 209.1 | I5: 204.5 | J5: 209.4 | K5: 220.5 | L5: 181 | M5: 213 | N5: 181 | O5: 203 | P5: 199 | Q5: 212 | R5: 214 | S5: 210 | T5: 210 | U5: 224 | V5: 211.5 | W5: 213 | X5: 200.71 | Y5: 217.1 | Z5: 201.86 | AA5: 210.76 | AB5: 221.78 | AC5: 215.72 | AD5: 197.59 | AE5: 195.69 | AF5: 203.76 | AG5: 195 | AH5: 199.16
A6: AreaSoft wheatBulgaria | B6: Area | C6: Soft wheat | D6: Bulgaria | E6: 1187.153333 | F6: 1266 | G6: 1319.8 | H6: 1181.1 | I6: 957.7 | J6: 1211.7 | K6: 1335.8 | L6: 1097.3 | M6: 1106.7 | N6: 1333 | O6: 1347.6 | P6: 817.8 | Q6: 1017.6 | R6: 1083.5 | S6: 966 | T6: 1082.4 | U6: 1106.6 | V6: 1184.8 | W6: 1102.62 | X6: 1101.78 | Y6: 1166.3 | Z6: 1301.56 | AA6: 1261.47 | AB6: 1096.2 | AC6: 1179.1 | AD6: 1133.7 | AE6: 1197.1 | AF6: 1189.36 | AG6: 1193 | AH6: 1196
A7: AreaSoft wheatCzech Republic | B7: Area | C7: Soft wheat | D7: Czech Republic | E7: 830.4 | F7: 783 | G7: 812 | H7: 832 | I7: 801 | J7: 825.5 | K7: 912.3 | L7: 867.1 | M7: 970.4 | N7: 923.2 | O7: 848.8 | P7: 648.4 | Q7: 863.2 | R7: 820.4 | S7: 781.5 | T7: 811 | U7: 802.3 | V7: 831.3 | W7: 833.58 | X7: 863.13 | Y7: 815.38 | Z7: 829.39 | AA7: 835.94 | AB7: 829.82 | AC7: 839.71 | AD7: 832.06 | AE7: 819.69 | AF7: 839.45 | AG7: 798.58 | AH7: 784.79
A8: AreaSoft wheatDenmark | B8: Area | C8: Soft wheat | D8: Denmark | E8: 553 | F8: 619.4 | G8: 573.6 | H8: 608 | I8: 674 | J8: 684 | K8: 680 | L8: 638 | M8: 619.2 | N8: 634 | O8: 576.6 | P8: 664.3 | Q8: 666.4 | R8: 675.6 | S8: 686.3 | T8: 688.8 | U8: 638.2 | V8: 739 | W8: 763.6 | X8: 747 | Y8: 614.1 | Z8: 567.9 | AA8: 662.1 | AB8: 632.4 | AC8: 583 | AD8: 586.6 | AE8: 425.8 | AF8: 573.4 | AG8: 502.6 | AH8: 538.33
A9: AreaSoft wheatGermany | B9: Area | C9: Soft wheat | D9: Germany | E9: 3088.633333 | F9: 2385 | G9: 2424 | H9: 2571.6 | I9: 2586.4 | J9: 2713 | K9: 2790.8 | L9: 2589.1 | M9: 2960.3 | N9: 2892.5 | O9: 3009.8 | P9: 2956.4 | Q9: 3103.4 | R9: 3163.4 | S9: 3102.9 | T9: 2984.5 | U9: 3207 | V9: 3214.8 | W9: 3276.64 | X9: 3232.9 | Y9: 3045 | Z9: 3119.6 | AA9: 3208.4 | AB9: 3263.9 | AC9: 3176.4 | AD9: 3173 | AE9: 3006.2 | AF9: 3086.7 | AG9: 2801.5 | AH9: 2910.6
A10: AreaSoft wheatEstonia | B10: Area | C10: Soft wheat | D10: Estonia | E10: 166.5066667 | F10: 50.3 | G10: 34.2 | H10: 38.6 | I10: 45.9 | J10: 50.9 | K10: 66.8 | L10: 66.1 | M10: 68.9 | N10: 59.6 | O10: 64.5 | P10: 67.2 | Q10: 78.4 | R10: 85.4 | S10: 90.9 | T10: 99.5 | U10: 107.6 | V10: 113.6 | W10: 119.4 | X10: 128.4 | Y10: 124.3 | Z10: 124.2 | AA10: 154.4 | AB10: 169.7 | AC10: 164.5 | AD10: 169.75 | AE10: 154.58 | AF10: 166.98 | AG10: 168.04 | AH10: 167.08
A11: AreaSoft wheatIreland | B11: Area | C11: Soft wheat | D11: Ireland | E11: 62.83666667 | F11: 79.2 | G11: 74.1 | H11: 70.7 | I11: 85.7 | J11: 93.9 | K11: 83.9 | L11: 68.1 | M11: 78 | N11: 84.9 | O11: 102.7 | P11: 95.72 | Q11: 102.72 | R11: 95.23 | S11: 87.51 | T11: 84.25 | U11: 110.67 | V11: 84.47 | W11: 77.82 | X11: 94.16 | Y11: 98.03 | Z11: 60.6 | AA11: 71.61 | AB11: 65.33 | AC11: 67.92 | AD11: 67.05 | AE11: 57.98 | AF11: 63.48 | AG11: 46.41 | AH11: 62.01
A12: AreaSoft wheatGreece | B12: Area | C12: Soft wheat | D12: Greece | E12: 108.1033333 | F12: 328.9 | G12: 307.4 | H12: 252.3 | I12: 262.6 | J12: 242.2 | K12: 230.1 | L12: 208 | M12: 160.3 | N12: 170.45 | O12: 130.01 | P12: 124.04 | Q12: 88.36 | R12: 100.37 | S12: 165.07 | T12: 186.29 | U12: 174.24 | V12: 178.25 | W12: 154.33 | X12: 139.88 | Y12: 162.53 | Z12: 192.04 | AA12: 191.42 | AB12: 154.84 | AC12: 149.42 | AD12: 119.7 | AE12: 108 | AF12: 96.61 | AG12: 89.34 | AH12: 93.04
A13: AreaSoft wheatSpain | B13: Area | C13: Soft wheat | D13: Spain | E13: 1668.763333 | F13: 1379 | G13: 1322 | H13: 1480.7 | I13: 1359.5 | J13: 1431.6 | K13: 1283.5 | L13: 1628 | M13: 1485.7 | N13: 1291.9 | O13: 1480.5 | P13: 1307.4 | Q13: 1226.3 | R13: 1363.7 | S13: 1306.2 | T13: 1389.9 | U13: 1526.2 | V13: 1233.6 | W13: 1459.77 | X13: 1994.65 | Y13: 1777.12 | Z13: 1781.58 | AA13: 1874.07 | AB13: 1828.42 | AC13: 1808.69 | AD13: 1645.12 | AE13: 1689.08 | AF13: 1653.45 | AG13: 1663.76 | AH13: 1820.59
A14: AreaSoft wheatFrance | B14: Area | C14: Soft wheat | D14: France | E14: 4947.013333 | F14: 4288 | G14: 4338.3 | H14: 4513.5 | I14: 4764 | J14: 4840.7 | K14: 4934.7 | L14: 4775.2 | M14: 4910.5 | N14: 4460.2 | O14: 4894.8 | P14: 4524.4 | Q14: 4830.7 | R14: 4855.3 | S14: 4793.1 | T14: 4783 | U14: 5064.7 | V14: 4733.1 | W14: 4898.52 | X14: 4990.18 | Y14: 4860.63 | Z14: 4983.66 | AA14: 5010.46 | AB14: 5161.39 | AC14: 5139.25 | AD14: 4962.08 | AE14: 4880.21 | AF14: 4998.75 | AG14: 4261.73 | AH14: 4942
A15: AreaSoft wheatCroatia | B15: Area | C15: Soft wheat | D15: Croatia | E15: 141.8166667 | F15: 158.965 | G15: 145.501 | H15: 174.164 | I15: 147.972 | J15: 155.497 | K15: 188.854 | L15: 116.4 | M15: 120.6611111 | N15: 124.9222222 | O15: 129.1833333 | P15: 133.4444444 | Q15: 137.7055556 | R15: 141.9666667 | S15: 146.2277778 | T15: 150.5 | U15: 154.75 | V15: 179.23 | W15: 168.51 | X15: 147.18 | Y15: 185.84 | Z15: 203.43 | AA15: 155.58 | AB15: 141.15 | AC15: 170.9 | AD15: 117.73 | AE15: 137.99 | AF15: 142.76 | AG15: 144.7 | AH15: 144
A16: AreaSoft wheatItaly | B16: Area | C16: Soft wheat | D16: Italy | E16: 520.38 | F16: 889.1 | G16: 844.9 | H16: 858.9 | I16: 792.8 | J16: 700.9 | K16: 698.4 | L16: 696 | M16: 658.8 | N16: 625.2 | O16: 682.1 | P16: 577.3 | Q16: 581.8 | R16: 602.8 | S16: 582.8 | T16: 661.2 | U16: 702.2 | V16: 533.6 | W16: 572.45 | X16: 531.14 | Y16: 593.49 | Z16: 631.67 | AA16: 586.62 | AB16: 553.63 | AC16: 528.74 | AD16: 501.72 | AE16: 543.32 | AF16: 530.68 | AG16: 500.8 | AH16: 492.98
A17: AreaSoft wheatCyprus | B17: Area | C17: Soft wheat | D17: Cyprus | E17: 2.666666667 | F17: 0 | G17: 0 | H17: 0 | I17: 0 | J17: 0 | K17: 0 | L17: 0 | M17: 0 | N17: 0 | O17: 0 | P17: 0 | Q17: 0 | R17: 0 | S17: 0 | T17: 0 | U17: 0 | V17: 0 | W17: 0 | X17: 0 | Y17: 0 | Z17: 0 | AA17: 0 | AB17: 0 | AC17: 0.78 | AD17: 1.57 | AE17: 2.43 | AF17: 4.2 | AG17: 4 | AH17: 4
A18: AreaSoft wheatLatvia | B18: Area | C18: Soft wheat | D18: Latvia | E18: 472.8666667 | F18: 169.1 | G18: 94.6 | H18: 109.6 | I18: 149.2 | J18: 152.3 | K18: 150.9 | L18: 146 | M18: 158.1 | N18: 166.8 | O18: 153.5 | P18: 167.8 | Q18: 169.9 | R18: 187.4 | S18: 215.1 | T18: 224.6 | U18: 256.6 | V18: 285.7 | W18: 296.3 | X18: 306.9 | Y18: 352.4 | Z18: 369.3 | AA18: 391.6 | AB18: 447.3 | AC18: 479.1 | AD18: 446.8 | AE18: 417.2 | AF18: 492.7 | AG18: 498.2 | AH18: 538.4
A19: AreaSoft wheatLithuania | B19: Area | C19: Soft wheat | D19: Lithuania | E19: 861.35 | F19: 375.5 | G19: 270 | H19: 260.6 | I19: 347.8 | J19: 375.6 | K19: 359.6 | L19: 333.7 | M19: 370.4 | N19: 352.2 | O19: 335.1 | P19: 336.5 | Q19: 355.1 | R19: 369.5 | S19: 343.8 | T19: 354.6 | U19: 403.5 | V19: 500 | W19: 517.6 | X19: 551.1 | Y19: 627 | Z19: 667.4 | AA19: 708 | AB19: 836.22 | AC19: 880.53 | AD19: 811.95 | AE19: 772.89 | AF19: 895.76 | AG19: 891.57 | AH19: 948.7
A20: AreaSoft wheatLuxembourg | B20: Area | C20: Soft wheat | D20: Luxembourg | E20: 13.34666667 | F20: 8.4 | G20: 9 | H20: 9.3 | I20: 9.7 | J20: 9.7 | K20: 9.8 | L20: 7.8 | M20: 11 | N20: 9.8 | O20: 12 | P20: 11.2 | Q20: 11.7 | R20: 11.9 | S20: 12.7 | T20: 12.6 | U20: 14.6 | V20: 13.8 | W20: 14.01 | X20: 13.88 | Y20: 13.52 | Z20: 14.25 | AA20: 12.67 | AB20: 14.49 | AC20: 13.81 | AD20: 14.11 | AE20: 12.87 | AF20: 13.36 | AG20: 11.8 | AH20: 13.36333333
A21: AreaSoft wheatHungary | B21: Area | C21: Soft wheat | D21: Hungary | E21: 964.4733333 | F21: 957 | G21: 1026 | H21: 1072 | I21: 1160 | J21: 1219 | K21: 1173.5 | L21: 723.9 | M21: 1009.6 | N21: 1191.8 | O21: 1099.7 | P21: 1102.7 | Q21: 1161.8 | R21: 1121.7 | S21: 1065 | T21: 1103.4 | U21: 1121.8 | V21: 1133.4 | W21: 997.22 | X21: 965.62 | Y21: 1057.81 | Z21: 1075.91 | AA21: 1098.23 | AB21: 1029.32 | AC21: 1014.53 | AD21: 932.82 | AE21: 981.88 | AF21: 978.72 | AG21: 906.94 | AH21: 857.06
A22: AreaSoft wheatMalta | B22: Area | C22: Soft wheat | D22: Malta | E22: 0 | F22: 0 | G22: 0 | H22: 0 | I22: 0 | J22: 0 | K22: 0 | L22: 0 | M22: 0 | N22: 0 | O22: 0 | P22: 0 | Q22: 0 | R22: 0 | S22: 0 | T22: 0 | U22: 0 | V22: 0 | W22: 0 | X22: 0 | Y22: 0 | Z22: 0 | AA22: 0 | AB22: 0 | AC22: 0 | AD22: 0 | AE22: 0 | AF22: 0 | AG22: 0 | AH22: 0
A23: AreaSoft wheatNetherlands | B23: Area | C23: Soft wheat | D23: Netherlands | E23: 116.0433333 | F23: 118 | G23: 121.6 | H23: 135.4 | I23: 141.6 | J23: 137.5 | K23: 139.3 | L23: 102.8 | M23: 136.7 | N23: 124.3 | O23: 135.2 | P23: 129.2 | Q23: 137.3 | R23: 135.7 | S23: 140 | T23: 141.3 | U23: 156.5 | V23: 150.9 | W23: 153.7 | X23: 151 | Y23: 152 | Z23: 153 | AA23: 142 | AB23: 142.47 | AC23: 127.33 | AD23: 115.92 | AE23: 111.66 | AF23: 120.55 | AG23: 108.91 | AH23: 119.83
A24: AreaSoft wheatAustria | B24: Area | C24: Soft wheat | D24: Austria | E24: 269.7633333 | F24: 231.7 | G24: 231.8 | H24: 246.4 | I24: 236.7 | J24: 247.5 | K24: 247.7 | L24: 240.6 | M24: 278.1 | N24: 275.7 | O24: 276.2 | P24: 255.3 | Q24: 272.5 | R24: 273.5 | S24: 268.7 | T24: 277.6 | U24: 278.9 | V24: 292.2 | W24: 285.35 | X24: 289.02 | Y24: 293.93 | Z24: 284.94 | AA24: 290.61 | AB24: 283.89 | AC24: 294.51 | AD24: 274.39 | AE24: 272.39 | AF24: 261.64 | AG24: 262.51 | AH24: 260.27
A25: AreaSoft wheatPoland | B25: Area | C25: Soft wheat | D25: Poland | E25: 2426.876667 | F25: 2476.9 | G25: 2407 | H25: 2406.8 | I25: 2480.4 | J25: 2555.1 | K25: 2631.3 | L25: 2583 | M25: 2635.1 | N25: 2627 | O25: 2414.2 | P25: 2308 | Q25: 2310.7 | R25: 2218.1 | S25: 2175.7 | T25: 2112 | U25: 2278 | V25: 2346.2 | W25: 2141.5 | X25: 2258.7 | Y25: 2077.2 | Z25: 2137.9 | AA25: 2338.78 | AB25: 2395.5 | AC25: 2364.1 | AD25: 2391.85 | AE25: 2417.23 | AF25: 2511.33 | AG25: 2471.55 | AH25: 2396.95
A26: AreaSoft wheatPortugal | B26: Area | C26: Soft wheat | D26: Portugal | E26: 23.99 | F26: 238 | G26: 215 | H26: 235 | I26: 210 | J26: 248 | K26: 121.9 | L26: 146 | M26: 87.37 | N26: 49.95 | O26: 42.37 | P26: 30.14 | Q26: 35.39 | R26: 120.62 | S26: 101.4 | T26: 53.5 | U26: 85.32 | V26: 61.96 | W26: 48.61 | X26: 39.63 | Y26: 51.08 | Z26: 50.76 | AA26: 46.19 | AB26: 37.02 | AC26: 33.51 | AD26: 24.89 | AE26: 22.87 | AF26: 23.04 | AG26: 24.04 | AH26: 24.04
A27: AreaSoft wheatRomania | B27: Area | C27: Soft wheat | D27: Romania | E27: 2126.88 | F27: 2281.6 | G27: 2412.2 | H27: 2480.8 | I27: 1781.7 | J27: 2406.5 | K27: 2016.5 | L27: 1674.1 | M27: 1937.9 | N27: 2543.21 | O27: 2294.47 | P27: 1733.93 | Q27: 2291.91 | R27: 2472.33 | S27: 2009.01 | T27: 1973.27 | U27: 2108.61 | V27: 2140.61 | W27: 2149.88 | X27: 1942.33 | Y27: 1988.7 | Z27: 2099.74 | AA27: 2108.89 | AB27: 2103.82 | AC27: 2130.71 | AD27: 2048.13 | AE27: 2110.52 | AF27: 2162.64 | AG27: 2139.41 | AH27: 2143.71
A28: AreaSoft wheatSlovenia | B28: Area | C28: Soft wheat | D28: Slovenia | E28: 27.70333333 | F28: 37.2 | G28: 35.9 | H28: 36.8 | I28: 35.2 | J28: 33.4 | K28: 35 | L28: 31.6 | M28: 38.26 | N28: 39.34 | O28: 35.73 | P28: 35.59 | Q28: 32.39 | R28: 30.06 | S28: 32.08 | T28: 32.04 | U28: 35.41 | V28: 34.53 | W28: 31.95 | X28: 29.67 | Y28: 34.59 | Z28: 31.76 | AA28: 33.12 | AB28: 30.73 | AC28: 31.46 | AD28: 28.02 | AE28: 27.82 | AF28: 26.73 | AG28: 27.27 | AH28: 28.1469596
A29: AreaSoft wheatSlovakia | B29: Area | C29: Soft wheat | D29: Slovakia | E29: 357.2566667 | F29: 397.3 | G29: 442 | H29: 436.7 | I29: 414.8 | J29: 412.5 | K29: 429 | L29: 328.7 | M29: 402.3 | N29: 437.5 | O29: 402.9 | P29: 303.4 | Q29: 362.4 | R29: 370.7 | S29: 346.8 | T29: 357.2 | U29: 366.8 | V29: 372.6 | W29: 321.64 | X29: 351.1 | Y29: 377.69 | Z29: 357.46 | AA29: 369.51 | AB29: 356.43 | AC29: 374.31 | AD29: 331.12 | AE29: 355.42 | AF29: 363.21 | AG29: 353.14 | AH29: 307.72
A30: AreaSoft wheatFinland | B30: Area | C30: Soft wheat | D30: Finland | E30: 196.9 | F30: 99 | G30: 88.9 | H30: 100.7 | I30: 112.5 | J30: 124.8 | K30: 137.2 | L30: 117.7 | M30: 149.5 | N30: 144.6 | O30: 174.2 | P30: 191.6 | Q30: 235.5 | R30: 215.1 | S30: 192.4 | T30: 203.9 | U30: 219.6 | V30: 218.3 | W30: 211.2 | X30: 253.4 | Y30: 227.3 | Z30: 227.5 | AA30: 267.4 | AB30: 241.8 | AC30: 215.1 | AD30: 194.3 | AE30: 177.8 | AF30: 197.6 | AG30: 198.8 | AH30: 213.1
A31: AreaSoft wheatSweden | B31: Area | C31: Soft wheat | D31: Sweden | E31: 456.3433333 | F31: 304 | G31: 251.8 | H31: 261.4 | I31: 334.6 | J31: 344.2 | K31: 398 | L31: 275.4 | M31: 401.2 | N31: 398.6 | O31: 339.1 | P31: 411 | Q31: 403.1 | R31: 354.1 | S31: 360.2 | T31: 360.5 | U31: 360.5 | V31: 374 | W31: 397.13 | X31: 415.06 | Y31: 366.37 | Z31: 323.33 | AA31: 453.48 | AB31: 457.55 | AC31: 449.15 | AD31: 471.87 | AE31: 372.5 | AF31: 469.49 | AG31: 450.39 | AH31: 484.98
A32: AreaSoft wheatUnited Kingdom | B32: Area | C32: Soft wheat | D32: United Kingdom | E32: 1785.16 | F32: 1757.8 | G32: 1810 | H32: 1857.6 | I32: 1975 | J32: 2035 | K32: 2044 | L32: 1846 | M32: 2086 | N32: 1635 | O32: 1995.9 | P32: 1835.8 | Q32: 1989.8 | R32: 1867.2 | S32: 1836.1 | T32: 1830.5 | U32: 2080.2 | V32: 1775 | W32: 1939 | X32: 1969 | Y32: 1992 | Z32: 1615 | AA32: 1936 | AB32: 1832 | AC32: 1823 | AD32: 1792 | AE32: 1747.7 | AF32: 1815.78 | AG32: 1415.13 | AH32: 0
A33: AreaDurum wheatEU-28 | B33: Area | C33: Durum wheat | D33: EU-28 (2013-2020) | E33: 2389.803333 | F33: 2928.1 | G33: 2983.9 | H33: 3077.9 | I33: 3133.2 | J33: 3178 | K33: 3197.3 | L33: 3543.2 | M33: 3743.98 | N33: 3821.43 | O33: 4005.97 | P33: 3898.73 | Q33: 4109.43 | R33: 3691.86 | S33: 2988.69 | T33: 2849.6 | U33: 3085.54 | V33: 2956.11 | W33: 2891.68 | X33: 2504.89 | Y33: 2598.65 | Z33: 2409.38 | AA33: 2294.64 | AB33: 2436.29 | AC33: 2775.39 | AD33: 2544.81 | AE33: 2480.64 | AF33: 2143.96 | AG33: 2093.38
A34: AreaDurum wheatEU-15 | B34: Area | C34: Durum wheat | D34: EU-15 | E34: 2416.563333 | F34: 2787.092 | G34: 2924.88 | H34: 3016.744 | I34: 3059.896 | J34: 3114.584 | K34: 3098.64 | L34: 3479.352 | M34: 3700.48 | N34: 3766.58 | O34: 3961.02 | P34: 3849.91 | Q34: 4055.94 | R34: 3626.46 | S34: 2960.55 | T34: 2769.98 | U34: 3056.8 | V34: 2857.18 | W34: 2788.13 | X34: 2427.4 | Y34: 2538.47 | Z34: 2342.71 | AA34: 2252.99 | AB34: 2368.51 | AC34: 2608.35 | AD34: 2556.463333
A35: AreaDurum wheatEU-N13 | B35: Area | C35: Durum wheat | D35: EU-N13 | E35: 58.81666667 | F35: 37.1 | G35: 35.4 | H35: 35.8 | I35: 36.7 | J35: 37.4 | K35: 39.8 | L35: 38.2 | M35: 43.5 | N35: 54.85 | O35: 44.95 | P35: 48.82 | Q35: 53.49 | R35: 42.4 | S35: 28.14 | T35: 25.04 | U35: 28.75 | V35: 98.88 | W35: 85.05 | X35: 77.49 | Y35: 59.95 | Z35: 49.78 | AA35: 42.25 | AB35: 66.72 | AC35: 102.29 | AD35: 89.32
A36: AreaDurum wheatBelgium | B36: Area | C36: Durum wheat | D36: Belgium | E36: 0 | F36: 0 | G36: 0 | H36: 0 | I36: 0 | J36: 0 | K36: 0 | L36: 0 | M36: 0 | N36: 0 | O36: 0 | P36: 0 | Q36: 0 | R36: 0 | S36: 0 | T36: 0 | U36: 0 | V36: 0 | W36: 0 | X36: 0 | Y36: 0 | Z36: 0 | AA36: 0 | AB36: 0 | AC36: 0 | AD36: 0 | AE36: 0 | AF36: 0 | AG36: 0 | AH36: 0
A37: AreaDurum wheatBulgaria | B37: Area | C37: Durum wheat | D37: Bulgaria | E37: 11.21 | F37: 19 | G37: 19 | H37: 19 | I37: 19 | J37: 19 | K37: 19 | L37: 16.1 | M37: 15.1 | N37: 22.5 | O37: 21 | P37: 23.2 | Q37: 22 | R37: 18.3 | S37: 4.4 | T37: 5.6 | U37: 5 | V37: 62.9 | W37: 28.94 | X37: 35.68 | Y37: 18.7 | Z37: 12.73 | AA37: 6.45 | AB37: 9.72 | AC37: 13.49 | AD37: 10.82 | AE37: 14.91 | AF37: 9.32 | AG37: 7.4 | AH37: 9
A38: AreaDurum wheatCzech Republic | B38: Area | C38: Durum wheat | D38: Czech Republic | E38: 0 | F38: 0 | G38: 0 | H38: 0 | I38: 0 | J38: 0 | K38: 0 | L38: 0 | M38: 0 | N38: 0 | O38: 0 | P38: 0 | Q38: 0 | R38: 0 | S38: 0 | T38: 0 | U38: 0 | V38: 0 | W38: 0 | X38: 0 | Y38: 0 | Z38: 0 | AA38: 0 | AB38: 0 | AC38: 0 | AD38: 0 | AE38: 0 | AF38: 0 | AG38: 0 | AH38: 0
A39: AreaDurum wheatDenmark | B39: Area | C39: Durum wheat | D39: Denmark | E39: 0 | F39: 0 | G39: 0 | H39: 0 | I39: 0 | J39: 0 | K39: 0 | L39: 0 | M39: 0 | N39: 0 | O39: 0 | P39: 0 | Q39: 0 | R39: 0 | S39: 0 | T39: 0 | U39: 0 | V39: 0 | W39: 0 | X39: 0 | Y39: 0 | Z39: 0 | AA39: 0 | AB39: 0 | AC39: 0 | AD39: 0 | AE39: 0 | AF39: 0 | AG39: 0 | AH39: 0
A40: AreaDurum wheatGermany | B40: Area | C40: Durum wheat | D40: Germany | E40: 30.43333333 | F40: 9.6 | G40: 10.9 | H40: 7.2 | I40: 8 | J40: 6.6 | K40: 11.7 | L40: 12 | M40: 8.6 | N40: 4.7 | O40: 4.8 | P40: 7.3 | Q40: 8.2 | R40: 10.3 | S40: 11.7 | T40: 7.6 | U40: 6.5 | V40: 11.2 | W40: 21.06 | X40: 15.3 | Y40: 11.7 | Z40: 8.6 | AA40: 11.3 | AB40: 18.8 | AC40: 25.3 | AD40: 29.6 | AE40: 30.2 | AF40: 31.5 | AG40: 34 | AH40: 37.4
A41: AreaDurum wheatEstonia | B41: Area | C41: Durum wheat | D41: Estonia | E41: 0 | F41: 0 | G41: 0 | H41: 0 | I41: 0 | J41: 0 | K41: 0 | L41: 0 | M41: 0 | N41: 0 | O41: 0 | P41: 0 | Q41: 0 | R41: 0 | S41: 0 | T41: 0 | U41: 0 | V41: 0 | W41: 0 | X41: 0 | Y41: 0 | Z41: 0 | AA41: 0 | AB41: 0 | AC41: 0 | AD41: 0 | AE41: 0 | AF41: 0 | AG41: 0 | AH41: 0
A42: AreaDurum wheatIreland | B42: Area | C42: Durum wheat | D42: Ireland | E42: 0 | F42: 0 | G42: 0 | H42: 0 | I42: 0 | J42: 0 | K42: 0 | L42: 0 | M42: 0 | N42: 0 | O42: 0 | P42: 0 | Q42: 0 | R42: 0 | S42: 0 | T42: 0 | U42: 0 | V42: 0 | W42: 0 | X42: 0 | Y42: 0 | Z42: 0 | AA42: 0 | AB42: 0 | AC42: 0 | AD42: 0 | AE42: 0 | AF42: 0 | AG42: 0 | AH42: 0
A43: AreaDurum wheatGreece | B43: Area | C43: Durum wheat | D43: Greece | E43: 282.2066667 | F43: 583.1 | G43: 595 | H43: 605 | I43: 601.3 | J43: 618.9 | K43: 616 | L43: 660 | M43: 668.99 | N43: 760.64 | O43: 760.3 | P43: 727.05 | Q43: 750.5 | R43: 768.37 | S43: 520.09 | T43: 491.77 | U43: 483.14 | V43: 603.75 | W43: 506.72 | X43: 403.82 | Y43: 400.66 | Z43: 387.23 | AA43: 353.96 | AB43: 333.35 | AC43: 388.17 | AD43: 296.25 | AE43: 296.49 | AF43: 253.88 | AG43: 242.39 | AH43: 223.82
A44: AreaDurum wheatSpain | B44: Area | C44: Durum wheat | D44: Spain | E44: 352.9466667 | F44: 651.5 | G44: 648 | H44: 645.7 | I44: 653 | J44: 647 | K44: 629.1 | L44: 827 | M44: 867.3 | N44: 885.1 | O44: 926.2 | P44: 913.2 | Q44: 948.7 | R44: 910.5 | S44: 614 | T44: 413.4 | U44: 531.7 | V44: 538.9 | W44: 488.31 | X44: 378.05 | Y44: 411.05 | Z44: 343.39 | AA44: 297.14 | AB44: 347.93 | AC44: 448.16 | AD44: 417.59 | AE44: 374.61 | AF44: 266.64 | AG44: 250.9 | AH44: 248.18
A45: AreaDurum wheatFrance | B45: Area | C45: Durum wheat | D45: France | E45: 325.23 | F45: 223.1 | G45: 235.4 | H45: 230 | I45: 271.7 | J45: 267.8 | K45: 298 | L45: 329 | M45: 337.9 | N45: 306.4 | O45: 335.5 | P45: 352.7 | Q45: 406.7 | R45: 422.6 | S45: 452.7 | T45: 455.8 | U45: 427.8 | V45: 413.5 | W45: 506.85 | X45: 417.15 | Y45: 437.19 | Z45: 336.12 | AA45: 286.75 | AB45: 318.82 | AC45: 403 | AD45: 370.01 | AE45: 353.89 | AF45: 245.5 | AG45: 251.79 | AH45: 287.95
A46: AreaDurum wheatCroatia | B46: Area | C46: Durum wheat | D46: Croatia | E46: 0.5333333333 | F46: 0 | G46: 0 | H46: 0 | I46: 0 | J46: 0 | K46: 0 | L46: 0 | M46: 1 | N46: 1 | O46: 1 | P46: 1 | Q46: 1 | R46: 1 | S46: 1 | T46: 1 | U46: 1.79 | V46: 1.15 | W46: 1.78 | X46: 2.62 | Y46: 1.11 | Z46: 1.08 | AA46: 1.41 | AB46: 1.53 | AC46: 0.5 | AD46: 0.64 | AE46: 0.46 | AF46: 0.4 | AG46: 0.7 | AH46: 0.9
A47: AreaDurum wheatItaly | B47: Area | C47: Durum wheat | D47: Italy | E47: 1269.073333 | F47: 1400 | G47: 1427 | H47: 1517.7 | I47: 1522.6 | J47: 1557 | K47: 1557 | L47: 1580 | M47: 1663.1 | N47: 1664.2 | O47: 1733.3 | P47: 1688.8 | Q47: 1772.1 | R47: 1520.1 | S47: 1342.9 | T47: 1439.2 | U47: 1586.8 | V47: 1261.9 | W47: 1257.07 | X47: 1194.89 | Y47: 1260.14 | Z47: 1270.49 | AA47: 1287.56 | AB47: 1328.87 | AC47: 1383.68 | AD47: 1304.86 | AE47: 1278.4 | AF47: 1223.96 | AG47: 1210.42 | AH47: 1277.81
A48: AreaDurum wheatCyprus | B48: Area | C48: Durum wheat | D48: Cyprus | E48: 7.493333333 | F48: 5 | G48: 3.3 | H48: 3.7 | I48: 4.6 | J48: 5.3 | K48: 5.8 | L48: 6.6 | M48: 6.2 | N48: 5.4 | O48: 5.9 | P48: 7.23 | Q48: 7.45 | R48: 5.26 | S48: 5.39 | T48: 5.29 | U48: 4.99 | V48: 5.76 | W48: 7.83 | X48: 10.59 | Y48: 8.55 | Z48: 6.92 | AA48: 6.14 | AB48: 11.97 | AC48: 7.61 | AD48: 7.1 | AE48: 7.77 | AF48: 6.4 | AG48: 8.5 | AH48: 8.5
A49: AreaDurum wheatLatvia | B49: Area | C49: Durum wheat | D49: Latvia | E49: 0 | F49: 0 | G49: 0 | H49: 0 | I49: 0 | J49: 0 | K49: 0 | L49: 0 | M49: 0 | N49: 0 | O49: 0 | P49: 0 | Q49: 0 | R49: 0 | S49: 0 | T49: 0 | U49: 0 | V49: 0 | W49: 0 | X49: 0 | Y49: 0 | Z49: 0 | AA49: 0 | AB49: 0 | AC49: 0 | AD49: 0 | AE49: 0 | AF49: 0 | AG49: 0 | AH49: 0
A50: AreaDurum wheatLithuania | B50: Area | C50: Durum wheat | D50: Lithuania | E50: 0 | F50: 0 | G50: 0 | H50: 0 | I50: 0 | J50: 0 | K50: 0 | L50: 0 | M50: 0 | N50: 0 | O50: 0 | P50: 0 | Q50: 0 | R50: 0 | S50: 0 | T50: 0 | U50: 0 | V50: 0 | W50: 0 | X50: 0 | Y50: 0 | Z50: 0 | AA50: 0 | AB50: 0 | AC50: 0 | AD50: 0 | AE50: 0 | AF50: 0 | AG50: 0 | AH50: 0
A51: AreaDurum wheatLuxembourg | B51: Area | C51: Durum wheat | D51: Luxembourg | E51: 0 | F51: 0 | G51: 0 | H51: 0 | I51: 0 | J51: 0 | K51: 0 | L51: 0 | M51: 0 | N51: 0 | O51: 0 | P51: 0 | Q51: 0 | R51: 0 | S51: 0 | T51: 0 | U51: 0 | V51: 0 | W51: 0 | X51: 0 | Y51: 0 | Z51: 0 | AA51: 0 | AB51: 0 | AC51: 0 | AD51: 0 | AE51: 0 | AF51: 0 | AG51: 0.13 | AH51: 0
A52: AreaDurum wheatHungary | B52: Area | C52: Durum wheat | D52: Hungary | E52: 33.43 | F52: 9 | G52: 9 | H52: 9 | I52: 9 | J52: 9 | K52: 9 | L52: 9.9 | M52: 14.8 | N52: 13.8 | O52: 10.8 | P52: 11.1 | Q52: 12 | R52: 9 | S52: 9.7 | T52: 7.9 | U52: 8.5 | V52: 13.1 | W52: 13.51 | X52: 12.22 | Y52: 12.21 | Z52: 14.57 | AA52: 14.5 | AB52: 19.25 | AC52: 29.79 | AD52: 33.58 | AE52: 44.28 | AF52: 36.92 | AG52: 26.52 | AH52: 29.4
A53: AreaDurum wheatMalta | B53: Area | C53: Durum wheat | D53: Malta | E53: 0 | F53: 0 | G53: 0 | H53: 0 | I53: 0 | J53: 0 | K53: 0 | L53: 0 | M53: 0 | N53: 0 | O53: 0 | P53: 0 | Q53: 0 | R53: 0 | S53: 0 | T53: 0 | U53: 0 | V53: 0 | W53: 0 | X53: 0 | Y53: 0 | Z53: 0 | AA53: 0 | AB53: 0 | AC53: 0 | AD53: 0 | AE53: 0 | AF53: 0 | AG53: 0 | AH53: 0
A54: AreaDurum wheatNetherlands | B54: Area | C54: Durum wheat | D54: Netherlands | E54: 0 | F54: 0 | G54: 0 | H54: 0 | I54: 0 | J54: 0 | K54: 0 | L54: 0 | M54: 0 | N54: 0 | O54: 0 | P54: 0 | Q54: 0 | R54: 0 | S54: 0 | T54: 0 | U54: 0 | V54: 0 | W54: 0 | X54: 0 | Y54: 0 | Z54: 0 | AA54: 0 | AB54: 0 | AC54: 0 | AD54: 0 | AE54: 0 | AF54: 0 | AG54: 0 | AH54: 0
A55: AreaDurum wheatAustria | B55: Area | C55: Durum wheat | D55: Austria | E55: 20.49666667 | F55: 9.3 | G55: 9.2 | H55: 9.5 | I55: 10.9 | J55: 12.3 | K55: 16.7 | L55: 20 | M55: 15.7 | N55: 12 | O55: 12.6 | P55: 16.7 | Q55: 17.7 | R55: 15.5 | S55: 15.9 | T55: 15.4 | U55: 17.9 | V55: 16.9 | W55: 17.5 | X55: 15.32 | Y55: 14.25 | Z55: 12.35 | AA55: 14.04 | AB55: 19.08 | AC55: 23.25 | AD55: 22.89 | AE55: 21.9 | AF55: 16.7 | AG55: 16.51 | AH55: 19.47
A56: AreaDurum wheatPoland | B56: Area | C56: Durum wheat | D56: Poland | E56: 0 | F56: 0 | G56: 0 | H56: 0 | I56: 0 | J56: 0 | K56: 0 | L56: 0 | M56: 0 | N56: 0 | O56: 0 | P56: 0 | Q56: 0 | R56: 0 | S56: 0 | T56: 0 | U56: 0 | V56: 0 | W56: 0 | X56: 0 | Y56: 0 | Z56: 0 | AA56: 0 | AB56: 0 | AC56: 0 | AD56: 0 | AE56: 0 | AF56: 0 | AG56: 0 | AH56: 0
A57: AreaDurum wheatPortugal | B57: Area | C57: Durum wheat | D57: Portugal | E57: 4.096666667 | F57: 12 | G57: 21 | H57: 25 | I57: 27 | J57: 29 | K57: 27 | L57: 75 | M57: 138.89 | N57: 133.54 | O57: 188.32 | P57: 144.16 | Q57: 152.04 | R57: 2.09 | S57: 3.26 | T57: 1.39 | U57: 2.96 | V57: 11.03 | W57: 9.12 | X57: 2.87 | Y57: 3.71 | Z57: 1.42 | AA57: 1.64 | AB57: 2.72 | AC57: 4.69 | AD57: 4.14 | AE57: 4.15 | AF57: 3.4 | AG57: 4 | AH57: 3.8
A58: AreaDurum wheatRomania | B58: Area | C58: Durum wheat | D58: Romania | E58: 5.843333333 | F58: 1.4 | G58: 1.4 | H58: 1.4 | I58: 1.4 | J58: 1.4 | K58: 3.3 | L58: 1.2 | M58: 2.3 | N58: 3.05 | O58: 3.05 | P58: 1.29 | Q58: 4.04 | R58: 3.64 | S58: 3.55 | T58: 1.75 | U58: 1.66 | V58: 8.22 | W58: 12.51 | X58: 4.68 | Y58: 8.93 | Z58: 4.25 | AA58: 3.97 | AB58: 2.78 | AC58: 7.02 | AD58: 4.78 | AE58: 5.63 | AF58: 5.73 | AG58: 6.17 | AH58: 7.47
A59: AreaDurum wheatSlovenia | B59: Area | C59: Durum wheat | D59: Slovenia | E59: 0 | F59: 0 | G59: 0 | H59: 0 | I59: 0 | J59: 0 | K59: 0 | L59: 0 | M59: 0 | N59: 0 | O59: 0 | P59: 0 | Q59: 0 | R59: 0 | S59: 0 | T59: 0 | U59: 0 | V59: 0 | W59: 0 | X59: 0 | Y59: 0 | Z59: 0 | AA59: 0 | AB59: 0 | AC59: 0 | AD59: 0 | AE59: 0 | AF59: 0 | AG59: 0 | AH59: 0
A60: AreaDurum wheatSlovakia | B60: Area | C60: Durum wheat | D60: Slovakia | E60: 42.29666667 | F60: 2.7 | G60: 2.7 | H60: 2.7 | I60: 2.7 | J60: 2.7 | K60: 2.7 | L60: 4.4 | M60: 4.1 | N60: 9.1 | O60: 3.2 | P60: 5 | Q60: 7 | R60: 5.2 | S60: 4.1 | T60: 3.5 | U60: 6.8 | V60: 7.8 | W60: 20.48 | X60: 11.7 | Y60: 10.45 | Z60: 10.23 | AA60: 9.78 | AB60: 21.47 | AC60: 40.73 | AD60: 42.55 | AE60: 47.95 | AF60: 43.61 | AG60: 33.95 | AH60: 49.34
A61: AreaDurum wheatFinland | B61: Area | C61: Durum wheat | D61: Finland | E61: 0 | F61: 0 | G61: 0 | H61: 0 | I61: 0 | J61: 0 | K61: 0 | L61: 0 | M61: 0 | N61: 0 | O61: 0 | P61: 0 | Q61: 0 | R61: 0 | S61: 0 | T61: 0 | U61: 0 | V61: 0 | W61: 0 | X61: 0 | Y61: 0 | Z61: 0 | AA61: 0 | AB61: 0 | AC61: 0 | AD61: 0 | AE61: 0 | AF61: 0 | AG61: 0 | AH61: 0
A62: AreaDurum wheatSweden | B62: Area | C62: Durum wheat | D62: Sweden | E62: 0 | F62: 0 | G62: 0 | H62: 0 | I62: 0 | J62: 0 | K62: 0 | L62: 0 | M62: 0 | N62: 0 | O62: 0 | P62: 0 | Q62: 0 | R62: 0 | S62: 0 | T62: 0 | U62: 0 | V62: 0 | W62: 0 | X62: 0 | Y62: 0 | Z62: 0 | AA62: 0 | AB62: 0 | AC62: 0 | AD62: 0 | AE62: 0 | AF62: 0 | AG62: 0 | AH62: 0
A63: AreaDurum wheatUnited Kingdom | B63: Area | C63: Durum wheat | D63: United Kingdom | E63: 0 | F63: 1.2 | G63: 1 | H63: 1 | I63: 1 | J63: 1 | K63: 1 | L63: 1 | M63: 0 | N63: 0 | O63: 0 | P63: 0 | Q63: 0 | R63: 0 | S63: 0 | T63: 0 | U63: 0 | V63: 0 | W63: 0 | X63: 0 | Y63: 0 | Z63: 0 | AA63: 0 | AB63: 0 | AC63: 0 | AD63: 0 | AE63: 0 | AF63: 0 | AG63: 0 | AH63: 0
A64: AreaRyeEU-28 | B64: Area | C64: Rye | D64: EU-28 | E64: 2030.110806 | F64: 4122.153 | G64: 4215.463 | H64: 4300.73 | I64: 4164.743 | J64: 4095.759 | K64: 4193.546 | L64: 3744.846 | M64: 3684.55 | N64: 3573.41 | O64: 2915.97 | P64: 2590.08 | Q64: 2763.74 | R64: 2485.57 | S64: 2346.54 | T64: 2575.65 | U64: 2749.69 | V64: 2784.78 | W64: 2583.453636 | X64: 2218.209107 | Y64: 2368.285981 | Z64: 2658.742533 | AA64: 2162.753914 | AB64: 1964.015595 | AC64: 1922.659609 | AD64: 1949.384435 | AE64: 1940.257628 | AF64: 2223.540944 | AG64: 2200.690354
A65: AreaRyeEU-15 | B65: Area | C65: Rye | D65: EU-15 | E65: 1071.356521 | F65: 0 | G65: 0 | H65: 0 | I65: 0 | J65: 0 | K65: 0 | L65: 0 | M65: 1240.83 | N65: 1217.72 | O65: 1069.56 | P65: 852.21 | Q65: 933.86 | R65: 824.66 | S65: 825.72 | T65: 998.31 | U65: 1063.09 | V65: 1106.47 | W65: 981.9536364 | X65: 971.6791074 | Y65: 1103.382648 | Z65: 1197.038089 | AA65: 1051.821321 | AB65: 1058.865595 | AC65: 988.3796086 | AD65: 932.8670615
A66: AreaRyeEU-N13 | B66: Area | C66: Rye | D66: EU-N13 | E66: 1101.702346 | F66: 169.1 | G66: 94.6 | H66: 109.6 | I66: 149.2 | J66: 152.3 | K66: 150.9 | L66: 146 | M66: 2436.77 | N66: 2355.71 | O66: 1846.37 | P66: 1737.87 | Q66: 1829.88 | R66: 1658.72 | S66: 1520.82 | T66: 1578.04 | U66: 1686.63 | V66: 1678.31 | W66: 1312.4 | X66: 1260.89 | Y66: 1264.594444 | Z66: 1456.519259 | AA66: 1118.942593 | AB66: 905.14 | AC66: 921.57 | AD66: 1098.686667
A67: AreaRyeBelgium | B67: Area | C67: Rye | D67: Belgium | E67: 0.6366666667 | F67: 2.3 | G67: 2.6 | H67: 2.7 | I67: 1.8 | J67: 1.7 | K67: 1.7 | L67: 1 | M67: 1.1 | N67: 0.8 | O67: 0.7 | P67: 0.6 | Q67: 0.7 | R67: 0.5 | S67: 0.6 | T67: 0.7 | U67: 0.5 | V67: 0.5 | W67: 1.3 | X67: 0.46 | Y67: 0.5 | Z67: 0.53 | AA67: 0.39 | AB67: 0.56 | AC67: 0.59 | AD67: 0.52 | AE67: 0.62 | AF67: 0.77 | AG67: 0.7 | AH67: 0.6366666667
A68: AreaRyeBulgaria | B68: Area | C68: Rye | D68: Bulgaria | E68: 7.27 | F68: 19.3 | G68: 14 | H68: 14.1 | I68: 15.5 | J68: 18.2 | K68: 18.4 | L68: 19.7 | M68: 18.6 | N68: 19.5 | O68: 13.1 | P68: 9.8 | Q68: 8.5 | R68: 8.8 | S68: 7.4 | T68: 5.1 | U68: 7.4 | V68: 10 | W68: 10.79 | X68: 10.3 | Y68: 12.6 | Z68: 15.46 | AA68: 14.44 | AB68: 6.3 | AC68: 7.47 | AD68: 8.24 | AE68: 8.32 | AF68: 6.1 | AG68: 5.5 | AH68: 9
A69: AreaRyeCzech Republic | B69: Area | C69: Rye | D69: Czech Republic | E69: 26.23666667 | F69: 67 | G69: 79 | H69: 79.4 | I69: 64.1 | J69: 75.6 | K69: 71.9 | L69: 55.1 | M69: 43.9 | N69: 40.1 | O69: 35.3 | P69: 41.9 | Q69: 59.2 | R69: 46.9 | S69: 22.5 | T69: 37.5 | U69: 43.4 | V69: 38.5 | W69: 30.25 | X69: 24.99 | Y69: 30.56 | Z69: 37.5 | AA69: 25.14 | AB69: 21.98 | AC69: 20.95 | AD69: 22.22 | AE69: 25.36 | AF69: 31.13 | AG69: 31.43 | AH69: 25.15
A70: AreaRyeDenmark | B70: Area | C70: Rye | D70: Denmark | E70: 108.7666667 | F70: 78.3 | G70: 88.6 | H70: 96 | I70: 75 | J70: 84 | K70: 105 | L70: 51 | M70: 50.5 | N70: 65.3 | O70: 46.3 | P70: 32.9 | Q70: 31.6 | R70: 27.3 | S70: 27.5 | T70: 30.3 | U70: 28.9 | V70: 44.3 | W70: 52.1 | X70: 57.6 | Y70: 64.6 | Z70: 87.2 | AA70: 106.5 | AB70: 122 | AC70: 99.6 | AD70: 111.4 | AE70: 92.7 | AF70: 146.6 | AG70: 115.3 | AH70: 108.35
A71: AreaRyeGermany | B71: Area | C71: Rye | D71: Germany | E71: 571.6181324 | F71: 661.8 | G71: 722.5 | H71: 861.4 | I71: 809.1 | J71: 843.4 | K71: 936.4 | L71: 748.2 | M71: 842.7 | N71: 837 | O71: 728.4 | P71: 531.2 | Q71: 624.9 | R71: 549.1 | S71: 538.9 | T71: 670.9 | U71: 736.9 | V71: 749.4 | W71: 617.1536364 | X71: 603.8191074 | Y71: 698.3659811 | Z71: 774.3325335 | AA71: 620.5239136 | AB71: 606.4855948 | AC71: 561.1996086 | AD71: 527.3544346 | AE71: 513.0576282 | AF71: 626.5809439 | AG71: 626.300354 | AH71: 622.4127269
A72: AreaRyeEstonia | B72: Area | C72: Rye | D72: Estonia | E72: 15.46666667 | F72: 61.9 | G72: 21.7 | H72: 32 | I72: 31.6 | J72: 34.3 | K72: 38.8 | L72: 24.2 | M72: 28.9 | N72: 20.9 | O72: 17.9 | P72: 15.2 | Q72: 8.1 | R72: 7.4 | S72: 7.3 | T72: 16.8 | U72: 21.4 | V72: 15.3 | W72: 12.6 | X72: 13.3 | Y72: 16.9 | Z72: 11.5 | AA72: 15.4 | AB72: 14.3 | AC72: 12.4 | AD72: 13.31 | AE72: 10.85 | AF72: 28.9 | AG72: 20.69 | AH72: 15.46666667
A73: AreaRyeIreland | B73: Area | C73: Rye | D73: Ireland | E73: 0 | F73: 0 | G73: 0 | H73: 0 | I73: 0 | J73: 0 | K73: 0 | L73: 0 | M73: 0 | N73: 0 | O73: 0 | P73: 0 | Q73: 0 | R73: 0 | S73: 0 | T73: 0 | U73: 0 | V73: 0 | W73: 0 | X73: 0 | Y73: 0 | Z73: 0 | AA73: 0 | AB73: 0 | AC73: 0 | AD73: 0 | AE73: 0 | AF73: 0 | AG73: 0 | AH73: 0
A74: AreaRyeGreece | B74: Area | C74: Rye | D74: Greece | E74: 10.41333333 | F74: 18.8 | G74: 18.3 | H74: 16.7 | I74: 16.5 | J74: 16.3 | K74: 17.1 | L74: 14.4 | M74: 18.96 | N74: 20.15 | O74: 15.16 | P74: 15.26 | Q74: 9.54 | R74: 12.48 | S74: 17.34 | T74: 18.19 | U74: 20.37 | V74: 20.31 | W74: 16.77 | X74: 17.58 | Y74: 15.44 | Z74: 17.19 | AA74: 15.36 | AB74: 15.72 | AC74: 14.76 | AD74: 12.04 | AE74: 10.19 | AF74: 8.53 | AG74: 9.01 | AH74: 8.3
A75: AreaRyeSpain | B75: Area | C75: Rye | D75: Spain | E75: 137.31 | F75: 174.9 | G75: 153.9 | H75: 165.2 | I75: 167.1 | J75: 142.8 | K75: 124.3 | L75: 121 | M75: 109.6 | N75: 102.1 | O75: 102.1 | P75: 108.1 | Q75: 90.7 | R75: 90.5 | S75: 106.1 | T75: 111.7 | U75: 111.5 | V75: 131.8 | W75: 135.5 | X75: 132.3 | Y75: 168.1866667 | Z75: 161.6155556 | AA75: 139.4974074 | AB75: 146.63 | AC75: 155.26 | AD75: 108.08 | AE75: 136.25 | AF75: 138.09 | AG75: 137.59 | AH75: 124.16
A76: AreaRyeFrance | B76: Area | C76: Rye | D76: France | E76: 25.85333333 | F76: 42.2 | G76: 41.7 | H76: 43.2 | I76: 44.8 | J76: 41.1 | K76: 41.1 | L76: 36.2 | M76: 31.6 | N76: 28.4 | O76: 28.6 | P76: 27.9 | Q76: 33.8 | R76: 31 | S76: 26.6 | T76: 26.8 | U76: 25.8 | V76: 25.1 | W76: 29.5 | X76: 27.66 | Y76: 31.55 | Z76: 32.6 | AA76: 26.17 | AB76: 26.23 | AC76: 24.38 | AD76: 24.19 | AE76: 24.45 | AF76: 28.73 | AG76: 31.82 | AH76: 41.4
A77: AreaRyeCroatia | B77: Area | C77: Rye | D77: Croatia | E77: 1.193333333 | F77: 2.453 | G77: 2.963 | H77: 1.93 | I77: 2.043 | J77: 1.959 | K77: 2.146 | L77: 2.446 | M77: 2.74 | N77: 2.98 | O77: 3.24 | P77: 2.96 | Q77: 2.87 | R77: 1.85 | S77: 2.01 | T77: 1.73 | U77: 1.37 | V77: 1 | W77: 1.04 | X77: 0.87 | Y77: 0.85 | Z77: 1.02 | AA77: 1.37 | AB77: 1.09 | AC77: 1.29 | AD77: 0.77 | AE77: 1.29 | AF77: 1.58 | AG77: 1 | AH77: 1.5
A78: AreaRyeItaly | B78: Area | C78: Rye | D78: Italy | E78: 3.693333333 | F78: 8 | G78: 7.1 | H78: 7.1 | I78: 3.1 | J78: 10.1 | K78: 0 | L78: 4.4 | M78: 3.5 | N78: 3 | O78: 3.4 | P78: 2.7 | Q78: 2.9 | R78: 2.7 | S78: 2.8 | T78: 3 | U78: 4.7 | V78: 4.6 | W78: 4.51 | X78: 4.85 | Y78: 4.99 | Z78: 4.83 | AA78: 3.84 | AB78: 4.11 | AC78: 4.17 | AD78: 3.59 | AE78: 3.54 | AF78: 3.91 | AG78: 3.58 | AH78: 3.64
A79: AreaRyeCyprus | B79: Area | C79: Rye | D79: Cyprus | E79: 0 | F79: 0 | G79: 0 | H79: 0 | I79: 0 | J79: 0 | K79: 0 | L79: 0 | M79: 0 | N79: 0 | O79: 0 | P79: 0 | Q79: 0 | R79: 0 | S79: 0 | T79: 0 | U79: 0 | V79: 0 | W79: 0 | X79: 0 | Y79: 0 | Z79: 0 | AA79: 0 | AB79: 0 | AC79: 0 | AD79: 0 | AE79: 0 | AF79: 0 | AG79: 0 | AH79: 0
A80: AreaRyeLatvia | B80: Area | C80: Rye | D80: Latvia | E80: 36.3 | F80: 187.6 | G80: 62.7 | H80: 40.4 | I80: 56.4 | J80: 62.5 | K80: 57.7 | L80: 47.2 | M80: 54.8 | N80: 55.8 | O80: 42.3 | P80: 44.2 | Q80: 45.1 | R80: 39.3 | S80: 42.8 | T80: 57.5 | U80: 59 | V80: 59 | W80: 32.9 | X80: 27.2 | Y80: 36.3 | Z80: 28.3 | AA80: 32 | AB80: 37.3 | AC80: 35.8 | AD80: 31.8 | AE80: 21.7 | AF80: 43.2 | AG80: 41.3 | AH80: 34.4
A81: AreaRyeLithuania | B81: Area | C81: Rye | D81: Lithuania | E81: 31.83666667 | F81: 231.2 | G81: 203.5 | H81: 134.7 | I81: 152.2 | J81: 158.7 | K81: 174.3 | L81: 134.8 | M81: 133.1 | N81: 111.3 | O81: 74.6 | P81: 59.8 | Q81: 55.5 | R81: 50.9 | S81: 51.1 | T81: 69.8 | U81: 74.3 | V81: 82.2 | W81: 49.5 | X81: 42 | Y81: 55.9 | Z81: 49.4 | AA81: 37.9 | AB81: 38.76 | AC81: 32.56 | AD81: 25.84 | AE81: 21.28 | AF81: 41.12 | AG81: 37.11 | AH81: 26.1
A82: AreaRyeLuxembourg | B82: Area | C82: Rye | D82: Luxembourg | E82: 1.02 | F82: 0.4 | G82: 0.4 | H82: 0.4 | I82: 0.5 | J82: 0.5 | K82: 0.7 | L82: 0.6 | M82: 0.7 | N82: 0.7 | O82: 1.1 | P82: 0.7 | Q82: 1.1 | R82: 0.9 | S82: 1.1 | T82: 1.3 | U82: 1.3 | V82: 1.1 | W82: 1.1 | X82: 0.94 | Y82: 1.12 | Z82: 0.94 | AA82: 0.97 | AB82: 0.9 | AC82: 0.9 | AD82: 0.95 | AE82: 1.08 | AF82: 1.14 | AG82: 1.03 | AH82: 1.02
A83: AreaRyeHungary | B83: Area | C83: Rye | D83: Hungary | E83: 26.21666667 | F83: 68 | G83: 88 | H83: 77 | I83: 59 | J83: 67 | K83: 61.9 | L83: 39.5 | M83: 43.1 | N83: 50.8 | O83: 48.6 | P83: 46 | Q83: 45.4 | R83: 41.8 | S83: 38.9 | T83: 39.8 | U83: 43.6 | V83: 40 | W83: 36.6 | X83: 33.3 | Y83: 35.15 | Z83: 35.36 | AA83: 33.6 | AB83: 37.71 | AC83: 27.23 | AD83: 26.48 | AE83: 26.23 | AF83: 25.94 | AG83: 25.67 | AH83: 31.4
A84: AreaRyeMalta | B84: Area | C84: Rye | D84: Malta | E84: 0 | F84: 0 | G84: 0 | H84: 0 | I84: 0 | J84: 0 | K84: 0 | L84: 0 | M84: 0 | N84: 0 | O84: 0 | P84: 0 | Q84: 0 | R84: 0 | S84: 0 | T84: 0 | U84: 0 | V84: 0 | W84: 0 | X84: 0 | Y84: 0 | Z84: 0 | AA84: 0 | AB84: 0 | AC84: 0 | AD84: 0 | AE84: 0 | AF84: 0 | AG84: 0 | AH84: 0
A85: AreaRyeNetherlands | B85: Area | C85: Rye | D85: Netherlands | E85: 1.536666667 | F85: 7.4 | G85: 5.6 | H85: 8.2 | I85: 6.9 | J85: 5 | K85: 6.3 | L85: 2.7 | M85: 6 | N85: 3.6 | O85: 3.6 | P85: 3.5 | Q85: 3.4 | R85: 2.5 | S85: 2.4 | T85: 2.8 | U85: 2.1 | V85: 2.3 | W85: 2.4 | X85: 2 | Y85: 2 | Z85: 2 | AA85: 2 | AB85: 1.63 | AC85: 1.56 | AD85: 1.37 | AE85: 1.56 | AF85: 1.49 | AG85: 1.78 | AH85: 2
A86: AreaRyeAustria | B86: Area | C86: Rye | D86: Austria | E86: 40.26 | F86: 73.7 | G86: 77 | H86: 76.8 | I86: 51.2 | J86: 57.8 | K86: 59.3 | L86: 55.9 | M86: 52.5 | N86: 51.2 | O86: 47.1 | P86: 40 | Q86: 45.7 | R86: 42.8 | S86: 26.9 | T86: 46.7 | U86: 53.2 | V86: 48.5 | W86: 45.7 | X86: 45.94 | Y86: 48.53 | Z86: 56.11 | AA86: 48.24 | AB86: 39.56 | AC86: 37.31 | AD86: 34.48 | AE86: 40.73 | AF86: 43.68 | AG86: 42.74 | AH86: 32.77
A87: AreaRyePoland | B87: Area | C87: Rye | D87: Poland | E87: 890.3266667 | F87: 2212.8 | G87: 2436.3 | H87: 2451.6 | I87: 2415 | J87: 2297.9 | K87: 2290.9 | L87: 2242.5 | M87: 2064.9 | N87: 2002.3 | O87: 1560.3 | P87: 1479.3 | Q87: 1549.6 | R87: 1415.3 | S87: 1318 | T87: 1316.2 | U87: 1396.5 | V87: 1395.7 | W87: 1395.6 | X87: 1069 | Y87: 1051.233333 | Z87: 1243.544444 | AA87: 932.7325926 | AB87: 725.3 | AC87: 775.09 | AD87: 873.22 | AE87: 893.96 | AF87: 903.8 | AG87: 950.03 | AH87: 762.87
A88: AreaRyePortugal | B88: Area | C88: Rye | D88: Portugal | E88: 15.92333333 | F88: 72.5 | G88: 66 | H88: 62 | I88: 61 | J88: 59 | K88: 51 | L88: 49 | M88: 44.68 | N88: 37.57 | O88: 33.5 | P88: 30.35 | Q88: 28.62 | R88: 25.37 | S88: 23.48 | T88: 22.22 | U88: 21.32 | V88: 20.56 | W88: 20.44 | X88: 19.72 | Y88: 19.51 | Z88: 21.06 | AA88: 19.79 | AB88: 18.1 | AC88: 17.27 | AD88: 16.25 | AE88: 15.76 | AF88: 15.76 | AG88: 15 | AH88: 15
A89: AreaRyeRomania | B89: Area | C89: Rye | D89: Romania | E89: 10.04666667 | F89: 25.8 | G89: 28.7 | H89: 20.6 | I89: 16 | J89: 16.1 | K89: 13.6 | L89: 11.5 | M89: 14.07 | N89: 12.31 | O89: 12.27 | P89: 12.81 | Q89: 21.91 | R89: 20.65 | S89: 17.24 | T89: 12.09 | U89: 13.02 | V89: 15.52 | W89: 14.56 | X89: 12.35 | Y89: 8.67 | Z89: 10.74 | AA89: 10.17 | AB89: 9.6 | AC89: 10.46 | AD89: 9.59 | AE89: 10.26 | AF89: 9.36 | AG89: 10.29 | AH89: 10.15
A90: AreaRyeSlovenia | B90: Area | C90: Rye | D90: Slovenia | E90: 1.076666667 | F90: 2.6 | G90: 2.1 | H90: 1.9 | I90: 1.9 | J90: 1.3 | K90: 1.2 | L90: 0.9 | M90: 0.7 | N90: 0.7 | O90: 0.6 | P90: 0.6 | Q90: 1.1 | R90: 1.32 | S90: 0.77 | T90: 0.82 | U90: 0.71 | V90: 0.89 | W90: 0.8 | X90: 0.81 | Y90: 0.9 | Z90: 1.49 | AA90: 1.64 | AB90: 1.24 | AC90: 0.97 | AD90: 1.08 | AE90: 1.3 | AF90: 1.18 | AG90: 0.83 | AH90: 1.076666667
A91: AreaRyeSlovakia | B91: Area | C91: Rye | D91: Slovakia | E91: 12.49666667 | F91: 22.9 | G91: 31.2 | H91: 30.9 | I91: 28.7 | J91: 29.7 | K91: 34.4 | L91: 29.8 | M91: 31.7 | N91: 39 | O91: 38.2 | P91: 25.3 | Q91: 32.6 | R91: 24.5 | S91: 12.8 | T91: 20.7 | U91: 25.9 | V91: 20.2 | W91: 17 | X91: 13.4 | Y91: 15.72 | Z91: 22.39 | AA91: 14.59 | AB91: 11.58 | AC91: 12.84 | AD91: 9.97 | AE91: 12.19 | AF91: 13.9 | AG91: 12.46 | AH91: 10.77
A92: AreaRyeFinland | B92: Area | C92: Rye | D92: Finland | E92: 24.54333333 | F92: 22.7 | G92: 8.6 | H92: 20.8 | I92: 35.3 | J92: 22.8 | K92: 31.4 | L92: 12.3 | M92: 44.5 | N92: 29 | O92: 30.5 | P92: 30.7 | Q92: 31 | R92: 14.3 | S92: 21.9 | T92: 32 | U92: 23.8 | V92: 16.4 | W92: 25.2 | X92: 26.9 | Y92: 20.7 | Z92: 12.3 | AA92: 23.7 | AB92: 31.4 | AC92: 26 | AD92: 28.93 | AE92: 16.4 | AF92: 37.9 | AG92: 18.7 | AH92: 18.4
A93: AreaRyeSweden | B93: Area | C93: Rye | D93: Sweden | E93: 23.82 | F93: 46 | G93: 39 | H93: 39.7 | I93: 33.6 | J93: 29.4 | K93: 34.6 | L93: 24.5 | M93: 34.5 | N93: 34.1 | O93: 24.1 | P93: 24 | Q93: 24.2 | R93: 21.3 | S93: 23.1 | T93: 24.7 | U93: 27.5 | V93: 36.6 | W93: 24.14 | X93: 23.92 | Y93: 22.01 | Z93: 25.02 | AA93: 26.91 | AB93: 23.53 | AC93: 16.6 | AD93: 21.31 | AE93: 19.58 | AF93: 32.75 | AG93: 30.57 | AH93: 25.89
A94: AreaRyeUnited Kingdom | B94: Area | C94: Rye | D94: United Kingdom | E94: 31.08666667 | F94: 5.8 | G94: 7 | H94: 8 | I94: 8.2 | J94: 9.3 | K94: 9.7 | L94: 8 | M94: 7.2 | N94: 4.8 | O94: 5 | P94: 4.3 | Q94: 5.7 | R94: 6.1 | S94: 7 | T94: 6.3 | U94: 5.2 | V94: 5 | W94: 6 | X94: 7 | Y94: 6 | Z94: 6.31 | AA94: 9.88 | AB94: 22 | AC94: 26 | AD94: 36.4 | AE94: 31.6 | AF94: 31.4 | AG94: 30.26 | AH94: 0
A95: AreaBarleyEU-28 | B95: Area | C95: Barley | D95: EU-28 | E95: 12294.82511 | F95: 17170.24975 | G95: 16765.66975 | H95: 16439.36275 | I95: 16671.47875 | J95: 17586.20375 | K95: 16647.08175 | L95: 15767.56175 | M95: 14201.93 | N95: 14418.73 | O95: 14348.53 | P95: 14040.81 | Q95: 13812.14 | R95: 13866.47 | S95: 13818.25 | T95: 13806.86 | U95: 14551.25 | V95: 13972.71 | W95: 12232.85667 | X95: 11882.4 | Y95: 12299.78 | Z95: 12722.35 | AA95: 12428.9 | AB95: 12222.91 | AC95: 12302.69 | AD95: 12039.297 | AE95: 12284.413 | AF95: 12297.37233 | AG95: 12711.24839
A96: AreaBarleyEU-15 | B96: Area | C96: Barley | D96: EU-15 | E96: 9474.613333 | F96: 11321.2 | G96: 10925.4 | H96: 10987.5 | I96: 11433.5 | J96: 11852.8 | K96: 11362.4 | L96: 10857.6 | M96: 10681.29 | N96: 10743.22 | O96: 10518.89 | P96: 10547.83 | Q96: 12991.07 | R96: 13066.94 | S96: 13241.74 | T96: 13747.85 | U96: 14485.71 | V96: 13913.14 | W96: : | X96: 11852.12 | Y96: 12443.45 | Z96: 12328.04 | AA96: 12428.79 | AB96: 12222.88 | AC96: 12301.59 | AD96: 12039.69 | AE96: 12282.8 | AF96: 12301.17 | AG96: 11025.28 | AH96: 10307.92
A97: AreaBarleyEU-N13 | B97: Area | C97: Barley | D97: EU-N13 | E97: 2850.1 | F97: 4682.04975 | G97: 4732.46975 | H97: 4258.86275 | I97: 3969.37875 | J97: 4374.40375 | K97: 4029.68175 | L97: 3731.96175 | M97: 3520.63 | N97: 3675.54 | O97: 3829.67 | P97: 3492.97 | Q97: 3479.34 | R97: 3667.09 | S97: 3548.36 | T97: 3587.36 | U97: 3563.84 | V97: 3530.14 | W97: 3071.08 | X97: 2943.89 | Y97: 3098.32 | Z97: 2766.88 | AA97: 2911.08 | AB97: 2803.13 | AC97: 2836.09 | AD97: 2739.7
A98: AreaBarleyBelgium | B98: Area | C98: Barley | D98: Belgium | E98: 45.34333333 | F98: 66.2 | G98: 57.8 | H98: 53.7 | I98: 50.5 | J98: 50.3 | K98: 53.6 | L98: 52.6 | M98: 48 | N98: 52 | O98: 46 | P98: 41 | Q98: 39 | R98: 40 | S98: 49 | T98: 49 | U98: 55 | V98: 53.9 | W98: 40.83 | X98: 44.14 | Y98: 45.1 | Z98: 46.67 | AA98: 47.01 | AB98: 48.38 | AC98: 55.43 | AD98: 45.28 | AE98: 42.17 | AF98: 46.75 | AG98: 44 | AH98: 45.21418182
A99: AreaBarleyBulgaria | B99: Area | C99: Barley | D99: Bulgaria | E99: 123.7633333 | F99: 362 | G99: 390 | H99: 396.2 | I99: 260.5 | J99: 291.3 | K99: 255.4 | L99: 243.6 | M99: 226.8 | N99: 292.2 | O99: 388.8 | P99: 270.6 | Q99: 329 | R99: 264.6 | S99: 185.7 | T99: 186.9 | U99: 222.7 | V99: 258.5 | W99: 245.32 | X99: 178.99 | Y99: 191.4 | Z99: 197.47 | AA99: 214.7 | AB99: 175.96 | AC99: 159.83 | AD99: 128.36 | AE99: 103.57 | AF99: 112.03 | AG99: 130.9 | AH99: 131
A100: AreaBarleyCzech Republic | B100: Area | C100: Barley | D100: Czech Republic | E100: 326.0533333 | F100: 638 | G100: 641 | H100: 560 | I100: 604 | J100: 646.5 | K100: 577.7 | L100: 542.9 | M100: 494.7 | N100: 495.1 | O100: 488.1 | P100: 550 | Q100: 469 | R100: 521.5 | S100: 528.1 | T100: 498.7 | U100: 482.4 | V100: 454.8 | W100: 388.93 | X100: 372.78 | Y100: 382.33 | Z100: 348.99 | AA100: 350.52 | AB100: 365.95 | AC100: 325.73 | AD100: 327.71 | AE100: 324.72 | AF100: 319.59 | AG100: 331.91 | AH100: 326.75
A101: AreaBarleyDenmark | B101: Area | C101: Barley | D101: Denmark | E101: 675.1666667 | F101: 709.5 | G101: 700 | H101: 719 | I101: 764 | J101: 720 | K101: 686 | L101: 728 | M101: 731.1 | N101: 743.8 | O101: 824.5 | P101: 709.9 | Q101: 697.1 | R101: 705.1 | S101: 679.1 | T101: 631.5 | U101: 717.3 | V101: 593 | W101: 575.2 | X101: 602.8 | Y101: 723.4 | Z101: 689.3 | AA101: 604.4 | AB101: 631 | AC101: 706.9 | AD101: 665.4 | AE101: 795.3 | AF101: 583.2 | AG101: 653.2 | AH101: 622.1
A102: AreaBarleyGermany | B102: Area | C102: Barley | D102: Germany | E102: 1644.8 | F102: 2200.8 | G102: 2069.5 | H102: 2108.7 | I102: 2208.4 | J102: 2274 | K102: 2180.8 | L102: 2210.4 | M102: 2067.6 | N102: 2111.8 | O102: 1970.3 | P102: 2074.6 | Q102: 1979.5 | R102: 1946.8 | S102: 2025.3 | T102: 1916.9 | U102: 1961.7 | V102: 1877.9 | W102: 1641.32 | X102: 1598 | Y102: 1677.8 | Z102: 1570.4 | AA102: 1573.7 | AB102: 1621.8 | AC102: 1605 | AD102: 1566.1 | AE102: 1662 | AF102: 1708.8 | AG102: 1667.4 | AH102: 1545.9
A103: AreaBarleyEstonia | B103: Area | C103: Barley | D103: Estonia | E103: 129.8366667 | F103: 218.1 | G103: 217.9 | H103: 186.5 | I103: 148 | J103: 165.7 | K103: 166.8 | L103: 153.9 | M103: 165.1 | N103: 134.3 | O103: 129.9 | P103: 131.4 | Q103: 127.1 | R103: 144 | S103: 141.8 | T103: 135.9 | U103: 136.3 | V103: 140.6 | W103: 104.8 | X103: 118.3 | Y103: 109 | Z103: 133.1 | AA103: 125.8 | AB103: 131.4 | AC103: 135.4 | AD103: 102.48 | AE103: 138.48 | AF103: 123.38 | AG103: 130.73 | AH103: 126.4738788
A104: AreaBarleyIreland | B104: Area | C104: Barley | D104: Ireland | E104: 184.87 | F104: 180.8 | G104: 169.7 | H104: 178.6 | I104: 181.4 | J104: 189.8 | K104: 190.7 | L104: 192 | M104: 182.3 | N104: 182 | O104: 176 | P104: 183.12 | Q104: 183.67 | R104: 164.43 | S104: 166.98 | T104: 167.55 | U104: 187.16 | V104: 193.59 | W104: 174.8 | X104: 180.63 | Y104: 192.77 | Z104: 219.44 | AA104: 215.67 | AB104: 202.79 | AC104: 189.21 | AD104: 180.19 | AE104: 185.21 | AF104: 179.37 | AG104: 191.39 | AH104: 183.63
A105: AreaBarleyGreece | B105: Area | C105: Barley | D105: Greece | E105: 131.52 | F105: 167.2 | G105: 162.1 | H105: 133 | I105: 152.3 | J105: 144.9 | K105: 137.5 | L105: 119 | M105: 98.12 | N105: 129.55 | O105: 105.18 | P105: 100.21 | Q105: 89.83 | R105: 87.01 | S105: 97.15 | T105: 124.47 | U105: 116.03 | V105: 127.54 | W105: 112.01 | X105: 101.63 | Y105: 114.45 | Z105: 138.47 | AA105: 182.49 | AB105: 154.11 | AC105: 132.8 | AD105: 133.38 | AE105: 129.19 | AF105: 132.57 | AG105: 126 | AH105: 136.97
A106: AreaBarleySpain | B106: Area | C106: Barley | D106: Spain | E106: 2620.166667 | F106: 3540.9 | G106: 3539.5 | H106: 3556 | I106: 3572.2 | J106: 3682.2 | K106: 3535.2 | L106: 3121 | M106: 3278 | N106: 2992.1 | O106: 3101.5 | P106: 3110.9 | Q106: 3178.8 | R106: 3143.7 | S106: 3197.4 | T106: 3228.4 | U106: 3486.9 | V106: 3024.2 | W106: 2885.62 | X106: 2700.68 | Y106: 2691.09 | Z106: 2784.28 | AA106: 2792.11 | AB106: 2598.89 | AC106: 2563.2 | AD106: 2597.53 | AE106: 2569.46 | AF106: 2693.51 | AG106: 2749.04 | AH106: 2584.71
A107: AreaBarleyFrance | B107: Area | C107: Barley | D107: France | E107: 1922.2 | F107: 1604.1 | G107: 1385.6 | H107: 1366 | I107: 1511.7 | J107: 1662.2 | K107: 1599.9 | L107: 1500.4 | M107: 1533.8 | N107: 1705 | O107: 1642.5 | P107: 1758.5 | Q107: 1630.6 | R107: 1602.4 | S107: 1667.3 | T107: 1699.1 | U107: 1799.3 | V107: 1883.9 | W107: 1582.03 | X107: 1526.7 | Y107: 1482.41 | Z107: 1635.2 | AA107: 1764.41 | AB107: 1838.69 | AC107: 1917.55 | AD107: 1904.86 | AE107: 1767.97 | AF107: 1944.19 | AG107: 1972.01 | AH107: 1727.08
A108: AreaBarleyCroatia | B108: Area | C108: Barley | D108: Croatia | E108: 54.7 | F108: 46.84975 | G108: 46.46975 | H108: 42.76275 | I108: 41.27875 | J108: 44.00375 | K108: 52.98175 | L108: 54.76175 | M108: 55.51 | N108: 61.27 | O108: 61.17 | P108: 65 | Q108: 67.54 | R108: 50.34 | S108: 59.16 | T108: 59 | U108: 65.54 | V108: 59.58 | W108: 52.53 | X108: 48.32 | Y108: 56.91 | Z108: 53.8 | AA108: 46.16 | AB108: 43.7 | AC108: 56.48 | AD108: 53.95 | AE108: 50.99 | AF108: 53.67 | AG108: 64 | AH108: 59
A109: AreaBarleyItaly | B109: Area | C109: Barley | D109: Italy | E109: 258.14 | F109: 425.1 | G109: 392.5 | H109: 381.5 | I109: 359.4 | J109: 356.7 | K109: 356.9 | L109: 353.2 | M109: 343.7 | N109: 333.1 | O109: 342.8 | P109: 309.7 | Q109: 307.2 | R109: 319.9 | S109: 330.7 | T109: 344.7 | U109: 330.5 | V109: 306.8 | W109: 273.52 | X109: 247.04 | Y109: 246.13 | Z109: 237.27 | AA109: 232.71 | AB109: 237.79 | AC109: 249.37 | AD109: 250.53 | AE109: 262.48 | AF109: 261.41 | AG109: 263.43 | AH109: 243.24
A110: AreaBarleyCyprus | B110: Area | C110: Barley | D110: Cyprus | E110: 12.97333333 | F110: 64 | G110: 60 | H110: 57 | I110: 55 | J110: 37.5 | K110: 53 | L110: 52 | M110: 45 | N110: 50.2 | O110: 51.3 | P110: 65.01 | Q110: 58.45 | R110: 52.52 | S110: 48.91 | T110: 34.02 | U110: 30.68 | V110: 22.44 | W110: 24.15 | X110: 24.96 | Y110: 28.85 | Z110: 23.53 | AA110: 18.94 | AB110: 20.56 | AC110: 14.54 | AD110: 10.95 | AE110: 12.8 | AF110: 11.58 | AG110: 18.5 | AH110: 13.5
A111: AreaBarleyLatvia | B111: Area | C111: Barley | D111: Latvia | E111: 88.53333333 | F111: 275.3 | G111: 266.5 | H111: 203.3 | I111: 178.4 | J111: 194.5 | K111: 173.4 | L111: 147.3 | M111: 134.9 | N111: 130.3 | O111: 136.9 | P111: 132.6 | Q111: 127.3 | R111: 148.7 | S111: 154.2 | T111: 145.3 | U111: 131.2 | V111: 104.6 | W111: 97.46666667 | X111: 95.9 | Y111: 86.3 | Z111: 84.4 | AA111: 118.2 | AB111: 99.3 | AC111: 94.4 | AD111: 70.3 | AE111: 118.3 | AF111: 86.8 | AG111: 84.4 | AH111: 75.7
A112: AreaBarleyLithuania | B112: Area | C112: Barley | D112: Lithuania | E112: 170.71 | F112: 587.5 | G112: 619.9 | H112: 544.5 | I112: 473.8 | J112: 503 | K112: 462.9 | L112: 421.2 | M112: 353.2 | N112: 335.5 | O112: 365 | P112: 308.3 | Q112: 292.5 | R112: 349.4 | S112: 383.4 | T112: 381.4 | U112: 332.5 | V112: 277.4 | W112: 231.8 | X112: 252.7 | Y112: 217.3 | Z112: 209.3 | AA112: 267 | AB112: 202.4 | AC112: 172.54 | AD112: 141.65 | AE112: 225.91 | AF112: 174.77 | AG112: 164.82 | AH112: 148.1
A113: AreaBarleyLuxembourg | B113: Area | C113: Barley | D113: Luxembourg | E113: 6.22 | F113: 13.7 | G113: 13.6 | H113: 12.7 | I113: 12.8 | J113: 12.6 | K113: 12.3 | L113: 12.8 | M113: 10.5 | N113: 11.6 | O113: 9.6 | P113: 10.4 | Q113: 8.9 | R113: 9.9 | S113: 9.5 | T113: 9.2 | U113: 9.7 | V113: 9.4 | W113: 8.26 | X113: 7.94 | Y113: 7.14 | Z113: 7.74 | AA113: 8.31 | AB113: 7.72 | AC113: 6.9 | AD113: 6.59 | AE113: 6.01 | AF113: 6.06 | AG113: 6.01 | AH113: 6.029212121
A114: AreaBarleyHungary | B114: Area | C114: Barley | D114: Hungary | E114: 258.37 | F114: 429 | G114: 423 | H114: 393 | I114: 325 | J114: 370 | K114: 368.9 | L114: 333.7 | M114: 324.7 | N114: 367.5 | O114: 370.5 | P114: 340.8 | Q114: 331.1 | R114: 316.9 | S114: 292.6 | T114: 321.5 | U114: 329.6 | V114: 320.8 | W114: 281.1 | X114: 261.26 | Y114: 275.44 | Z114: 262.01 | AA114: 288.15 | AB114: 296.01 | AC114: 313.09 | AD114: 268.08 | AE114: 244.17 | AF114: 247.36 | AG114: 259.67 | AH114: 267.21
A115: AreaBarleyMalta | B115: Area | C115: Barley | D115: Malta | E115: 0 | F115: 0 | G115: 0 | H115: 0 | I115: 0 | J115: 0 | K115: 0 | L115: 0 | M115: 0 | N115: 0 | O115: 0 | P115: 0 | Q115: 0 | R115: 0 | S115: 0 | T115: 0 | U115: 0 | V115: 0 | W115: 0 | X115: 0 | Y115: 0 | Z115: 0 | AA115: 0 | AB115: 0 | AC115: 0 | AD115: 0 | AE115: 0 | AF115: 0 | AG115: 0 | AH115: 0
A116: AreaBarleyNetherlands | B116: Area | C116: Barley | D116: Netherlands | E116: 34.6 | F116: 40.1 | G116: 43.7 | H116: 35.6 | I116: 35.5 | J116: 42 | K116: 39.7 | L116: 58.3 | M116: 47.2 | N116: 66.4 | O116: 56.9 | P116: 54.9 | Q116: 47.3 | R116: 50 | S116: 44.2 | T116: 46 | U116: 50.2 | V116: 44.5 | W116: 33.3 | X116: 34 | Y116: 30 | Z116: 30 | AA116: 28 | AB116: 32.82 | AC116: 34.43 | AD116: 29.72 | AE116: 35.98 | AF116: 33.39 | AG116: 38.38 | AH116: 33.81945455
A117: AreaBarleyAustria | B117: Area | C117: Barley | D117: Austria | E117: 138.47 | F117: 265.3 | G117: 252.7 | H117: 229.1 | I117: 259.6 | J117: 260.6 | K117: 265.6 | L117: 243.9 | M117: 223.8 | N117: 217.5 | O117: 200.9 | P117: 212.3 | Q117: 191.3 | R117: 191.7 | S117: 206.4 | T117: 193.3 | U117: 185.9 | V117: 181.5 | W117: 168.89 | X117: 153.29 | Y117: 150.58 | Z117: 142.57 | AA117: 145.83 | AB117: 151.77 | AC117: 140.42 | AD117: 138.9 | AE117: 139.27 | AF117: 137.24 | AG117: 134.8 | AH117: 123.43
A118: AreaBarleyPoland | B118: Area | C118: Barley | D118: Poland | E118: 968.2733333 | F118: 1167.7 | G118: 1032 | H118: 1047.6 | I118: 1129.8 | J118: 1242 | K118: 1137.6 | L118: 1107.5 | M118: 1096 | N118: 1071.2 | O118: 1050.7 | P118: 1016.2 | Q118: 1013.9 | R118: 1113.1 | S118: 1220.6 | T118: 1232.4 | U118: 1206.6 | V118: 1157 | W118: 974.5 | X118: 1018 | Y118: 1160.6 | Z118: 1160.6 | AA118: 808.32 | AB118: 839.3 | AC118: 915.32 | AD118: 953.79 | AE118: 975.74 | AF118: 975.29 | AG118: 977.67 | AH118: 719.17
A119: AreaBarleyPortugal | B119: Area | C119: Barley | D119: Portugal | E119: 20.21666667 | F119: 61.6 | G119: 53 | H119: 51 | I119: 46 | J119: 32.8 | K119: 26.2 | L119: 25 | M119: 21.77 | N119: 11.77 | O119: 11.21 | P119: 11.51 | Q119: 15.9 | R119: 34.34 | S119: 44.16 | T119: 40.48 | U119: 43.08 | V119: 40.86 | W119: 20.22 | X119: 16.63 | Y119: 18.34 | Z119: 18.38 | AA119: 17.17 | AB119: 21.17 | AC119: 20.62 | AD119: 23.2 | AE119: 20.53 | AF119: 19.5 | AG119: 16.5 | AH119: 16.5
A120: AreaBarleyRomania | B120: Area | C120: Barley | D120: Romania | E120: 447.3133333 | F120: 637.1 | G120: 785 | H120: 581.7 | I120: 515.4 | J120: 626.5 | K120: 517.2 | L120: 415.5 | M120: 411.86 | N120: 528.78 | O120: 578.78 | P120: 329.57 | Q120: 424.53 | R120: 484.58 | S120: 331.65 | T120: 363.81 | U120: 394.03 | V120: 517.51 | W120: 515.83 | X120: 419.51 | Y120: 424.25 | Z120: 495.69 | AA120: 516 | AB120: 469.86 | AC120: 481.6 | AD120: 455.46 | AE120: 423.5 | AF120: 448.89 | AG120: 437.59 | AH120: 462.79
A121: AreaBarleySlovenia | B121: Area | C121: Barley | D121: Slovenia | E121: 19.84257321 | F121: 9.1 | G121: 12.7 | H121: 12.7 | I121: 12.5 | J121: 10.8 | K121: 10.9 | L121: 10.9 | M121: 11.57 | N121: 12.66 | O121: 12.39 | P121: 13.79 | Q121: 15.32 | R121: 15.45 | S121: 17.04 | T121: 18.53 | U121: 19.23 | V121: 20.09 | W121: 18.73 | X121: 17.48 | Y121: 17.97 | Z121: 17.31 | AA121: 18.48 | AB121: 20.11 | AC121: 19.18 | AD121: 19.937 | AE121: 22.183 | AF121: 19.74233333 | AG121: 19.84838628 | AH121: 22.001
A122: AreaBarleySlovakia | B122: Area | C122: Barley | D122: Slovakia | E122: 123.6266667 | F122: 247.4 | G122: 238 | H122: 233.6 | I122: 225.7 | J122: 242.6 | K122: 252.9 | L122: 248.7 | M122: 201.3 | N122: 196.5 | O122: 196.1 | P122: 269.7 | Q122: 223.6 | R122: 206 | S122: 185.2 | T122: 209.9 | U122: 213.1 | V122: 196.8 | W122: 133.01 | X122: 135.7 | Y122: 147.99 | Z122: 121.31 | AA122: 138.83 | AB122: 140 | AC122: 115.93 | AD122: 120.33 | AE122: 124.17 | AF122: 126.38 | AG122: 130.86 | AH122: 117.63
A123: AreaBarleyFinland | B123: Area | C123: Barley | D123: Finland | E123: 398.3666667 | F123: 458.9 | G123: 504.9 | H123: 516.2 | I123: 542.5 | J123: 582.8 | K123: 578 | L123: 581 | M123: 558.7 | N123: 547.2 | O123: 522.2 | P123: 530.7 | Q123: 564.6 | R123: 594.8 | S123: 564.4 | T123: 550.1 | U123: 613.2 | V123: 600.7 | W123: 417.4 | X123: 432 | Y123: 451.2 | Z123: 494.4 | AA123: 496.9 | AB123: 451.6 | AC123: 435.9 | AD123: 358.34 | AE123: 405.1 | AF123: 397.9 | AG123: 392.1 | AH123: 390.2
A124: AreaBarleySweden | B124: Area | C124: Barley | D124: Sweden | E124: 306.6633333 | F124: 420 | G124: 473 | H124: 453.4 | I124: 468.6 | J124: 482.9 | K124: 445 | L124: 482 | M124: 408.7 | N124: 394.5 | O124: 408.3 | P124: 364.1 | Q124: 391.7 | R124: 371.6 | S124: 306.9 | T124: 320.9 | U124: 399.4 | V124: 361.8 | W124: 310.29 | X124: 323.02 | Y124: 369.03 | Z124: 387.72 | AA124: 329.09 | AB124: 318.83 | AC124: 318.92 | AD124: 309.28 | AE124: 360.81 | AF124: 291.76 | AG124: 291.79 | AH124: 278.5
A125: AreaBarleyUnited Kingdom | B125: Area | C125: Barley | D125: United Kingdom | E125: 1159.213333 | F125: 1167 | G125: 1107.8 | H125: 1193 | I125: 1268.6 | J125: 1359 | K125: 1255 | L125: 1178 | M125: 1128 | N125: 1244.9 | O125: 1101 | P125: 1076 | Q125: 1007.4 | R125: 937.7 | S125: 881.4 | T125: 897.9 | U125: 1032 | V125: 1143 | W125: 921 | X125: 970 | Y125: 1002 | Z125: 1213 | AA125: 1080 | AB125: 1101 | AC125: 1122 | AD125: 1177 | AE125: 1138.4 | AF125: 1162.24 | AG125: 1414.3 | AH125: 0
A126: AreaOatEU-28 | B126: Area | C126: Oat | D126: EU-28 | E126: 2679.14 | F126: 3436.1718 | G126: 3507.2608 | H126: 3154.7308 | I126: 3239.6578 | J126: 3331.6098 | K126: 3202.8368 | L126: 3284.5918 | M126: 3086.1 | N126: 3091.65 | O126: 3269.86 | P126: 3222.66 | Q126: 2989.43 | R126: 2903.007654 | S126: 2972.670741 | T126: 3042.785556 | U126: 3015.646667 | V126: 2917.21 | W126: 2697.87 | X126: 2694.68 | Y126: 2665.67 | Z126: 2665.51 | AA126: 2545.52 | AB126: 2525.19 | AC126: 2617.63 | AD126: 2681.62 | AE126: 2738.17 | AF126: 2571.71 | AG126: 2790.38
A127: AreaOatEU-15 | B127: Area | C127: Oat | D127: EU-15 | E127: 1630.003333 | F127: 1991.4 | G127: 2069.5 | H127: 1885.8 | I127: 1937.9 | J127: 2001.5 | K127: 1939.8 | L127: 1975.1 | M127: 1944.04 | N127: 1977.08 | O127: 2067.94 | P127: 2070.7 | Q127: 2709.76 | R127: : | S127: : | T127: : | U127: : | V127: : | W127: : | X127: 2669.34 | Y127: 2637.15 | Z127: 2643.84 | AA127: 2545.5 | AB127: 2525.18 | AC127: 2617.62 | AD127: 2681.59 | AE127: 2738.16 | AF127: 2572.28 | AG127: 2563.41 | AH127: 2567.61
A128: AreaOatEU-N13 | B128: Area | C128: Oat | D128: EU-N13 | E128: 943.21 | F128: 1353.0718 | G128: 1329.2608 | H128: 1157.4308 | I128: 1205.6578 | J128: 1230.3098 | K128: 1164.8368 | L128: 1217.4918 | M128: 1138.636682 | N128: 1104.737393 | O128: 1191.979526 | P128: 1141.585203 | Q128: 1091.232236 | R128: 1094.247449 | S128: 1074.143086 | T128: 1139.925926 | U128: 1093.274444 | V128: 1050.033333 | W128: 1067.73 | X128: 1037.42 | Y128: 1037.18 | Z128: 935.68 | AA128: 973.01 | AB128: 920.94 | AC128: 920 | AD128: 955.06
A129: AreaOatBelgium | B129: Area | C129: Oat | D129: Belgium | E129: 3.843333333 | F129: 11.5 | G129: 9.6 | H129: 6.3 | I129: 5.4 | J129: 6.2 | K129: 5.8 | L129: 7.7 | M129: 5.3 | N129: 6.8 | O129: 6.5 | P129: 7 | Q129: 5.7 | R129: 5.7 | S129: 5.3 | T129: 5.1 | U129: 5.2 | V129: 5.6 | W129: 4.9 | X129: 3.52 | Y129: 2.9 | Z129: 3.76 | AA129: 3.04 | AB129: 3.94 | AC129: 3.67 | AD129: 4.04 | AE129: 3.47 | AF129: 3.86 | AG129: 4 | AH129: 3.843333333
A130: AreaOatBulgaria | B130: Area | C130: Oat | D130: Bulgaria | E130: 12.80666667 | F130: 51.7 | G130: 53.1 | H130: 35.7 | I130: 35.4 | J130: 41.1 | K130: 47.3 | L130: 56.8 | M130: 40.6 | N130: 51.3 | O130: 41 | P130: 37.6 | Q130: 43 | R130: 30.6 | S130: 16.4 | T130: 21.9 | U130: 24.9 | V130: 20 | W130: 24.35 | X130: 14.79 | Y130: 16.6 | Z130: 17.89 | AA130: 14.89 | AB130: 11.08 | AC130: 15.32 | AD130: 13.27 | AE130: 11.34 | AF130: 12.15 | AG130: 13 | AH130: 12
A131: AreaOatCzech Republic | B131: Area | C131: Oat | D131: Czech Republic | E131: 43.14 | F131: 70 | G131: 77 | H131: 60 | I131: 66 | J131: 77.6 | K131: 57.7 | L131: 54 | M131: 50.1 | N131: 47.8 | O131: 61 | P131: 77.4 | Q131: 58.6 | R131: 51.7 | S131: 57.7 | T131: 59 | U131: 49 | V131: 50 | W131: 52.28 | X131: 45.24 | Y131: 50.77 | Z131: 43.56 | AA131: 42.29 | AB131: 42.4 | AC131: 37.57 | AD131: 44.07 | AE131: 42.82 | AF131: 42.53 | AG131: 46.74 | AH131: 57.72
A132: AreaOatDenmark | B132: Area | C132: Oat | D132: Denmark | E132: 61.99333333 | F132: 28.2 | G132: 40 | H132: 26 | I132: 26.4 | J132: 30 | K132: 31 | L132: 26 | M132: 44.4 | N132: 60.1 | O132: 55.2 | P132: 49.5 | Q132: 62 | R132: 69.2 | S132: 69.4 | T132: 65.5 | U132: 74.5 | V132: 55.3 | W132: 42.5 | X132: 41.7 | Y132: 50.6 | Z132: 55.6 | AA132: 36.2 | AB132: 38 | AC132: 53.1 | AD132: 58.13 | AE132: 82.89 | AF132: 49.29 | AG132: 74.75 | AH132: 68.1
A133: AreaOatGermany | B133: Area | C133: Oat | D133: Germany | E133: 131.6 | F133: 358.6 | G133: 391.9 | H133: 309.2 | I133: 301.9 | J133: 312.4 | K133: 264.1 | L133: 267.8 | M133: 237 | N133: 233.3 | O133: 233.1 | P133: 261.9 | Q133: 227.8 | R133: 209.9 | S133: 183.7 | T133: 177.8 | U133: 179.5 | V133: 162.6 | W133: 141.43 | X133: 143.4 | Y133: 145.4 | Z133: 131.5 | AA133: 123.8 | AB133: 125.7 | AC133: 115.5 | AD133: 128.1 | AE133: 140.4 | AF133: 126.3 | AG133: 157.1 | AH133: 177.1
A134: AreaOatEstonia | B134: Area | C134: Oat | D134: Estonia | E134: 36.85333333 | F134: 35.7 | G134: 36.1 | H134: 38.5 | I134: 49 | J134: 54.4 | K134: 61 | L134: 61 | M134: 53.3 | N134: 48.1 | O134: 35.2 | P134: 36.5 | Q134: 35.4 | R134: 33.7 | S134: 32.6 | T134: 31.5 | U134: 34.2 | V134: 36.1 | W134: 30.4 | X134: 28.4 | Y134: 31.8 | Z134: 34.8 | AA134: 27.3 | AB134: 24.4 | AC134: 29.3 | AD134: 33.65 | AE134: 39.65 | AF134: 37.26 | AG134: 41.03 | AH134: 36.85333333
A135: AreaOatIreland | B135: Area | C135: Oat | D135: Ireland | E135: 23.82333333 | F135: 20.2 | G135: 20.9 | H135: 19.9 | I135: 20.9 | J135: 20.6 | K135: 19.4 | L135: 20.2 | M135: 16.8 | N135: 16.8 | O135: 18.8 | P135: 21.02 | Q135: 19.96 | R135: 16.81 | S135: 20.37 | T135: 21.27 | U135: 22.91 | V135: 20.41 | W135: 19.71 | X135: 21.4 | Y135: 23.69 | Z135: 26.66 | AA135: 18.62 | AB135: 23.43 | AC135: 23.21 | AD135: 24.44 | AE135: 17.78 | AF135: 23.82 | AG135: 24.98 | AH135: 28.2
A136: AreaOatGreece | B136: Area | C136: Oat | D136: Greece | E136: 80.48666667 | F136: 43.3 | G136: 40 | H136: 41.9 | I136: 43.8 | J136: 43.8 | K136: 44.1 | L136: 49.6 | M136: 42.81 | N136: 59.84 | O136: 44.31 | P136: 42.08 | Q136: 42.6 | R136: 50.06 | S136: 61.24 | T136: 63.81 | U136: 69.06 | V136: 61.67 | W136: 55.25 | X136: 79.63 | Y136: 68.38 | Z136: 77.16 | AA136: 79.65 | AB136: 93.62 | AC136: 96 | AD136: 88.96 | AE136: 80.06 | AF136: 72.44 | AG136: 71.04 | AH136: 67.51
A137: AreaOatSpain | B137: Area | C137: Oat | D137: Spain | E137: 524.1733333 | F137: 315 | G137: 347 | H137: 366.8 | I137: 391.3 | J137: 399.8 | K137: 413.2 | L137: 423 | M137: 432.1 | N137: 445.9 | O137: 455.2 | P137: 496.3 | Q137: 469.6 | R137: 451.8 | S137: 524.4 | T137: 531.4 | U137: 505.5 | V137: 561.1 | W137: 511.33 | X137: 508.34 | Y137: 438.75 | Z137: 444.47 | AA137: 430.28 | AB137: 483.73 | AC137: 509.85 | AD137: 558.77 | AE137: 556.5 | AF137: 453.43 | AG137: 506.17 | AH137: 511.92
A138: AreaOatFrance | B138: Area | C138: Oat | D138: France | E138: 92.99333333 | F138: 171 | G138: 160.5 | H138: 142.8 | I138: 133.9 | J138: 127.1 | K138: 131 | L138: 113.7 | M138: 103.1 | N138: 117.6 | O138: 152.9 | P138: 136.5 | Q138: 126.1 | R138: 111.1 | S138: 107 | T138: 106.7 | U138: 100.4 | V138: 116.8 | W138: 86.5 | X138: 77.37 | Y138: 82.79 | Z138: 93.02 | AA138: 99.13 | AB138: 85.89 | AC138: 85.33 | AD138: 113.29 | AE138: 91.83 | AF138: 87.47 | AG138: 99.68 | AH138: 105.74
A139: AreaOatCroatia | B139: Area | C139: Oat | D139: Croatia | E139: 20.18 | F139: 22.2718 | G139: 23.5608 | H139: 20.8308 | I139: 21.3578 | J139: 23.2098 | K139: 26.7368 | L139: 29.1918 | M139: 26.04 | N139: 26.1 | O139: 24.48 | P139: 25.3 | Q139: 23.46 | R139: 21.19 | S139: 24.91 | T139: 27.97 | U139: 19.87 | V139: 20.9 | W139: 19.28 | X139: 25.34 | Y139: 28.51 | Z139: 21.66 | AA139: 21.15 | AB139: 23.46 | AC139: 26.57 | AD139: 23.14 | AE139: 15.89 | AF139: 18.5 | AG139: 18.9 | AH139: 18
A140: AreaOatItaly | B140: Area | C140: Oat | D140: Italy | E140: 106.1 | F140: 143.7 | G140: 144.2 | H140: 134.6 | I140: 142.7 | J140: 151 | K140: 152.1 | L140: 142 | M140: 140.7 | N140: 139.9 | O140: 150.9 | P140: 148.4 | Q140: 146.6 | R140: 174.8 | S140: 161 | T140: 154.5 | U140: 147.6 | V140: 133.9 | W140: 114.19 | X140: 109.64 | Y140: 120.01 | Z140: 104.86 | AA140: 103.53 | AB140: 108.02 | AC140: 107.06 | AD140: 108.46 | AE140: 107.45 | AF140: 103.79 | AG140: 103.46 | AH140: 103.89
A141: AreaOatCyprus | B141: Area | C141: Oat | D141: Cyprus | E141: 0.23 | F141: 0.1 | G141: 0.2 | H141: 0.2 | I141: 0.2 | J141: 0.3 | K141: 0.3 | L141: 0.3 | M141: 0.3 | N141: 0.4 | O141: 0.4 | P141: 0.51 | Q141: 0.5 | R141: 4.37 | S141: 4.92 | T141: 4.25 | U141: 3.03 | V141: 2.95 | W141: 0.91 | X141: 0.37 | Y141: 0.42 | Z141: 0.31 | AA141: 0.23 | AB141: 0.32 | AC141: 0.37 | AD141: 0.25 | AE141: 0.22 | AF141: 0.22 | AG141: 0.22 | AH141: 0.21
A142: AreaOatLatvia | B142: Area | C142: Oat | D142: Latvia | E142: 77.36666667 | F142: 48.5 | G142: 54 | H142: 45.6 | I142: 53.6 | J142: 59.1 | K142: 59.7 | L142: 47.2 | M142: 45.5 | N142: 55.2 | O142: 47.1 | P142: 49.4 | Q142: 56.7 | R142: 58 | S142: 62.9 | T142: 62.4 | U142: 66.2 | V142: 60.6 | W142: 59.3 | X142: 58 | Y142: 59.8 | Z142: 61.5 | AA142: 65.4 | AB142: 59.3 | AC142: 62.1 | AD142: 54 | AE142: 86.8 | AF142: 83.2 | AG142: 97.7 | AH142: 90
A143: AreaOatLithuania | B143: Area | C143: Oat | D143: Lithuania | E143: 87.68333333 | F143: 43.2 | G143: 54.5 | H143: 47.4 | I143: 51.6 | J143: 56.1 | K143: 49.6 | L143: 51.2 | M143: 44.3 | N143: 47.9 | O143: 55 | P143: 48.2 | Q143: 52.8 | R143: 59.6 | S143: 59.3 | T143: 61.7 | U143: 68 | V143: 63.8 | W143: 57.8 | X143: 63.2 | Y143: 70.8 | Z143: 73.6 | AA143: 75.9 | AB143: 64.15 | AC143: 70.76 | AD143: 75.99 | AE143: 102.96 | AF143: 86.11 | AG143: 100.95 | AH143: 95.6
A144: AreaOatLuxembourg | B144: Area | C144: Oat | D144: Luxembourg | E144: 1.316666667 | F144: 3.8 | G144: 3.5 | H144: 2.8 | I144: 2.6 | J144: 2.5 | K144: 2.3 | L144: 2.5 | M144: 1.9 | N144: 1.7 | O144: 2 | P144: 2.2 | Q144: 1.9 | R144: 1.7 | S144: 1.5 | T144: 1.4 | U144: 1.3 | V144: 1.4 | W144: 1.14 | X144: 1.12 | Y144: 0.92 | Z144: 1.13 | AA144: 1.18 | AB144: 1.19 | AC144: 1.09 | AD144: 1.31 | AE144: 1.24 | AF144: 1.4 | AG144: 1.59 | AH144: 1.316666667
A145: AreaOatHungary | B145: Area | C145: Oat | D145: Hungary | E145: 27.57666667 | F145: 53 | G145: 56 | H145: 53 | I145: 48 | J145: 52 | K145: 51.7 | L145: 70.9 | M145: 58.3 | N145: 60.6 | O145: 63.8 | P145: 68.4 | Q145: 69.6 | R145: 62.4 | S145: 59.3 | T145: 60 | U145: 61.2 | V145: 52.2 | W145: 50.8 | X145: 53.54 | Y145: 53 | Z145: 51.23 | AA145: 50.87 | AB145: 45.39 | AC145: 36.31 | AD145: 37.25 | AE145: 22.63 | AF145: 21.77 | AG145: 23.79 | AH145: 23.89
A146: AreaOatMalta | B146: Area | C146: Oat | D146: Malta | E146: 0 | F146: 0 | G146: 0 | H146: 0 | I146: 0 | J146: 0 | K146: 0 | L146: 0 | M146: 0 | N146: 0 | O146: 0 | P146: 0 | Q146: 0 | R146: 0 | S146: 0 | T146: 0 | U146: 0 | V146: 0 | W146: 0 | X146: 0 | Y146: 0 | Z146: 0 | AA146: 0 | AB146: 0 | AC146: 0 | AD146: 0 | AE146: 0 | AF146: 0 | AG146: 0 | AH146: 0
A147: AreaOatNetherlands | B147: Area | C147: Oat | D147: Netherlands | E147: 1.456666667 | F147: 5.2 | G147: 5.5 | H147: 2.9 | I147: 1.9 | J147: 2 | K147: 2.1 | L147: 2.5 | M147: 2.4 | N147: 2.6 | O147: 2.5 | P147: 2.5 | Q147: 2 | R147: 1.7 | S147: 1.7 | T147: 1.7 | U147: 1.5 | V147: 1.6 | W147: 1.7 | X147: 1 | Y147: 2 | Z147: 2 | AA147: 2 | AB147: 1.53 | AC147: 1.48 | AD147: 1.46 | AE147: 1.41 | AF147: 1.43 | AG147: 1.57 | AH147: 1
A148: AreaOatAustria | B148: Area | C148: Oat | D148: Austria | E148: 21.52 | F148: 52.9 | G148: 49.4 | H148: 40.8 | I148: 41.6 | J148: 46.1 | K148: 40.5 | L148: 35.5 | M148: 33 | N148: 31.4 | O148: 32.1 | P148: 34.4 | Q148: 30.3 | R148: 30.2 | S148: 35.2 | T148: 31.1 | U148: 26.6 | V148: 27.6 | W148: 26.58 | X148: 25.03 | Y148: 24.82 | Z148: 23.17 | AA148: 23.3 | AB148: 23.5 | AC148: 22.51 | AD148: 23.25 | AE148: 21.45 | AF148: 20.6 | AG148: 20.14 | AH148: 24.36
A149: AreaOatPoland | B149: Area | C149: Oat | D149: Poland | E149: 494.6533333 | F149: 641.7 | G149: 618.1 | H149: 595.4 | I149: 624.7 | J149: 625.6 | K149: 561.3 | L149: 572.3 | M149: 565.6 | N149: 531 | O149: 605.2 | P149: 526.9 | Q149: 519.7 | R149: 539.2 | S149: 539.1 | T149: 582.6 | U149: 550.6 | V149: 525.3 | W149: 577.3 | X149: 546.2 | Y149: 513.8 | Z149: 433.8 | AA149: 478.57 | AB149: 460.7 | AC149: 472.5 | AD149: 491.24 | AE149: 497.22 | AF149: 495.5 | AG149: 516.32 | AH149: 526.68
A150: AreaOatPortugal | B150: Area | C150: Oat | D150: Portugal | E150: 37.02666667 | F150: 92 | G150: 75 | H150: 73 | I150: 71 | J150: 76 | K150: 48 | L150: 83 | M150: 85.03 | N150: 61.34 | O150: 57.13 | P150: 54.1 | Q150: 55.8 | R150: 53.66 | S150: 53.67 | T150: 46.07 | U150: 55.23 | V150: 58.45 | W150: 61.75 | X150: 52.35 | Y150: 41.12 | Z150: 50.19 | AA150: 50.54 | AB150: 40.42 | AC150: 42.41 | AD150: 35.44 | AE150: 37.33 | AF150: 36 | AG150: 37.75 | AH150: 37.75
A151: AreaOatRomania | B151: Area | C151: Oat | D151: Romania | E151: 162.81 | F151: 364.5 | G151: 334.1 | H151: 238.9 | I151: 233.9 | J151: 219.1 | K151: 228.1 | L151: 248.2 | M151: 232.32 | N151: 219.37 | O151: 239.44 | P151: 242.25 | Q151: 207.51 | R151: 214.82 | S151: 196.82 | T151: 208.71 | U151: 200.4 | V151: 202.73 | W151: 181.38 | X151: 185.3 | Y151: 194.54 | Z151: 182.23 | AA151: 179.65 | AB151: 174.11 | AC151: 170.35 | AD151: 165.76 | AE151: 161.48 | AF151: 161.19 | AG151: 103.13 | AH151: 93.38
A152: AreaOatSlovenia | B152: Area | C152: Oat | D152: Slovenia | E152: 1.263333333 | F152: 2.4 | G152: 2.6 | H152: 1.9 | I152: 1.9 | J152: 1.8 | K152: 1.8 | L152: 2.4 | M152: 2.3 | N152: 1.9 | O152: 2 | P152: 2 | Q152: 1.9 | R152: 1.597654321 | S152: 1.640740741 | T152: 1.605555556 | U152: 1.546666667 | V152: 1.5 | W152: 1.77 | X152: 1.84 | Y152: 1.37 | Z152: 1.2 | AA152: 1.36 | AB152: 1.51 | AC152: 1.33 | AD152: 1.45 | AE152: 1.25 | AF152: 1.21 | AG152: 0.81 | AH152: 1.263333333
A153: AreaOatSlovakia | B153: Area | C153: Oat | D153: Slovakia | E153: 13.29666667 | F153: 20 | G153: 20 | H153: 20 | I153: 20 | J153: 20 | K153: 19.6 | L153: 24 | M153: 23.4 | N153: 18.1 | O153: 20.8 | P153: 30.5 | Q153: 25.4 | R153: 20.2 | S153: 20.8 | T153: 20.8 | U153: 17 | V153: 17 | W153: 14.76 | X153: 15.2 | Y153: 15.77 | Z153: 13.9 | AA153: 15.37 | AB153: 15.88 | AC153: 14.7 | AD153: 14.82 | AE153: 12.93 | AF153: 12.09 | AG153: 12.26 | AH153: 16.92
A154: AreaOatFinland | B154: Area | C154: Oat | D154: Finland | E154: 297.0333333 | F154: 332.3 | G154: 332.5 | H154: 329.3 | I154: 374.4 | J154: 369.2 | K154: 376.5 | L154: 403.9 | M154: 399.7 | N154: 422.7 | O154: 450.6 | P154: 425.5 | Q154: 371.8 | R154: 345.9 | S154: 353.6 | T154: 361.5 | U154: 372.9 | V154: 342.6 | W154: 278.3 | X154: 308.2 | Y154: 313.8 | Z154: 344.3 | AA154: 304.7 | AB154: 281.1 | AC154: 304.9 | AD154: 269.5 | AE154: 288.7 | AF154: 297.5 | AG154: 324.5 | AH154: 314.9
A155: AreaOatSweden | B155: Area | C155: Oat | D155: Sweden | E155: 155.0633333 | F155: 322 | G155: 341 | H155: 278 | I155: 284 | J155: 315 | K155: 311.5 | L155: 305.7 | M155: 290.8 | N155: 271.6 | O155: 287.7 | P155: 274.9 | Q155: 224.9 | R155: 192.7 | S155: 196.7 | T155: 203.5 | U155: 222.5 | V155: 186.1 | W155: 158.26 | X155: 175.56 | Y155: 191.31 | Z155: 195.01 | AA155: 159.57 | AB155: 161.42 | AC155: 173.34 | AD155: 150.58 | AE155: 141.27 | AF155: 141.13 | AG155: 177.64 | AH155: 177.17
A156: AreaOatUnited Kingdom | B156: Area | C156: Oat | D156: United Kingdom | E156: 171.24 | F156: 91.7 | G156: 108.5 | H156: 111.5 | I156: 96.1 | J156: 99.8 | K156: 98.2 | L156: 92 | M156: 109 | N156: 112.3 | O156: 125.5 | P156: 121.4 | Q156: 107.8 | R156: 90.4 | S156: 121.5 | T156: 129 | U156: 135 | V156: 129 | W156: 124 | X156: 109 | Y156: 122 | Z156: 177 | AA156: 137 | AB156: 131 | AC156: 141 | AD156: 161 | AE156: 171.2 | AF156: 181.52 | AG156: 211.16 | AH156: 0
A157: AreaGrain maizeEU-28 | B157: Area | C157: Grain maize | D157: EU-28 | E157: 8580.686667 | F157: 9205.61 | G157: 9040.061 | H157: 8917.503 | I157: 9498.512 | J157: 9458.517 | K157: 9315.262 | L157: 9302.428 | M157: 9729.16 | N157: 9903.64 | O157: 9703.2 | P157: 10130.83 | Q157: 10451.62 | R157: 9309.45 | S157: 8844.63 | T157: 8577.41 | U157: 9195.08 | V157: 8653.2 | W157: 8334.98 | X157: 9286.36 | Y157: 9837.8 | Z157: 9778.36 | AA157: 9587.23 | AB157: 9253.15 | AC157: 8546.43 | AD157: 8271.65 | AE157: 8259.46 | AF157: 8923.98 | AG157: 8970.22
A158: AreaGrain maizeEU-15 | B158: Area | C158: Grain maize | D158: EU-15 | E158: 4059.14 | F158: 3927 | G158: 3832.7 | H158: 3801.5 | I158: 4152.1 | J158: 4313.6 | K158: 4126.5 | L158: 4084.5 | M158: 4203.55 | N158: 4539.58 | O158: 4415.89 | P158: 4428.46 | Q158: 4601.76 | R158: 4231.93 | S158: 3874.63 | T158: 3892.96 | U158: 4281.78 | V158: 4007.89 | W158: 3885.79 | X158: 4061.69 | Y158: 4230.59 | Z158: 4304.75 | AA158: 4198.85 | AB158: 3747.98 | AC158: 3436.66 | AD158: 3373.126667
A159: AreaGrain maizeEU-N13 | B159: Area | C159: Grain maize | D159: EU-N13 | E159: 5464.583333 | F159: 5278.61 | G159: 5207.361 | H159: 5116.003 | I159: 5346.412 | J159: 5144.917 | K159: 5188.762 | L159: 5217.928 | M159: 5524.787857 | N159: 5363.197143 | O159: 5287.3 | P159: 5702.37 | Q159: 5849.86 | R159: 5077.52 | S159: 4970 | T159: 4684.45 | U159: 4913.34 | V159: 4650.3 | W159: 4449.19 | X159: 5230.68 | Y159: 5615.95 | Z159: 5469.96 | AA159: 5416.52 | AB159: 5507.27 | AC159: 5146.85 | AD159: 5096.623333
A160: AreaGrain maizeBelgium | B160: Area | C160: Grain maize | D160: Belgium | E160: 51.03333333 | F160: 18.5 | G160: 26.1 | H160: 26.4 | I160: 22.2 | J160: 23.6 | K160: 28.2 | L160: 33.5 | M160: 35.8 | N160: 40.6 | O160: 47.4 | P160: 52.7 | Q160: 52.2 | R160: 54.3 | S160: 56.5 | T160: 58.2 | U160: 72 | V160: 66.7 | W160: 69.8 | X160: 72.03 | Y160: 67.2 | Z160: 74.17 | AA160: 62.83 | AB160: 58.4 | AC160: 52.1 | AD160: 49 | AE160: 53.99 | AF160: 48.64 | AG160: 52 | AH160: 48.616
A161: AreaGrain maizeBulgaria | B161: Area | C161: Grain maize | D161: Bulgaria | E161: 470.8233333 | F161: 528.4 | G161: 493.2 | H161: 475.3 | I161: 477.8 | J161: 463.7 | K161: 477.1 | L161: 487.5 | M161: 576.3 | N161: 353.1 | O161: 304 | P161: 414.7 | Q161: 383.2 | R161: 298.7 | S161: 350.3 | T161: 214.4 | U161: 329.3 | V161: 274.2 | W161: 327.52 | X161: 399.42 | Y161: 466.8 | Z161: 428.3 | AA161: 408.4 | AB161: 498.64 | AC161: 406.94 | AD161: 398.15 | AE161: 444.62 | AF161: 560.91 | AG161: 583 | AH161: 574
A162: AreaGrain maizeCzech Republic | B162: Area | C162: Grain maize | D162: Czech Republic | E162: 84.75333333 | F162: 30 | G162: 30 | H162: 27 | I162: 30 | J162: 41.2 | K162: 32.9 | L162: 39.4 | M162: 47.3 | N162: 61.9 | O162: 70.57 | P162: 85.43 | Q162: 89.92 | R162: 98 | S162: 89.8 | T162: 111.7 | U162: 113.8 | V162: 105.3 | W162: 103.28 | X162: 121.01 | Y162: 119.33 | Z162: 96.9 | AA162: 98.75 | AB162: 79.97 | AC162: 86.41 | AD162: 86 | AE162: 81.85 | AF162: 74.83 | AG162: 87.23 | AH162: 90.93
A163: AreaGrain maizeDenmark | B163: Area | C163: Grain maize | D163: Denmark | E163: 5.766666667 | F163: 0 | G163: 0 | H163: 0 | I163: 0 | J163: 0 | K163: 0 | L163: 0 | M163: 0 | N163: 0 | O163: 0 | P163: 0 | Q163: 0 | R163: 0 | S163: 0 | T163: 0 | U163: 0 | V163: 0 | W163: 9.5 | X163: 10.6 | Y163: 12.9 | Z163: 12.8 | AA163: 10.1 | AB163: 9 | AC163: 5.7 | AD163: 5.1 | AE163: 6.3 | AF163: 5.4 | AG163: 6.2 | AH163: 6.37
A164: AreaGrain maizeGermany | B164: Area | C164: Grain maize | D164: Germany | E164: 417.2 | F164: 331.1 | G164: 345.4 | H164: 325.1 | I164: 372.1 | J164: 368.3 | K164: 341 | L164: 370.7 | M164: 360.8 | N164: 396.5 | O164: 398.7 | P164: 463.4 | Q164: 461.7 | R164: 443.1 | S164: 401 | T164: 403.2 | U164: 520.5 | V164: 464.3 | W164: 466.59 | X164: 487.9 | Y164: 526.2 | Z164: 497 | AA164: 481.3 | AB164: 455.5 | AC164: 416.3 | AD164: 432 | AE164: 410.9 | AF164: 416 | AG164: 419.3 | AH164: 419.1
A165: AreaGrain maizeEstonia | B165: Area | C165: Grain maize | D165: Estonia | E165: 0 | F165: 0 | G165: 0 | H165: 0 | I165: 0 | J165: 0 | K165: 0 | L165: 0 | M165: 0 | N165: 0 | O165: 0 | P165: 0 | Q165: 0 | R165: 0 | S165: 0 | T165: 0 | U165: 0 | V165: 0 | W165: 0 | X165: 0 | Y165: 0 | Z165: 0 | AA165: 0 | AB165: 0 | AC165: 0 | AD165: 0 | AE165: 0 | AF165: 0 | AG165: 0 | AH165: 0
A166: AreaGrain maizeIreland | B166: Area | C166: Grain maize | D166: Ireland | E166: 0 | F166: 0 | G166: 0 | H166: 0 | I166: 0 | J166: 0 | K166: 0 | L166: 0 | M166: 0 | N166: 0 | O166: 0 | P166: 0 | Q166: 0 | R166: 0 | S166: 0 | T166: 0 | U166: 0 | V166: 0 | W166: 0 | X166: 0 | Y166: 0 | Z166: 0 | AA166: 0 | AB166: 0 | AC166: 0 | AD166: 0 | AE166: 0 | AF166: 0 | AG166: 0 | AH166: 0
A167: AreaGrain maizeGreece | B167: Area | C167: Grain maize | D167: Greece | E167: 120.7866667 | F167: 198 | G167: 197.9 | H167: 160 | I167: 212.4 | J167: 212 | K167: 215.2 | L167: 210 | M167: 208.25 | N167: 210.39 | O167: 225.47 | P167: 249.02 | Q167: 251.41 | R167: 241.42 | S167: 179.13 | T167: 190.34 | U167: 240.1 | V167: 235.26 | W167: 181.05 | X167: 181.88 | Y167: 183.95 | Z167: 183.01 | AA167: 159.78 | AB167: 152.05 | AC167: 139.48 | AD167: 132.49 | AE167: 113.45 | AF167: 115.5 | AG167: 114.37 | AH167: 109.67
A168: AreaGrain maizeSpain | B168: Area | C168: Grain maize | D168: Spain | E168: 344.7466667 | F168: 264.5 | G168: 341.8 | H168: 357.5 | I168: 439.7 | J168: 486.4 | K168: 459.1 | L168: 394 | M168: 433.1 | N168: 512.5 | O168: 465.1 | P168: 476.1 | Q168: 479.8 | R168: 417.3 | S168: 344.4 | T168: 361 | U168: 371.7 | V168: 347.6 | W168: 314.21 | X168: 369.26 | Y168: 390.22 | Z168: 442.3 | AA168: 418.55 | AB168: 398.26 | AC168: 359.28 | AD168: 333.63 | AE168: 322.37 | AF168: 356.83 | AG168: 343.78 | AH168: 343.78
A169: AreaGrain maizeFrance | B169: Area | C169: Grain maize | D169: France | E169: 1461.536667 | F169: 1829.6 | G169: 1643.5 | H169: 1630.6 | I169: 1707.7 | J169: 1824 | K169: 1761 | L169: 1715.4 | M169: 1764.8 | N169: 1916.4 | O169: 1830.9 | P169: 1684.5 | Q169: 1821 | R169: 1658.3 | S169: 1503.6 | T169: 1530.7 | U169: 1758.5 | V169: 1679.8 | W169: 1600.33 | X169: 1596.71 | Y169: 1709.94 | Z169: 1843.48 | AA169: 1825.12 | AB169: 1637.08 | AC169: 1442.81 | AD169: 1435.7 | AE169: 1426.26 | AF169: 1506.1 | AG169: 1691.89 | AH169: 1433.6
A170: AreaGrain maizeCroatia | B170: Area | C170: Grain maize | D170: Croatia | E170: 251.6933333 | F170: 271.71 | G170: 269.061 | H170: 252.603 | I170: 259.812 | J170: 269.817 | K170: 276.362 | L170: 282.728 | M170: 292.43 | N170: 305.87 | O170: 306.81 | P170: 304.72 | Q170: 306.35 | R170: 318.97 | S170: 296.2 | T170: 288.55 | U170: 314.06 | V170: 296.91 | W170: 296.77 | X170: 305.13 | Y170: 299.16 | Z170: 288.37 | AA170: 252.57 | AB170: 263.97 | AC170: 252.07 | AD170: 247.12 | AE170: 235.35 | AF170: 255.89 | AG170: 281.7 | AH170: 275
A171: AreaGrain maizeItaly | B171: Area | C171: Grain maize | D171: Italy | E171: 625.8 | F171: 934.5 | G171: 909.9 | H171: 942.5 | I171: 1022.7 | J171: 1039.2 | K171: 970.3 | L171: 1027.9 | M171: 1063.6 | N171: 1109.3 | O171: 1112 | P171: 1163.2 | Q171: 1196.8 | R171: 1119.5 | S171: 1108 | T171: 1053.4 | U171: 991.5 | V171: 915.5 | W171: 927.08 | X171: 994.83 | Y171: 976.56 | Z171: 908.11 | AA171: 869.95 | AB171: 726.99 | AC171: 660.73 | AD171: 645.74 | AE171: 591.21 | AF171: 628.8 | AG171: 602.86 | AH171: 593.84
A172: AreaGrain maizeCyprus | B172: Area | C172: Grain maize | D172: Cyprus | E172: 0 | F172: 0 | G172: 0 | H172: 0 | I172: 0 | J172: 0 | K172: 0 | L172: 0 | M172: 0 | N172: 0 | O172: 0 | P172: 0 | Q172: 0 | R172: 0 | S172: 0 | T172: 0 | U172: 0 | V172: 0 | W172: 0 | X172: 0 | Y172: 0 | Z172: 0 | AA172: 0 | AB172: 0 | AC172: 0 | AD172: 0 | AE172: 0 | AF172: 0 | AG172: 0 | AH172: 0
A173: AreaGrain maizeLatvia | B173: Area | C173: Grain maize | D173: Latvia | E173: 0 | F173: 0 | G173: 0 | H173: 0 | I173: 0 | J173: 0 | K173: 0 | L173: 0 | M173: 0 | N173: 0 | O173: 0 | P173: 0 | Q173: 0 | R173: 0 | S173: 0 | T173: 0 | U173: 0 | V173: 0 | W173: 0 | X173: 0 | Y173: 0 | Z173: 0 | AA173: 0 | AB173: 0 | AC173: 0 | AD173: 0 | AE173: 0 | AF173: 0 | AG173: 0 | AH173: 0
A174: AreaGrain maizeLithuania | B174: Area | C174: Grain maize | D174: Lithuania | E174: 12.86333333 | F174: 2 | G174: 2 | H174: 2 | I174: 2 | J174: 2 | K174: 2 | L174: 2 | M174: 2 | N174: 2 | O174: 2.9 | P174: 2.7 | Q174: 1.4 | R174: 1.6 | S174: 2 | T174: 5.4 | U174: 7.6 | V174: 5.5 | W174: 7.1 | X174: 9.6 | Y174: 12.9 | Z174: 17.2 | AA174: 19 | AB174: 11.71 | AC174: 12.43 | AD174: 9.93 | AE174: 13.39 | AF174: 12.77 | AG174: 20.52 | AH174: 19.9
A175: AreaGrain maizeLuxembourg | B175: Area | C175: Grain maize | D175: Luxembourg | E175: 0.1133333333 | F175: 0 | G175: 0 | H175: 0 | I175: 0.3 | J175: 0.5 | K175: 0.5 | L175: 0.5 | M175: 0.3 | N175: 0.5 | O175: 0.3 | P175: 0.3 | Q175: 0.4 | R175: 0.2 | S175: 0.3 | T175: 0.3 | U175: 0.4 | V175: 0.4 | W175: 0.38 | X175: 0.3 | Y175: 0.2 | Z175: 0.24 | AA175: 0.22 | AB175: 0.14 | AC175: 0.13 | AD175: 0.08 | AE175: 0.09 | AF175: 0.14 | AG175: 0.12 | AH175: 0.1106666667
A176: AreaGrain maizeHungary | B176: Area | C176: Grain maize | D176: Hungary | E176: 991.1033333 | F176: 1121 | G176: 1204 | H176: 1033 | I176: 1053 | J176: 1059 | K176: 1022.5 | L176: 1114.8 | M176: 1192.7 | N176: 1258.1 | O176: 1205.8 | P176: 1144.7 | Q176: 1190.1 | R176: 1197.5 | S176: 1215 | T176: 1078.8 | U176: 1191.8 | V176: 1177.3 | W176: 1078.83 | X176: 1230.25 | Y176: 1191.29 | Z176: 1242.61 | AA176: 1191.42 | AB176: 1146.13 | AC176: 1011.56 | AD176: 988.82 | AE176: 939.08 | AF176: 1027.59 | AG176: 972.93 | AH176: 1058.84
A177: AreaGrain maizeMalta | B177: Area | C177: Grain maize | D177: Malta | E177: 0 | F177: 0 | G177: 0 | H177: 0 | I177: 0 | J177: 0 | K177: 0 | L177: 0 | M177: 0 | N177: 0 | O177: 0 | P177: 0 | Q177: 0 | R177: 0 | S177: 0 | T177: 0 | U177: 0 | V177: 0 | W177: 0 | X177: 0 | Y177: 0 | Z177: 0 | AA177: 0 | AB177: 0 | AC177: 0 | AD177: 0 | AE177: 0 | AF177: 0 | AG177: 0 | AH177: 0
A178: AreaGrain maizeNetherlands | B178: Area | C178: Grain maize | D178: Netherlands | E178: 15.01333333 | F178: 10.8 | G178: 11.6 | H178: 9 | I178: 10.9 | J178: 12.7 | K178: 13.7 | L178: 16 | M178: 20.3 | N178: 27.2 | O178: 23.7 | P178: 24.5 | Q178: 22.4 | R178: 20.7 | S178: 19.8 | T178: 19.3 | U178: 22.1 | V178: 18.8 | W178: 24 | X178: 23 | Y178: 21 | Z178: 21 | AA178: 18 | AB178: 15.8 | AC178: 12.27 | AD178: 12.25 | AE178: 13.76 | AF178: 19.01 | AG178: 19.42 | AH178: 18
A179: AreaGrain maizeAustria | B179: Area | C179: Grain maize | D179: Austria | E179: 210.66 | F179: 169.9 | G179: 179.5 | H179: 173.4 | I179: 179.1 | J179: 161 | K179: 144.2 | L179: 152.5 | M179: 164.1 | N179: 171.4 | O179: 172.2 | P179: 173.3 | Q179: 178.7 | R179: 167.2 | S179: 159.3 | T179: 170.9 | U179: 194.1 | V179: 178.5 | W179: 201.14 | X179: 217.1 | Y179: 219.7 | Z179: 201.92 | AA179: 216.32 | AB179: 188.73 | AC179: 195.25 | AD179: 209.48 | AE179: 209.9 | AF179: 220.69 | AG179: 212.6 | AH179: 218.64
A180: AreaGrain maizePoland | B180: Area | C180: Grain maize | D180: Poland | E180: 612.6 | F180: 54.5 | G180: 50.4 | H180: 48.2 | I180: 69.3 | J180: 77.1 | K180: 85.2 | L180: 104.2 | M180: 152.3 | N180: 224.4 | O180: 318.7 | P180: 356.3 | Q180: 411.7 | R180: 339.3 | S180: 303 | T180: 262 | U180: 317.2 | V180: 274.1 | W180: 334.2 | X180: 333.3 | Y180: 543.8 | Z180: 614.3 | AA180: 678.25 | AB180: 670.3 | AC180: 593.5 | AD180: 562.11 | AE180: 645.41 | AF180: 664.95 | AG180: 598.89 | AH180: 972.3
A181: AreaGrain maizePortugal | B181: Area | C181: Grain maize | D181: Portugal | E181: 84.41333333 | F181: 170.1 | G181: 177 | H181: 177 | I181: 185 | J181: 185.9 | K181: 193.3 | L181: 164 | M181: 152.51 | N181: 154.79 | O181: 140.12 | P181: 141.44 | Q181: 137.35 | R181: 109.91 | S181: 102.6 | T181: 105.62 | U181: 110.88 | V181: 94.73 | W181: 90.37 | X181: 99.98 | Y181: 102.2 | Z181: 111.79 | AA181: 107.64 | AB181: 97.91 | AC181: 88.61 | AD181: 86.52 | AE181: 83.36 | AF181: 83.36 | AG181: 81.22 | AH181: 81.22
A182: AreaGrain maizeRomania | B182: Area | C182: Grain maize | D182: Romania | E182: 2555.613333 | F182: 3065.7 | G182: 2983.4 | H182: 3109.2 | I182: 3277 | J182: 3046.9 | K182: 3128.9 | L182: 3013.4 | M182: 3049.36 | N182: 2974.02 | O182: 2894.5 | P182: 3199.58 | Q182: 3274.19 | R182: 2628.58 | S182: 2520.56 | T182: 2525.39 | U182: 2441.64 | V182: 2339.39 | W182: 2098.47 | X182: 2589.78 | Y182: 2731.16 | Z182: 2518.88 | AA182: 2513.56 | AB182: 2608.06 | AC182: 2584.22 | AD182: 2405.24 | AE182: 2443.95 | AF182: 2681.93 | AG182: 2638.67 | AH182: 2572.56
A183: AreaGrain maizeSlovenia | B183: Area | C183: Grain maize | D183: Slovenia | E183: 38.08333333 | F183: 59.3 | G183: 49.4 | H183: 46.8 | I183: 47.1 | J183: 47.5 | K183: 45.6 | L183: 44.4 | M183: 48.01 | N183: 47.57 | O183: 45.53 | P183: 44.14 | Q183: 46 | R183: 42.37 | S183: 39.84 | T183: 40.91 | U183: 43.7 | V183: 38.61 | W183: 36.43 | X183: 40.19 | Y183: 39.17 | Z183: 41.86 | AA183: 38.33 | AB183: 37.74 | AC183: 36.39 | AD183: 38.29 | AE183: 37.08 | AF183: 38.88 | AG183: 39.85 | AH183: 39.71933333
A184: AreaGrain maizeSlovakia | B184: Area | C184: Grain maize | D184: Slovakia | E184: 187.61 | F184: 146 | G184: 125.9 | H184: 121.9 | I184: 130.4 | J184: 137.7 | K184: 118.2 | L184: 129.5 | M184: 165.2 | N184: 137.1 | O184: 138.5 | P184: 150.1 | Q184: 147 | R184: 152.5 | S184: 153.3 | T184: 157.3 | U184: 154.2 | V184: 139 | W184: 166.59 | X184: 202 | Y184: 212.34 | Z184: 221.54 | AA184: 216.19 | AB184: 191.44 | AC184: 183.54 | AD184: 187.81 | AE184: 179.03 | AF184: 197.24 | AG184: 191.48 | AH184: 203.36
A185: AreaGrain maizeFinland | B185: Area | C185: Grain maize | D185: Finland | E185: 0 | F185: 0 | G185: 0 | H185: 0 | I185: 0 | J185: 0 | K185: 0 | L185: 0 | M185: 0 | N185: 0 | O185: 0 | P185: 0 | Q185: 0 | R185: 0 | S185: 0 | T185: 0 | U185: 0 | V185: 0 | W185: 0 | X185: 0 | Y185: 0 | Z185: 0 | AA185: 0 | AB185: 0 | AC185: 0 | AD185: 0 | AE185: 0 | AF185: 0 | AG185: 1 | AH185: 0.9
A186: AreaGrain maizeSweden | B186: Area | C186: Grain maize | D186: Sweden | E186: 1.506666667 | F186: 0 | G186: 0 | H186: 0 | I186: 0 | J186: 0 | K186: 0 | L186: 0 | M186: 0 | N186: 0 | O186: 0 | P186: 0 | Q186: 0 | R186: 0 | S186: 0 | T186: 0 | U186: 0 | V186: 1.3 | W186: 1.34 | X186: 2.09 | Y186: 2.36 | Z186: 1.27 | AA186: 0.95 | AB186: 1.33 | AC186: 1.71 | AD186: 1.19 | AE186: 1.11 | AF186: 1.62 | AG186: 2.17 | AH186: 1.5
A187: AreaGrain maizeUnited Kingdom | B187: Area | C187: Grain maize | D187: United Kingdom | E187: 6.3 | F187: 0 | G187: 0 | H187: 0 | I187: 0 | J187: 0 | K187: 0 | L187: 0 | M187: 0 | N187: 0 | O187: 0 | P187: 0 | Q187: 0 | R187: 0 | S187: 0 | T187: 0 | U187: 0 | V187: 0 | W187: 0 | X187: 0 | Y187: 9.42 | Z187: 11.31 | AA187: 0 | AB187: 4 | AC187: 5 | AD187: 5 | AE187: 7 | AF187: 6.9 | AG187: 9.02 | AH187: 0
A188: AreaSorghumEU-28 | B188: Area | C188: Sorghum | D188: EU-28 | E188: 157.6433333 | F188: 141.8 | G188: 122.4 | H188: 99.1 | I188: 112.8 | J188: 119 | K188: 118.1 | L188: 97.5 | M188: 109.1 | N188: 121.61 | O188: 123.52 | P188: 112.38 | Q188: 106.61 | R188: 97.27 | S188: 105.37 | T188: 98.59 | U188: 96.53 | V188: 115.82 | W188: 113.94 | X188: 116.73 | Y188: 119.07 | Z188: 145.53 | AA188: 157.69 | AB188: 138.95 | AC188: 123.76 | AD188: 135.36 | AE188: 147.55 | AF188: 190.02 | AG188: 226.08
A189: AreaSorghumEU-15 | B189: Area | C189: Sorghum | D189: EU-15 | E189: 109.9566667 | F189: 125.7 | G189: 107.3 | H189: 85.8 | I189: 99 | J189: 108.2 | K189: 105.7 | L189: 90.2 | M189: 102.6 | N189: 110.8 | O189: 113.13 | P189: 97.96 | Q189: 89.53 | R189: 90.1 | S189: 99.63 | T189: 90.43 | U189: 82.52 | V189: 105.7 | W189: 96.73 | X189: 94.98 | Y189: 88.31 | Z189: 113.43 | AA189: 126.8 | AB189: 113.23 | AC189: 103.21 | AD189: 105.99
A190: AreaSorghumEU-N13 | B190: Area | C190: Sorghum | D190: EU-N13 | E190: 29.11333333 | F190: 16.1 | G190: 15.1 | H190: 13.3 | I190: 13.8 | J190: 10.8 | K190: 12.4 | L190: 7.3 | M190: 6.5 | N190: 10.81 | O190: 10.39 | P190: 14.42 | Q190: 17.08 | R190: 7.17 | S190: 5.74 | T190: 8.16 | U190: 14.01 | V190: 10.12 | W190: 17.21 | X190: 21.75 | Y190: 30.72 | Z190: 31.83 | AA190: 30.99 | AB190: 25.63 | AC190: 22.48 | AD190: 19.39
A191: AreaSorghumBelgium | B191: Area | C191: Sorghum | D191: Belgium | E191: 0 | F191: 0 | G191: 0 | H191: 0 | I191: 0 | J191: 0 | K191: 0 | L191: 0 | M191: 0 | N191: 0 | O191: 0 | P191: 0 | Q191: 0 | R191: 0 | S191: 0 | T191: 0 | U191: 0 | V191: 0 | W191: 0 | X191: 0 | Y191: 0 | Z191: 0 | AA191: 0 | AB191: 0 | AC191: 0 | AD191: 0 | AE191: 0 | AF191: 0 | AG191: 0 | AH191: 0
A192: AreaSorghumBulgaria | B192: Area | C192: Sorghum | D192: Bulgaria | E192: 4.856666667 | F192: 0.5 | G192: 0.5 | H192: 0.5 | I192: 0.5 | J192: 0.5 | K192: 0.5 | L192: 0.7 | M192: 0.6 | N192: 1.5 | O192: 4.3 | P192: 3.5 | Q192: 3 | R192: 1.6 | S192: 1.2 | T192: 1.6 | U192: 1.8 | V192: 0.7 | W192: 3.54 | X192: 2.84 | Y192: 5.3 | Z192: 4.34 | AA192: 6.71 | AB192: 6.82 | AC192: 3.29 | AD192: 4.24 | AE192: 8.86 | AF192: 7.04 | AG192: 2.6 | AH192: 4
A193: AreaSorghumCzech Republic | B193: Area | C193: Sorghum | D193: Czech Republic | E193: 0 | F193: 0 | G193: 0 | H193: 0 | I193: 0 | J193: 0 | K193: 0 | L193: 0 | M193: 0 | N193: 0 | O193: 0 | P193: 0 | Q193: 0 | R193: 0 | S193: 0 | T193: 0 | U193: 0 | V193: 0 | W193: 0 | X193: 0 | Y193: 0 | Z193: 0 | AA193: 0 | AB193: 0 | AC193: 0 | AD193: 0 | AE193: 0 | AF193: 0 | AG193: 0 | AH193: 0
A194: AreaSorghumDenmark | B194: Area | C194: Sorghum | D194: Denmark | E194: 0 | F194: 0 | G194: 0 | H194: 0 | I194: 0 | J194: 0 | K194: 0 | L194: 0 | M194: 0 | N194: 0 | O194: 0 | P194: 0 | Q194: 0 | R194: 0 | S194: 0 | T194: 0 | U194: 0 | V194: 0 | W194: 0 | X194: 0 | Y194: 0 | Z194: 0 | AA194: 0 | AB194: 0 | AC194: 0 | AD194: 0 | AE194: 0 | AF194: 0 | AG194: 0 | AH194: 0
A195: AreaSorghumGermany | B195: Area | C195: Sorghum | D195: Germany | E195: 0 | F195: 0 | G195: 0 | H195: 0 | I195: 0 | J195: 0 | K195: 0 | L195: 0 | M195: 0 | N195: 0 | O195: 0 | P195: 0 | Q195: 0 | R195: 0 | S195: 0 | T195: 0 | U195: 0 | V195: 0 | W195: 0 | X195: 0 | Y195: 0 | Z195: 0 | AA195: 0 | AB195: 0 | AC195: 0.3 | AD195: 0 | AE195: 0 | AF195: 0 | AG195: 0 | AH195: 0
A196: AreaSorghumEstonia | B196: Area | C196: Sorghum | D196: Estonia | E196: 0 | F196: 0 | G196: 0 | H196: 0 | I196: 0 | J196: 0 | K196: 0 | L196: 0 | M196: 0 | N196: 0 | O196: 0 | P196: 0 | Q196: 0 | R196: 0 | S196: 0 | T196: 0 | U196: 0 | V196: 0 | W196: 0 | X196: 0 | Y196: 0 | Z196: 0 | AA196: 0 | AB196: 0 | AC196: 0 | AD196: 0 | AE196: 0 | AF196: 0 | AG196: 0 | AH196: 0
A197: AreaSorghumIreland | B197: Area | C197: Sorghum | D197: Ireland | E197: 0 | F197: 0 | G197: 0 | H197: 0 | I197: 0 | J197: 0 | K197: 0 | L197: 0 | M197: 0 | N197: 0 | O197: 0 | P197: 0 | Q197: 0 | R197: 0 | S197: 0 | T197: 0 | U197: 0 | V197: 0 | W197: 0 | X197: 0 | Y197: 0 | Z197: 0 | AA197: 0 | AB197: 0 | AC197: 0 | AD197: 0 | AE197: 0 | AF197: 0 | AG197: 0 | AH197: 0
A198: AreaSorghumGreece | B198: Area | C198: Sorghum | D198: Greece | E198: 2.573333333 | F198: 0 | G198: 0 | H198: 0 | I198: 0 | J198: 0 | K198: 0 | L198: 0 | M198: 0.3 | N198: 0.2 | O198: 0.33 | P198: 0.06 | Q198: 0.13 | R198: 0.2 | S198: 0.13 | T198: 0.13 | U198: 0.12 | V198: 0.3 | W198: 0.04 | X198: 0.22 | Y198: 0.14 | Z198: 0.47 | AA198: 1.84 | AB198: 2.86 | AC198: 2.74 | AD198: 3.01 | AE198: 2.62 | AF198: 2.36 | AG198: 2.32 | AH198: 2.24
A199: AreaSorghumSpain | B199: Area | C199: Sorghum | D199: Spain | E199: 6.496666667 | F199: 4.9 | G199: 20.5 | H199: 6.4 | I199: 9.3 | J199: 10.2 | K199: 12.6 | L199: 7 | M199: 8.8 | N199: 8.5 | O199: 7.6 | P199: 6.4 | Q199: 7.2 | R199: 7 | S199: 5.4 | T199: 7.1 | U199: 6.8 | V199: 7.5 | W199: 7.14 | X199: 8.48 | Y199: 7.73 | Z199: 8.97 | AA199: 7.29 | AB199: 8.38 | AC199: 8.12 | AD199: 6.96 | AE199: 5.97 | AF199: 6.56 | AG199: 5.25 | AH199: 5.25
A200: AreaSorghumFrance | B200: Area | C200: Sorghum | D200: France | E200: 66.7 | F200: 81.9 | G200: 47.4 | H200: 45 | I200: 54 | J200: 67.8 | K200: 64 | L200: 51.7 | M200: 59.6 | N200: 67.7 | O200: 71.1 | P200: 61 | Q200: 48 | R200: 51.2 | S200: 55.4 | T200: 49.2 | U200: 37 | V200: 58 | W200: 47.65 | X200: 43.44 | Y200: 42.19 | Z200: 51.25 | AA200: 62.86 | AB200: 53.79 | AC200: 48.46 | AD200: 56.24 | AE200: 60.77 | AF200: 83.09 | AG200: 116.68 | AH200: 84.25
... 731 more rows

Sheet precos_ue (hidden)
A1: com | B1: tipo | C1: período | D1: EU | E1: BE | F1: BG | G1: CZ | H1: DK | I1: DE | J1: EE | K1: IE | L1: EL | M1: ES | N1: FR | O1: HR | P1: IT | Q1: CY | R1: LV | S1: LT | T1: LU | U1: HU | V1: MT | W1: NL | X1: AT | Y1: PL | Z1: PT | AA1: RO | AB1: SI | AC1: SK | AD1: FI | AE1: SE | AF1: UK | AG1: escolha1 | AH1: escolha2
A2: =+B2&C2 -> Milling Oats2022/02 | B2: Milling Oats | C2: 2022/02 | J2: 243.07 | AG2: =+INDEX(D2:AF2,1,aux_pr_ue!$P$2) -> 0 | AH2: =+INDEX(D2:AF2,1,aux_pr_ue!$Q$2) -> 0
A3: Milling Oats2022/01 | B3: Milling Oats | C3: 2022/01 | J3: 238.58 | AG3: =+INDEX(D3:AF3,1,aux_pr_ue!$P$2) -> 0 | AH3: =+INDEX(D3:AF3,1,aux_pr_ue!$Q$2) -> 0
A4: Milling Oats2021/12 | B4: Milling Oats | C4: 2021/12 | J4: 212.1542 | AG4: =+INDEX(D4:AF4,1,aux_pr_ue!$P$2) -> 0 | AH4: =+INDEX(D4:AF4,1,aux_pr_ue!$Q$2) -> 0
A5: Milling Oats2021/11 | B5: Milling Oats | C5: 2021/11 | J5: 233.7511 | AG5: =+INDEX(D5:AF5,1,aux_pr_ue!$P$2) -> 0 | AH5: =+INDEX(D5:AF5,1,aux_pr_ue!$Q$2) -> 0
A6: Milling Oats2021/10 | B6: Milling Oats | C6: 2021/10 | J6: 196.3884 | AG6: =+INDEX(D6:AF6,1,aux_pr_ue!$P$2) -> 0 | AH6: =+INDEX(D6:AF6,1,aux_pr_ue!$Q$2) -> 0
A7: Milling Oats2021/09 | B7: Milling Oats | C7: 2021/09 | J7: 163.0697 | AG7: =+INDEX(D7:AF7,1,aux_pr_ue!$P$2) -> 0 | AH7: =+INDEX(D7:AF7,1,aux_pr_ue!$Q$2) -> 0
A8: Milling Oats2021/08 | B8: Milling Oats | C8: 2021/08 | J8: 147.7832 | AG8: =+INDEX(D8:AF8,1,aux_pr_ue!$P$2) -> 0 | AH8: =+INDEX(D8:AF8,1,aux_pr_ue!$Q$2) -> 0
A9: Milling Oats2021/07 | B9: Milling Oats | C9: 2021/07 | J9: 164.4729 | Z9: 190 | AG9: =+INDEX(D9:AF9,1,aux_pr_ue!$P$2) -> 190 | AH9: =+INDEX(D9:AF9,1,aux_pr_ue!$Q$2) -> 0
A10: Milling Oats2021/06 | B10: Milling Oats | C10: 2021/06 | J10: 148.391 | AG10: =+INDEX(D10:AF10,1,aux_pr_ue!$P$2) -> 0 | AH10: =+INDEX(D10:AF10,1,aux_pr_ue!$Q$2) -> 0
A11: Milling Oats2021/05 | B11: Milling Oats | C11: 2021/05 | AG11: =+INDEX(D11:AF11,1,aux_pr_ue!$P$2) -> 0 | AH11: =+INDEX(D11:AF11,1,aux_pr_ue!$Q$2) -> 0
A12: Milling Oats2021/04 | B12: Milling Oats | C12: 2021/04 | J12: 135.8333 | AG12: =+INDEX(D12:AF12,1,aux_pr_ue!$P$2) -> 0 | AH12: =+INDEX(D12:AF12,1,aux_pr_ue!$Q$2) -> 0
A13: Milling Oats2021/03 | B13: Milling Oats | C13: 2021/03 | J13: 137.6667 | AG13: =+INDEX(D13:AF13,1,aux_pr_ue!$P$2) -> 0 | AH13: =+INDEX(D13:AF13,1,aux_pr_ue!$Q$2) -> 0
A14: Milling Oats2021/02 | B14: Milling Oats | C14: 2021/02 | AG14: =+INDEX(D14:AF14,1,aux_pr_ue!$P$2) -> 0 | AH14: =+INDEX(D14:AF14,1,aux_pr_ue!$Q$2) -> 0
A15: Milling Oats2021/01 | B15: Milling Oats | C15: 2021/01 | J15: 133.82 | AG15: =+INDEX(D15:AF15,1,aux_pr_ue!$P$2) -> 0 | AH15: =+INDEX(D15:AF15,1,aux_pr_ue!$Q$2) -> 0
A16: =+B16&C16 -> Milling Oats2020/12 | B16: Milling Oats | C16: 2020/12 | J16: 134.6232 | AF16: 147.2393 | AG16: =+INDEX(D16:AF16,1,aux_pr_ue!$P$2) -> 0 | AH16: =+INDEX(D16:AF16,1,aux_pr_ue!$Q$2) -> 0
A17: Milling Oats2020/11 | B17: Milling Oats | C17: 2020/11 | J17: 133.93 | X17: 170 | AF17: 151.4421 | AG17: =+INDEX(D17:AF17,1,aux_pr_ue!$P$2) -> 0 | AH17: =+INDEX(D17:AF17,1,aux_pr_ue!$Q$2) -> 0
A18: Milling Oats2020/10 | B18: Milling Oats | C18: 2020/10 | J18: 137.3606 | AF18: 150.7059 | AG18: =+INDEX(D18:AF18,1,aux_pr_ue!$P$2) -> 0 | AH18: =+INDEX(D18:AF18,1,aux_pr_ue!$Q$2) -> 0
A19: Milling Oats2020/09 | B19: Milling Oats | C19: 2020/09 | J19: 138.466 | X19: 184.6154 | AF19: 150.3852 | AG19: =+INDEX(D19:AF19,1,aux_pr_ue!$P$2) -> 0 | AH19: =+INDEX(D19:AF19,1,aux_pr_ue!$Q$2) -> 0
A20: Milling Oats2020/08 | B20: Milling Oats | C20: 2020/08 | J20: 139.56 | X20: 183 | AF20: 149.818 | AG20: =+INDEX(D20:AF20,1,aux_pr_ue!$P$2) -> 0 | AH20: =+INDEX(D20:AF20,1,aux_pr_ue!$Q$2) -> 0
A21: Milling Oats2020/07 | B21: Milling Oats | C21: 2020/07 | AF21: 151.0949 | AG21: =+INDEX(D21:AF21,1,aux_pr_ue!$P$2) -> 0 | AH21: =+INDEX(D21:AF21,1,aux_pr_ue!$Q$2) -> 0
A22: Milling Oats2020/06 | B22: Milling Oats | C22: 2020/06 | J22: 137.31 | AF22: 156.3994 | AG22: =+INDEX(D22:AF22,1,aux_pr_ue!$P$2) -> 0 | AH22: =+INDEX(D22:AF22,1,aux_pr_ue!$Q$2) -> 0
A23: Milling Oats2020/05 | B23: Milling Oats | C23: 2020/05 | J23: 125.835 | AG23: =+INDEX(D23:AF23,1,aux_pr_ue!$P$2) -> 0 | AH23: =+INDEX(D23:AF23,1,aux_pr_ue!$Q$2) -> 0
A24: Milling Oats2020/04 | B24: Milling Oats | C24: 2020/04 | J24: 137.21 | AF24: 151.1848 | AG24: =+INDEX(D24:AF24,1,aux_pr_ue!$P$2) -> 0 | AH24: =+INDEX(D24:AF24,1,aux_pr_ue!$Q$2) -> 0
A25: Milling Oats2020/03 | B25: Milling Oats | C25: 2020/03 | J25: 134.1171 | AF25: 143.8152 | AG25: =+INDEX(D25:AF25,1,aux_pr_ue!$P$2) -> 0 | AH25: =+INDEX(D25:AF25,1,aux_pr_ue!$Q$2) -> 0
A26: Milling Oats2020/02 | B26: Milling Oats | C26: 2020/02 | J26: 152.1645 | AG26: =+INDEX(D26:AF26,1,aux_pr_ue!$P$2) -> 0 | AH26: =+INDEX(D26:AF26,1,aux_pr_ue!$Q$2) -> 0
A27: Milling Oats2020/01 | B27: Milling Oats | C27: 2020/01 | D27: 143.5406 | J27: 145.0432 | AF27: 139.4624 | AG27: =+INDEX(D27:AF27,1,aux_pr_ue!$P$2) -> 0 | AH27: =+INDEX(D27:AF27,1,aux_pr_ue!$Q$2) -> 0
A28: Milling Oats2019/12 | B28: Milling Oats | C28: 2019/12 | D28: 139.3747 | J28: 139.3747 | AG28: =+INDEX(D28:AF28,1,aux_pr_ue!$P$2) -> 0 | AH28: =+INDEX(D28:AF28,1,aux_pr_ue!$Q$2) -> 0
A29: Milling Oats2019/11 | B29: Milling Oats | C29: 2019/11 | D29: 133.5117 | J29: 132.0117 | AF29: 144.7124 | AG29: =+INDEX(D29:AF29,1,aux_pr_ue!$P$2) -> 0 | AH29: =+INDEX(D29:AF29,1,aux_pr_ue!$Q$2) -> 0
A30: Milling Oats2019/10 | B30: Milling Oats | C30: 2019/10 | D30: 130.8284 | J30: 127.3968 | AF30: 134.2599 | AG30: =+INDEX(D30:AF30,1,aux_pr_ue!$P$2) -> 0 | AH30: =+INDEX(D30:AF30,1,aux_pr_ue!$Q$2) -> 0
A31: Milling Oats2019/09 | B31: Milling Oats | C31: 2019/09 | D31: 129.9347 | J31: 128.934 | AF31: 130.9354 | AG31: =+INDEX(D31:AF31,1,aux_pr_ue!$P$2) -> 0 | AH31: =+INDEX(D31:AF31,1,aux_pr_ue!$Q$2) -> 0
A32: Milling Oats2019/08 | B32: Milling Oats | C32: 2019/08 | D32: 130.6659 | J32: 132.092 | AF32: 129.8808 | AG32: =+INDEX(D32:AF32,1,aux_pr_ue!$P$2) -> 0 | AH32: =+INDEX(D32:AF32,1,aux_pr_ue!$Q$2) -> 0
A33: Milling Oats2019/07 | B33: Milling Oats | C33: 2019/07 | D33: 132.2014 | AF33: 132.2014 | AG33: =+INDEX(D33:AF33,1,aux_pr_ue!$P$2) -> 0 | AH33: =+INDEX(D33:AF33,1,aux_pr_ue!$Q$2) -> 0
A34: Milling Oats2019/06 | B34: Milling Oats | C34: 2019/06 | D34: 174.63 | J34: 174.63 | AG34: =+INDEX(D34:AF34,1,aux_pr_ue!$P$2) -> 0 | AH34: =+INDEX(D34:AF34,1,aux_pr_ue!$Q$2) -> 0
A35: Milling Oats2019/05 | B35: Milling Oats | C35: 2019/05 | D35: 193.6673 | J35: 174.63 | AF35: 201.5995 | AG35: =+INDEX(D35:AF35,1,aux_pr_ue!$P$2) -> 0 | AH35: =+INDEX(D35:AF35,1,aux_pr_ue!$Q$2) -> 0
A36: Milling Oats2019/04 | B36: Milling Oats | C36: 2019/04 | D36: 211.183 | AF36: 211.183 | AG36: =+INDEX(D36:AF36,1,aux_pr_ue!$P$2) -> 0 | AH36: =+INDEX(D36:AF36,1,aux_pr_ue!$Q$2) -> 0
A37: Milling Oats2019/03 | B37: Milling Oats | C37: 2019/03 | D37: 213.8042 | J37: 214.7 | R37: 210 | AF37: 214.968 | AG37: =+INDEX(D37:AF37,1,aux_pr_ue!$P$2) -> 0 | AH37: =+INDEX(D37:AF37,1,aux_pr_ue!$Q$2) -> 0
A38: Milling Oats2019/02 | B38: Milling Oats | C38: 2019/02 | D38: 215.8377 | AF38: 215.8377 | AG38: =+INDEX(D38:AF38,1,aux_pr_ue!$P$2) -> 0 | AH38: =+INDEX(D38:AF38,1,aux_pr_ue!$Q$2) -> 0
A39: Milling Oats2019/01 | B39: Milling Oats | C39: 2019/01 | D39: 206.9734 | AF39: 206.9734 | AG39: =+INDEX(D39:AF39,1,aux_pr_ue!$P$2) -> 0 | AH39: =+INDEX(D39:AF39,1,aux_pr_ue!$Q$2) -> 0
A40: Malting Barley2022/02 | B40: Malting Barley | C40: 2022/02 | H40: 230.4152 | I40: 380.2968333 | L40: 220 | M40: 289.06165 | R40: 242.3525 | S40: 288.9031 | Y40: 285.5802 | AA40: 237.0377 | AC40: 245.4207 | AD40: 310 | AG40: =+INDEX(D40:AF40,1,aux_pr_ue!$P$2) -> 0 | AH40: =+INDEX(D40:AF40,1,aux_pr_ue!$Q$2) -> 0
A41: Malting Barley2022/01 | B41: Malting Barley | C41: 2022/01 | I41: 399.33335 | L41: 223.1818 | M41: 290.4946333 | S41: 231.53 | Y41: 277.9421 | AA41: 241.5414 | AC41: 230.8427 | AD41: 310 | AG41: =+INDEX(D41:AF41,1,aux_pr_ue!$P$2) -> 0 | AH41: =+INDEX(D41:AF41,1,aux_pr_ue!$Q$2) -> 0
A42: Malting Barley2021/12 | B42: Malting Barley | C42: 2021/12 | I42: 395 | L42: 246.6667 | M42: 295.8451667 | R42: 240.9083 | S42: 211.14 | Y42: 268.7241 | AA42: 208.40765 | AC42: 214.34 | AD42: 304.1935 | AG42: =+INDEX(D42:AF42,1,aux_pr_ue!$P$2) -> 0 | AH42: =+INDEX(D42:AF42,1,aux_pr_ue!$Q$2) -> 0
A43: Malting Barley2021/11 | B43: Malting Barley | C43: 2021/11 | I43: 360 | L43: 215.5556 | M43: 304.31445 | R43: 283.55 | S43: 243.8567 | Y43: 232.9365 | AA43: 223.7842 | AC43: 224.365 | AD43: 270.5 | AG43: =+INDEX(D43:AF43,1,aux_pr_ue!$P$2) -> 0 | AH43: =+INDEX(D43:AF43,1,aux_pr_ue!$Q$2) -> 0
A44: Malting Barley2021/10 | B44: Malting Barley | C44: 2021/10 | I44: 336.510425 | L44: 260 | M44: 268.01744 | R44: 207.4847 | S44: 211.2341 | Y44: 209.9392 | Z44: 235 | AA44: 213.6035 | AC44: 212.3006 | AD44: 260.2155 | AG44: =+INDEX(D44:AF44,1,aux_pr_ue!$P$2) -> 235 | AH44: =+INDEX(D44:AF44,1,aux_pr_ue!$Q$2) -> 0
A45: Malting Barley2021/09 | B45: Malting Barley | C45: 2021/09 | I45: 303.6111 | L45: 224.4737 | M45: 233.901675 | R45: 164.6582 | S45: 205.0956 | Y45: 193.1279 | Z45: 222 | AA45: 212.2268 | AC45: 201.158 | AD45: 237.2773 | AG45: =+INDEX(D45:AF45,1,aux_pr_ue!$P$2) -> 222 | AH45: =+INDEX(D45:AF45,1,aux_pr_ue!$Q$2) -> 0
A46: Malting Barley2021/08 | B46: Malting Barley | C46: 2021/08 | I46: 240 | L46: 190.8696 | M46: 222.8 | R46: 184.83 | S46: 189.5129 | Z46: 220 | AA46: 204.6757 | AC46: 185.954 | AD46: 201.6774 | AG46: =+INDEX(D46:AF46,1,aux_pr_ue!$P$2) -> 220 | AH46: =+INDEX(D46:AF46,1,aux_pr_ue!$Q$2) -> 0
A47: Malting Barley2021/07 | B47: Malting Barley | C47: 2021/07 | I47: 230.5769 | L47: 180 | M47: 207.816975 | S47: 181.622 | W47: 208 | Z47: 220 | AA47: 189.8136 | AC47: 174.6222 | AD47: 184.3548 | AG47: =+INDEX(D47:AF47,1,aux_pr_ue!$P$2) -> 220 | AH47: =+INDEX(D47:AF47,1,aux_pr_ue!$Q$2) -> 0
A48: Malting Barley2021/06 | B48: Malting Barley | C48: 2021/06 | I48: 231.6 | L48: 180 | M48: 211.228725 | R48: 197.0385 | S48: 188.988 | AA48: 163.0339 | AC48: 186.5391 | AD48: 176.2333 | AG48: =+INDEX(D48:AF48,1,aux_pr_ue!$P$2) -> 0 | AH48: =+INDEX(D48:AF48,1,aux_pr_ue!$Q$2) -> 0
A49: Malting Barley2021/05 | B49: Malting Barley | C49: 2021/05 | I49: 240 | L49: 180 | M49: 210.92905 | R49: 186 | S49: 188.823 | AA49: 202.9674 | AC49: 178.94 | AD49: 174.2258 | AG49: =+INDEX(D49:AF49,1,aux_pr_ue!$P$2) -> 0 | AH49: =+INDEX(D49:AF49,1,aux_pr_ue!$Q$2) -> 0
A50: Malting Barley2021/04 | B50: Malting Barley | C50: 2021/04 | G50: 203.0291 | I50: 224.7083 | L50: 180 | M50: 198.910025 | R50: 172.1745 | S50: 176.4675 | AA50: 204.2781 | AC50: 183.0757 | AD50: 174 | AG50: =+INDEX(D50:AF50,1,aux_pr_ue!$P$2) -> 0 | AH50: =+INDEX(D50:AF50,1,aux_pr_ue!$Q$2) -> 0
A51: Malting Barley2021/03 | B51: Malting Barley | C51: 2021/03 | I51: 227.0766 | L51: 177.0833 | M51: 199.47985 | R51: 176.95175 | S51: 174.9475 | AA51: 205.7738 | AC51: 181.2529 | AD51: 173.6613 | AG51: =+INDEX(D51:AF51,1,aux_pr_ue!$P$2) -> 0 | AH51: =+INDEX(D51:AF51,1,aux_pr_ue!$Q$2) -> 0
A52: Malting Barley2021/02 | B52: Malting Barley | C52: 2021/02 | I52: 216.4375 | L52: 180 | M52: 190.175 | R52: 176.49 | S52: 170.9433 | Y52: 170.987 | AA52: 209.2363 | AC52: 176.3133 | AD52: 170 | AG52: =+INDEX(D52:AF52,1,aux_pr_ue!$P$2) -> 0 | AH52: =+INDEX(D52:AF52,1,aux_pr_ue!$Q$2) -> 0
A53: Malting Barley2021/01 | B53: Malting Barley | C53: 2021/01 | I53: 212.25 | L53: 185 | M53: 188.477425 | R53: 170 | S53: 172.0233 | Y53: 154.1569 | AA53: 209.4057 | AC53: 187.11 | AD53: 164.5161 | AG53: =+INDEX(D53:AF53,1,aux_pr_ue!$P$2) -> 0 | AH53: =+INDEX(D53:AF53,1,aux_pr_ue!$Q$2) -> 0
A54: Malting Barley2020/12 | B54: Malting Barley | C54: 2020/12 | I54: 201.8324 | L54: 174.6154 | M54: 185.9758 | R54: 149.15 | S54: 169.466 | Y54: 170.0767 | AA54: 215.5719 | AC54: 165.2746 | AD54: 160 | AF54: 176.226 | AG54: =+INDEX(D54:AF54,1,aux_pr_ue!$P$2) -> 0 | AH54: =+INDEX(D54:AF54,1,aux_pr_ue!$Q$2) -> 0
A55: Malting Barley2020/11 | B55: Malting Barley | C55: 2020/11 | I55: 200.7722333 | L55: 160.2174 | M55: 187.025 | R55: 151.31 | S55: 167.3274 | Y55: 160.1147 | AA55: 206.0186 | AC55: 225.9613 | AD55: 155.8833 | AG55: =+INDEX(D55:AF55,1,aux_pr_ue!$P$2) -> 0 | AH55: =+INDEX(D55:AF55,1,aux_pr_ue!$Q$2) -> 0
A56: Malting Barley2020/10 | B56: Malting Barley | C56: 2020/10 | I56: 196.5748 | L56: 162.29165 | M56: 183.785475 | R56: 146 | S56: 162.0433 | Y56: 158.1106 | Z56: 190 | AA56: 178.91205 | AC56: 167.4584 | AD56: 145.6774 | AF56: 160.4672 | AG56: =+INDEX(D56:AF56,1,aux_pr_ue!$P$2) -> 190 | AH56: =+INDEX(D56:AF56,1,aux_pr_ue!$Q$2) -> 0
A57: Malting Barley2020/09 | B57: Malting Barley | C57: 2020/09 | I57: 186.425 | L57: 163.7681 | M57: 168.431675 | R57: 135.6774 | S57: 158.2923 | Y57: 158.68 | Z57: 190 | AA57: 186.1318 | AC57: 177.5623 | AD57: 145 | AF57: 157.1798 | AG57: =+INDEX(D57:AF57,1,aux_pr_ue!$P$2) -> 190 | AH57: =+INDEX(D57:AF57,1,aux_pr_ue!$Q$2) -> 0
A58: Malting Barley2020/08 | B58: Malting Barley | C58: 2020/08 | I58: 185.33065 | L58: 165.0980333 | M58: 167.88065 | R58: 128.5753 | S58: 153.109 | Y58: 154.2452 | AA58: 184.8256 | AC58: 186.4621 | AD58: 145 | AF58: 153.0765 | AG58: =+INDEX(D58:AF58,1,aux_pr_ue!$P$2) -> 0 | AH58: =+INDEX(D58:AF58,1,aux_pr_ue!$Q$2) -> 0
A59: Malting Barley2020/07 | B59: Malting Barley | C59: 2020/07 | I59: 189.0887 | L59: 163.8709667 | M59: 164.7699 | Y59: 145.606 | AA59: 160.7829 | AC59: 182.5329 | AD59: 143.0645 | AG59: =+INDEX(D59:AF59,1,aux_pr_ue!$P$2) -> 0 | AH59: =+INDEX(D59:AF59,1,aux_pr_ue!$Q$2) -> 0
A60: Malting Barley2020/06 | B60: Malting Barley | C60: 2020/06 | I60: 186.3152 | L60: 166.3472333 | M60: 166.33868 | R60: 153.795 | Y60: 179.7022 | AA60: 174.2126 | AC60: 179.171 | AD60: 140 | AG60: =+INDEX(D60:AF60,1,aux_pr_ue!$P$2) -> 0 | AH60: =+INDEX(D60:AF60,1,aux_pr_ue!$Q$2) -> 0
A61: Malting Barley2020/05 | B61: Malting Barley | C61: 2020/05 | I61: 192.0161333 | L61: 176.6667 | M61: 172.99482 | Y61: 178.1588 | AA61: 216.8756 | AC61: 181.3294 | AD61: 140 | AG61: =+INDEX(D61:AF61,1,aux_pr_ue!$P$2) -> 0 | AH61: =+INDEX(D61:AF61,1,aux_pr_ue!$Q$2) -> 0
A62: Malting Barley2020/04 | B62: Malting Barley | C62: 2020/04 | I62: 175.1579 | L62: 210 | M62: 181.6200167 | R62: 161.75 | S62: 155.91 | Y62: 170.7441 | AC62: 184.0996 | AD62: 141.4167 | AG62: =+INDEX(D62:AF62,1,aux_pr_ue!$P$2) -> 0 | AH62: =+INDEX(D62:AF62,1,aux_pr_ue!$Q$2) -> 0
A63: Malting Barley2020/03 | B63: Malting Barley | C63: 2020/03 | I63: 189.2741667 | L63: 190 | M63: 184.1838667 | S63: 176.74 | Y63: 170.4137 | AC63: 187.0616 | AD63: 146.3226 | AG63: =+INDEX(D63:AF63,1,aux_pr_ue!$P$2) -> 0 | AH63: =+INDEX(D63:AF63,1,aux_pr_ue!$Q$2) -> 0
A64: Malting Barley2020/02 | B64: Malting Barley | C64: 2020/02 | I64: 196.1092 | L64: 192.4138 | M64: 187.69425 | S64: 176.3775 | Y64: 171.7922 | AC64: 181.9477 | AD64: 151.3103 | AG64: =+INDEX(D64:AF64,1,aux_pr_ue!$P$2) -> 0 | AH64: =+INDEX(D64:AF64,1,aux_pr_ue!$Q$2) -> 0
A65: Malting Barley2020/01 | B65: Malting Barley | C65: 2020/01 | D65: 186.6965 | I65: 198.6597333 | L65: 186.129 | M65: 189.057 | S65: 175.29 | Y65: 178.4648 | AC65: 193.0968 | AD65: 152 | AF65: 161.099 | AG65: =+INDEX(D65:AF65,1,aux_pr_ue!$P$2) -> 0 | AH65: =+INDEX(D65:AF65,1,aux_pr_ue!$Q$2) -> 0
A66: =+B66&C66 -> Malting Barley2019/12 | B66: Malting Barley | C66: 2019/12 | D66: 185.9924 | I66: 202.0338333 | L66: 185 | M66: 187.28495 | S66: 176.415 | Y66: 175.1692 | AC66: 186.2829 | AD66: 150.8871 | AG66: =+INDEX(D66:AF66,1,aux_pr_ue!$P$2) -> 0 | AH66: =+INDEX(D66:AF66,1,aux_pr_ue!$Q$2) -> 0
A67: Malting Barley2019/11 | B67: Malting Barley | C67: 2019/11 | D67: 184.766 | I67: 205.2037 | L67: 187.33335 | M67: 187.8977833 | R67: 159.145 | S67: 168.21 | Y67: 169.385 | AC67: 192.0373 | AD67: 148.65 | AF67: 149.6869 | AG67: =+INDEX(D67:AF67,1,aux_pr_ue!$P$2) -> 0 | AH67: =+INDEX(D67:AF67,1,aux_pr_ue!$Q$2) -> 0
A68: Malting Barley2019/10 | B68: Malting Barley | C68: 2019/10 | D68: 180.9498 | I68: 204.3989 | L68: 182.90325 | M68: 187.3333333 | R68: 141.1111 | S68: 170.8789 | Y68: 174.5073 | AA68: 160.0175 | AC68: 188.1703 | AD68: 145.5 | AF68: 141.5067 | AG68: =+INDEX(D68:AF68,1,aux_pr_ue!$P$2) -> 0 | AH68: =+INDEX(D68:AF68,1,aux_pr_ue!$Q$2) -> 0
A69: Malting Barley2019/09 | B69: Malting Barley | C69: 2019/09 | D69: 181.5944 | I69: 206.0555333 | L69: 175 | M69: 184.9099833 | R69: 145.1484333 | S69: 160.14 | Y69: 170.3443 | AC69: 184.252 | AD69: 147.9833 | AF69: 140.032 | AG69: =+INDEX(D69:AF69,1,aux_pr_ue!$P$2) -> 0 | AH69: =+INDEX(D69:AF69,1,aux_pr_ue!$Q$2) -> 0
A70: Malting Barley2019/08 | B70: Malting Barley | C70: 2019/08 | D70: 179.0461 | I70: 206.3813 | L70: 177.5 | M70: 185.74085 | R70: 146.8318 | S70: 166.3525 | Y70: 147.9209 | Z70: 200 | AA70: 136.8759 | AC70: 189.3148 | AD70: 152 | AF70: 143.9282 | AG70: =+INDEX(D70:AF70,1,aux_pr_ue!$P$2) -> 200 | AH70: =+INDEX(D70:AF70,1,aux_pr_ue!$Q$2) -> 0
A71: Malting Barley2019/07 | B71: Malting Barley | C71: 2019/07 | D71: 183.7139 | I71: 206.6449333 | L71: 178.0645 | M71: 188.2688333 | Y71: 140.7307 | Z71: 200 | AA71: 131.0669 | AC71: 181.5929 | AD71: 155.9032 | AG71: =+INDEX(D71:AF71,1,aux_pr_ue!$P$2) -> 200 | AH71: =+INDEX(D71:AF71,1,aux_pr_ue!$Q$2) -> 0
A72: Malting Barley2019/06 | B72: Malting Barley | C72: 2019/06 | D72: 186.0118 | I72: 214.4348 | L72: 179.2512333 | M72: 189.1917833 | S72: 192.45 | Y72: 199.4038 | AA72: 124.8741 | AC72: 196.455 | AD72: 159.3 | AG72: =+INDEX(D72:AF72,1,aux_pr_ue!$P$2) -> 0 | AH72: =+INDEX(D72:AF72,1,aux_pr_ue!$Q$2) -> 0
A73: Malting Barley2019/05 | B73: Malting Barley | C73: 2019/05 | D73: 192.1666 | I73: 216.5484 | L73: 179.375 | M73: 189.7053667 | R73: 210 | S73: 192.45 | Y73: 198.9774 | AC73: 201.3562 | AD73: 160 | AG73: =+INDEX(D73:AF73,1,aux_pr_ue!$P$2) -> 0 | AH73: =+INDEX(D73:AF73,1,aux_pr_ue!$Q$2) -> 0
A74: Malting Barley2019/04 | B74: Malting Barley | C74: 2019/04 | D74: 193.9485 | I74: 219.3985667 | L74: 190 | M74: 188.7077833 | Y74: 196.1575 | AC74: 196.8927 | AD74: 160 | AG74: =+INDEX(D74:AF74,1,aux_pr_ue!$P$2) -> 0 | AH74: =+INDEX(D74:AF74,1,aux_pr_ue!$Q$2) -> 0
A75: Malting Barley2019/03 | B75: Malting Barley | C75: 2019/03 | D75: 196.264 | I75: 219.9776333 | L75: 182.5 | M75: 188.76235 | S75: 205.558 | Y75: 202.5123 | AC75: 195.8845 | AF75: 195.0774 | AG75: =+INDEX(D75:AF75,1,aux_pr_ue!$P$2) -> 0 | AH75: =+INDEX(D75:AF75,1,aux_pr_ue!$Q$2) -> 0
A76: Malting Barley2019/02 | B76: Malting Barley | C76: 2019/02 | D76: 204.3804 | G76: 217.2 | I76: 241.450875 | L76: 180 | M76: 190.6345167 | S76: 204.48 | Y76: 202.4661 | AC76: 196.4636 | AF76: 216.5286 | AG76: =+INDEX(D76:AF76,1,aux_pr_ue!$P$2) -> 0 | AH76: =+INDEX(D76:AF76,1,aux_pr_ue!$Q$2) -> 0
A77: Malting Barley2019/01 | B77: Malting Barley | C77: 2019/01 | D77: 204.7643 | I77: 257.28555 | L77: 174.4 | M77: 194.7343833 | R77: 198.528 | S77: 192.9167 | Y77: 206.809 | AC77: 196.8329 | AD77: 196.7593 | AF77: 217.3492 | AG77: =+INDEX(D77:AF77,1,aux_pr_ue!$P$2) -> 0 | AH77: =+INDEX(D77:AF77,1,aux_pr_ue!$Q$2) -> 0
A78: Feed Wheat2022/02 | B78: Feed Wheat | C78: 2022/02 | E78: 279.1786 | F78: 255.6238 | H78: 267.2881 | I78: 282.78488 | J78: 261.2111 | K78: 309.2182333 | L78: 284.4047667 | R78: 245.3004 | S78: 240.8971 | U78: 272.3198 | W78: 288.0179 | X78: 285 | Y78: 274.3755 | Z78: 327.3929 | AA78: 259.7101667 | AG78: =+INDEX(D78:AF78,1,aux_pr_ue!$P$2) -> 327.3929 | AH78: =+INDEX(D78:AF78,1,aux_pr_ue!$Q$2) -> 279.1786
A79: Feed Wheat2022/01 | B79: Feed Wheat | C79: 2022/01 | E79: 275.7419 | F79: 251.2838143 | I79: 281.62228 | J79: 246.8617 | K79: 302.0645 | L79: 285.8494667 | Q79: 350 | R79: 206.6239 | S79: 222.3594 | U79: 274.8455 | W79: 288.129 | X79: 275 | Y79: 277.3948 | Z79: 299.3548 | AA79: 241.5177333 | AG79: =+INDEX(D79:AF79,1,aux_pr_ue!$P$2) -> 299.3548 | AH79: =+INDEX(D79:AF79,1,aux_pr_ue!$Q$2) -> 275.7419
A80: Feed Wheat2021/12 | B80: Feed Wheat | C80: 2021/12 | E80: 280.0323 | F80: 254.1929833 | I80: 280.3803833 | J80: 232.2542 | K80: 304.2903 | L80: 281.7353 | R80: 228.37 | S80: 210.06 | U80: 277.56955 | W80: 291.629 | X80: 277.0833 | Y80: 273.3254 | Z80: 310.6774 | AA80: 241.6241667 | AG80: =+INDEX(D80:AF80,1,aux_pr_ue!$P$2) -> 310.6774 | AH80: =+INDEX(D80:AF80,1,aux_pr_ue!$Q$2) -> 280.0323
A81: Feed Wheat2021/11 | B81: Feed Wheat | C81: 2021/11 | E81: 289.8667 | F81: 260.454 | I81: 280.9296333 | J81: 213.6913 | K81: 299.6555667 | L81: 267 | R81: 229.4367 | S81: 221.529 | U81: 259.46435 | W81: 299.9333 | X81: 272.2222 | Y81: 255.4867 | Z81: 311.5 | AA81: 240.9692 | AC81: 180 | AG81: =+INDEX(D81:AF81,1,aux_pr_ue!$P$2) -> 311.5 | AH81: =+INDEX(D81:AF81,1,aux_pr_ue!$Q$2) -> 289.8667
A82: Feed Wheat2021/10 | B82: Feed Wheat | C82: 2021/10 | E82: 263.2258 | F82: 228.8950286 | I82: 254.4345833 | J82: 202.181 | K82: 271.1129 | L82: 239.3118333 | Q82: 295 | R82: 190.611 | S82: 202.3058 | U82: 239.23895 | W82: 268.5 | X82: 247.5 | Y82: 233.5716 | Z82: 287.375 | AA82: 207.569 | AC82: 188.61 | AG82: =+INDEX(D82:AF82,1,aux_pr_ue!$P$2) -> 287.375 | AH82: =+INDEX(D82:AF82,1,aux_pr_ue!$Q$2) -> 263.2258
A83: Feed Wheat2021/09 | B83: Feed Wheat | C83: 2021/09 | E83: 234.4 | F83: 211.6781 | G83: 185.5907 | I83: 227.8835143 | J83: 189.9117 | K83: 242.5769333 | L83: 221.75 | R83: 173.76 | S83: 178.095 | U83: 218.4630667 | W83: 240.8833 | X83: 219.75 | Y83: 227.7253 | Z83: 243.85 | AA83: 195.6103667 | AC83: 173.06 | AG83: =+INDEX(D83:AF83,1,aux_pr_ue!$P$2) -> 243.85 | AH83: =+INDEX(D83:AF83,1,aux_pr_ue!$Q$2) -> 234.4
A84: Feed Wheat2021/08 | B84: Feed Wheat | C84: 2021/08 | E84: 232.625 | F84: 193.2883286 | G84: 181.0574 | I84: 223.6326 | J84: 186.3045 | K84: 243.043 | L84: 217.69355 | R84: 165.8413 | S84: 174.5468 | U84: 201.2254 | W84: 239.3387 | X84: 201.8125 | Z84: 239.91175 | AA84: 176.4936333 | AC84: 162.0206 | AG84: =+INDEX(D84:AF84,1,aux_pr_ue!$P$2) -> 239.91175 | AH84: =+INDEX(D84:AF84,1,aux_pr_ue!$Q$2) -> 232.625
A85: Feed Wheat2021/07 | B85: Feed Wheat | C85: 2021/07 | E85: 249 | F85: 174.0859667 | I85: 212.22956 | J85: 180.2913 | K85: 247.3268667 | L85: 212.69355 | Q85: 243.5 | R85: 170.9039 | S85: 174.9916 | U85: 176.6868 | W85: 218.6129 | X85: 203.75 | Y85: 219.3007667 | Z85: 229.08825 | AA85: 169.6183333 | AC85: 161.7731 | AG85: =+INDEX(D85:AF85,1,aux_pr_ue!$P$2) -> 229.08825 | AH85: =+INDEX(D85:AF85,1,aux_pr_ue!$Q$2) -> 249
A86: Feed Wheat2021/06 | B86: Feed Wheat | C86: 2021/06 | E86: 254.1667 | F86: 194.1234667 | I86: 238.1408 | J86: 185.7375 | K86: 251.4111 | L86: 214 | R86: 177.3296 | S86: 189.9257 | U86: 195.1781 | W86: 252.9 | X86: 213.75 | Y86: 221.3948 | Z86: 238.3333 | AA86: 188.09315 | AG86: =+INDEX(D86:AF86,1,aux_pr_ue!$P$2) -> 238.3333 | AH86: =+INDEX(D86:AF86,1,aux_pr_ue!$Q$2) -> 254.1667
A87: Feed Wheat2021/05 | B87: Feed Wheat | C87: 2021/05 | E87: 253.5484 | F87: 193.1943333 | I87: 237.4321714 | J87: 206.0383 | K87: 251.7419333 | L87: 217.55155 | R87: 187.0777 | S87: 181.09 | U87: 194.89245 | W87: 254.0806 | X87: 215 | Y87: 216.0871 | Z87: 252.6129 | AA87: 205.6562333 | AG87: =+INDEX(D87:AF87,1,aux_pr_ue!$P$2) -> 252.6129 | AH87: =+INDEX(D87:AF87,1,aux_pr_ue!$Q$2) -> 253.5484
A88: Feed Wheat2021/04 | B88: Feed Wheat | C88: 2021/04 | E88: 227.4333 | F88: 199.8945333 | I88: 218.5305286 | J88: 200.553 | K88: 243.5343 | L88: 224.8 | R88: 194.745825 | S88: 188.2253 | U88: 196.19265 | W88: 231.6 | X88: 205 | Y88: 209.0320667 | Z88: 253.5833 | AA88: 192.7532333 | AG88: =+INDEX(D88:AF88,1,aux_pr_ue!$P$2) -> 253.5833 | AH88: =+INDEX(D88:AF88,1,aux_pr_ue!$Q$2) -> 227.4333
A89: Feed Wheat2021/03 | B89: Feed Wheat | C89: 2021/03 | E89: 233 | F89: 209.5641667 | I89: 229.3264143 | J89: 185.2732 | K89: 246.3010667 | L89: 215.9706 | R89: 189.2972333 | S89: 197.8419 | U89: 184.20735 | W89: 238.3065 | X89: 206.5 | Y89: 208.9 | Z89: 254.2581 | AA89: 186.0887667 | AG89: =+INDEX(D89:AF89,1,aux_pr_ue!$P$2) -> 254.2581 | AH89: =+INDEX(D89:AF89,1,aux_pr_ue!$Q$2) -> 233
A90: Feed Wheat2021/02 | B90: Feed Wheat | C90: 2021/02 | E90: 233.25 | F90: 205.3720833 | I90: 222.3035714 | J90: 182.54 | K90: 241.8333333 | L90: 210.4444333 | R90: 194.7433333 | S90: 194.1925 | U90: 193.5087667 | W90: 239.625 | X90: 197.25 | Y90: 205.3037333 | Z90: 253.75 | AA90: 198.41475 | AG90: =+INDEX(D90:AF90,1,aux_pr_ue!$P$2) -> 253.75 | AH90: =+INDEX(D90:AF90,1,aux_pr_ue!$Q$2) -> 233.25
A91: Feed Wheat2021/01 | B91: Feed Wheat | C91: 2021/01 | E91: 229.6774 | F91: 191.4130167 | I91: 217.2173571 | J91: 174.2352 | K91: 232.4301 | L91: 199.926475 | R91: 184.4457 | S91: 182.9648 | U91: 180.32025 | W91: 235.6129 | X91: 191.75 | Y91: 192.4049 | Z91: 253.9166667 | AA91: 186.4252667 | AG91: =+INDEX(D91:AF91,1,aux_pr_ue!$P$2) -> 253.9166667 | AH91: =+INDEX(D91:AF91,1,aux_pr_ue!$Q$2) -> 229.6774
A92: Feed Wheat2020/12 | B92: Feed Wheat | C92: 2020/12 | E92: 211.0968 | F92: 185.1125 | I92: 202.56935 | J92: 173.2858 | K92: 218.1859333 | L92: 190.5555667 | R92: 174.6090333 | S92: 168.5719 | U92: 177.7519 | W92: 217.4677 | X92: 175 | Y92: 186.9332667 | Z92: 233.5 | AA92: 176.0305 | AF92: 216.5622 | AG92: =+INDEX(D92:AF92,1,aux_pr_ue!$P$2) -> 233.5 | AH92: =+INDEX(D92:AF92,1,aux_pr_ue!$Q$2) -> 211.0968
A93: Feed Wheat2020/11 | B93: Feed Wheat | C93: 2020/11 | E93: 209.7667 | F93: 181.7812667 | I93: 200.2341167 | J93: 172.856 | K93: 213.9555667 | L93: 175.7407333 | R93: 169.1858 | S93: 165.0263 | U93: 168.56795 | W93: 216.5667 | X93: 170 | Y93: 182.7193 | Z93: 231.4237667 | AA93: 175.8921667 | AC93: 141.555 | AF93: 217.8902833 | AG93: =+INDEX(D93:AF93,1,aux_pr_ue!$P$2) -> 231.4237667 | AH93: =+INDEX(D93:AF93,1,aux_pr_ue!$Q$2) -> 209.7667
A94: Feed Wheat2020/10 | B94: Feed Wheat | C94: 2020/10 | E94: 204.2258 | F94: 166.9735143 | I94: 191.8947 | J94: 167.729 | K94: 208.4086 | L94: 172.2222333 | R94: 153.750675 | S94: 155.7242 | U94: 162.15115 | W94: 212.871 | X94: 160.6818 | Y94: 170.8797667 | Z94: 220.871 | AA94: 178.0159 | AC94: 132.4156 | AF94: 209.38778 | AG94: =+INDEX(D94:AF94,1,aux_pr_ue!$P$2) -> 220.871 | AH94: =+INDEX(D94:AF94,1,aux_pr_ue!$Q$2) -> 204.2258
A95: Feed Wheat2020/09 | B95: Feed Wheat | C95: 2020/09 | E95: 189.9 | F95: 157.3585714 | G95: 146.6424 | I95: 182.6847429 | J95: 156.3073 | K95: 199.4444333 | L95: 180.2361 | N95: 187.11 | R95: 144.6541 | S95: 141.6507 | U95: 149.92735 | W95: 196.7333 | X95: 157.5 | Y95: 161.6666667 | Z95: 191.51665 | AA95: 161.60025 | AC95: 135.5727 | AF95: 200.91472 | AG95: =+INDEX(D95:AF95,1,aux_pr_ue!$P$2) -> 191.51665 | AH95: =+INDEX(D95:AF95,1,aux_pr_ue!$Q$2) -> 189.9
A96: Feed Wheat2020/08 | B96: Feed Wheat | C96: 2020/08 | E96: 182.9032 | F96: 160.0226714 | G96: 152.7699 | I96: 175.1932429 | J96: 148.441 | K96: 194.4516333 | L96: 184.2867333 | N96: 187.11 | R96: 139.868475 | S96: 133.2477 | U96: 147.2548 | W96: 188.871 | X96: 157.5 | Y96: 158.2600333 | Z96: 190.5625 | AA96: 143.53665 | AC96: 134.9374 | AF96: 188.16156 | AG96: =+INDEX(D96:AF96,1,aux_pr_ue!$P$2) -> 190.5625 | AH96: =+INDEX(D96:AF96,1,aux_pr_ue!$Q$2) -> 182.9032
A97: Feed Wheat2020/07 | B97: Feed Wheat | C97: 2020/07 | E97: 193.7419 | F97: 156.0407 | I97: 183.1911833 | J97: 150.0629 | K97: 196.5555333 | L97: 177.8431333 | R97: 144.9466667 | S97: 157.7003 | U97: 147.9239333 | W97: 189.8226 | X97: 161.25 | Y97: 173.9318667 | Z97: 196.697925 | AA97: 147.1280667 | AC97: 131.8289 | AF97: 186.4667 | AG97: =+INDEX(D97:AF97,1,aux_pr_ue!$P$2) -> 196.697925 | AH97: =+INDEX(D97:AF97,1,aux_pr_ue!$Q$2) -> 193.7419
A98: Feed Wheat2020/06 | B98: Feed Wheat | C98: 2020/06 | E98: 195.9333 | F98: 159.36532 | I98: 186.1949143 | J98: 154.6507 | K98: 199.8222 | L98: 170 | R98: 159.4466667 | S98: 169.9073 | U98: 148.58725 | W98: 196.2167 | X98: 162.5 | Y98: 181.0922 | Z98: 193.3623333 | AA98: 154.8967 | AC98: 143.825 | AF98: 185.3406333 | AG98: =+INDEX(D98:AF98,1,aux_pr_ue!$P$2) -> 193.3623333 | AH98: =+INDEX(D98:AF98,1,aux_pr_ue!$Q$2) -> 195.9333
A99: Feed Wheat2020/05 | B99: Feed Wheat | C99: 2020/05 | E99: 197.9032 | F99: 168.584575 | I99: 189.6676286 | J99: 157.9079 | K99: 198.6666667 | L99: 202.8065 | R99: 161.125 | S99: 171.6823 | U99: 149.6121 | W99: 202.0484 | Y99: 181.9110667 | Z99: 206.7527333 | AA99: 173.541575 | AC99: 139.7345 | AF99: 181.2192167 | AG99: =+INDEX(D99:AF99,1,aux_pr_ue!$P$2) -> 206.7527333 | AH99: =+INDEX(D99:AF99,1,aux_pr_ue!$Q$2) -> 197.9032
A100: Feed Wheat2020/04 | B100: Feed Wheat | C100: 2020/04 | E100: 198 | F100: 167.770225 | I100: 188.9421143 | J100: 154.0887 | K100: 199.5111 | L100: 185.26315 | R100: 172.8917 | S100: 175.621 | U100: 145.30885 | W100: 204.9167 | Y100: 176.3791667 | Z100: 216.1333333 | AA100: 168.9822333 | AC100: 139.187 | AF100: 181.5762429 | AG100: =+INDEX(D100:AF100,1,aux_pr_ue!$P$2) -> 216.1333333 | AH100: =+INDEX(D100:AF100,1,aux_pr_ue!$Q$2) -> 198
A101: Feed Wheat2020/03 | B101: Feed Wheat | C101: 2020/03 | E101: 188.3226 | F101: 163.492175 | I101: 179.9078 | J101: 152.0423 | K101: 198.3666667 | L101: 188.2903333 | R101: 169.96195 | S101: 167.5277 | U101: 155.88245 | W101: 192.3548 | X101: 163.5 | Y101: 167.8499667 | Z101: 214.5730667 | AA101: 172.369075 | AC101: 145.6078 | AF101: 179.6845143 | AG101: =+INDEX(D101:AF101,1,aux_pr_ue!$P$2) -> 214.5730667 | AH101: =+INDEX(D101:AF101,1,aux_pr_ue!$Q$2) -> 188.3226
A102: Feed Wheat2020/02 | B102: Feed Wheat | C102: 2020/02 | E102: 191.1379 | F102: 168.332225 | I102: 182.5338286 | J102: 156.8234 | K102: 199.4444333 | L102: 173.3218333 | R102: 164.9086333 | S102: 167.3517 | U102: 154.96385 | W102: 195.4828 | X102: 163.5 | Y102: 172.3911 | Z102: 214.2682 | AA102: 176.6756333 | AC102: 145.45 | AF102: 186.6311286 | AG102: =+INDEX(D102:AF102,1,aux_pr_ue!$P$2) -> 214.2682 | AH102: =+INDEX(D102:AF102,1,aux_pr_ue!$Q$2) -> 191.1379
A103: Feed Wheat2020/01 | B103: Feed Wheat | C103: 2020/01 | D103: 177.5831 | E103: 191.8065 | F103: 164.45732 | I103: 181.9953 | J103: 146.5832 | K103: 196.6282 | L103: 176.9423 | R103: 160.05775 | S103: 171.7126 | U103: 154.4032 | W103: 195.6452 | X103: 163.5 | Y103: 169.4239667 | Z103: 215.1335 | AA103: 166.5567 | AC103: 143.03 | AF103: 185.8374833 | AG103: =+INDEX(D103:AF103,1,aux_pr_ue!$P$2) -> 215.1335 | AH103: =+INDEX(D103:AF103,1,aux_pr_ue!$Q$2) -> 191.8065
A104: Feed Wheat2019/12 | B104: Feed Wheat | C104: 2019/12 | D104: 168.5906 | E104: 184.4516 | F104: 157.22465 | G104: 156.853 | I104: 177.1756 | J104: 158.0783 | K104: 188.0588 | L104: 169.959675 | R104: 153.19295 | S104: 155.7084 | U104: 152.2537 | W104: 191.5645 | X104: 162.125 | Y104: 165.4721 | Z104: 203.2973667 | AA104: 149.9153 | AC104: 140.1086 | AF104: 176.4444833 | AG104: =+INDEX(D104:AF104,1,aux_pr_ue!$P$2) -> 203.2973667 | AH104: =+INDEX(D104:AF104,1,aux_pr_ue!$Q$2) -> 184.4516
A105: Feed Wheat2019/11 | B105: Feed Wheat | C105: 2019/11 | D105: 163.6427 | E105: 179.2333 | F105: 152.3673167 | I105: 171.91095 | J105: 150.9604 | K105: 184.6666667 | L105: 163.25 | R105: 149.6819 | S105: 147.0897 | U105: 147.3723 | W105: 188.7167 | X105: 159.5 | Y105: 161.0693 | Z105: 197.7777667 | AA105: 142.4791667 | AC105: 132.5475 | AF105: 171.4018571 | AG105: =+INDEX(D105:AF105,1,aux_pr_ue!$P$2) -> 197.7777667 | AH105: =+INDEX(D105:AF105,1,aux_pr_ue!$Q$2) -> 179.2333
A106: Feed Wheat2019/10 | B106: Feed Wheat | C106: 2019/10 | D106: 158.0345 | E106: 176.4194 | F106: 143.7411667 | G106: 149.4212 | I106: 169.65895 | J106: 144.3829 | K106: 180.1333333 | L106: 149 | R106: 140.8737 | S106: 143.8142 | U106: 142.24035 | W106: 184.4516 | X106: 158.25 | Y106: 155.5955333 | Z106: 194.9946667 | AA106: 141.0946333 | AC106: 137.4496 | AF106: 159.2827429 | AG106: =+INDEX(D106:AF106,1,aux_pr_ue!$P$2) -> 194.9946667 | AH106: =+INDEX(D106:AF106,1,aux_pr_ue!$Q$2) -> 176.4194
A107: Feed Wheat2019/09 | B107: Feed Wheat | C107: 2019/09 | D107: 151.463 | E107: 165.4333 | F107: 139.8148667 | G107: 149.9592 | I107: 164.5684143 | J107: 135.684 | K107: 174.2740333 | L107: 160 | R107: 135.811225 | S107: 136.0873 | U107: 135.3971333 | W107: 174.7667 | X107: 152.96665 | Y107: 152.4889667 | Z107: 187.479175 | AA107: 142.79865 | AC107: 137.2123 | AF107: 152.8927286 | AG107: =+INDEX(D107:AF107,1,aux_pr_ue!$P$2) -> 187.479175 | AH107: =+INDEX(D107:AF107,1,aux_pr_ue!$Q$2) -> 165.4333
A108: Feed Wheat2019/08 | B108: Feed Wheat | C108: 2019/08 | D108: 154.4953 | E108: 166.5484 | F108: 143.92535 | G108: 152.2084 | I108: 166.612 | J108: 138.3939 | K108: 179.8833333 | L108: 162.29165 | R108: 138.647475 | S108: 134.109 | U108: 138.8796667 | W108: 171.6452 | X108: 156.125 | Y108: 155.0714333 | Z108: 189.3758 | AA108: 145.3454 | AC108: 137.0719 | AF108: 148.3529333 | AG108: =+INDEX(D108:AF108,1,aux_pr_ue!$P$2) -> 189.3758 | AH108: =+INDEX(D108:AF108,1,aux_pr_ue!$Q$2) -> 166.5484
A109: Feed Wheat2019/07 | B109: Feed Wheat | C109: 2019/07 | D109: 160.8746 | E109: 179.3333 | F109: 144.0188167 | G109: 152.7005 | I109: 174.6278167 | J109: 152.9639 | K109: 195.5555667 | L109: 165 | R109: 145.4475 | S109: 147.3145 | U109: 145.3572667 | W109: 178.2097 | X109: 157.5 | Y109: 164.6142667 | Z109: 193.121775 | AA109: 135.1810667 | AC109: 133.1818 | AF109: 162.6227571 | AG109: =+INDEX(D109:AF109,1,aux_pr_ue!$P$2) -> 193.121775 | AH109: =+INDEX(D109:AF109,1,aux_pr_ue!$Q$2) -> 179.3333
A110: Feed Wheat2019/06 | B110: Feed Wheat | C110: 2019/06 | D110: 172.5626 | E110: 186.2609 | F110: 153.3473 | I110: 180.7421429 | J110: 168.716 | K110: 201.8889 | L110: 171.08335 | R110: 169.9939667 | S110: 174.667 | U110: 151.1239 | W110: 191.8 | X110: 177.75 | Y110: 177.4630333 | Z110: 204.0833 | AA110: 160.1670333 | AF110: 177.1283857 | AG110: =+INDEX(D110:AF110,1,aux_pr_ue!$P$2) -> 204.0833 | AH110: =+INDEX(D110:AF110,1,aux_pr_ue!$Q$2) -> 186.2609
A111: Feed Wheat2019/05 | B111: Feed Wheat | C111: 2019/05 | D111: 176.7287 | E111: 185.9032 | F111: 157.3208667 | I111: 185.8239714 | J111: 174.54 | K111: 204.3055667 | L111: 179.2866 | R111: 166.1458 | S111: 176.8765 | U111: 161.28795 | W111: 193.1774 | X111: 178.75 | Y111: 184.7017667 | Z111: 208.21775 | AA111: 168.177175 | AF111: 184.3365714 | AG111: =+INDEX(D111:AF111,1,aux_pr_ue!$P$2) -> 208.21775 | AH111: =+INDEX(D111:AF111,1,aux_pr_ue!$Q$2) -> 185.9032
A112: Feed Wheat2019/04 | B112: Feed Wheat | C112: 2019/04 | D112: 184.84 | E112: 191.0333 | F112: 164.6811167 | I112: 188.0733333 | J112: 177.4587 | K112: 206.7826 | L112: 195 | R112: 176.4606333 | S112: 175.914 | U112: 154.9438 | W112: 197.2833 | X112: 180.25 | Y112: 187.3266333 | Z112: 208.4348 | AA112: 161.38645 | AF112: 193.2016286 | AG112: =+INDEX(D112:AF112,1,aux_pr_ue!$P$2) -> 208.4348 | AH112: =+INDEX(D112:AF112,1,aux_pr_ue!$Q$2) -> 191.0333
A113: Feed Wheat2019/03 | B113: Feed Wheat | C113: 2019/03 | D113: 185.609 | E113: 190.2903 | F113: 177.3986143 | I113: 185.29973 | J113: 186.5013 | K113: 209.4444333 | L113: 200 | R113: 163.9810667 | S113: 187.0023 | U113: 175.115 | W113: 196.7097 | X113: 182.5 | Y113: 189.5126667 | Z113: 215.7533333 | AA113: 157.29595 | AC113: 152.37 | AF113: 196.60755 | AG113: =+INDEX(D113:AF113,1,aux_pr_ue!$P$2) -> 215.7533333 | AH113: =+INDEX(D113:AF113,1,aux_pr_ue!$Q$2) -> 190.2903
A114: Feed Wheat2019/02 | B114: Feed Wheat | C114: 2019/02 | D114: 192.0748 | E114: 199.38395 | F114: 178.75705 | I114: 199.62727 | J114: 178.3271 | K114: 214.3194667 | L114: 190 | R114: 182.8952667 | S114: 192.0082 | U114: 180.2845 | W114: 200.9821 | X114: 187.5 | Y114: 190.2097667 | Z114: 220.2357 | AA114: 169.499125 | AC114: 157.08 | AF114: 199.7640143 | AG114: =+INDEX(D114:AF114,1,aux_pr_ue!$P$2) -> 220.2357 | AH114: =+INDEX(D114:AF114,1,aux_pr_ue!$Q$2) -> 199.38395
A115: Feed Wheat2019/01 | B115: Feed Wheat | C115: 2019/01 | D115: 192.1953 | E115: 207.7097 | F115: 171.7496667 | I115: 203.13059 | J115: 180.2516 | K115: 217.957 | L115: 189.03225 | R115: 186.1798333 | S115: 188.2842 | U115: 176.9758 | W115: 211.24 | X115: 193.375 | Y115: 193.2687667 | Z115: 222.7569333 | AA115: 150.2803 | AC115: 151.63 | AF115: 201.0348714 | AG115: =+INDEX(D115:AF115,1,aux_pr_ue!$P$2) -> 222.7569333 | AH115: =+INDEX(D115:AF115,1,aux_pr_ue!$Q$2) -> 207.7097
A116: Feed Rye2022/02 | B116: Feed Rye | C116: 2022/02 | H116: 231.4636 | I116: 263.75 | J116: 223.9407 | R116: 183.591 | Y116: 226.1045 | AG116: =+INDEX(D116:AF116,1,aux_pr_ue!$P$2) -> 0 | AH116: =+INDEX(D116:AF116,1,aux_pr_ue!$Q$2) -> 0
A117: Feed Rye2022/01 | B117: Feed Rye | C117: 2022/01 | I117: 265.625 | J117: 203.6067 | R117: 168.6446 | Y117: 233.9411 | AG117: =+INDEX(D117:AF117,1,aux_pr_ue!$P$2) -> 0 | AH117: =+INDEX(D117:AF117,1,aux_pr_ue!$Q$2) -> 0
A118: Feed Rye2021/12 | B118: Feed Rye | C118: 2021/12 | I118: 270 | J118: 208.8065 | R118: 191.7059 | Y118: 227.1164 | Z118: 310 | AG118: =+INDEX(D118:AF118,1,aux_pr_ue!$P$2) -> 310 | AH118: =+INDEX(D118:AF118,1,aux_pr_ue!$Q$2) -> 0
A119: Feed Rye2021/11 | B119: Feed Rye | C119: 2021/11 | I119: 263.1111 | J119: 222.0663 | R119: 187.75 | S119: 182.08 | Y119: 208.0608 | Z119: 310 | AG119: =+INDEX(D119:AF119,1,aux_pr_ue!$P$2) -> 310 | AH119: =+INDEX(D119:AF119,1,aux_pr_ue!$Q$2) -> 0
A120: Feed Rye2021/10 | B120: Feed Rye | C120: 2021/10 | I120: 229.64705 | J120: 183.13 | R120: 169.9158 | S120: 167.3813 | X120: 217.5 | Y120: 192.3593 | Z120: 180 | AG120: =+INDEX(D120:AF120,1,aux_pr_ue!$P$2) -> 180 | AH120: =+INDEX(D120:AF120,1,aux_pr_ue!$Q$2) -> 0
A121: Feed Rye2021/09 | B121: Feed Rye | C121: 2021/09 | I121: 212.66665 | J121: 171.8242 | R121: 139.219 | S121: 147.6633 | Y121: 183.897 | AG121: =+INDEX(D121:AF121,1,aux_pr_ue!$P$2) -> 0 | AH121: =+INDEX(D121:AF121,1,aux_pr_ue!$Q$2) -> 0
A122: Feed Rye2021/08 | B122: Feed Rye | C122: 2021/08 | I122: 204.7309 | J122: 153.6823 | R122: 142.0219 | S122: 136.9745 | Z122: 180 | AG122: =+INDEX(D122:AF122,1,aux_pr_ue!$P$2) -> 180 | AH122: =+INDEX(D122:AF122,1,aux_pr_ue!$Q$2) -> 0
A123: Feed Rye2021/07 | B123: Feed Rye | C123: 2021/07 | I123: 195 | J123: 139.3392 | R123: 132.2131 | S123: 122.94 | Y123: 178.9015 | AG123: =+INDEX(D123:AF123,1,aux_pr_ue!$P$2) -> 0 | AH123: =+INDEX(D123:AF123,1,aux_pr_ue!$Q$2) -> 0
A124: Feed Rye2021/06 | B124: Feed Rye | C124: 2021/06 | I124: 204.5 | S124: 125.5167 | Y124: 177.8912 | AG124: =+INDEX(D124:AF124,1,aux_pr_ue!$P$2) -> 0 | AH124: =+INDEX(D124:AF124,1,aux_pr_ue!$Q$2) -> 0
A125: Feed Rye2021/05 | B125: Feed Rye | C125: 2021/05 | I125: 208.798 | R125: 150.6667 | S125: 140.1907 | X125: 171.25 | Y125: 168.4221 | AG125: =+INDEX(D125:AF125,1,aux_pr_ue!$P$2) -> 0 | AH125: =+INDEX(D125:AF125,1,aux_pr_ue!$Q$2) -> 0
A126: Feed Rye2021/04 | B126: Feed Rye | C126: 2021/04 | I126: 192.025 | S126: 121.35 | X126: 160 | Y126: 162.6774 | AG126: =+INDEX(D126:AF126,1,aux_pr_ue!$P$2) -> 0 | AH126: =+INDEX(D126:AF126,1,aux_pr_ue!$Q$2) -> 0
A127: Feed Rye2021/03 | B127: Feed Rye | C127: 2021/03 | I127: 199.4265333 | J127: 136.51 | R127: 145 | S127: 133.36 | Y127: 158.5188 | Z127: 225 | AG127: =+INDEX(D127:AF127,1,aux_pr_ue!$P$2) -> 225 | AH127: =+INDEX(D127:AF127,1,aux_pr_ue!$Q$2) -> 0
A128: Feed Rye2021/02 | B128: Feed Rye | C128: 2021/02 | I128: 191.9166667 | J128: 131.305 | R128: 137.6667 | S128: 126.59 | X128: 146.25 | Y128: 155.824 | Z128: 225 | AG128: =+INDEX(D128:AF128,1,aux_pr_ue!$P$2) -> 225 | AH128: =+INDEX(D128:AF128,1,aux_pr_ue!$Q$2) -> 0
A129: Feed Rye2021/01 | B129: Feed Rye | C129: 2021/01 | I129: 184 | J129: 123.355 | R129: 124.0968 | S129: 126.25 | X129: 147.25 | Y129: 140.3105 | Z129: 206 | AG129: =+INDEX(D129:AF129,1,aux_pr_ue!$P$2) -> 206 | AH129: =+INDEX(D129:AF129,1,aux_pr_ue!$Q$2) -> 0
A130: =+B130&C130 -> Feed Rye2020/12 | B130: Feed Rye | C130: 2020/12 | I130: 177.55 | R130: 129.2 | X130: 141.25 | Y130: 141.1353 | Z130: 206 | AG130: =+INDEX(D130:AF130,1,aux_pr_ue!$P$2) -> 206 | AH130: =+INDEX(D130:AF130,1,aux_pr_ue!$Q$2) -> 0
A131: Feed Rye2020/11 | B131: Feed Rye | C131: 2020/11 | I131: 172.7222333 | J131: 120.61 | R131: 128.3502333 | S131: 122.3969 | X131: 135.75 | Y131: 137.2263 | AG131: =+INDEX(D131:AF131,1,aux_pr_ue!$P$2) -> 0 | AH131: =+INDEX(D131:AF131,1,aux_pr_ue!$Q$2) -> 0
A132: Feed Rye2020/10 | B132: Feed Rye | C132: 2020/10 | I132: 164.7575667 | J132: 114.0826 | R132: 110.978 | S132: 109.3561 | Y132: 129.7833 | AG132: =+INDEX(D132:AF132,1,aux_pr_ue!$P$2) -> 0 | AH132: =+INDEX(D132:AF132,1,aux_pr_ue!$Q$2) -> 0
A133: Feed Rye2020/09 | B133: Feed Rye | C133: 2020/09 | I133: 161.4068667 | J133: 104.4143 | R133: 103.8735333 | S133: 98.446 | X133: 135 | Y133: 123.3966 | Z133: 160 | AG133: =+INDEX(D133:AF133,1,aux_pr_ue!$P$2) -> 160 | AH133: =+INDEX(D133:AF133,1,aux_pr_ue!$Q$2) -> 0
A134: Feed Rye2020/08 | B134: Feed Rye | C134: 2020/08 | I134: 159 | J134: 101.0995 | R134: 99.941825 | S134: 102.75 | Y134: 121.5662 | Z134: 160 | AG134: =+INDEX(D134:AF134,1,aux_pr_ue!$P$2) -> 160 | AH134: =+INDEX(D134:AF134,1,aux_pr_ue!$Q$2) -> 0
A135: Feed Rye2020/07 | B135: Feed Rye | C135: 2020/07 | I135: 159.1944333 | J135: 95.26 | R135: 90.8088 | S135: 106.265 | X135: 142 | Y135: 132.2215 | Z135: 160 | AG135: =+INDEX(D135:AF135,1,aux_pr_ue!$P$2) -> 160 | AH135: =+INDEX(D135:AF135,1,aux_pr_ue!$Q$2) -> 0
A136: Feed Rye2020/06 | B136: Feed Rye | C136: 2020/06 | I136: 158.5 | R136: 135.19445 | Y136: 138.9377 | AG136: =+INDEX(D136:AF136,1,aux_pr_ue!$P$2) -> 0 | AH136: =+INDEX(D136:AF136,1,aux_pr_ue!$Q$2) -> 0
A137: Feed Rye2020/05 | B137: Feed Rye | C137: 2020/05 | I137: 167 | Y137: 135.0921 | AG137: =+INDEX(D137:AF137,1,aux_pr_ue!$P$2) -> 0 | AH137: =+INDEX(D137:AF137,1,aux_pr_ue!$Q$2) -> 0
A138: Feed Rye2020/04 | B138: Feed Rye | C138: 2020/04 | I138: 166 | J138: 114.35 | S138: 136.34 | Y138: 128.7691 | AG138: =+INDEX(D138:AF138,1,aux_pr_ue!$P$2) -> 0 | AH138: =+INDEX(D138:AF138,1,aux_pr_ue!$Q$2) -> 0
A139: Feed Rye2020/03 | B139: Feed Rye | C139: 2020/03 | I139: 164.6111 | R139: 130 | S139: 121.54 | Y139: 131.7836 | AG139: =+INDEX(D139:AF139,1,aux_pr_ue!$P$2) -> 0 | AH139: =+INDEX(D139:AF139,1,aux_pr_ue!$Q$2) -> 0
A140: Feed Rye2020/02 | B140: Feed Rye | C140: 2020/02 | I140: 168 | R140: 125 | S140: 134.68 | Y140: 139.8764 | AG140: =+INDEX(D140:AF140,1,aux_pr_ue!$P$2) -> 0 | AH140: =+INDEX(D140:AF140,1,aux_pr_ue!$Q$2) -> 0
A141: Feed Rye2020/01 | B141: Feed Rye | C141: 2020/01 | D141: 136.6424 | I141: 166 | R141: 122 | S141: 122.925 | Y141: 137.7715 | AG141: =+INDEX(D141:AF141,1,aux_pr_ue!$P$2) -> 0 | AH141: =+INDEX(D141:AF141,1,aux_pr_ue!$Q$2) -> 0
A142: Feed Rye2019/12 | B142: Feed Rye | C142: 2019/12 | D142: 130.3687 | I142: 165 | J142: 129.505 | R142: 123.9905 | Y142: 135.7976 | AG142: =+INDEX(D142:AF142,1,aux_pr_ue!$P$2) -> 0 | AH142: =+INDEX(D142:AF142,1,aux_pr_ue!$Q$2) -> 0
A143: Feed Rye2019/11 | B143: Feed Rye | C143: 2019/11 | D143: 123.7992 | I143: 160.3333 | J143: 114.27 | R143: 118.662 | S143: 109.4138 | Y143: 132.6464 | AG143: =+INDEX(D143:AF143,1,aux_pr_ue!$P$2) -> 0 | AH143: =+INDEX(D143:AF143,1,aux_pr_ue!$Q$2) -> 0
A144: Feed Rye2019/10 | B144: Feed Rye | C144: 2019/10 | D144: 118.9522 | I144: 161.3636 | J144: 110.9329 | R144: 112.7169333 | S144: 100.7459 | Y144: 131.4402 | AG144: =+INDEX(D144:AF144,1,aux_pr_ue!$P$2) -> 0 | AH144: =+INDEX(D144:AF144,1,aux_pr_ue!$Q$2) -> 0
A145: Feed Rye2019/09 | B145: Feed Rye | C145: 2019/09 | D145: 117.1807 | I145: 155.1666667 | J145: 104.1052 | R145: 110.8533333 | S145: 105.337 | Y145: 128.9294 | AG145: =+INDEX(D145:AF145,1,aux_pr_ue!$P$2) -> 0 | AH145: =+INDEX(D145:AF145,1,aux_pr_ue!$Q$2) -> 0
A146: Feed Rye2019/08 | B146: Feed Rye | C146: 2019/08 | D146: 115.4827 | I146: 162.25 | J146: 108.838 | R146: 112.056825 | S146: 105.7461 | Y146: 131.1171 | AG146: =+INDEX(D146:AF146,1,aux_pr_ue!$P$2) -> 0 | AH146: =+INDEX(D146:AF146,1,aux_pr_ue!$Q$2) -> 0
A147: Feed Rye2019/07 | B147: Feed Rye | C147: 2019/07 | D147: 151.3661 | I147: 167 | R147: 115.025 | S147: 120.778 | Y147: 155.5705 | AG147: =+INDEX(D147:AF147,1,aux_pr_ue!$P$2) -> 0 | AH147: =+INDEX(D147:AF147,1,aux_pr_ue!$Q$2) -> 0
A148: Feed Rye2019/06 | B148: Feed Rye | C148: 2019/06 | D148: 169.051 | I148: 179 | Y148: 167.428 | AG148: =+INDEX(D148:AF148,1,aux_pr_ue!$P$2) -> 0 | AH148: =+INDEX(D148:AF148,1,aux_pr_ue!$Q$2) -> 0
A149: Feed Rye2019/05 | B149: Feed Rye | C149: 2019/05 | D149: 168.9371 | I149: 181.8854 | R149: 150.9133 | Y149: 168.3626 | AG149: =+INDEX(D149:AF149,1,aux_pr_ue!$P$2) -> 0 | AH149: =+INDEX(D149:AF149,1,aux_pr_ue!$Q$2) -> 0
A150: Feed Rye2019/04 | B150: Feed Rye | C150: 2019/04 | D150: 168.8736 | I150: 185.16665 | J150: 125.43 | R150: 154.7244 | Y150: 169.5915 | AG150: =+INDEX(D150:AF150,1,aux_pr_ue!$P$2) -> 0 | AH150: =+INDEX(D150:AF150,1,aux_pr_ue!$Q$2) -> 0
A151: Feed Rye2019/03 | B151: Feed Rye | C151: 2019/03 | D151: 167.9151 | I151: 185.5 | J151: 150.83 | R151: 155 | Y151: 170.0322 | AG151: =+INDEX(D151:AF151,1,aux_pr_ue!$P$2) -> 0 | AH151: =+INDEX(D151:AF151,1,aux_pr_ue!$Q$2) -> 0
A152: Feed Rye2019/02 | B152: Feed Rye | C152: 2019/02 | D152: 173.7978 | I152: 197 | Y152: 170.6078 | AG152: =+INDEX(D152:AF152,1,aux_pr_ue!$P$2) -> 0 | AH152: =+INDEX(D152:AF152,1,aux_pr_ue!$Q$2) -> 0
A153: Feed Rye2019/01 | B153: Feed Rye | C153: 2019/01 | D153: 178.0398 | I153: 201.3333333 | Y153: 170.1515 | AG153: =+INDEX(D153:AF153,1,aux_pr_ue!$P$2) -> 0 | AH153: =+INDEX(D153:AF153,1,aux_pr_ue!$Q$2) -> 0
A154: Feed Oats2022/02 | B154: Feed Oats | C154: 2022/02 | H154: 278.5131 | I154: 283 | O154: 237.9747 | R154: 228.56 | S154: 187.55 | X154: 206.25 | AD154: 302.5714333 | AG154: =+INDEX(D154:AF154,1,aux_pr_ue!$P$2) -> 0 | AH154: =+INDEX(D154:AF154,1,aux_pr_ue!$Q$2) -> 0
A155: Feed Oats2022/01 | B155: Feed Oats | C155: 2022/01 | I155: 275.1818 | O155: 200.9387 | R155: 168.3118 | X155: 205 | AD155: 288.4300667 | AG155: =+INDEX(D155:AF155,1,aux_pr_ue!$P$2) -> 0 | AH155: =+INDEX(D155:AF155,1,aux_pr_ue!$Q$2) -> 0
A156: Feed Oats2021/12 | B156: Feed Oats | C156: 2021/12 | I156: 275 | J156: 198.785 | O156: 200.9387 | R156: 167.809 | S156: 199.99 | X156: 240.625 | AD156: 287.7311667 | AG156: =+INDEX(D156:AF156,1,aux_pr_ue!$P$2) -> 0 | AH156: =+INDEX(D156:AF156,1,aux_pr_ue!$Q$2) -> 0
A157: Feed Oats2021/11 | B157: Feed Oats | C157: 2021/11 | I157: 261.3889 | J157: 205.725 | O157: 182.0923 | R157: 157.8593 | S157: 169.105 | X157: 219.7222 | AD157: 248.9 | AG157: =+INDEX(D157:AF157,1,aux_pr_ue!$P$2) -> 0 | AH157: =+INDEX(D157:AF157,1,aux_pr_ue!$Q$2) -> 0
A158: Feed Oats2021/10 | B158: Feed Oats | C158: 2021/10 | I158: 226.25 | J158: 168.4254 | O158: 153.6142 | R158: 129.3442 | S158: 162.7345 | X158: 297.5 | Z158: 250 | AD158: 210.4193333 | AG158: =+INDEX(D158:AF158,1,aux_pr_ue!$P$2) -> 250 | AH158: =+INDEX(D158:AF158,1,aux_pr_ue!$Q$2) -> 0
A159: Feed Oats2021/09 | B159: Feed Oats | C159: 2021/09 | I159: 207.9565 | J159: 152.0083 | O159: 137.4441 | R159: 119.3677 | S159: 155.1537 | X159: 182.5 | Z159: 198 | AD159: 172.6777667 | AG159: =+INDEX(D159:AF159,1,aux_pr_ue!$P$2) -> 198 | AH159: =+INDEX(D159:AF159,1,aux_pr_ue!$Q$2) -> 0
A160: Feed Oats2021/08 | B160: Feed Oats | C160: 2021/08 | I160: 195.4896 | J160: 133.4621 | O160: 148.7311 | R160: 110.0045 | S160: 127.1519 | X160: 176.25 | Z160: 200.4839 | AD160: 155.4731 | AG160: =+INDEX(D160:AF160,1,aux_pr_ue!$P$2) -> 200.4839 | AH160: =+INDEX(D160:AF160,1,aux_pr_ue!$Q$2) -> 0
A161: Feed Oats2021/07 | B161: Feed Oats | C161: 2021/07 | I161: 190 | J161: 126.75 | O161: 145.222 | R161: 105.3615 | S161: 118.9226 | Y161: 141.4205 | Z161: 200 | AD161: 150 | AG161: =+INDEX(D161:AF161,1,aux_pr_ue!$P$2) -> 200 | AH161: =+INDEX(D161:AF161,1,aux_pr_ue!$Q$2) -> 0
A162: Feed Oats2021/06 | B162: Feed Oats | C162: 2021/06 | I162: 190 | O162: 138.7756 | R162: 118.45 | S162: 132.0265 | Y162: 151.7476 | AD162: 146.6667 | AG162: =+INDEX(D162:AF162,1,aux_pr_ue!$P$2) -> 0 | AH162: =+INDEX(D162:AF162,1,aux_pr_ue!$Q$2) -> 0
A163: Feed Oats2021/05 | B163: Feed Oats | C163: 2021/05 | I163: 192.5 | O163: 143.4323 | R163: 117.4988 | S163: 125.2206 | AD163: 140.7957 | AG163: =+INDEX(D163:AF163,1,aux_pr_ue!$P$2) -> 0 | AH163: =+INDEX(D163:AF163,1,aux_pr_ue!$Q$2) -> 0
A164: Feed Oats2021/04 | B164: Feed Oats | C164: 2021/04 | I164: 193.95835 | R164: 131.4133333 | S164: 123.5381 | Y164: 149.5652 | AD164: 140.6222 | AG164: =+INDEX(D164:AF164,1,aux_pr_ue!$P$2) -> 0 | AH164: =+INDEX(D164:AF164,1,aux_pr_ue!$Q$2) -> 0
A165: Feed Oats2021/03 | B165: Feed Oats | C165: 2021/03 | I165: 194 | R165: 126 | S165: 134.1233 | Y165: 144.3141 | AD165: 148.4731333 | AG165: =+INDEX(D165:AF165,1,aux_pr_ue!$P$2) -> 0 | AH165: =+INDEX(D165:AF165,1,aux_pr_ue!$Q$2) -> 0
A166: Feed Oats2021/02 | B166: Feed Oats | C166: 2021/02 | I166: 195 | R166: 128.9533333 | S166: 123.58 | Z166: 254 | AD166: 147.9166667 | AG166: =+INDEX(D166:AF166,1,aux_pr_ue!$P$2) -> 254 | AH166: =+INDEX(D166:AF166,1,aux_pr_ue!$Q$2) -> 0
A167: Feed Oats2021/01 | B167: Feed Oats | C167: 2021/01 | E167: 189 | I167: 197 | O167: 144.1472 | R167: 123.1351 | S167: 125.0352 | Y167: 133.5817 | AD167: 139.7956667 | AG167: =+INDEX(D167:AF167,1,aux_pr_ue!$P$2) -> 0 | AH167: =+INDEX(D167:AF167,1,aux_pr_ue!$Q$2) -> 189
A168: Feed Oats2020/12 | B168: Feed Oats | C168: 2020/12 | E168: 189 | I168: 192 | O168: 133.7875 | R168: 116.8934333 | S168: 126.2348 | Y168: 134.8772 | AD168: 138.6666667 | AG168: =+INDEX(D168:AF168,1,aux_pr_ue!$P$2) -> 0 | AH168: =+INDEX(D168:AF168,1,aux_pr_ue!$Q$2) -> 189
A169: Feed Oats2020/11 | B169: Feed Oats | C169: 2020/11 | E169: 189 | I169: 185.875 | J169: 121.0875 | O169: 134.6798 | R169: 109.5978667 | S169: 135.8044 | X169: 160 | Y169: 129.0475 | AD169: 138.8111333 | AF169: 131.0276 | AG169: =+INDEX(D169:AF169,1,aux_pr_ue!$P$2) -> 0 | AH169: =+INDEX(D169:AF169,1,aux_pr_ue!$Q$2) -> 189
A170: Feed Oats2020/10 | B170: Feed Oats | C170: 2020/10 | E170: 189 | I170: 195.9091 | J170: 120.51 | R170: 107.1706333 | S170: 121.5187 | X170: 155.6818 | Y170: 123.9732 | Z170: 180 | AD170: 147.0323 | AF170: 130.9322 | AG170: =+INDEX(D170:AF170,1,aux_pr_ue!$P$2) -> 180 | AH170: =+INDEX(D170:AF170,1,aux_pr_ue!$Q$2) -> 189
A171: Feed Oats2020/09 | B171: Feed Oats | C171: 2020/09 | E171: 189 | I171: 191.95835 | R171: 109.5471 | S171: 118.7783 | X171: 155.78125 | Y171: 122.9858 | Z171: 180 | AD171: 149.8 | AF171: 128.9489 | AG171: =+INDEX(D171:AF171,1,aux_pr_ue!$P$2) -> 180 | AH171: =+INDEX(D171:AF171,1,aux_pr_ue!$Q$2) -> 189
A172: Feed Oats2020/08 | B172: Feed Oats | C172: 2020/08 | E172: 189 | I172: 193.78335 | J172: 112.7789 | O172: 118.4687 | R172: 109.7185667 | S172: 110.9368 | X172: 155 | Y172: 121.7728 | Z172: 180 | AD172: 150 | AF172: 130.2145 | AG172: =+INDEX(D172:AF172,1,aux_pr_ue!$P$2) -> 180 | AH172: =+INDEX(D172:AF172,1,aux_pr_ue!$Q$2) -> 189
A173: Feed Oats2020/07 | B173: Feed Oats | C173: 2020/07 | E173: 189 | I173: 186 | J173: 114.21 | O173: 118.6021 | R173: 112.9167 | S173: 112.92 | Y173: 134.1882 | Z173: 180 | AD173: 150 | AG173: =+INDEX(D173:AF173,1,aux_pr_ue!$P$2) -> 180 | AH173: =+INDEX(D173:AF173,1,aux_pr_ue!$Q$2) -> 189
A174: Feed Oats2020/06 | B174: Feed Oats | C174: 2020/06 | E174: 189 | I174: 185.2222 | R174: 110 | S174: 134.17 | X174: 170.3333 | AD174: 152.4889 | AG174: =+INDEX(D174:AF174,1,aux_pr_ue!$P$2) -> 0 | AH174: =+INDEX(D174:AF174,1,aux_pr_ue!$Q$2) -> 189
A175: Feed Oats2020/05 | B175: Feed Oats | C175: 2020/05 | E175: 189 | O175: 148.4002 | R175: 140 | S175: 138.779 | X175: 167.2647 | AD175: 152.6666667 | AG175: =+INDEX(D175:AF175,1,aux_pr_ue!$P$2) -> 0 | AH175: =+INDEX(D175:AF175,1,aux_pr_ue!$Q$2) -> 189
A176: Feed Oats2020/04 | B176: Feed Oats | C176: 2020/04 | E176: 189 | I176: 210 | J176: 137.02 | O176: 129.864 | R176: 145.5 | S176: 130.6736 | X176: 165 | AD176: 148.1889 | AF176: 129.1054 | AG176: =+INDEX(D176:AF176,1,aux_pr_ue!$P$2) -> 0 | AH176: =+INDEX(D176:AF176,1,aux_pr_ue!$Q$2) -> 189
A177: Feed Oats2020/03 | B177: Feed Oats | C177: 2020/03 | E177: 189 | I177: 201.1111 | O177: 152.4156 | R177: 120 | S177: 138.17 | X177: 170.25 | AD177: 146.8495 | AF177: 129.1054 | AG177: =+INDEX(D177:AF177,1,aux_pr_ue!$P$2) -> 0 | AH177: =+INDEX(D177:AF177,1,aux_pr_ue!$Q$2) -> 189
A178: Feed Oats2020/02 | B178: Feed Oats | C178: 2020/02 | E178: 189 | I178: 197.5 | J178: 142.92 | R178: 127 | S178: 152.1939 | X178: 172.5 | AD178: 145.6896667 | AG178: =+INDEX(D178:AF178,1,aux_pr_ue!$P$2) -> 0 | AH178: =+INDEX(D178:AF178,1,aux_pr_ue!$Q$2) -> 189
A179: Feed Oats2020/01 | B179: Feed Oats | C179: 2020/01 | D179: 148.23 | E179: 184.2903 | I179: 195 | J179: 134.8911 | R179: 120 | S179: 138.7977 | X179: 167.5 | Y179: 142.8164 | AD179: 143.7419 | AF179: 132.549 | AG179: =+INDEX(D179:AF179,1,aux_pr_ue!$P$2) -> 0 | AH179: =+INDEX(D179:AF179,1,aux_pr_ue!$Q$2) -> 184.2903
A180: Feed Oats2019/12 | B180: Feed Oats | C180: 2019/12 | D180: 144.3221 | E180: 177.0645 | I180: 190 | J180: 123.7342 | R180: 120.6267 | S180: 151.5907 | X180: 167.5 | Y180: 142.0186 | AD180: 140 | AF180: 125.146 | AG180: =+INDEX(D180:AF180,1,aux_pr_ue!$P$2) -> 0 | AH180: =+INDEX(D180:AF180,1,aux_pr_ue!$Q$2) -> 177.0645
A181: Feed Oats2019/11 | B181: Feed Oats | C181: 2019/11 | D181: 134.9154 | E181: 177.7 | J181: 121.6426 | R181: 112.6806 | S181: 138.8352 | X181: 167.5 | AD181: 138.1666667 | AF181: 125.096 | AG181: =+INDEX(D181:AF181,1,aux_pr_ue!$P$2) -> 0 | AH181: =+INDEX(D181:AF181,1,aux_pr_ue!$Q$2) -> 177.7
A182: Feed Oats2019/10 | B182: Feed Oats | C182: 2019/10 | D182: 132.7765 | E182: 174.6452 | J182: 120.4865 | R182: 114.1507333 | S182: 137.5642 | X182: 162.5 | AD182: 135.6666667 | AF182: 105.0501 | AG182: =+INDEX(D182:AF182,1,aux_pr_ue!$P$2) -> 0 | AH182: =+INDEX(D182:AF182,1,aux_pr_ue!$Q$2) -> 174.6452
A183: Feed Oats2019/09 | B183: Feed Oats | C183: 2019/09 | D183: 137.2858 | E183: 173.0667 | I183: 187.5 | J183: 123.5373 | O183: 135.887 | R183: 114.5749667 | S183: 122.5623 | X183: 166.25 | Y183: 120.4661 | AD183: 140.5333667 | AF183: 122.6361 | AG183: =+INDEX(D183:AF183,1,aux_pr_ue!$P$2) -> 0 | AH183: =+INDEX(D183:AF183,1,aux_pr_ue!$Q$2) -> 173.0667
A184: Feed Oats2019/08 | B184: Feed Oats | C184: 2019/08 | D184: 140.2665 | E184: 175 | I184: 175 | O184: 127.90885 | R184: 114.8975667 | S184: 110.8832 | X184: 162.5 | Y184: 120.5048 | Z184: 180 | AD184: 158.7742 | AG184: =+INDEX(D184:AF184,1,aux_pr_ue!$P$2) -> 180 | AH184: =+INDEX(D184:AF184,1,aux_pr_ue!$Q$2) -> 175
A185: Feed Oats2019/07 | B185: Feed Oats | C185: 2019/07 | D185: 167.6205 | E185: 175 | I185: 201.25 | O185: 125.8175 | R185: 109.43 | S185: 172.2929 | Y185: 184.6442 | Z185: 180 | AD185: 159.7849333 | AG185: =+INDEX(D185:AF185,1,aux_pr_ue!$P$2) -> 180 | AH185: =+INDEX(D185:AF185,1,aux_pr_ue!$Q$2) -> 175
A186: Feed Oats2019/06 | B186: Feed Oats | C186: 2019/06 | D186: 169.9603 | E186: 180.3913 | I186: 185.75 | R186: 140.475 | AD186: 164.4111 | AG186: =+INDEX(D186:AF186,1,aux_pr_ue!$P$2) -> 0 | AH186: =+INDEX(D186:AF186,1,aux_pr_ue!$Q$2) -> 180.3913
A187: Feed Oats2019/05 | B187: Feed Oats | C187: 2019/05 | D187: 193.0483 | E187: 188.7742 | I187: 206.5 | S187: 184.8925 | Y187: 183.1899 | AD187: 196.129 | AG187: =+INDEX(D187:AF187,1,aux_pr_ue!$P$2) -> 0 | AH187: =+INDEX(D187:AF187,1,aux_pr_ue!$Q$2) -> 188.7742
A188: Feed Oats2019/04 | B188: Feed Oats | C188: 2019/04 | D188: 197.1789 | E188: 193.0333 | I188: 207.7222 | R188: 136.325 | S188: 223.13 | Y188: 183.5739 | AD188: 200 | AG188: =+INDEX(D188:AF188,1,aux_pr_ue!$P$2) -> 0 | AH188: =+INDEX(D188:AF188,1,aux_pr_ue!$Q$2) -> 193.0333
A189: Feed Oats2019/03 | B189: Feed Oats | C189: 2019/03 | D189: 195.7511 | E189: 202.9677 | I189: 227.5 | R189: 134.7813333 | S189: 168.54 | Y189: 192.2692 | AD189: 200 | AF189: 147.1514 | AG189: =+INDEX(D189:AF189,1,aux_pr_ue!$P$2) -> 0 | AH189: =+INDEX(D189:AF189,1,aux_pr_ue!$Q$2) -> 202.9677
A190: Feed Oats2019/02 | B190: Feed Oats | C190: 2019/02 | D190: 199.0361 | E190: 212.11905 | I190: 214.9167 | O190: 164.7065 | R190: 136.28 | S190: 168.54 | Y190: 189.5232 | AD190: 200 | AG190: =+INDEX(D190:AF190,1,aux_pr_ue!$P$2) -> 0 | AH190: =+INDEX(D190:AF190,1,aux_pr_ue!$Q$2) -> 212.11905
A191: Feed Oats2019/01 | B191: Feed Oats | C191: 2019/01 | D191: 198.4914 | E191: 210.7742 | I191: 205 | R191: 124.492 | S191: 166.51 | AD191: 199.4194 | AG191: =+INDEX(D191:AF191,1,aux_pr_ue!$P$2) -> 0 | AH191: =+INDEX(D191:AF191,1,aux_pr_ue!$Q$2) -> 210.7742
A192: Feed Maize2022/02 | B192: Feed Maize | C192: 2022/02 | E192: 271.8571 | F192: 245.6978 | H192: 350.9671 | I192: 269.61815 | L192: 282.1429 | M192: 282.28685 | N192: 266.31385 | O192: 245.6301 | P192: 282.86834 | Q192: 310 | S192: 243.54 | U192: 253.5879 | W192: 288.375 | X192: 251.88635 | Y192: 243.5746 | Z192: 291.0476 | AA192: 234.9617 | AB192: 259.7889 | AC192: 234.2843 | AG192: =+INDEX(D192:AF192,1,aux_pr_ue!$P$2) -> 291.0476 | AH192: =+INDEX(D192:AF192,1,aux_pr_ue!$Q$2) -> 271.8571
A193: Feed Maize2022/01 | B193: Feed Maize | C193: 2022/01 | E193: 265.8387 | F193: 244.1016667 | I193: 266.22065 | L193: 290 | M193: 280.022425 | N193: 256.8037 | O193: 243.0076 | P193: 278.33616 | Q193: 298 | S193: 196.045 | U193: 249.9467 | W193: 275.8871 | X193: 250.75 | Y193: 234.9247 | Z193: 250.609875 | AA193: 218.587775 | AB193: 253.001 | AC193: 208.5155 | AG193: =+INDEX(D193:AF193,1,aux_pr_ue!$P$2) -> 250.609875 | AH193: =+INDEX(D193:AF193,1,aux_pr_ue!$Q$2) -> 265.8387
A194: =+B194&C194 -> Feed Maize2021/12 | B194: Feed Maize | C194: 2021/12 | E194: 263.3871 | F194: 245.8433 | I194: 264.901325 | L194: 290 | M194: 280.6943625 | N194: 254.33 | O194: 228.8214 | P194: 280.68939 | Q194: 299.6666667 | S194: 185.16 | U194: 243.5258 | W194: 273.9839 | X194: 251.16005 | Y194: 227.8938 | Z194: 251.2211 | AA194: 217.2086 | AB194: 250.3881 | AC194: 211.9261 | AG194: =+INDEX(D194:AF194,1,aux_pr_ue!$P$2) -> 251.2211 | AH194: =+INDEX(D194:AF194,1,aux_pr_ue!$Q$2) -> 263.3871
A195: Feed Maize2021/11 | B195: Feed Maize | C195: 2021/11 | E195: 279.1 | F195: 245.4190429 | I195: 267.80454 | L195: 283 | M195: 285.8340778 | N195: 252.80555 | O195: 216.1661 | P195: 280.86095 | S195: 197.1463 | U195: 245.120575 | W195: 279.8667 | X195: 251.5652 | Y195: 215.6962 | Z195: 252.375 | AA195: 209.97 | AB195: 248.1043 | AC195: 194.2233 | AG195: =+INDEX(D195:AF195,1,aux_pr_ue!$P$2) -> 252.375 | AH195: =+INDEX(D195:AF195,1,aux_pr_ue!$Q$2) -> 279.1
A196: Feed Maize2021/10 | B196: Feed Maize | C196: 2021/10 | E196: 280 | F196: 237.6039 | I196: 256.545375 | L196: 261.7742 | M196: 268.9985667 | N196: 245.9423333 | O196: 211.6372 | P196: 279.18661 | Q196: 299 | S196: 167.21 | U196: 244.77895 | W196: 272.9677 | X196: 246.91665 | Y196: 211.3347 | Z196: 257.5484 | AA196: 191.650725 | AB196: 223.1994 | AC196: 186.915 | AG196: =+INDEX(D196:AF196,1,aux_pr_ue!$P$2) -> 257.5484 | AH196: =+INDEX(D196:AF196,1,aux_pr_ue!$Q$2) -> 280
A197: Feed Maize2021/09 | B197: Feed Maize | C197: 2021/09 | F197: 212.8532857 | I197: 277.51538 | L197: 255 | M197: 264.8940667 | N197: 233.4434667 | O197: 217.35435 | P197: 260.3870333 | Q197: 285 | U197: 218.400675 | W197: 253.15 | X197: 233.875 | Y197: 228.0598 | Z197: 260.6667 | AA197: 193.6337 | AB197: 226.9773 | AG197: =+INDEX(D197:AF197,1,aux_pr_ue!$P$2) -> 260.6667 | AH197: =+INDEX(D197:AF197,1,aux_pr_ue!$Q$2) -> 0
A198: Feed Maize2021/08 | B198: Feed Maize | C198: 2021/08 | F198: 204.0606667 | I198: 270.55226 | L198: 230.6452 | M198: 268.1106875 | N198: 268.7917333 | O198: 207.8651 | P198: 264.5963 | U198: 219.0076 | W198: 276.7742 | X198: 242.26665 | Z198: 261.75 | AA198: 200.57325 | AB198: 221.9865 | AG198: =+INDEX(D198:AF198,1,aux_pr_ue!$P$2) -> 261.75 | AH198: =+INDEX(D198:AF198,1,aux_pr_ue!$Q$2) -> 0
A199: Feed Maize2021/07 | B199: Feed Maize | C199: 2021/07 | E199: 276.32 | F199: 206.932075 | I199: 266.9234 | L199: 210 | M199: 267.6824222 | N199: 262.6036667 | O199: 205.0904 | P199: 256.16296 | Q199: 284 | U199: 211.0554 | W199: 247.6613 | X199: 243.9 | Y199: 223.8011 | Z199: 259.5161 | AA199: 203.6229 | AB199: 204.0284 | AC199: 204.7273 | AG199: =+INDEX(D199:AF199,1,aux_pr_ue!$P$2) -> 259.5161 | AH199: =+INDEX(D199:AF199,1,aux_pr_ue!$Q$2) -> 276.32
A200: Feed Maize2021/06 | B200: Feed Maize | C200: 2021/06 | E200: 285.7667 | F200: 213.6421429 | I200: 278.14334 | L200: 209 | M200: 268.8737375 | N200: 276.2873 | O200: 205.7973 | P200: 262.68061 | U200: 227.428775 | W200: 276.0333 | X200: 248.75 | Y200: 230.30515 | Z200: 269.5 | AA200: 207.27265 | AB200: 198.6387 | AC200: 193.9065 | AG200: =+INDEX(D200:AF200,1,aux_pr_ue!$P$2) -> 269.5 | AH200: =+INDEX(D200:AF200,1,aux_pr_ue!$Q$2) -> 285.7667
... 2050 more rows

Sheet aux_pr_ue (hidden)
P1: =+INDEX(Q3:Q31,P2) -> Portugal | Q1: =+INDEX(Q3:Q31,Q2) -> Bélgica
E2: =+INDEX(F5:F14,E4) -> Trigo Forrgeiro | F2: =+INDEX(F5:F14,F4) -> Trigo Forrgeiro | P2: 23 | Q2: 2
E3: =+INDEX(E5:E14,E4) -> Feed Wheat | F3: =+INDEX(E5:E14,F4) -> Feed Wheat | M3: =+E2& " - " &P1 -> Trigo Forrgeiro - Portugal | N3: =+F2& " - " &Q1 -> Trigo Forrgeiro - Bélgica | P3: EU | Q3: EU | S3: Áustria | X3: Belgique/België | Y3: Royaume de Belgique/ Koninkrijk België | Z3: Bélgica | AA3: F | AB3: Reino da Bélgica | AC3: BE | AD3: B
E4: 2 | F4: 2 | J4: =+IF(INDEX(precos_ue!$AG$2:$AG$3741,MATCH(aux_pr_ue!$E$3&aux_pr_ue!L4,precos_ue!$A$2:$A$3741,0))=0,"",INDEX(precos_ue!$AG$2:$AG$3741,MATCH(aux_pr_ue!$E$3&aux_pr_ue!L4,precos_ue!$A$2:$A$3741,0))) ->  | K4: =+IF(INDEX(precos_ue!$AH$2:$AH$3741,MATCH(aux_pr_ue!$F$3&aux_pr_ue!L4,precos_ue!$A$2:$A$3741,0))=0,"",INDEX(precos_ue!$AH$2:$AH$3741,MATCH(aux_pr_ue!$F$3&aux_pr_ue!L4,precos_ue!$A$2:$A$3741,0))) -> 156.2418667 | L4: 1991/01 | N4: 156.2418667 | P4: BE | Q4: Bélgica | X4: България (*) | Y4: Република България | Z4: Bulgária | AA4: F | AB4: República da Bulgária | AC4: BG | AD4: —
E5: Bread Wheat | F5: Trigo panificável | G5: 1 | J5: =+IF(INDEX(precos_ue!$AG$2:$AG$3741,MATCH(aux_pr_ue!$E$3&aux_pr_ue!L5,precos_ue!$A$2:$A$3741,0))=0,"",INDEX(precos_ue!$AG$2:$AG$3741,MATCH(aux_pr_ue!$E$3&aux_pr_ue!L5,precos_ue!$A$2:$A$3741,0))) ->  | K5: =+IF(INDEX(precos_ue!$AH$2:$AH$3741,MATCH(aux_pr_ue!$F$3&aux_pr_ue!L5,precos_ue!$A$2:$A$3741,0))=0,"",INDEX(precos_ue!$AH$2:$AH$3741,MATCH(aux_pr_ue!$F$3&aux_pr_ue!L5,precos_ue!$A$2:$A$3741,0))) -> 155.7182 | L5: 1991/02 | N5: 155.7182 | P5: BG | Q5: Bulgária | X5: Česká republika | Y5: Česká republika | Z5: República Checa | AA5: F | AB5: República Checa | AC5: CZ | AD5: —
E6: Feed Wheat | F6: Trigo Forrgeiro | G6: 2 | J6: =+IF(INDEX(precos_ue!$AG$2:$AG$3741,MATCH(aux_pr_ue!$E$3&aux_pr_ue!L6,precos_ue!$A$2:$A$3741,0))=0,"",INDEX(precos_ue!$AG$2:$AG$3741,MATCH(aux_pr_ue!$E$3&aux_pr_ue!L6,precos_ue!$A$2:$A$3741,0))) ->  | K6: =+IF(INDEX(precos_ue!$AH$2:$AH$3741,MATCH(aux_pr_ue!$F$3&aux_pr_ue!L6,precos_ue!$A$2:$A$3741,0))=0,"",INDEX(precos_ue!$AH$2:$AH$3741,MATCH(aux_pr_ue!$F$3&aux_pr_ue!L6,precos_ue!$A$2:$A$3741,0))) -> 158.6339333 | L6: 1991/03 | N6: 158.6339333 | P6: CZ | Q6: República Checa | S6: Croácia | X6: Danmark | Y6: Kongeriget Danmark | Z6: Dinamarca | AA6: F | AB6: Reino da Dinamarca | AC6: DK | AD6: DK
E7: Durum Wheat | F7: Trigo duro | G7: 3 | J7: =+IF(INDEX(precos_ue!$AG$2:$AG$3741,MATCH(aux_pr_ue!$E$3&aux_pr_ue!L7,precos_ue!$A$2:$A$3741,0))=0,"",INDEX(precos_ue!$AG$2:$AG$3741,MATCH(aux_pr_ue!$E$3&aux_pr_ue!L7,precos_ue!$A$2:$A$3741,0))) ->  | K7: =+IF(INDEX(precos_ue!$AH$2:$AH$3741,MATCH(aux_pr_ue!$F$3&aux_pr_ue!L7,precos_ue!$A$2:$A$3741,0))=0,"",INDEX(precos_ue!$AH$2:$AH$3741,MATCH(aux_pr_ue!$F$3&aux_pr_ue!L7,precos_ue!$A$2:$A$3741,0))) -> 165.9812333 | L7: 1991/04 | N7: 165.9812333 | P7: DK | Q7: Dinamarca | S7: Chipre | X7: Deutschland | Y7: Bundesrepublik Deutschland | Z7: Alemanha | AA7: F | AB7: República Federal da Alemanha | AC7: DE | AD7: D
E8: Bread Rye | F8: Centeio panificável | G8: 4 | J8: =+IF(INDEX(precos_ue!$AG$2:$AG$3741,MATCH(aux_pr_ue!$E$3&aux_pr_ue!L8,precos_ue!$A$2:$A$3741,0))=0,"",INDEX(precos_ue!$AG$2:$AG$3741,MATCH(aux_pr_ue!$E$3&aux_pr_ue!L8,precos_ue!$A$2:$A$3741,0))) ->  | K8: =+IF(INDEX(precos_ue!$AH$2:$AH$3741,MATCH(aux_pr_ue!$F$3&aux_pr_ue!L8,precos_ue!$A$2:$A$3741,0))=0,"",INDEX(precos_ue!$AH$2:$AH$3741,MATCH(aux_pr_ue!$F$3&aux_pr_ue!L8,precos_ue!$A$2:$A$3741,0))) -> 173.0437667 | L8: 1991/05 | N8: 173.0437667 | P8: DE | Q8: Alemanha | X8: Eesti | Y8: Eesti Vabariik | Z8: Estónia | AA8: F | AB8: República da Estónia | AC8: EE | AD8: —
E9: Feed Rye | F9: Centeio forrageiro | G9: 5 | J9: =+IF(INDEX(precos_ue!$AG$2:$AG$3741,MATCH(aux_pr_ue!$E$3&aux_pr_ue!L9,precos_ue!$A$2:$A$3741,0))=0,"",INDEX(precos_ue!$AG$2:$AG$3741,MATCH(aux_pr_ue!$E$3&aux_pr_ue!L9,precos_ue!$A$2:$A$3741,0))) ->  | K9: =+IF(INDEX(precos_ue!$AH$2:$AH$3741,MATCH(aux_pr_ue!$F$3&aux_pr_ue!L9,precos_ue!$A$2:$A$3741,0))=0,"",INDEX(precos_ue!$AH$2:$AH$3741,MATCH(aux_pr_ue!$F$3&aux_pr_ue!L9,precos_ue!$A$2:$A$3741,0))) -> 178.7657667 | L9: 1991/06 | N9: 178.7657667 | P9: EE | Q9: Estónia | X9: Éire/Ireland | Y9: Éire/Ireland | Z9: Irlanda | AA9: F | AB9: Irlanda | AC9: IE | AD9: IRL
E10: Feed Barley | F10: Cevada forrageiro | G10: 6 | J10: =+IF(INDEX(precos_ue!$AG$2:$AG$3741,MATCH(aux_pr_ue!$E$3&aux_pr_ue!L10,precos_ue!$A$2:$A$3741,0))=0,"",INDEX(precos_ue!$AG$2:$AG$3741,MATCH(aux_pr_ue!$E$3&aux_pr_ue!L10,precos_ue!$A$2:$A$3741,0))) ->  | K10: =+IF(INDEX(precos_ue!$AH$2:$AH$3741,MATCH(aux_pr_ue!$F$3&aux_pr_ue!L10,precos_ue!$A$2:$A$3741,0))=0,"",INDEX(precos_ue!$AH$2:$AH$3741,MATCH(aux_pr_ue!$F$3&aux_pr_ue!L10,precos_ue!$A$2:$A$3741,0))) -> 177.8002333 | L10: 1991/07 | N10: 177.8002333 | P10: IE | Q10: Irlanda | S10: Estônia | X10: Ελλάδα (*) | Y10: Ελληνική Δημοκρατία | Z10: Grécia | AA10: F | AB10: República Helénica | AC10: EL | AD10: EL
E11: Malting Barley | F11: Cevada de malte | G11: 7 | J11: =+IF(INDEX(precos_ue!$AG$2:$AG$3741,MATCH(aux_pr_ue!$E$3&aux_pr_ue!L11,precos_ue!$A$2:$A$3741,0))=0,"",INDEX(precos_ue!$AG$2:$AG$3741,MATCH(aux_pr_ue!$E$3&aux_pr_ue!L11,precos_ue!$A$2:$A$3741,0))) ->  | K11: =+IF(INDEX(precos_ue!$AH$2:$AH$3741,MATCH(aux_pr_ue!$F$3&aux_pr_ue!L11,precos_ue!$A$2:$A$3741,0))=0,"",INDEX(precos_ue!$AH$2:$AH$3741,MATCH(aux_pr_ue!$F$3&aux_pr_ue!L11,precos_ue!$A$2:$A$3741,0))) -> 143.3039333 | L11: 1991/08 | N11: 143.3039333 | P11: EL | Q11: Grécia | S11: UE-15 | X11: España | Y11: Reino da España | Z11: Espanha | AA11: F | AB11: Reino da Espanha | AC11: ES | AD11: E
E12: Feed Oats | F12: Aveia Forrageira | G12: 8 | J12: =+IF(INDEX(precos_ue!$AG$2:$AG$3741,MATCH(aux_pr_ue!$E$3&aux_pr_ue!L12,precos_ue!$A$2:$A$3741,0))=0,"",INDEX(precos_ue!$AG$2:$AG$3741,MATCH(aux_pr_ue!$E$3&aux_pr_ue!L12,precos_ue!$A$2:$A$3741,0))) ->  | K12: =+IF(INDEX(precos_ue!$AH$2:$AH$3741,MATCH(aux_pr_ue!$F$3&aux_pr_ue!L12,precos_ue!$A$2:$A$3741,0))=0,"",INDEX(precos_ue!$AH$2:$AH$3741,MATCH(aux_pr_ue!$F$3&aux_pr_ue!L12,precos_ue!$A$2:$A$3741,0))) -> 147.24 | L12: 1991/09 | N12: 147.24 | P12: ES | Q12: Espanha | S12: UE-28 | X12: France | Y12: République française | Z12: França | AA12: F | AB12: República Francesa | AC12: FR | AD12: F
E13: Milling Oats | F13: Aveia de trituração | G13: 9 | J13: =+IF(INDEX(precos_ue!$AG$2:$AG$3741,MATCH(aux_pr_ue!$E$3&aux_pr_ue!L13,precos_ue!$A$2:$A$3741,0))=0,"",INDEX(precos_ue!$AG$2:$AG$3741,MATCH(aux_pr_ue!$E$3&aux_pr_ue!L13,precos_ue!$A$2:$A$3741,0))) ->  | K13: =+IF(INDEX(precos_ue!$AH$2:$AH$3741,MATCH(aux_pr_ue!$F$3&aux_pr_ue!L13,precos_ue!$A$2:$A$3741,0))=0,"",INDEX(precos_ue!$AH$2:$AH$3741,MATCH(aux_pr_ue!$F$3&aux_pr_ue!L13,precos_ue!$A$2:$A$3741,0))) -> 150.4977667 | L13: 1991/10 | N13: 150.4977667 | P13: FR | Q13: França | S13: UE-N13 | X13: Hrvatska | Y13: Republika Hrvatska | Z13: Croácia | AA13: F | AB13: República da Croácia | AC13: HR | AD13: —
E14: Feed Maize | F14: Milho forrageiro | G14: 10 | J14: =+IF(INDEX(precos_ue!$AG$2:$AG$3741,MATCH(aux_pr_ue!$E$3&aux_pr_ue!L14,precos_ue!$A$2:$A$3741,0))=0,"",INDEX(precos_ue!$AG$2:$AG$3741,MATCH(aux_pr_ue!$E$3&aux_pr_ue!L14,precos_ue!$A$2:$A$3741,0))) ->  | K14: =+IF(INDEX(precos_ue!$AH$2:$AH$3741,MATCH(aux_pr_ue!$F$3&aux_pr_ue!L14,precos_ue!$A$2:$A$3741,0))=0,"",INDEX(precos_ue!$AH$2:$AH$3741,MATCH(aux_pr_ue!$F$3&aux_pr_ue!L14,precos_ue!$A$2:$A$3741,0))) -> 153.9220667 | L14: 1991/11 | N14: 153.9220667 | P14: HR | Q14: Croácia | S14: Finlândia | X14: Italia | Y14: Repubblica italiana | Z14: Itália | AA14: F | AB14: República Italiana | AC14: IT | AD14: I
J15: =+IF(INDEX(precos_ue!$AG$2:$AG$3741,MATCH(aux_pr_ue!$E$3&aux_pr_ue!L15,precos_ue!$A$2:$A$3741,0))=0,"",INDEX(precos_ue!$AG$2:$AG$3741,MATCH(aux_pr_ue!$E$3&aux_pr_ue!L15,precos_ue!$A$2:$A$3741,0))) ->  | K15: =+IF(INDEX(precos_ue!$AH$2:$AH$3741,MATCH(aux_pr_ue!$F$3&aux_pr_ue!L15,precos_ue!$A$2:$A$3741,0))=0,"",INDEX(precos_ue!$AH$2:$AH$3741,MATCH(aux_pr_ue!$F$3&aux_pr_ue!L15,precos_ue!$A$2:$A$3741,0))) -> 156.2902667 | L15: 1991/12 | N15: 156.2902667 | P15: IT | Q15: Itália | S15: França | X15: Κύπρος (*) | Y15: Κυπριακή Δημοκρατία | Z15: Chipre | AA15: M | AB15: República de Chipre | AC15: CY | AD15: —
J16: =+IF(INDEX(precos_ue!$AG$2:$AG$3741,MATCH(aux_pr_ue!$E$3&aux_pr_ue!L16,precos_ue!$A$2:$A$3741,0))=0,"",INDEX(precos_ue!$AG$2:$AG$3741,MATCH(aux_pr_ue!$E$3&aux_pr_ue!L16,precos_ue!$A$2:$A$3741,0))) ->  | K16: =+IF(INDEX(precos_ue!$AH$2:$AH$3741,MATCH(aux_pr_ue!$F$3&aux_pr_ue!L16,precos_ue!$A$2:$A$3741,0))=0,"",INDEX(precos_ue!$AH$2:$AH$3741,MATCH(aux_pr_ue!$F$3&aux_pr_ue!L16,precos_ue!$A$2:$A$3741,0))) -> 157.3267667 | L16: 1992/01 | N16: 157.3267667 | P16: CY | Q16: Chipre | X16: Latvija | Y16: Latvijas Republika | Z16: Letónia | AA16: F | AB16: República da Letónia | AC16: LV | AD16: —
J17: =+IF(INDEX(precos_ue!$AG$2:$AG$3741,MATCH(aux_pr_ue!$E$3&aux_pr_ue!L17,precos_ue!$A$2:$A$3741,0))=0,"",INDEX(precos_ue!$AG$2:$AG$3741,MATCH(aux_pr_ue!$E$3&aux_pr_ue!L17,precos_ue!$A$2:$A$3741,0))) ->  | K17: =+IF(INDEX(precos_ue!$AH$2:$AH$3741,MATCH(aux_pr_ue!$F$3&aux_pr_ue!L17,precos_ue!$A$2:$A$3741,0))=0,"",INDEX(precos_ue!$AH$2:$AH$3741,MATCH(aux_pr_ue!$F$3&aux_pr_ue!L17,precos_ue!$A$2:$A$3741,0))) -> 157.5490333 | L17: 1992/02 | N17: 157.5490333 | P17: LV | Q17: Letónia | S17: Grécia | X17: Lietuva | Y17: Lietuvos Respublika | Z17: Lituânia | AA17: F | AB17: República da Lituânia | AC17: LT | AD17: —
J18: =+IF(INDEX(precos_ue!$AG$2:$AG$3741,MATCH(aux_pr_ue!$E$3&aux_pr_ue!L18,precos_ue!$A$2:$A$3741,0))=0,"",INDEX(precos_ue!$AG$2:$AG$3741,MATCH(aux_pr_ue!$E$3&aux_pr_ue!L18,precos_ue!$A$2:$A$3741,0))) ->  | K18: =+IF(INDEX(precos_ue!$AH$2:$AH$3741,MATCH(aux_pr_ue!$F$3&aux_pr_ue!L18,precos_ue!$A$2:$A$3741,0))=0,"",INDEX(precos_ue!$AH$2:$AH$3741,MATCH(aux_pr_ue!$F$3&aux_pr_ue!L18,precos_ue!$A$2:$A$3741,0))) -> 158.6115 | L18: 1992/03 | N18: 158.6115 | P18: LT | Q18: Lituânia | S18: Hungria | X18: Luxembourg | Y18: Grand-Duché de Luxembourg | Z18: Luxemburgo | AA18: M | AB18: Grão-Ducado do Luxemburgo | AC18: LU | AD18: L
J19: =+IF(INDEX(precos_ue!$AG$2:$AG$3741,MATCH(aux_pr_ue!$E$3&aux_pr_ue!L19,precos_ue!$A$2:$A$3741,0))=0,"",INDEX(precos_ue!$AG$2:$AG$3741,MATCH(aux_pr_ue!$E$3&aux_pr_ue!L19,precos_ue!$A$2:$A$3741,0))) ->  | K19: =+IF(INDEX(precos_ue!$AH$2:$AH$3741,MATCH(aux_pr_ue!$F$3&aux_pr_ue!L19,precos_ue!$A$2:$A$3741,0))=0,"",INDEX(precos_ue!$AH$2:$AH$3741,MATCH(aux_pr_ue!$F$3&aux_pr_ue!L19,precos_ue!$A$2:$A$3741,0))) -> 160.0021667 | L19: 1992/04 | N19: 160.0021667 | P19: LU | Q19: Luxemburgo | S19: Irlanda | X19: Magyarország | Y19: Magyarország | Z19: Hungria | AA19: F | AB19: Hungria | AC19: HU | AD19: —
J20: =+IF(INDEX(precos_ue!$AG$2:$AG$3741,MATCH(aux_pr_ue!$E$3&aux_pr_ue!L20,precos_ue!$A$2:$A$3741,0))=0,"",INDEX(precos_ue!$AG$2:$AG$3741,MATCH(aux_pr_ue!$E$3&aux_pr_ue!L20,precos_ue!$A$2:$A$3741,0))) ->  | K20: =+IF(INDEX(precos_ue!$AH$2:$AH$3741,MATCH(aux_pr_ue!$F$3&aux_pr_ue!L20,precos_ue!$A$2:$A$3741,0))=0,"",INDEX(precos_ue!$AH$2:$AH$3741,MATCH(aux_pr_ue!$F$3&aux_pr_ue!L20,precos_ue!$A$2:$A$3741,0))) -> 160.4686333 | L20: 1992/05 | N20: 160.4686333 | P20: HU | Q20: Hungria | S20: Itália | X20: Malta | Y20: Repubblika ta’ Malta | Z20: Malta | AA20: F | AB20: República de Malta | AC20: MT | AD20: —
J21: =+IF(INDEX(precos_ue!$AG$2:$AG$3741,MATCH(aux_pr_ue!$E$3&aux_pr_ue!L21,precos_ue!$A$2:$A$3741,0))=0,"",INDEX(precos_ue!$AG$2:$AG$3741,MATCH(aux_pr_ue!$E$3&aux_pr_ue!L21,precos_ue!$A$2:$A$3741,0))) ->  | K21: =+IF(INDEX(precos_ue!$AH$2:$AH$3741,MATCH(aux_pr_ue!$F$3&aux_pr_ue!L21,precos_ue!$A$2:$A$3741,0))=0,"",INDEX(precos_ue!$AH$2:$AH$3741,MATCH(aux_pr_ue!$F$3&aux_pr_ue!L21,precos_ue!$A$2:$A$3741,0))) -> 159.7223333 | L21: 1992/06 | N21: 159.7223333 | P21: MT | Q21: Malta | S21: Letônia | X21: Nederland | Y21: Koninkrijk der Nederlanden | Z21: Países Baixos | AA21: M | AB21: Reino dos Países Baixos | AC21: NL | AD21: NL
J22: =+IF(INDEX(precos_ue!$AG$2:$AG$3741,MATCH(aux_pr_ue!$E$3&aux_pr_ue!L22,precos_ue!$A$2:$A$3741,0))=0,"",INDEX(precos_ue!$AG$2:$AG$3741,MATCH(aux_pr_ue!$E$3&aux_pr_ue!L22,precos_ue!$A$2:$A$3741,0))) -> 127.23775 | K22: =+IF(INDEX(precos_ue!$AH$2:$AH$3741,MATCH(aux_pr_ue!$F$3&aux_pr_ue!L22,precos_ue!$A$2:$A$3741,0))=0,"",INDEX(precos_ue!$AH$2:$AH$3741,MATCH(aux_pr_ue!$F$3&aux_pr_ue!L22,precos_ue!$A$2:$A$3741,0))) -> 152.9835 | L22: 1992/07 | M22: 127.23775 | N22: 152.9835 | P22: NL | Q22: Países Baixos | S22: Lituânia | X22: Österreich | Y22: Republik Österreich | Z22: Áustria | AA22: F | AB22: República da Áustria | AC22: AT | AD22: A
J23: =+IF(INDEX(precos_ue!$AG$2:$AG$3741,MATCH(aux_pr_ue!$E$3&aux_pr_ue!L23,precos_ue!$A$2:$A$3741,0))=0,"",INDEX(precos_ue!$AG$2:$AG$3741,MATCH(aux_pr_ue!$E$3&aux_pr_ue!L23,precos_ue!$A$2:$A$3741,0))) -> 127.23775 | K23: =+IF(INDEX(precos_ue!$AH$2:$AH$3741,MATCH(aux_pr_ue!$F$3&aux_pr_ue!L23,precos_ue!$A$2:$A$3741,0))=0,"",INDEX(precos_ue!$AH$2:$AH$3741,MATCH(aux_pr_ue!$F$3&aux_pr_ue!L23,precos_ue!$A$2:$A$3741,0))) -> 138.9552333 | L23: 1992/08 | M23: 127.23775 | N23: 138.9552333 | P23: AT | Q23: Áustria | S23: Luxemburgo | X23: Polska | Y23: Rzeczpospolita Polska | Z23: Polónia | AA23: F | AB23: República da Polónia | AC23: PL | AD23: —
J24: =+IF(INDEX(precos_ue!$AG$2:$AG$3741,MATCH(aux_pr_ue!$E$3&aux_pr_ue!L24,precos_ue!$A$2:$A$3741,0))=0,"",INDEX(precos_ue!$AG$2:$AG$3741,MATCH(aux_pr_ue!$E$3&aux_pr_ue!L24,precos_ue!$A$2:$A$3741,0))) -> 133.539 | K24: =+IF(INDEX(precos_ue!$AH$2:$AH$3741,MATCH(aux_pr_ue!$F$3&aux_pr_ue!L24,precos_ue!$A$2:$A$3741,0))=0,"",INDEX(precos_ue!$AH$2:$AH$3741,MATCH(aux_pr_ue!$F$3&aux_pr_ue!L24,precos_ue!$A$2:$A$3741,0))) -> 141.5925667 | L24: 1992/09 | M24: 133.539 | N24: 141.5925667 | P24: PL | Q24: Polónia | S24: Malta | X24: Portugal | Y24: República Portuguesa | Z24: Portugal | AA24: M | AB24: República Portuguesa | AC24: PT | AD24: P
J25: =+IF(INDEX(precos_ue!$AG$2:$AG$3741,MATCH(aux_pr_ue!$E$3&aux_pr_ue!L25,precos_ue!$A$2:$A$3741,0))=0,"",INDEX(precos_ue!$AG$2:$AG$3741,MATCH(aux_pr_ue!$E$3&aux_pr_ue!L25,precos_ue!$A$2:$A$3741,0))) ->  | K25: =+IF(INDEX(precos_ue!$AH$2:$AH$3741,MATCH(aux_pr_ue!$F$3&aux_pr_ue!L25,precos_ue!$A$2:$A$3741,0))=0,"",INDEX(precos_ue!$AH$2:$AH$3741,MATCH(aux_pr_ue!$F$3&aux_pr_ue!L25,precos_ue!$A$2:$A$3741,0))) -> 143.8835667 | L25: 1992/10 | N25: 143.8835667 | P25: PT | Q25: Portugal | S25: Países Baixos | X25: România | Y25: România | Z25: Roménia | AA25: F | AB25: Roménia | AC25: RO | AD25: —
J26: =+IF(INDEX(precos_ue!$AG$2:$AG$3741,MATCH(aux_pr_ue!$E$3&aux_pr_ue!L26,precos_ue!$A$2:$A$3741,0))=0,"",INDEX(precos_ue!$AG$2:$AG$3741,MATCH(aux_pr_ue!$E$3&aux_pr_ue!L26,precos_ue!$A$2:$A$3741,0))) ->  | K26: =+IF(INDEX(precos_ue!$AH$2:$AH$3741,MATCH(aux_pr_ue!$F$3&aux_pr_ue!L26,precos_ue!$A$2:$A$3741,0))=0,"",INDEX(precos_ue!$AH$2:$AH$3741,MATCH(aux_pr_ue!$F$3&aux_pr_ue!L26,precos_ue!$A$2:$A$3741,0))) -> 146.2273333 | L26: 1992/11 | N26: 146.2273333 | P26: RO | Q26: Roménia | S26: Polônia | X26: Slovenija | Y26: Republika Slovenija | Z26: Eslovénia | AA26: F | AB26: República da Eslovénia | AC26: SI | AD26: —
J27: =+IF(INDEX(precos_ue!$AG$2:$AG$3741,MATCH(aux_pr_ue!$E$3&aux_pr_ue!L27,precos_ue!$A$2:$A$3741,0))=0,"",INDEX(precos_ue!$AG$2:$AG$3741,MATCH(aux_pr_ue!$E$3&aux_pr_ue!L27,precos_ue!$A$2:$A$3741,0))) ->  | K27: =+IF(INDEX(precos_ue!$AH$2:$AH$3741,MATCH(aux_pr_ue!$F$3&aux_pr_ue!L27,precos_ue!$A$2:$A$3741,0))=0,"",INDEX(precos_ue!$AH$2:$AH$3741,MATCH(aux_pr_ue!$F$3&aux_pr_ue!L27,precos_ue!$A$2:$A$3741,0))) -> 146.4578 | L27: 1992/12 | N27: 146.4578 | P27: SI | Q27: Eslovénia | S27: Portugal | X27: Slovensko | Y27: Slovenská republika | Z27: Eslováquia | AA27: F | AB27: República Eslovaca | AC27: SK | AD27: —
J28: =+IF(INDEX(precos_ue!$AG$2:$AG$3741,MATCH(aux_pr_ue!$E$3&aux_pr_ue!L28,precos_ue!$A$2:$A$3741,0))=0,"",INDEX(precos_ue!$AG$2:$AG$3741,MATCH(aux_pr_ue!$E$3&aux_pr_ue!L28,precos_ue!$A$2:$A$3741,0))) ->  | K28: =+IF(INDEX(precos_ue!$AH$2:$AH$3741,MATCH(aux_pr_ue!$F$3&aux_pr_ue!L28,precos_ue!$A$2:$A$3741,0))=0,"",INDEX(precos_ue!$AH$2:$AH$3741,MATCH(aux_pr_ue!$F$3&aux_pr_ue!L28,precos_ue!$A$2:$A$3741,0))) -> 148.1218 | L28: 1993/01 | N28: 148.1218 | P28: SK | Q28: Eslováquia | S28: Romênia | X28: Suomi/Finland | Y28: Suomen tasavalta/ Republiken Finland | Z28: Finlândia | AA28: F | AB28: República da Finlândia | AC28: FI | AD28: FIN
J29: =+IF(INDEX(precos_ue!$AG$2:$AG$3741,MATCH(aux_pr_ue!$E$3&aux_pr_ue!L29,precos_ue!$A$2:$A$3741,0))=0,"",INDEX(precos_ue!$AG$2:$AG$3741,MATCH(aux_pr_ue!$E$3&aux_pr_ue!L29,precos_ue!$A$2:$A$3741,0))) ->  | K29: =+IF(INDEX(precos_ue!$AH$2:$AH$3741,MATCH(aux_pr_ue!$F$3&aux_pr_ue!L29,precos_ue!$A$2:$A$3741,0))=0,"",INDEX(precos_ue!$AH$2:$AH$3741,MATCH(aux_pr_ue!$F$3&aux_pr_ue!L29,precos_ue!$A$2:$A$3741,0))) -> 148.0523 | L29: 1993/02 | N29: 148.0523 | P29: FI | Q29: Finlândia | S29: Eslováquia | X29: Sverige | Y29: Konungariket Sverige | Z29: Suécia | AA29: F | AB29: Reino da Suécia | AC29: SE | AD29: S
J30: =+IF(INDEX(precos_ue!$AG$2:$AG$3741,MATCH(aux_pr_ue!$E$3&aux_pr_ue!L30,precos_ue!$A$2:$A$3741,0))=0,"",INDEX(precos_ue!$AG$2:$AG$3741,MATCH(aux_pr_ue!$E$3&aux_pr_ue!L30,precos_ue!$A$2:$A$3741,0))) ->  | K30: =+IF(INDEX(precos_ue!$AH$2:$AH$3741,MATCH(aux_pr_ue!$F$3&aux_pr_ue!L30,precos_ue!$A$2:$A$3741,0))=0,"",INDEX(precos_ue!$AH$2:$AH$3741,MATCH(aux_pr_ue!$F$3&aux_pr_ue!L30,precos_ue!$A$2:$A$3741,0))) -> 148.9833 | L30: 1993/03 | N30: 148.9833 | P30: SE | Q30: Suécia | S30: Eslovênia | X30: United Kingdom | Y30: United Kingdom of Great Britain and Northern Ireland | Z30: Reino Unido | AA30: M | AB30: Reino Unido da Grã-Bretanha e daIrlanda do Norte | AC30: UK | AD30: UK
J31: =+IF(INDEX(precos_ue!$AG$2:$AG$3741,MATCH(aux_pr_ue!$E$3&aux_pr_ue!L31,precos_ue!$A$2:$A$3741,0))=0,"",INDEX(precos_ue!$AG$2:$AG$3741,MATCH(aux_pr_ue!$E$3&aux_pr_ue!L31,precos_ue!$A$2:$A$3741,0))) ->  | K31: =+IF(INDEX(precos_ue!$AH$2:$AH$3741,MATCH(aux_pr_ue!$F$3&aux_pr_ue!L31,precos_ue!$A$2:$A$3741,0))=0,"",INDEX(precos_ue!$AH$2:$AH$3741,MATCH(aux_pr_ue!$F$3&aux_pr_ue!L31,precos_ue!$A$2:$A$3741,0))) -> 152.1022667 | L31: 1993/04 | N31: 152.1022667 | P31: UK | Q31: Reino Unido | S31: Espanha
J32: =+IF(INDEX(precos_ue!$AG$2:$AG$3741,MATCH(aux_pr_ue!$E$3&aux_pr_ue!L32,precos_ue!$A$2:$A$3741,0))=0,"",INDEX(precos_ue!$AG$2:$AG$3741,MATCH(aux_pr_ue!$E$3&aux_pr_ue!L32,precos_ue!$A$2:$A$3741,0))) ->  | K32: =+IF(INDEX(precos_ue!$AH$2:$AH$3741,MATCH(aux_pr_ue!$F$3&aux_pr_ue!L32,precos_ue!$A$2:$A$3741,0))=0,"",INDEX(precos_ue!$AH$2:$AH$3741,MATCH(aux_pr_ue!$F$3&aux_pr_ue!L32,precos_ue!$A$2:$A$3741,0))) -> 154.9953 | L32: 1993/05 | N32: 154.9953 | S32: Suécia
J33: =+IF(INDEX(precos_ue!$AG$2:$AG$3741,MATCH(aux_pr_ue!$E$3&aux_pr_ue!L33,precos_ue!$A$2:$A$3741,0))=0,"",INDEX(precos_ue!$AG$2:$AG$3741,MATCH(aux_pr_ue!$E$3&aux_pr_ue!L33,precos_ue!$A$2:$A$3741,0))) ->  | K33: =+IF(INDEX(precos_ue!$AH$2:$AH$3741,MATCH(aux_pr_ue!$F$3&aux_pr_ue!L33,precos_ue!$A$2:$A$3741,0))=0,"",INDEX(precos_ue!$AH$2:$AH$3741,MATCH(aux_pr_ue!$F$3&aux_pr_ue!L33,precos_ue!$A$2:$A$3741,0))) -> 154.7799667 | L33: 1993/06 | N33: 154.7799667 | S33: Reino Unido
J34: =+IF(INDEX(precos_ue!$AG$2:$AG$3741,MATCH(aux_pr_ue!$E$3&aux_pr_ue!L34,precos_ue!$A$2:$A$3741,0))=0,"",INDEX(precos_ue!$AG$2:$AG$3741,MATCH(aux_pr_ue!$E$3&aux_pr_ue!L34,precos_ue!$A$2:$A$3741,0))) -> 118.9635 | K34: =+IF(INDEX(precos_ue!$AH$2:$AH$3741,MATCH(aux_pr_ue!$F$3&aux_pr_ue!L34,precos_ue!$A$2:$A$3741,0))=0,"",INDEX(precos_ue!$AH$2:$AH$3741,MATCH(aux_pr_ue!$F$3&aux_pr_ue!L34,precos_ue!$A$2:$A$3741,0))) -> 153.7733667 | L34: 1993/07 | M34: 118.9635 | N34: 153.7733667
J35: =+IF(INDEX(precos_ue!$AG$2:$AG$3741,MATCH(aux_pr_ue!$E$3&aux_pr_ue!L35,precos_ue!$A$2:$A$3741,0))=0,"",INDEX(precos_ue!$AG$2:$AG$3741,MATCH(aux_pr_ue!$E$3&aux_pr_ue!L35,precos_ue!$A$2:$A$3741,0))) -> 113.9565 | K35: =+IF(INDEX(precos_ue!$AH$2:$AH$3741,MATCH(aux_pr_ue!$F$3&aux_pr_ue!L35,precos_ue!$A$2:$A$3741,0))=0,"",INDEX(precos_ue!$AH$2:$AH$3741,MATCH(aux_pr_ue!$F$3&aux_pr_ue!L35,precos_ue!$A$2:$A$3741,0))) -> 112.5508333 | L35: 1993/08 | M35: 113.9565 | N35: 112.5508333
J36: =+IF(INDEX(precos_ue!$AG$2:$AG$3741,MATCH(aux_pr_ue!$E$3&aux_pr_ue!L36,precos_ue!$A$2:$A$3741,0))=0,"",INDEX(precos_ue!$AG$2:$AG$3741,MATCH(aux_pr_ue!$E$3&aux_pr_ue!L36,precos_ue!$A$2:$A$3741,0))) -> 113.9565 | K36: =+IF(INDEX(precos_ue!$AH$2:$AH$3741,MATCH(aux_pr_ue!$F$3&aux_pr_ue!L36,precos_ue!$A$2:$A$3741,0))=0,"",INDEX(precos_ue!$AH$2:$AH$3741,MATCH(aux_pr_ue!$F$3&aux_pr_ue!L36,precos_ue!$A$2:$A$3741,0))) -> 112.2981 | L36: 1993/09 | M36: 113.9565 | N36: 112.2981
J37: =+IF(INDEX(precos_ue!$AG$2:$AG$3741,MATCH(aux_pr_ue!$E$3&aux_pr_ue!L37,precos_ue!$A$2:$A$3741,0))=0,"",INDEX(precos_ue!$AG$2:$AG$3741,MATCH(aux_pr_ue!$E$3&aux_pr_ue!L37,precos_ue!$A$2:$A$3741,0))) ->  | K37: =+IF(INDEX(precos_ue!$AH$2:$AH$3741,MATCH(aux_pr_ue!$F$3&aux_pr_ue!L37,precos_ue!$A$2:$A$3741,0))=0,"",INDEX(precos_ue!$AH$2:$AH$3741,MATCH(aux_pr_ue!$F$3&aux_pr_ue!L37,precos_ue!$A$2:$A$3741,0))) -> 112.1265333 | L37: 1993/10 | N37: 112.1265333
J38: =+IF(INDEX(precos_ue!$AG$2:$AG$3741,MATCH(aux_pr_ue!$E$3&aux_pr_ue!L38,precos_ue!$A$2:$A$3741,0))=0,"",INDEX(precos_ue!$AG$2:$AG$3741,MATCH(aux_pr_ue!$E$3&aux_pr_ue!L38,precos_ue!$A$2:$A$3741,0))) ->  | K38: =+IF(INDEX(precos_ue!$AH$2:$AH$3741,MATCH(aux_pr_ue!$F$3&aux_pr_ue!L38,precos_ue!$A$2:$A$3741,0))=0,"",INDEX(precos_ue!$AH$2:$AH$3741,MATCH(aux_pr_ue!$F$3&aux_pr_ue!L38,precos_ue!$A$2:$A$3741,0))) -> 113.1939 | L38: 1993/11 | N38: 113.1939
J39: =+IF(INDEX(precos_ue!$AG$2:$AG$3741,MATCH(aux_pr_ue!$E$3&aux_pr_ue!L39,precos_ue!$A$2:$A$3741,0))=0,"",INDEX(precos_ue!$AG$2:$AG$3741,MATCH(aux_pr_ue!$E$3&aux_pr_ue!L39,precos_ue!$A$2:$A$3741,0))) ->  | K39: =+IF(INDEX(precos_ue!$AH$2:$AH$3741,MATCH(aux_pr_ue!$F$3&aux_pr_ue!L39,precos_ue!$A$2:$A$3741,0))=0,"",INDEX(precos_ue!$AH$2:$AH$3741,MATCH(aux_pr_ue!$F$3&aux_pr_ue!L39,precos_ue!$A$2:$A$3741,0))) -> 112.8980333 | L39: 1993/12 | N39: 112.8980333
J40: =+IF(INDEX(precos_ue!$AG$2:$AG$3741,MATCH(aux_pr_ue!$E$3&aux_pr_ue!L40,precos_ue!$A$2:$A$3741,0))=0,"",INDEX(precos_ue!$AG$2:$AG$3741,MATCH(aux_pr_ue!$E$3&aux_pr_ue!L40,precos_ue!$A$2:$A$3741,0))) ->  | K40: =+IF(INDEX(precos_ue!$AH$2:$AH$3741,MATCH(aux_pr_ue!$F$3&aux_pr_ue!L40,precos_ue!$A$2:$A$3741,0))=0,"",INDEX(precos_ue!$AH$2:$AH$3741,MATCH(aux_pr_ue!$F$3&aux_pr_ue!L40,precos_ue!$A$2:$A$3741,0))) -> 113.4521 | L40: 1994/01 | N40: 113.4521
J41: =+IF(INDEX(precos_ue!$AG$2:$AG$3741,MATCH(aux_pr_ue!$E$3&aux_pr_ue!L41,precos_ue!$A$2:$A$3741,0))=0,"",INDEX(precos_ue!$AG$2:$AG$3741,MATCH(aux_pr_ue!$E$3&aux_pr_ue!L41,precos_ue!$A$2:$A$3741,0))) ->  | K41: =+IF(INDEX(precos_ue!$AH$2:$AH$3741,MATCH(aux_pr_ue!$F$3&aux_pr_ue!L41,precos_ue!$A$2:$A$3741,0))=0,"",INDEX(precos_ue!$AH$2:$AH$3741,MATCH(aux_pr_ue!$F$3&aux_pr_ue!L41,precos_ue!$A$2:$A$3741,0))) -> 110.6406333 | L41: 1994/02 | N41: 110.6406333
J42: =+IF(INDEX(precos_ue!$AG$2:$AG$3741,MATCH(aux_pr_ue!$E$3&aux_pr_ue!L42,precos_ue!$A$2:$A$3741,0))=0,"",INDEX(precos_ue!$AG$2:$AG$3741,MATCH(aux_pr_ue!$E$3&aux_pr_ue!L42,precos_ue!$A$2:$A$3741,0))) ->  | K42: =+IF(INDEX(precos_ue!$AH$2:$AH$3741,MATCH(aux_pr_ue!$F$3&aux_pr_ue!L42,precos_ue!$A$2:$A$3741,0))=0,"",INDEX(precos_ue!$AH$2:$AH$3741,MATCH(aux_pr_ue!$F$3&aux_pr_ue!L42,precos_ue!$A$2:$A$3741,0))) -> 112.3751333 | L42: 1994/03 | N42: 112.3751333
J43: =+IF(INDEX(precos_ue!$AG$2:$AG$3741,MATCH(aux_pr_ue!$E$3&aux_pr_ue!L43,precos_ue!$A$2:$A$3741,0))=0,"",INDEX(precos_ue!$AG$2:$AG$3741,MATCH(aux_pr_ue!$E$3&aux_pr_ue!L43,precos_ue!$A$2:$A$3741,0))) ->  | K43: =+IF(INDEX(precos_ue!$AH$2:$AH$3741,MATCH(aux_pr_ue!$F$3&aux_pr_ue!L43,precos_ue!$A$2:$A$3741,0))=0,"",INDEX(precos_ue!$AH$2:$AH$3741,MATCH(aux_pr_ue!$F$3&aux_pr_ue!L43,precos_ue!$A$2:$A$3741,0))) -> 119.1046667 | L43: 1994/04 | N43: 119.1046667
J44: =+IF(INDEX(precos_ue!$AG$2:$AG$3741,MATCH(aux_pr_ue!$E$3&aux_pr_ue!L44,precos_ue!$A$2:$A$3741,0))=0,"",INDEX(precos_ue!$AG$2:$AG$3741,MATCH(aux_pr_ue!$E$3&aux_pr_ue!L44,precos_ue!$A$2:$A$3741,0))) ->  | K44: =+IF(INDEX(precos_ue!$AH$2:$AH$3741,MATCH(aux_pr_ue!$F$3&aux_pr_ue!L44,precos_ue!$A$2:$A$3741,0))=0,"",INDEX(precos_ue!$AH$2:$AH$3741,MATCH(aux_pr_ue!$F$3&aux_pr_ue!L44,precos_ue!$A$2:$A$3741,0))) -> 122.4647667 | L44: 1994/05 | N44: 122.4647667
J45: =+IF(INDEX(precos_ue!$AG$2:$AG$3741,MATCH(aux_pr_ue!$E$3&aux_pr_ue!L45,precos_ue!$A$2:$A$3741,0))=0,"",INDEX(precos_ue!$AG$2:$AG$3741,MATCH(aux_pr_ue!$E$3&aux_pr_ue!L45,precos_ue!$A$2:$A$3741,0))) ->  | K45: =+IF(INDEX(precos_ue!$AH$2:$AH$3741,MATCH(aux_pr_ue!$F$3&aux_pr_ue!L45,precos_ue!$A$2:$A$3741,0))=0,"",INDEX(precos_ue!$AH$2:$AH$3741,MATCH(aux_pr_ue!$F$3&aux_pr_ue!L45,precos_ue!$A$2:$A$3741,0))) -> 125.1236333 | L45: 1994/06 | N45: 125.1236333
J46: =+IF(INDEX(precos_ue!$AG$2:$AG$3741,MATCH(aux_pr_ue!$E$3&aux_pr_ue!L46,precos_ue!$A$2:$A$3741,0))=0,"",INDEX(precos_ue!$AG$2:$AG$3741,MATCH(aux_pr_ue!$E$3&aux_pr_ue!L46,precos_ue!$A$2:$A$3741,0))) -> 115.427175 | K46: =+IF(INDEX(precos_ue!$AH$2:$AH$3741,MATCH(aux_pr_ue!$F$3&aux_pr_ue!L46,precos_ue!$A$2:$A$3741,0))=0,"",INDEX(precos_ue!$AH$2:$AH$3741,MATCH(aux_pr_ue!$F$3&aux_pr_ue!L46,precos_ue!$A$2:$A$3741,0))) -> 124.5114 | L46: 1994/07 | M46: 115.427175 | N46: 124.5114
J47: =+IF(INDEX(precos_ue!$AG$2:$AG$3741,MATCH(aux_pr_ue!$E$3&aux_pr_ue!L47,precos_ue!$A$2:$A$3741,0))=0,"",INDEX(precos_ue!$AG$2:$AG$3741,MATCH(aux_pr_ue!$E$3&aux_pr_ue!L47,precos_ue!$A$2:$A$3741,0))) -> 119.7783333 | K47: =+IF(INDEX(precos_ue!$AH$2:$AH$3741,MATCH(aux_pr_ue!$F$3&aux_pr_ue!L47,precos_ue!$A$2:$A$3741,0))=0,"",INDEX(precos_ue!$AH$2:$AH$3741,MATCH(aux_pr_ue!$F$3&aux_pr_ue!L47,precos_ue!$A$2:$A$3741,0))) -> 107.49 | L47: 1994/08 | M47: 119.7783333 | N47: 107.49
J48: =+IF(INDEX(precos_ue!$AG$2:$AG$3741,MATCH(aux_pr_ue!$E$3&aux_pr_ue!L48,precos_ue!$A$2:$A$3741,0))=0,"",INDEX(precos_ue!$AG$2:$AG$3741,MATCH(aux_pr_ue!$E$3&aux_pr_ue!L48,precos_ue!$A$2:$A$3741,0))) -> 121.171 | K48: =+IF(INDEX(precos_ue!$AH$2:$AH$3741,MATCH(aux_pr_ue!$F$3&aux_pr_ue!L48,precos_ue!$A$2:$A$3741,0))=0,"",INDEX(precos_ue!$AH$2:$AH$3741,MATCH(aux_pr_ue!$F$3&aux_pr_ue!L48,precos_ue!$A$2:$A$3741,0))) -> 110.2991333 | L48: 1994/09 | M48: 121.171 | N48: 110.2991333
J49: =+IF(INDEX(precos_ue!$AG$2:$AG$3741,MATCH(aux_pr_ue!$E$3&aux_pr_ue!L49,precos_ue!$A$2:$A$3741,0))=0,"",INDEX(precos_ue!$AG$2:$AG$3741,MATCH(aux_pr_ue!$E$3&aux_pr_ue!L49,precos_ue!$A$2:$A$3741,0))) ->  | K49: =+IF(INDEX(precos_ue!$AH$2:$AH$3741,MATCH(aux_pr_ue!$F$3&aux_pr_ue!L49,precos_ue!$A$2:$A$3741,0))=0,"",INDEX(precos_ue!$AH$2:$AH$3741,MATCH(aux_pr_ue!$F$3&aux_pr_ue!L49,precos_ue!$A$2:$A$3741,0))) -> 111.1042333 | L49: 1994/10 | N49: 111.1042333
J50: =+IF(INDEX(precos_ue!$AG$2:$AG$3741,MATCH(aux_pr_ue!$E$3&aux_pr_ue!L50,precos_ue!$A$2:$A$3741,0))=0,"",INDEX(precos_ue!$AG$2:$AG$3741,MATCH(aux_pr_ue!$E$3&aux_pr_ue!L50,precos_ue!$A$2:$A$3741,0))) ->  | K50: =+IF(INDEX(precos_ue!$AH$2:$AH$3741,MATCH(aux_pr_ue!$F$3&aux_pr_ue!L50,precos_ue!$A$2:$A$3741,0))=0,"",INDEX(precos_ue!$AH$2:$AH$3741,MATCH(aux_pr_ue!$F$3&aux_pr_ue!L50,precos_ue!$A$2:$A$3741,0))) -> 112.8245667 | L50: 1994/11 | N50: 112.8245667
J51: =+IF(INDEX(precos_ue!$AG$2:$AG$3741,MATCH(aux_pr_ue!$E$3&aux_pr_ue!L51,precos_ue!$A$2:$A$3741,0))=0,"",INDEX(precos_ue!$AG$2:$AG$3741,MATCH(aux_pr_ue!$E$3&aux_pr_ue!L51,precos_ue!$A$2:$A$3741,0))) ->  | K51: =+IF(INDEX(precos_ue!$AH$2:$AH$3741,MATCH(aux_pr_ue!$F$3&aux_pr_ue!L51,precos_ue!$A$2:$A$3741,0))=0,"",INDEX(precos_ue!$AH$2:$AH$3741,MATCH(aux_pr_ue!$F$3&aux_pr_ue!L51,precos_ue!$A$2:$A$3741,0))) -> 112.8980333 | L51: 1994/12 | N51: 112.8980333
J52: =+IF(INDEX(precos_ue!$AG$2:$AG$3741,MATCH(aux_pr_ue!$E$3&aux_pr_ue!L52,precos_ue!$A$2:$A$3741,0))=0,"",INDEX(precos_ue!$AG$2:$AG$3741,MATCH(aux_pr_ue!$E$3&aux_pr_ue!L52,precos_ue!$A$2:$A$3741,0))) ->  | K52: =+IF(INDEX(precos_ue!$AH$2:$AH$3741,MATCH(aux_pr_ue!$F$3&aux_pr_ue!L52,precos_ue!$A$2:$A$3741,0))=0,"",INDEX(precos_ue!$AH$2:$AH$3741,MATCH(aux_pr_ue!$F$3&aux_pr_ue!L52,precos_ue!$A$2:$A$3741,0))) -> 115.9690333 | L52: 1995/01 | N52: 115.9690333
J53: =+IF(INDEX(precos_ue!$AG$2:$AG$3741,MATCH(aux_pr_ue!$E$3&aux_pr_ue!L53,precos_ue!$A$2:$A$3741,0))=0,"",INDEX(precos_ue!$AG$2:$AG$3741,MATCH(aux_pr_ue!$E$3&aux_pr_ue!L53,precos_ue!$A$2:$A$3741,0))) ->  | K53: =+IF(INDEX(precos_ue!$AH$2:$AH$3741,MATCH(aux_pr_ue!$F$3&aux_pr_ue!L53,precos_ue!$A$2:$A$3741,0))=0,"",INDEX(precos_ue!$AH$2:$AH$3741,MATCH(aux_pr_ue!$F$3&aux_pr_ue!L53,precos_ue!$A$2:$A$3741,0))) -> 134.7234 | L53: 1995/02 | N53: 134.7234
J54: =+IF(INDEX(precos_ue!$AG$2:$AG$3741,MATCH(aux_pr_ue!$E$3&aux_pr_ue!L54,precos_ue!$A$2:$A$3741,0))=0,"",INDEX(precos_ue!$AG$2:$AG$3741,MATCH(aux_pr_ue!$E$3&aux_pr_ue!L54,precos_ue!$A$2:$A$3741,0))) ->  | K54: =+IF(INDEX(precos_ue!$AH$2:$AH$3741,MATCH(aux_pr_ue!$F$3&aux_pr_ue!L54,precos_ue!$A$2:$A$3741,0))=0,"",INDEX(precos_ue!$AH$2:$AH$3741,MATCH(aux_pr_ue!$F$3&aux_pr_ue!L54,precos_ue!$A$2:$A$3741,0))) -> 132.2964333 | L54: 1995/03 | N54: 132.2964333
J55: =+IF(INDEX(precos_ue!$AG$2:$AG$3741,MATCH(aux_pr_ue!$E$3&aux_pr_ue!L55,precos_ue!$A$2:$A$3741,0))=0,"",INDEX(precos_ue!$AG$2:$AG$3741,MATCH(aux_pr_ue!$E$3&aux_pr_ue!L55,precos_ue!$A$2:$A$3741,0))) ->  | K55: =+IF(INDEX(precos_ue!$AH$2:$AH$3741,MATCH(aux_pr_ue!$F$3&aux_pr_ue!L55,precos_ue!$A$2:$A$3741,0))=0,"",INDEX(precos_ue!$AH$2:$AH$3741,MATCH(aux_pr_ue!$F$3&aux_pr_ue!L55,precos_ue!$A$2:$A$3741,0))) -> 131.9393667 | L55: 1995/04 | N55: 131.9393667
J56: =+IF(INDEX(precos_ue!$AG$2:$AG$3741,MATCH(aux_pr_ue!$E$3&aux_pr_ue!L56,precos_ue!$A$2:$A$3741,0))=0,"",INDEX(precos_ue!$AG$2:$AG$3741,MATCH(aux_pr_ue!$E$3&aux_pr_ue!L56,precos_ue!$A$2:$A$3741,0))) ->  | K56: =+IF(INDEX(precos_ue!$AH$2:$AH$3741,MATCH(aux_pr_ue!$F$3&aux_pr_ue!L56,precos_ue!$A$2:$A$3741,0))=0,"",INDEX(precos_ue!$AH$2:$AH$3741,MATCH(aux_pr_ue!$F$3&aux_pr_ue!L56,precos_ue!$A$2:$A$3741,0))) -> 138.3469 | L56: 1995/05 | N56: 138.3469
J57: =+IF(INDEX(precos_ue!$AG$2:$AG$3741,MATCH(aux_pr_ue!$E$3&aux_pr_ue!L57,precos_ue!$A$2:$A$3741,0))=0,"",INDEX(precos_ue!$AG$2:$AG$3741,MATCH(aux_pr_ue!$E$3&aux_pr_ue!L57,precos_ue!$A$2:$A$3741,0))) -> 149.1536 | K57: =+IF(INDEX(precos_ue!$AH$2:$AH$3741,MATCH(aux_pr_ue!$F$3&aux_pr_ue!L57,precos_ue!$A$2:$A$3741,0))=0,"",INDEX(precos_ue!$AH$2:$AH$3741,MATCH(aux_pr_ue!$F$3&aux_pr_ue!L57,precos_ue!$A$2:$A$3741,0))) -> 139.9706 | L57: 1995/06 | M57: 149.1536 | N57: 139.9706
J58: =+IF(INDEX(precos_ue!$AG$2:$AG$3741,MATCH(aux_pr_ue!$E$3&aux_pr_ue!L58,precos_ue!$A$2:$A$3741,0))=0,"",INDEX(precos_ue!$AG$2:$AG$3741,MATCH(aux_pr_ue!$E$3&aux_pr_ue!L58,precos_ue!$A$2:$A$3741,0))) -> 152.1795333 | K58: =+IF(INDEX(precos_ue!$AH$2:$AH$3741,MATCH(aux_pr_ue!$F$3&aux_pr_ue!L58,precos_ue!$A$2:$A$3741,0))=0,"",INDEX(precos_ue!$AH$2:$AH$3741,MATCH(aux_pr_ue!$F$3&aux_pr_ue!L58,precos_ue!$A$2:$A$3741,0))) -> 133.8230667 | L58: 1995/07 | M58: 152.1795333 | N58: 133.8230667
J59: =+IF(INDEX(precos_ue!$AG$2:$AG$3741,MATCH(aux_pr_ue!$E$3&aux_pr_ue!L59,precos_ue!$A$2:$A$3741,0))=0,"",INDEX(precos_ue!$AG$2:$AG$3741,MATCH(aux_pr_ue!$E$3&aux_pr_ue!L59,precos_ue!$A$2:$A$3741,0))) -> 152.622 | K59: =+IF(INDEX(precos_ue!$AH$2:$AH$3741,MATCH(aux_pr_ue!$F$3&aux_pr_ue!L59,precos_ue!$A$2:$A$3741,0))=0,"",INDEX(precos_ue!$AH$2:$AH$3741,MATCH(aux_pr_ue!$F$3&aux_pr_ue!L59,precos_ue!$A$2:$A$3741,0))) -> 130.1701 | L59: 1995/08 | M59: 152.622 | N59: 130.1701
J60: =+IF(INDEX(precos_ue!$AG$2:$AG$3741,MATCH(aux_pr_ue!$E$3&aux_pr_ue!L60,precos_ue!$A$2:$A$3741,0))=0,"",INDEX(precos_ue!$AG$2:$AG$3741,MATCH(aux_pr_ue!$E$3&aux_pr_ue!L60,precos_ue!$A$2:$A$3741,0))) ->  | K60: =+IF(INDEX(precos_ue!$AH$2:$AH$3741,MATCH(aux_pr_ue!$F$3&aux_pr_ue!L60,precos_ue!$A$2:$A$3741,0))=0,"",INDEX(precos_ue!$AH$2:$AH$3741,MATCH(aux_pr_ue!$F$3&aux_pr_ue!L60,precos_ue!$A$2:$A$3741,0))) -> 137.9174667 | L60: 1995/09 | N60: 137.9174667
J61: =+IF(INDEX(precos_ue!$AG$2:$AG$3741,MATCH(aux_pr_ue!$E$3&aux_pr_ue!L61,precos_ue!$A$2:$A$3741,0))=0,"",INDEX(precos_ue!$AG$2:$AG$3741,MATCH(aux_pr_ue!$E$3&aux_pr_ue!L61,precos_ue!$A$2:$A$3741,0))) ->  | K61: =+IF(INDEX(precos_ue!$AH$2:$AH$3741,MATCH(aux_pr_ue!$F$3&aux_pr_ue!L61,precos_ue!$A$2:$A$3741,0))=0,"",INDEX(precos_ue!$AH$2:$AH$3741,MATCH(aux_pr_ue!$F$3&aux_pr_ue!L61,precos_ue!$A$2:$A$3741,0))) -> 138.4533 | L61: 1995/10 | N61: 138.4533
J62: =+IF(INDEX(precos_ue!$AG$2:$AG$3741,MATCH(aux_pr_ue!$E$3&aux_pr_ue!L62,precos_ue!$A$2:$A$3741,0))=0,"",INDEX(precos_ue!$AG$2:$AG$3741,MATCH(aux_pr_ue!$E$3&aux_pr_ue!L62,precos_ue!$A$2:$A$3741,0))) ->  | K62: =+IF(INDEX(precos_ue!$AH$2:$AH$3741,MATCH(aux_pr_ue!$F$3&aux_pr_ue!L62,precos_ue!$A$2:$A$3741,0))=0,"",INDEX(precos_ue!$AH$2:$AH$3741,MATCH(aux_pr_ue!$F$3&aux_pr_ue!L62,precos_ue!$A$2:$A$3741,0))) -> 142.7181 | L62: 1995/11 | N62: 142.7181
J63: =+IF(INDEX(precos_ue!$AG$2:$AG$3741,MATCH(aux_pr_ue!$E$3&aux_pr_ue!L63,precos_ue!$A$2:$A$3741,0))=0,"",INDEX(precos_ue!$AG$2:$AG$3741,MATCH(aux_pr_ue!$E$3&aux_pr_ue!L63,precos_ue!$A$2:$A$3741,0))) ->  | K63: =+IF(INDEX(precos_ue!$AH$2:$AH$3741,MATCH(aux_pr_ue!$F$3&aux_pr_ue!L63,precos_ue!$A$2:$A$3741,0))=0,"",INDEX(precos_ue!$AH$2:$AH$3741,MATCH(aux_pr_ue!$F$3&aux_pr_ue!L63,precos_ue!$A$2:$A$3741,0))) -> 144.8908333 | L63: 1995/12 | N63: 144.8908333
J64: =+IF(INDEX(precos_ue!$AG$2:$AG$3741,MATCH(aux_pr_ue!$E$3&aux_pr_ue!L64,precos_ue!$A$2:$A$3741,0))=0,"",INDEX(precos_ue!$AG$2:$AG$3741,MATCH(aux_pr_ue!$E$3&aux_pr_ue!L64,precos_ue!$A$2:$A$3741,0))) ->  | K64: =+IF(INDEX(precos_ue!$AH$2:$AH$3741,MATCH(aux_pr_ue!$F$3&aux_pr_ue!L64,precos_ue!$A$2:$A$3741,0))=0,"",INDEX(precos_ue!$AH$2:$AH$3741,MATCH(aux_pr_ue!$F$3&aux_pr_ue!L64,precos_ue!$A$2:$A$3741,0))) -> 144.4973 | L64: 1996/01 | N64: 144.4973
J65: =+IF(INDEX(precos_ue!$AG$2:$AG$3741,MATCH(aux_pr_ue!$E$3&aux_pr_ue!L65,precos_ue!$A$2:$A$3741,0))=0,"",INDEX(precos_ue!$AG$2:$AG$3741,MATCH(aux_pr_ue!$E$3&aux_pr_ue!L65,precos_ue!$A$2:$A$3741,0))) ->  | K65: =+IF(INDEX(precos_ue!$AH$2:$AH$3741,MATCH(aux_pr_ue!$F$3&aux_pr_ue!L65,precos_ue!$A$2:$A$3741,0))=0,"",INDEX(precos_ue!$AH$2:$AH$3741,MATCH(aux_pr_ue!$F$3&aux_pr_ue!L65,precos_ue!$A$2:$A$3741,0))) -> 141.9042667 | L65: 1996/02 | N65: 141.9042667
J66: =+IF(INDEX(precos_ue!$AG$2:$AG$3741,MATCH(aux_pr_ue!$E$3&aux_pr_ue!L66,precos_ue!$A$2:$A$3741,0))=0,"",INDEX(precos_ue!$AG$2:$AG$3741,MATCH(aux_pr_ue!$E$3&aux_pr_ue!L66,precos_ue!$A$2:$A$3741,0))) ->  | K66: =+IF(INDEX(precos_ue!$AH$2:$AH$3741,MATCH(aux_pr_ue!$F$3&aux_pr_ue!L66,precos_ue!$A$2:$A$3741,0))=0,"",INDEX(precos_ue!$AH$2:$AH$3741,MATCH(aux_pr_ue!$F$3&aux_pr_ue!L66,precos_ue!$A$2:$A$3741,0))) -> 140.6179333 | L66: 1996/03 | N66: 140.6179333
J67: =+IF(INDEX(precos_ue!$AG$2:$AG$3741,MATCH(aux_pr_ue!$E$3&aux_pr_ue!L67,precos_ue!$A$2:$A$3741,0))=0,"",INDEX(precos_ue!$AG$2:$AG$3741,MATCH(aux_pr_ue!$E$3&aux_pr_ue!L67,precos_ue!$A$2:$A$3741,0))) ->  | K67: =+IF(INDEX(precos_ue!$AH$2:$AH$3741,MATCH(aux_pr_ue!$F$3&aux_pr_ue!L67,precos_ue!$A$2:$A$3741,0))=0,"",INDEX(precos_ue!$AH$2:$AH$3741,MATCH(aux_pr_ue!$F$3&aux_pr_ue!L67,precos_ue!$A$2:$A$3741,0))) -> 144.4973 | L67: 1996/04 | N67: 144.4973
J68: =+IF(INDEX(precos_ue!$AG$2:$AG$3741,MATCH(aux_pr_ue!$E$3&aux_pr_ue!L68,precos_ue!$A$2:$A$3741,0))=0,"",INDEX(precos_ue!$AG$2:$AG$3741,MATCH(aux_pr_ue!$E$3&aux_pr_ue!L68,precos_ue!$A$2:$A$3741,0))) -> 174.04555 | K68: =+IF(INDEX(precos_ue!$AH$2:$AH$3741,MATCH(aux_pr_ue!$F$3&aux_pr_ue!L68,precos_ue!$A$2:$A$3741,0))=0,"",INDEX(precos_ue!$AH$2:$AH$3741,MATCH(aux_pr_ue!$F$3&aux_pr_ue!L68,precos_ue!$A$2:$A$3741,0))) -> 156.8905 | L68: 1996/05 | M68: 174.04555 | N68: 156.8905
J69: =+IF(INDEX(precos_ue!$AG$2:$AG$3741,MATCH(aux_pr_ue!$E$3&aux_pr_ue!L69,precos_ue!$A$2:$A$3741,0))=0,"",INDEX(precos_ue!$AG$2:$AG$3741,MATCH(aux_pr_ue!$E$3&aux_pr_ue!L69,precos_ue!$A$2:$A$3741,0))) -> 177.849 | K69: =+IF(INDEX(precos_ue!$AH$2:$AH$3741,MATCH(aux_pr_ue!$F$3&aux_pr_ue!L69,precos_ue!$A$2:$A$3741,0))=0,"",INDEX(precos_ue!$AH$2:$AH$3741,MATCH(aux_pr_ue!$F$3&aux_pr_ue!L69,precos_ue!$A$2:$A$3741,0))) -> 151.5721 | L69: 1996/06 | M69: 177.849 | N69: 151.5721
J70: =+IF(INDEX(precos_ue!$AG$2:$AG$3741,MATCH(aux_pr_ue!$E$3&aux_pr_ue!L70,precos_ue!$A$2:$A$3741,0))=0,"",INDEX(precos_ue!$AG$2:$AG$3741,MATCH(aux_pr_ue!$E$3&aux_pr_ue!L70,precos_ue!$A$2:$A$3741,0))) -> 153.4126 | K70: =+IF(INDEX(precos_ue!$AH$2:$AH$3741,MATCH(aux_pr_ue!$F$3&aux_pr_ue!L70,precos_ue!$A$2:$A$3741,0))=0,"",INDEX(precos_ue!$AH$2:$AH$3741,MATCH(aux_pr_ue!$F$3&aux_pr_ue!L70,precos_ue!$A$2:$A$3741,0))) -> 146.45445 | L70: 1996/07 | M70: 153.4126 | N70: 146.45445
J71: =+IF(INDEX(precos_ue!$AG$2:$AG$3741,MATCH(aux_pr_ue!$E$3&aux_pr_ue!L71,precos_ue!$A$2:$A$3741,0))=0,"",INDEX(precos_ue!$AG$2:$AG$3741,MATCH(aux_pr_ue!$E$3&aux_pr_ue!L71,precos_ue!$A$2:$A$3741,0))) -> 147.9973333 | K71: =+IF(INDEX(precos_ue!$AH$2:$AH$3741,MATCH(aux_pr_ue!$F$3&aux_pr_ue!L71,precos_ue!$A$2:$A$3741,0))=0,"",INDEX(precos_ue!$AH$2:$AH$3741,MATCH(aux_pr_ue!$F$3&aux_pr_ue!L71,precos_ue!$A$2:$A$3741,0))) -> 132.831 | L71: 1996/08 | M71: 147.9973333 | N71: 132.831
J72: =+IF(INDEX(precos_ue!$AG$2:$AG$3741,MATCH(aux_pr_ue!$E$3&aux_pr_ue!L72,precos_ue!$A$2:$A$3741,0))=0,"",INDEX(precos_ue!$AG$2:$AG$3741,MATCH(aux_pr_ue!$E$3&aux_pr_ue!L72,precos_ue!$A$2:$A$3741,0))) ->  | K72: =+IF(INDEX(precos_ue!$AH$2:$AH$3741,MATCH(aux_pr_ue!$F$3&aux_pr_ue!L72,precos_ue!$A$2:$A$3741,0))=0,"",INDEX(precos_ue!$AH$2:$AH$3741,MATCH(aux_pr_ue!$F$3&aux_pr_ue!L72,precos_ue!$A$2:$A$3741,0))) -> 133.2343 | L72: 1996/09 | N72: 133.2343
J73: =+IF(INDEX(precos_ue!$AG$2:$AG$3741,MATCH(aux_pr_ue!$E$3&aux_pr_ue!L73,precos_ue!$A$2:$A$3741,0))=0,"",INDEX(precos_ue!$AG$2:$AG$3741,MATCH(aux_pr_ue!$E$3&aux_pr_ue!L73,precos_ue!$A$2:$A$3741,0))) -> 151.571 | K73: =+IF(INDEX(precos_ue!$AH$2:$AH$3741,MATCH(aux_pr_ue!$F$3&aux_pr_ue!L73,precos_ue!$A$2:$A$3741,0))=0,"",INDEX(precos_ue!$AH$2:$AH$3741,MATCH(aux_pr_ue!$F$3&aux_pr_ue!L73,precos_ue!$A$2:$A$3741,0))) -> 131.0623 | L73: 1996/10 | M73: 151.571 | N73: 131.0623
J74: =+IF(INDEX(precos_ue!$AG$2:$AG$3741,MATCH(aux_pr_ue!$E$3&aux_pr_ue!L74,precos_ue!$A$2:$A$3741,0))=0,"",INDEX(precos_ue!$AG$2:$AG$3741,MATCH(aux_pr_ue!$E$3&aux_pr_ue!L74,precos_ue!$A$2:$A$3741,0))) -> 147.8919 | K74: =+IF(INDEX(precos_ue!$AH$2:$AH$3741,MATCH(aux_pr_ue!$F$3&aux_pr_ue!L74,precos_ue!$A$2:$A$3741,0))=0,"",INDEX(precos_ue!$AH$2:$AH$3741,MATCH(aux_pr_ue!$F$3&aux_pr_ue!L74,precos_ue!$A$2:$A$3741,0))) -> 130.5099333 | L74: 1996/11 | M74: 147.8919 | N74: 130.5099333
J75: =+IF(INDEX(precos_ue!$AG$2:$AG$3741,MATCH(aux_pr_ue!$E$3&aux_pr_ue!L75,precos_ue!$A$2:$A$3741,0))=0,"",INDEX(precos_ue!$AG$2:$AG$3741,MATCH(aux_pr_ue!$E$3&aux_pr_ue!L75,precos_ue!$A$2:$A$3741,0))) ->  | K75: =+IF(INDEX(precos_ue!$AH$2:$AH$3741,MATCH(aux_pr_ue!$F$3&aux_pr_ue!L75,precos_ue!$A$2:$A$3741,0))=0,"",INDEX(precos_ue!$AH$2:$AH$3741,MATCH(aux_pr_ue!$F$3&aux_pr_ue!L75,precos_ue!$A$2:$A$3741,0))) -> 130.6907 | L75: 1996/12 | N75: 130.6907
J76: =+IF(INDEX(precos_ue!$AG$2:$AG$3741,MATCH(aux_pr_ue!$E$3&aux_pr_ue!L76,precos_ue!$A$2:$A$3741,0))=0,"",INDEX(precos_ue!$AG$2:$AG$3741,MATCH(aux_pr_ue!$E$3&aux_pr_ue!L76,precos_ue!$A$2:$A$3741,0))) -> 150.0995 | K76: =+IF(INDEX(precos_ue!$AH$2:$AH$3741,MATCH(aux_pr_ue!$F$3&aux_pr_ue!L76,precos_ue!$A$2:$A$3741,0))=0,"",INDEX(precos_ue!$AH$2:$AH$3741,MATCH(aux_pr_ue!$F$3&aux_pr_ue!L76,precos_ue!$A$2:$A$3741,0))) -> 131.3838667 | L76: 1997/01 | M76: 150.0995 | N76: 131.3838667
J77: =+IF(INDEX(precos_ue!$AG$2:$AG$3741,MATCH(aux_pr_ue!$E$3&aux_pr_ue!L77,precos_ue!$A$2:$A$3741,0))=0,"",INDEX(precos_ue!$AG$2:$AG$3741,MATCH(aux_pr_ue!$E$3&aux_pr_ue!L77,precos_ue!$A$2:$A$3741,0))) -> 150.85625 | K77: =+IF(INDEX(precos_ue!$AH$2:$AH$3741,MATCH(aux_pr_ue!$F$3&aux_pr_ue!L77,precos_ue!$A$2:$A$3741,0))=0,"",INDEX(precos_ue!$AH$2:$AH$3741,MATCH(aux_pr_ue!$F$3&aux_pr_ue!L77,precos_ue!$A$2:$A$3741,0))) -> 130.3961333 | L77: 1997/02 | M77: 150.85625 | N77: 130.3961333
J78: =+IF(INDEX(precos_ue!$AG$2:$AG$3741,MATCH(aux_pr_ue!$E$3&aux_pr_ue!L78,precos_ue!$A$2:$A$3741,0))=0,"",INDEX(precos_ue!$AG$2:$AG$3741,MATCH(aux_pr_ue!$E$3&aux_pr_ue!L78,precos_ue!$A$2:$A$3741,0))) -> 152.622 | K78: =+IF(INDEX(precos_ue!$AH$2:$AH$3741,MATCH(aux_pr_ue!$F$3&aux_pr_ue!L78,precos_ue!$A$2:$A$3741,0))=0,"",INDEX(precos_ue!$AH$2:$AH$3741,MATCH(aux_pr_ue!$F$3&aux_pr_ue!L78,precos_ue!$A$2:$A$3741,0))) -> 135.3431 | L78: 1997/03 | M78: 152.622 | N78: 135.3431
J79: =+IF(INDEX(precos_ue!$AG$2:$AG$3741,MATCH(aux_pr_ue!$E$3&aux_pr_ue!L79,precos_ue!$A$2:$A$3741,0))=0,"",INDEX(precos_ue!$AG$2:$AG$3741,MATCH(aux_pr_ue!$E$3&aux_pr_ue!L79,precos_ue!$A$2:$A$3741,0))) -> 155.1445 | K79: =+IF(INDEX(precos_ue!$AH$2:$AH$3741,MATCH(aux_pr_ue!$F$3&aux_pr_ue!L79,precos_ue!$A$2:$A$3741,0))=0,"",INDEX(precos_ue!$AH$2:$AH$3741,MATCH(aux_pr_ue!$F$3&aux_pr_ue!L79,precos_ue!$A$2:$A$3741,0))) -> 139.6091333 | L79: 1997/04 | M79: 155.1445 | N79: 139.6091333
J80: =+IF(INDEX(precos_ue!$AG$2:$AG$3741,MATCH(aux_pr_ue!$E$3&aux_pr_ue!L80,precos_ue!$A$2:$A$3741,0))=0,"",INDEX(precos_ue!$AG$2:$AG$3741,MATCH(aux_pr_ue!$E$3&aux_pr_ue!L80,precos_ue!$A$2:$A$3741,0))) -> 152.90175 | K80: =+IF(INDEX(precos_ue!$AH$2:$AH$3741,MATCH(aux_pr_ue!$F$3&aux_pr_ue!L80,precos_ue!$A$2:$A$3741,0))=0,"",INDEX(precos_ue!$AH$2:$AH$3741,MATCH(aux_pr_ue!$F$3&aux_pr_ue!L80,precos_ue!$A$2:$A$3741,0))) -> 134.3934667 | L80: 1997/05 | M80: 152.90175 | N80: 134.3934667
J81: =+IF(INDEX(precos_ue!$AG$2:$AG$3741,MATCH(aux_pr_ue!$E$3&aux_pr_ue!L81,precos_ue!$A$2:$A$3741,0))=0,"",INDEX(precos_ue!$AG$2:$AG$3741,MATCH(aux_pr_ue!$E$3&aux_pr_ue!L81,precos_ue!$A$2:$A$3741,0))) -> 140.7442667 | K81: =+IF(INDEX(precos_ue!$AH$2:$AH$3741,MATCH(aux_pr_ue!$F$3&aux_pr_ue!L81,precos_ue!$A$2:$A$3741,0))=0,"",INDEX(precos_ue!$AH$2:$AH$3741,MATCH(aux_pr_ue!$F$3&aux_pr_ue!L81,precos_ue!$A$2:$A$3741,0))) -> 129.0828 | L81: 1997/06 | M81: 140.7442667 | N81: 129.0828
J82: =+IF(INDEX(precos_ue!$AG$2:$AG$3741,MATCH(aux_pr_ue!$E$3&aux_pr_ue!L82,precos_ue!$A$2:$A$3741,0))=0,"",INDEX(precos_ue!$AG$2:$AG$3741,MATCH(aux_pr_ue!$E$3&aux_pr_ue!L82,precos_ue!$A$2:$A$3741,0))) -> 134.8778 | K82: =+IF(INDEX(precos_ue!$AH$2:$AH$3741,MATCH(aux_pr_ue!$F$3&aux_pr_ue!L82,precos_ue!$A$2:$A$3741,0))=0,"",INDEX(precos_ue!$AH$2:$AH$3741,MATCH(aux_pr_ue!$F$3&aux_pr_ue!L82,precos_ue!$A$2:$A$3741,0))) -> 128.7413333 | L82: 1997/07 | M82: 134.8778 | N82: 128.7413333
J83: =+IF(INDEX(precos_ue!$AG$2:$AG$3741,MATCH(aux_pr_ue!$E$3&aux_pr_ue!L83,precos_ue!$A$2:$A$3741,0))=0,"",INDEX(precos_ue!$AG$2:$AG$3741,MATCH(aux_pr_ue!$E$3&aux_pr_ue!L83,precos_ue!$A$2:$A$3741,0))) -> 133.9686667 | K83: =+IF(INDEX(precos_ue!$AH$2:$AH$3741,MATCH(aux_pr_ue!$F$3&aux_pr_ue!L83,precos_ue!$A$2:$A$3741,0))=0,"",INDEX(precos_ue!$AH$2:$AH$3741,MATCH(aux_pr_ue!$F$3&aux_pr_ue!L83,precos_ue!$A$2:$A$3741,0))) -> 122.0604667 | L83: 1997/08 | M83: 133.9686667 | N83: 122.0604667
J84: =+IF(INDEX(precos_ue!$AG$2:$AG$3741,MATCH(aux_pr_ue!$E$3&aux_pr_ue!L84,precos_ue!$A$2:$A$3741,0))=0,"",INDEX(precos_ue!$AG$2:$AG$3741,MATCH(aux_pr_ue!$E$3&aux_pr_ue!L84,precos_ue!$A$2:$A$3741,0))) -> 134.8479667 | K84: =+IF(INDEX(precos_ue!$AH$2:$AH$3741,MATCH(aux_pr_ue!$F$3&aux_pr_ue!L84,precos_ue!$A$2:$A$3741,0))=0,"",INDEX(precos_ue!$AH$2:$AH$3741,MATCH(aux_pr_ue!$F$3&aux_pr_ue!L84,precos_ue!$A$2:$A$3741,0))) -> 119.8189 | L84: 1997/09 | M84: 134.8479667 | N84: 119.8189
J85: =+IF(INDEX(precos_ue!$AG$2:$AG$3741,MATCH(aux_pr_ue!$E$3&aux_pr_ue!L85,precos_ue!$A$2:$A$3741,0))=0,"",INDEX(precos_ue!$AG$2:$AG$3741,MATCH(aux_pr_ue!$E$3&aux_pr_ue!L85,precos_ue!$A$2:$A$3741,0))) -> 138.528 | K85: =+IF(INDEX(precos_ue!$AH$2:$AH$3741,MATCH(aux_pr_ue!$F$3&aux_pr_ue!L85,precos_ue!$A$2:$A$3741,0))=0,"",INDEX(precos_ue!$AH$2:$AH$3741,MATCH(aux_pr_ue!$F$3&aux_pr_ue!L85,precos_ue!$A$2:$A$3741,0))) -> 119.4988 | L85: 1997/10 | M85: 138.528 | N85: 119.4988
J86: =+IF(INDEX(precos_ue!$AG$2:$AG$3741,MATCH(aux_pr_ue!$E$3&aux_pr_ue!L86,precos_ue!$A$2:$A$3741,0))=0,"",INDEX(precos_ue!$AG$2:$AG$3741,MATCH(aux_pr_ue!$E$3&aux_pr_ue!L86,precos_ue!$A$2:$A$3741,0))) -> 138.528 | K86: =+IF(INDEX(precos_ue!$AH$2:$AH$3741,MATCH(aux_pr_ue!$F$3&aux_pr_ue!L86,precos_ue!$A$2:$A$3741,0))=0,"",INDEX(precos_ue!$AH$2:$AH$3741,MATCH(aux_pr_ue!$F$3&aux_pr_ue!L86,precos_ue!$A$2:$A$3741,0))) -> 122.8775333 | L86: 1997/11 | M86: 138.528 | N86: 122.8775333
J87: =+IF(INDEX(precos_ue!$AG$2:$AG$3741,MATCH(aux_pr_ue!$E$3&aux_pr_ue!L87,precos_ue!$A$2:$A$3741,0))=0,"",INDEX(precos_ue!$AG$2:$AG$3741,MATCH(aux_pr_ue!$E$3&aux_pr_ue!L87,precos_ue!$A$2:$A$3741,0))) -> 140.50445 | K87: =+IF(INDEX(precos_ue!$AH$2:$AH$3741,MATCH(aux_pr_ue!$F$3&aux_pr_ue!L87,precos_ue!$A$2:$A$3741,0))=0,"",INDEX(precos_ue!$AH$2:$AH$3741,MATCH(aux_pr_ue!$F$3&aux_pr_ue!L87,precos_ue!$A$2:$A$3741,0))) -> 122.5608333 | L87: 1997/12 | M87: 140.50445 | N87: 122.5608333
J88: =+IF(INDEX(precos_ue!$AG$2:$AG$3741,MATCH(aux_pr_ue!$E$3&aux_pr_ue!L88,precos_ue!$A$2:$A$3741,0))=0,"",INDEX(precos_ue!$AG$2:$AG$3741,MATCH(aux_pr_ue!$E$3&aux_pr_ue!L88,precos_ue!$A$2:$A$3741,0))) -> 139.73595 | K88: =+IF(INDEX(precos_ue!$AH$2:$AH$3741,MATCH(aux_pr_ue!$F$3&aux_pr_ue!L88,precos_ue!$A$2:$A$3741,0))=0,"",INDEX(precos_ue!$AH$2:$AH$3741,MATCH(aux_pr_ue!$F$3&aux_pr_ue!L88,precos_ue!$A$2:$A$3741,0))) -> 125.309275 | L88: 1998/01 | M88: 139.73595 | N88: 125.309275
J89: =+IF(INDEX(precos_ue!$AG$2:$AG$3741,MATCH(aux_pr_ue!$E$3&aux_pr_ue!L89,precos_ue!$A$2:$A$3741,0))=0,"",INDEX(precos_ue!$AG$2:$AG$3741,MATCH(aux_pr_ue!$E$3&aux_pr_ue!L89,precos_ue!$A$2:$A$3741,0))) -> 142.03165 | K89: =+IF(INDEX(precos_ue!$AH$2:$AH$3741,MATCH(aux_pr_ue!$F$3&aux_pr_ue!L89,precos_ue!$A$2:$A$3741,0))=0,"",INDEX(precos_ue!$AH$2:$AH$3741,MATCH(aux_pr_ue!$F$3&aux_pr_ue!L89,precos_ue!$A$2:$A$3741,0))) -> 123.2988 | L89: 1998/02 | M89: 142.03165 | N89: 123.2988
J90: =+IF(INDEX(precos_ue!$AG$2:$AG$3741,MATCH(aux_pr_ue!$E$3&aux_pr_ue!L90,precos_ue!$A$2:$A$3741,0))=0,"",INDEX(precos_ue!$AG$2:$AG$3741,MATCH(aux_pr_ue!$E$3&aux_pr_ue!L90,precos_ue!$A$2:$A$3741,0))) -> 141.6633 | K90: =+IF(INDEX(precos_ue!$AH$2:$AH$3741,MATCH(aux_pr_ue!$F$3&aux_pr_ue!L90,precos_ue!$A$2:$A$3741,0))=0,"",INDEX(precos_ue!$AH$2:$AH$3741,MATCH(aux_pr_ue!$F$3&aux_pr_ue!L90,precos_ue!$A$2:$A$3741,0))) -> 121.8481 | L90: 1998/03 | M90: 141.6633 | N90: 121.8481
J91: =+IF(INDEX(precos_ue!$AG$2:$AG$3741,MATCH(aux_pr_ue!$E$3&aux_pr_ue!L91,precos_ue!$A$2:$A$3741,0))=0,"",INDEX(precos_ue!$AG$2:$AG$3741,MATCH(aux_pr_ue!$E$3&aux_pr_ue!L91,precos_ue!$A$2:$A$3741,0))) -> 141.707 | K91: =+IF(INDEX(precos_ue!$AH$2:$AH$3741,MATCH(aux_pr_ue!$F$3&aux_pr_ue!L91,precos_ue!$A$2:$A$3741,0))=0,"",INDEX(precos_ue!$AH$2:$AH$3741,MATCH(aux_pr_ue!$F$3&aux_pr_ue!L91,precos_ue!$A$2:$A$3741,0))) -> 119.966 | L91: 1998/04 | M91: 141.707 | N91: 119.966
J92: =+IF(INDEX(precos_ue!$AG$2:$AG$3741,MATCH(aux_pr_ue!$E$3&aux_pr_ue!L92,precos_ue!$A$2:$A$3741,0))=0,"",INDEX(precos_ue!$AG$2:$AG$3741,MATCH(aux_pr_ue!$E$3&aux_pr_ue!L92,precos_ue!$A$2:$A$3741,0))) ->  | K92: =+IF(INDEX(precos_ue!$AH$2:$AH$3741,MATCH(aux_pr_ue!$F$3&aux_pr_ue!L92,precos_ue!$A$2:$A$3741,0))=0,"",INDEX(precos_ue!$AH$2:$AH$3741,MATCH(aux_pr_ue!$F$3&aux_pr_ue!L92,precos_ue!$A$2:$A$3741,0))) -> 117.43015 | L92: 1998/05 | N92: 117.43015
J93: =+IF(INDEX(precos_ue!$AG$2:$AG$3741,MATCH(aux_pr_ue!$E$3&aux_pr_ue!L93,precos_ue!$A$2:$A$3741,0))=0,"",INDEX(precos_ue!$AG$2:$AG$3741,MATCH(aux_pr_ue!$E$3&aux_pr_ue!L93,precos_ue!$A$2:$A$3741,0))) ->  | K93: =+IF(INDEX(precos_ue!$AH$2:$AH$3741,MATCH(aux_pr_ue!$F$3&aux_pr_ue!L93,precos_ue!$A$2:$A$3741,0))=0,"",INDEX(precos_ue!$AH$2:$AH$3741,MATCH(aux_pr_ue!$F$3&aux_pr_ue!L93,precos_ue!$A$2:$A$3741,0))) -> 116.412325 | L93: 1998/06 | N93: 116.412325
J94: =+IF(INDEX(precos_ue!$AG$2:$AG$3741,MATCH(aux_pr_ue!$E$3&aux_pr_ue!L94,precos_ue!$A$2:$A$3741,0))=0,"",INDEX(precos_ue!$AG$2:$AG$3741,MATCH(aux_pr_ue!$E$3&aux_pr_ue!L94,precos_ue!$A$2:$A$3741,0))) -> 123.042 | K94: =+IF(INDEX(precos_ue!$AH$2:$AH$3741,MATCH(aux_pr_ue!$F$3&aux_pr_ue!L94,precos_ue!$A$2:$A$3741,0))=0,"",INDEX(precos_ue!$AH$2:$AH$3741,MATCH(aux_pr_ue!$F$3&aux_pr_ue!L94,precos_ue!$A$2:$A$3741,0))) -> 115.5274667 | L94: 1998/07 | M94: 123.042 | N94: 115.5274667
J95: =+IF(INDEX(precos_ue!$AG$2:$AG$3741,MATCH(aux_pr_ue!$E$3&aux_pr_ue!L95,precos_ue!$A$2:$A$3741,0))=0,"",INDEX(precos_ue!$AG$2:$AG$3741,MATCH(aux_pr_ue!$E$3&aux_pr_ue!L95,precos_ue!$A$2:$A$3741,0))) -> 127.8043 | K95: =+IF(INDEX(precos_ue!$AH$2:$AH$3741,MATCH(aux_pr_ue!$F$3&aux_pr_ue!L95,precos_ue!$A$2:$A$3741,0))=0,"",INDEX(precos_ue!$AH$2:$AH$3741,MATCH(aux_pr_ue!$F$3&aux_pr_ue!L95,precos_ue!$A$2:$A$3741,0))) -> 109.51345 | L95: 1998/08 | M95: 127.8043 | N95: 109.51345
J96: =+IF(INDEX(precos_ue!$AG$2:$AG$3741,MATCH(aux_pr_ue!$E$3&aux_pr_ue!L96,precos_ue!$A$2:$A$3741,0))=0,"",INDEX(precos_ue!$AG$2:$AG$3741,MATCH(aux_pr_ue!$E$3&aux_pr_ue!L96,precos_ue!$A$2:$A$3741,0))) -> 125.5026667 | K96: =+IF(INDEX(precos_ue!$AH$2:$AH$3741,MATCH(aux_pr_ue!$F$3&aux_pr_ue!L96,precos_ue!$A$2:$A$3741,0))=0,"",INDEX(precos_ue!$AH$2:$AH$3741,MATCH(aux_pr_ue!$F$3&aux_pr_ue!L96,precos_ue!$A$2:$A$3741,0))) -> 108.0795 | L96: 1998/09 | M96: 125.5026667 | N96: 108.0795
J97: =+IF(INDEX(precos_ue!$AG$2:$AG$3741,MATCH(aux_pr_ue!$E$3&aux_pr_ue!L97,precos_ue!$A$2:$A$3741,0))=0,"",INDEX(precos_ue!$AG$2:$AG$3741,MATCH(aux_pr_ue!$E$3&aux_pr_ue!L97,precos_ue!$A$2:$A$3741,0))) -> 125.3837 | K97: =+IF(INDEX(precos_ue!$AH$2:$AH$3741,MATCH(aux_pr_ue!$F$3&aux_pr_ue!L97,precos_ue!$A$2:$A$3741,0))=0,"",INDEX(precos_ue!$AH$2:$AH$3741,MATCH(aux_pr_ue!$F$3&aux_pr_ue!L97,precos_ue!$A$2:$A$3741,0))) -> 112.3418 | L97: 1998/10 | M97: 125.3837 | N97: 112.3418
J98: =+IF(INDEX(precos_ue!$AG$2:$AG$3741,MATCH(aux_pr_ue!$E$3&aux_pr_ue!L98,precos_ue!$A$2:$A$3741,0))=0,"",INDEX(precos_ue!$AG$2:$AG$3741,MATCH(aux_pr_ue!$E$3&aux_pr_ue!L98,precos_ue!$A$2:$A$3741,0))) -> 126.897 | K98: =+IF(INDEX(precos_ue!$AH$2:$AH$3741,MATCH(aux_pr_ue!$F$3&aux_pr_ue!L98,precos_ue!$A$2:$A$3741,0))=0,"",INDEX(precos_ue!$AH$2:$AH$3741,MATCH(aux_pr_ue!$F$3&aux_pr_ue!L98,precos_ue!$A$2:$A$3741,0))) -> 115.3199333 | L98: 1998/11 | M98: 126.897 | N98: 115.3199333
J99: =+IF(INDEX(precos_ue!$AG$2:$AG$3741,MATCH(aux_pr_ue!$E$3&aux_pr_ue!L99,precos_ue!$A$2:$A$3741,0))=0,"",INDEX(precos_ue!$AG$2:$AG$3741,MATCH(aux_pr_ue!$E$3&aux_pr_ue!L99,precos_ue!$A$2:$A$3741,0))) -> 129.21195 | K99: =+IF(INDEX(precos_ue!$AH$2:$AH$3741,MATCH(aux_pr_ue!$F$3&aux_pr_ue!L99,precos_ue!$A$2:$A$3741,0))=0,"",INDEX(precos_ue!$AH$2:$AH$3741,MATCH(aux_pr_ue!$F$3&aux_pr_ue!L99,precos_ue!$A$2:$A$3741,0))) -> 114.3742 | L99: 1998/12 | M99: 129.21195 | N99: 114.3742
J100: =+IF(INDEX(precos_ue!$AG$2:$AG$3741,MATCH(aux_pr_ue!$E$3&aux_pr_ue!L100,precos_ue!$A$2:$A$3741,0))=0,"",INDEX(precos_ue!$AG$2:$AG$3741,MATCH(aux_pr_ue!$E$3&aux_pr_ue!L100,precos_ue!$A$2:$A$3741,0))) -> 130.6934 | K100: =+IF(INDEX(precos_ue!$AH$2:$AH$3741,MATCH(aux_pr_ue!$F$3&aux_pr_ue!L100,precos_ue!$A$2:$A$3741,0))=0,"",INDEX(precos_ue!$AH$2:$AH$3741,MATCH(aux_pr_ue!$F$3&aux_pr_ue!L100,precos_ue!$A$2:$A$3741,0))) -> 113.0759 | L100: 1999/01 | M100: 130.6934 | N100: 113.0759
J101: =+IF(INDEX(precos_ue!$AG$2:$AG$3741,MATCH(aux_pr_ue!$E$3&aux_pr_ue!L101,precos_ue!$A$2:$A$3741,0))=0,"",INDEX(precos_ue!$AG$2:$AG$3741,MATCH(aux_pr_ue!$E$3&aux_pr_ue!L101,precos_ue!$A$2:$A$3741,0))) -> 131.4051 | K101: =+IF(INDEX(precos_ue!$AH$2:$AH$3741,MATCH(aux_pr_ue!$F$3&aux_pr_ue!L101,precos_ue!$A$2:$A$3741,0))=0,"",INDEX(precos_ue!$AH$2:$AH$3741,MATCH(aux_pr_ue!$F$3&aux_pr_ue!L101,precos_ue!$A$2:$A$3741,0))) -> 111.3752333 | L101: 1999/02 | M101: 131.4051 | N101: 111.3752333
J102: =+IF(INDEX(precos_ue!$AG$2:$AG$3741,MATCH(aux_pr_ue!$E$3&aux_pr_ue!L102,precos_ue!$A$2:$A$3741,0))=0,"",INDEX(precos_ue!$AG$2:$AG$3741,MATCH(aux_pr_ue!$E$3&aux_pr_ue!L102,precos_ue!$A$2:$A$3741,0))) -> 130.934 | K102: =+IF(INDEX(precos_ue!$AH$2:$AH$3741,MATCH(aux_pr_ue!$F$3&aux_pr_ue!L102,precos_ue!$A$2:$A$3741,0))=0,"",INDEX(precos_ue!$AH$2:$AH$3741,MATCH(aux_pr_ue!$F$3&aux_pr_ue!L102,precos_ue!$A$2:$A$3741,0))) -> 112.6541333 | L102: 1999/03 | M102: 130.934 | N102: 112.6541333
J103: =+IF(INDEX(precos_ue!$AG$2:$AG$3741,MATCH(aux_pr_ue!$E$3&aux_pr_ue!L103,precos_ue!$A$2:$A$3741,0))=0,"",INDEX(precos_ue!$AG$2:$AG$3741,MATCH(aux_pr_ue!$E$3&aux_pr_ue!L103,precos_ue!$A$2:$A$3741,0))) -> 130.934 | K103: =+IF(INDEX(precos_ue!$AH$2:$AH$3741,MATCH(aux_pr_ue!$F$3&aux_pr_ue!L103,precos_ue!$A$2:$A$3741,0))=0,"",INDEX(precos_ue!$AH$2:$AH$3741,MATCH(aux_pr_ue!$F$3&aux_pr_ue!L103,precos_ue!$A$2:$A$3741,0))) -> 118.4682 | L103: 1999/04 | M103: 130.934 | N103: 118.4682
J104: =+IF(INDEX(precos_ue!$AG$2:$AG$3741,MATCH(aux_pr_ue!$E$3&aux_pr_ue!L104,precos_ue!$A$2:$A$3741,0))=0,"",INDEX(precos_ue!$AG$2:$AG$3741,MATCH(aux_pr_ue!$E$3&aux_pr_ue!L104,precos_ue!$A$2:$A$3741,0))) -> 132.8648 | K104: =+IF(INDEX(precos_ue!$AH$2:$AH$3741,MATCH(aux_pr_ue!$F$3&aux_pr_ue!L104,precos_ue!$A$2:$A$3741,0))=0,"",INDEX(precos_ue!$AH$2:$AH$3741,MATCH(aux_pr_ue!$F$3&aux_pr_ue!L104,precos_ue!$A$2:$A$3741,0))) -> 120.6417333 | L104: 1999/05 | M104: 132.8648 | N104: 120.6417333
J105: =+IF(INDEX(precos_ue!$AG$2:$AG$3741,MATCH(aux_pr_ue!$E$3&aux_pr_ue!L105,precos_ue!$A$2:$A$3741,0))=0,"",INDEX(precos_ue!$AG$2:$AG$3741,MATCH(aux_pr_ue!$E$3&aux_pr_ue!L105,precos_ue!$A$2:$A$3741,0))) -> 135.922 | K105: =+IF(INDEX(precos_ue!$AH$2:$AH$3741,MATCH(aux_pr_ue!$F$3&aux_pr_ue!L105,precos_ue!$A$2:$A$3741,0))=0,"",INDEX(precos_ue!$AH$2:$AH$3741,MATCH(aux_pr_ue!$F$3&aux_pr_ue!L105,precos_ue!$A$2:$A$3741,0))) -> 121.4993333 | L105: 1999/06 | M105: 135.922 | N105: 121.4993333
J106: =+IF(INDEX(precos_ue!$AG$2:$AG$3741,MATCH(aux_pr_ue!$E$3&aux_pr_ue!L106,precos_ue!$A$2:$A$3741,0))=0,"",INDEX(precos_ue!$AG$2:$AG$3741,MATCH(aux_pr_ue!$E$3&aux_pr_ue!L106,precos_ue!$A$2:$A$3741,0))) ->  | K106: =+IF(INDEX(precos_ue!$AH$2:$AH$3741,MATCH(aux_pr_ue!$F$3&aux_pr_ue!L106,precos_ue!$A$2:$A$3741,0))=0,"",INDEX(precos_ue!$AH$2:$AH$3741,MATCH(aux_pr_ue!$F$3&aux_pr_ue!L106,precos_ue!$A$2:$A$3741,0))) -> 114.0313333 | L106: 1999/07 | N106: 114.0313333
J107: =+IF(INDEX(precos_ue!$AG$2:$AG$3741,MATCH(aux_pr_ue!$E$3&aux_pr_ue!L107,precos_ue!$A$2:$A$3741,0))=0,"",INDEX(precos_ue!$AG$2:$AG$3741,MATCH(aux_pr_ue!$E$3&aux_pr_ue!L107,precos_ue!$A$2:$A$3741,0))) -> 128.44 | K107: =+IF(INDEX(precos_ue!$AH$2:$AH$3741,MATCH(aux_pr_ue!$F$3&aux_pr_ue!L107,precos_ue!$A$2:$A$3741,0))=0,"",INDEX(precos_ue!$AH$2:$AH$3741,MATCH(aux_pr_ue!$F$3&aux_pr_ue!L107,precos_ue!$A$2:$A$3741,0))) -> 123.5897 | L107: 1999/08 | M107: 128.44 | N107: 123.5897
J108: =+IF(INDEX(precos_ue!$AG$2:$AG$3741,MATCH(aux_pr_ue!$E$3&aux_pr_ue!L108,precos_ue!$A$2:$A$3741,0))=0,"",INDEX(precos_ue!$AG$2:$AG$3741,MATCH(aux_pr_ue!$E$3&aux_pr_ue!L108,precos_ue!$A$2:$A$3741,0))) -> 128.44 | K108: =+IF(INDEX(precos_ue!$AH$2:$AH$3741,MATCH(aux_pr_ue!$F$3&aux_pr_ue!L108,precos_ue!$A$2:$A$3741,0))=0,"",INDEX(precos_ue!$AH$2:$AH$3741,MATCH(aux_pr_ue!$F$3&aux_pr_ue!L108,precos_ue!$A$2:$A$3741,0))) -> 118.0595 | L108: 1999/09 | M108: 128.44 | N108: 118.0595
J109: =+IF(INDEX(precos_ue!$AG$2:$AG$3741,MATCH(aux_pr_ue!$E$3&aux_pr_ue!L109,precos_ue!$A$2:$A$3741,0))=0,"",INDEX(precos_ue!$AG$2:$AG$3741,MATCH(aux_pr_ue!$E$3&aux_pr_ue!L109,precos_ue!$A$2:$A$3741,0))) -> 128.4405 | K109: =+IF(INDEX(precos_ue!$AH$2:$AH$3741,MATCH(aux_pr_ue!$F$3&aux_pr_ue!L109,precos_ue!$A$2:$A$3741,0))=0,"",INDEX(precos_ue!$AH$2:$AH$3741,MATCH(aux_pr_ue!$F$3&aux_pr_ue!L109,precos_ue!$A$2:$A$3741,0))) -> 120.2816667 | L109: 1999/10 | M109: 128.4405 | N109: 120.2816667
J110: =+IF(INDEX(precos_ue!$AG$2:$AG$3741,MATCH(aux_pr_ue!$E$3&aux_pr_ue!L110,precos_ue!$A$2:$A$3741,0))=0,"",INDEX(precos_ue!$AG$2:$AG$3741,MATCH(aux_pr_ue!$E$3&aux_pr_ue!L110,precos_ue!$A$2:$A$3741,0))) -> 128.4405 | K110: =+IF(INDEX(precos_ue!$AH$2:$AH$3741,MATCH(aux_pr_ue!$F$3&aux_pr_ue!L110,precos_ue!$A$2:$A$3741,0))=0,"",INDEX(precos_ue!$AH$2:$AH$3741,MATCH(aux_pr_ue!$F$3&aux_pr_ue!L110,precos_ue!$A$2:$A$3741,0))) -> 122.8243667 | L110: 1999/11 | M110: 128.4405 | N110: 122.8243667
J111: =+IF(INDEX(precos_ue!$AG$2:$AG$3741,MATCH(aux_pr_ue!$E$3&aux_pr_ue!L111,precos_ue!$A$2:$A$3741,0))=0,"",INDEX(precos_ue!$AG$2:$AG$3741,MATCH(aux_pr_ue!$E$3&aux_pr_ue!L111,precos_ue!$A$2:$A$3741,0))) ->  | K111: =+IF(INDEX(precos_ue!$AH$2:$AH$3741,MATCH(aux_pr_ue!$F$3&aux_pr_ue!L111,precos_ue!$A$2:$A$3741,0))=0,"",INDEX(precos_ue!$AH$2:$AH$3741,MATCH(aux_pr_ue!$F$3&aux_pr_ue!L111,precos_ue!$A$2:$A$3741,0))) ->  | L111: 1999/12
J112: =+IF(INDEX(precos_ue!$AG$2:$AG$3741,MATCH(aux_pr_ue!$E$3&aux_pr_ue!L112,precos_ue!$A$2:$A$3741,0))=0,"",INDEX(precos_ue!$AG$2:$AG$3741,MATCH(aux_pr_ue!$E$3&aux_pr_ue!L112,precos_ue!$A$2:$A$3741,0))) ->  | K112: =+IF(INDEX(precos_ue!$AH$2:$AH$3741,MATCH(aux_pr_ue!$F$3&aux_pr_ue!L112,precos_ue!$A$2:$A$3741,0))=0,"",INDEX(precos_ue!$AH$2:$AH$3741,MATCH(aux_pr_ue!$F$3&aux_pr_ue!L112,precos_ue!$A$2:$A$3741,0))) ->  | L112: 2000/01
J113: =+IF(INDEX(precos_ue!$AG$2:$AG$3741,MATCH(aux_pr_ue!$E$3&aux_pr_ue!L113,precos_ue!$A$2:$A$3741,0))=0,"",INDEX(precos_ue!$AG$2:$AG$3741,MATCH(aux_pr_ue!$E$3&aux_pr_ue!L113,precos_ue!$A$2:$A$3741,0))) -> 140.9104 | K113: =+IF(INDEX(precos_ue!$AH$2:$AH$3741,MATCH(aux_pr_ue!$F$3&aux_pr_ue!L113,precos_ue!$A$2:$A$3741,0))=0,"",INDEX(precos_ue!$AH$2:$AH$3741,MATCH(aux_pr_ue!$F$3&aux_pr_ue!L113,precos_ue!$A$2:$A$3741,0))) -> 124.4976667 | L113: 2000/02 | M113: 140.9104 | N113: 124.4976667
J114: =+IF(INDEX(precos_ue!$AG$2:$AG$3741,MATCH(aux_pr_ue!$E$3&aux_pr_ue!L114,precos_ue!$A$2:$A$3741,0))=0,"",INDEX(precos_ue!$AG$2:$AG$3741,MATCH(aux_pr_ue!$E$3&aux_pr_ue!L114,precos_ue!$A$2:$A$3741,0))) -> 140.9104 | K114: =+IF(INDEX(precos_ue!$AH$2:$AH$3741,MATCH(aux_pr_ue!$F$3&aux_pr_ue!L114,precos_ue!$A$2:$A$3741,0))=0,"",INDEX(precos_ue!$AH$2:$AH$3741,MATCH(aux_pr_ue!$F$3&aux_pr_ue!L114,precos_ue!$A$2:$A$3741,0))) -> 125.4661 | L114: 2000/03 | M114: 140.9104 | N114: 125.4661
J115: =+IF(INDEX(precos_ue!$AG$2:$AG$3741,MATCH(aux_pr_ue!$E$3&aux_pr_ue!L115,precos_ue!$A$2:$A$3741,0))=0,"",INDEX(precos_ue!$AG$2:$AG$3741,MATCH(aux_pr_ue!$E$3&aux_pr_ue!L115,precos_ue!$A$2:$A$3741,0))) -> 140.9104 | K115: =+IF(INDEX(precos_ue!$AH$2:$AH$3741,MATCH(aux_pr_ue!$F$3&aux_pr_ue!L115,precos_ue!$A$2:$A$3741,0))=0,"",INDEX(precos_ue!$AH$2:$AH$3741,MATCH(aux_pr_ue!$F$3&aux_pr_ue!L115,precos_ue!$A$2:$A$3741,0))) -> 130.6622 | L115: 2000/04 | M115: 140.9104 | N115: 130.6622
J116: =+IF(INDEX(precos_ue!$AG$2:$AG$3741,MATCH(aux_pr_ue!$E$3&aux_pr_ue!L116,precos_ue!$A$2:$A$3741,0))=0,"",INDEX(precos_ue!$AG$2:$AG$3741,MATCH(aux_pr_ue!$E$3&aux_pr_ue!L116,precos_ue!$A$2:$A$3741,0))) -> 143.0927 | K116: =+IF(INDEX(precos_ue!$AH$2:$AH$3741,MATCH(aux_pr_ue!$F$3&aux_pr_ue!L116,precos_ue!$A$2:$A$3741,0))=0,"",INDEX(precos_ue!$AH$2:$AH$3741,MATCH(aux_pr_ue!$F$3&aux_pr_ue!L116,precos_ue!$A$2:$A$3741,0))) -> 130.7466333 | L116: 2000/05 | M116: 143.0927 | N116: 130.7466333
J117: =+IF(INDEX(precos_ue!$AG$2:$AG$3741,MATCH(aux_pr_ue!$E$3&aux_pr_ue!L117,precos_ue!$A$2:$A$3741,0))=0,"",INDEX(precos_ue!$AG$2:$AG$3741,MATCH(aux_pr_ue!$E$3&aux_pr_ue!L117,precos_ue!$A$2:$A$3741,0))) -> 144.06945 | K117: =+IF(INDEX(precos_ue!$AH$2:$AH$3741,MATCH(aux_pr_ue!$F$3&aux_pr_ue!L117,precos_ue!$A$2:$A$3741,0))=0,"",INDEX(precos_ue!$AH$2:$AH$3741,MATCH(aux_pr_ue!$F$3&aux_pr_ue!L117,precos_ue!$A$2:$A$3741,0))) -> 126.4945667 | L117: 2000/06 | M117: 144.06945 | N117: 126.4945667
J118: =+IF(INDEX(precos_ue!$AG$2:$AG$3741,MATCH(aux_pr_ue!$E$3&aux_pr_ue!L118,precos_ue!$A$2:$A$3741,0))=0,"",INDEX(precos_ue!$AG$2:$AG$3741,MATCH(aux_pr_ue!$E$3&aux_pr_ue!L118,precos_ue!$A$2:$A$3741,0))) -> 117.005625 | K118: =+IF(INDEX(precos_ue!$AH$2:$AH$3741,MATCH(aux_pr_ue!$F$3&aux_pr_ue!L118,precos_ue!$A$2:$A$3741,0))=0,"",INDEX(precos_ue!$AH$2:$AH$3741,MATCH(aux_pr_ue!$F$3&aux_pr_ue!L118,precos_ue!$A$2:$A$3741,0))) -> 126.0125333 | L118: 2000/07 | M118: 117.005625 | N118: 126.0125333
J119: =+IF(INDEX(precos_ue!$AG$2:$AG$3741,MATCH(aux_pr_ue!$E$3&aux_pr_ue!L119,precos_ue!$A$2:$A$3741,0))=0,"",INDEX(precos_ue!$AG$2:$AG$3741,MATCH(aux_pr_ue!$E$3&aux_pr_ue!L119,precos_ue!$A$2:$A$3741,0))) -> 118.516475 | K119: =+IF(INDEX(precos_ue!$AH$2:$AH$3741,MATCH(aux_pr_ue!$F$3&aux_pr_ue!L119,precos_ue!$A$2:$A$3741,0))=0,"",INDEX(precos_ue!$AH$2:$AH$3741,MATCH(aux_pr_ue!$F$3&aux_pr_ue!L119,precos_ue!$A$2:$A$3741,0))) -> 106.5942 | L119: 2000/08 | M119: 118.516475 | N119: 106.5942
J120: =+IF(INDEX(precos_ue!$AG$2:$AG$3741,MATCH(aux_pr_ue!$E$3&aux_pr_ue!L120,precos_ue!$A$2:$A$3741,0))=0,"",INDEX(precos_ue!$AG$2:$AG$3741,MATCH(aux_pr_ue!$E$3&aux_pr_ue!L120,precos_ue!$A$2:$A$3741,0))) -> 118.703525 | K120: =+IF(INDEX(precos_ue!$AH$2:$AH$3741,MATCH(aux_pr_ue!$F$3&aux_pr_ue!L120,precos_ue!$A$2:$A$3741,0))=0,"",INDEX(precos_ue!$AH$2:$AH$3741,MATCH(aux_pr_ue!$F$3&aux_pr_ue!L120,precos_ue!$A$2:$A$3741,0))) -> 107.0659 | L120: 2000/09 | M120: 118.703525 | N120: 107.0659
J121: =+IF(INDEX(precos_ue!$AG$2:$AG$3741,MATCH(aux_pr_ue!$E$3&aux_pr_ue!L121,precos_ue!$A$2:$A$3741,0))=0,"",INDEX(precos_ue!$AG$2:$AG$3741,MATCH(aux_pr_ue!$E$3&aux_pr_ue!L121,precos_ue!$A$2:$A$3741,0))) -> 128.73975 | K121: =+IF(INDEX(precos_ue!$AH$2:$AH$3741,MATCH(aux_pr_ue!$F$3&aux_pr_ue!L121,precos_ue!$A$2:$A$3741,0))=0,"",INDEX(precos_ue!$AH$2:$AH$3741,MATCH(aux_pr_ue!$F$3&aux_pr_ue!L121,precos_ue!$A$2:$A$3741,0))) -> 109.0070333 | L121: 2000/10 | M121: 128.73975 | N121: 109.0070333
J122: =+IF(INDEX(precos_ue!$AG$2:$AG$3741,MATCH(aux_pr_ue!$E$3&aux_pr_ue!L122,precos_ue!$A$2:$A$3741,0))=0,"",INDEX(precos_ue!$AG$2:$AG$3741,MATCH(aux_pr_ue!$E$3&aux_pr_ue!L122,precos_ue!$A$2:$A$3741,0))) -> 134.4432 | K122: =+IF(INDEX(precos_ue!$AH$2:$AH$3741,MATCH(aux_pr_ue!$F$3&aux_pr_ue!L122,precos_ue!$A$2:$A$3741,0))=0,"",INDEX(precos_ue!$AH$2:$AH$3741,MATCH(aux_pr_ue!$F$3&aux_pr_ue!L122,precos_ue!$A$2:$A$3741,0))) -> 111.5799667 | L122: 2000/11 | M122: 134.4432 | N122: 111.5799667
J123: =+IF(INDEX(precos_ue!$AG$2:$AG$3741,MATCH(aux_pr_ue!$E$3&aux_pr_ue!L123,precos_ue!$A$2:$A$3741,0))=0,"",INDEX(precos_ue!$AG$2:$AG$3741,MATCH(aux_pr_ue!$E$3&aux_pr_ue!L123,precos_ue!$A$2:$A$3741,0))) -> 139.5595 | K123: =+IF(INDEX(precos_ue!$AH$2:$AH$3741,MATCH(aux_pr_ue!$F$3&aux_pr_ue!L123,precos_ue!$A$2:$A$3741,0))=0,"",INDEX(precos_ue!$AH$2:$AH$3741,MATCH(aux_pr_ue!$F$3&aux_pr_ue!L123,precos_ue!$A$2:$A$3741,0))) -> 116.2791 | L123: 2000/12 | M123: 139.5595 | N123: 116.2791
J124: =+IF(INDEX(precos_ue!$AG$2:$AG$3741,MATCH(aux_pr_ue!$E$3&aux_pr_ue!L124,precos_ue!$A$2:$A$3741,0))=0,"",INDEX(precos_ue!$AG$2:$AG$3741,MATCH(aux_pr_ue!$E$3&aux_pr_ue!L124,precos_ue!$A$2:$A$3741,0))) -> 139.6067333 | K124: =+IF(INDEX(precos_ue!$AH$2:$AH$3741,MATCH(aux_pr_ue!$F$3&aux_pr_ue!L124,precos_ue!$A$2:$A$3741,0))=0,"",INDEX(precos_ue!$AH$2:$AH$3741,MATCH(aux_pr_ue!$F$3&aux_pr_ue!L124,precos_ue!$A$2:$A$3741,0))) -> 115.2282667 | L124: 2001/01 | M124: 139.6067333 | N124: 115.2282667
J125: =+IF(INDEX(precos_ue!$AG$2:$AG$3741,MATCH(aux_pr_ue!$E$3&aux_pr_ue!L125,precos_ue!$A$2:$A$3741,0))=0,"",INDEX(precos_ue!$AG$2:$AG$3741,MATCH(aux_pr_ue!$E$3&aux_pr_ue!L125,precos_ue!$A$2:$A$3741,0))) -> 137.6786 | K125: =+IF(INDEX(precos_ue!$AH$2:$AH$3741,MATCH(aux_pr_ue!$F$3&aux_pr_ue!L125,precos_ue!$A$2:$A$3741,0))=0,"",INDEX(precos_ue!$AH$2:$AH$3741,MATCH(aux_pr_ue!$F$3&aux_pr_ue!L125,precos_ue!$A$2:$A$3741,0))) -> 112.4817 | L125: 2001/02 | M125: 137.6786 | N125: 112.4817
J126: =+IF(INDEX(precos_ue!$AG$2:$AG$3741,MATCH(aux_pr_ue!$E$3&aux_pr_ue!L126,precos_ue!$A$2:$A$3741,0))=0,"",INDEX(precos_ue!$AG$2:$AG$3741,MATCH(aux_pr_ue!$E$3&aux_pr_ue!L126,precos_ue!$A$2:$A$3741,0))) -> 135.48395 | K126: =+IF(INDEX(precos_ue!$AH$2:$AH$3741,MATCH(aux_pr_ue!$F$3&aux_pr_ue!L126,precos_ue!$A$2:$A$3741,0))=0,"",INDEX(precos_ue!$AH$2:$AH$3741,MATCH(aux_pr_ue!$F$3&aux_pr_ue!L126,precos_ue!$A$2:$A$3741,0))) -> 111.8319667 | L126: 2001/03 | M126: 135.48395 | N126: 111.8319667
J127: =+IF(INDEX(precos_ue!$AG$2:$AG$3741,MATCH(aux_pr_ue!$E$3&aux_pr_ue!L127,precos_ue!$A$2:$A$3741,0))=0,"",INDEX(precos_ue!$AG$2:$AG$3741,MATCH(aux_pr_ue!$E$3&aux_pr_ue!L127,precos_ue!$A$2:$A$3741,0))) -> 137.66405 | K127: =+IF(INDEX(precos_ue!$AH$2:$AH$3741,MATCH(aux_pr_ue!$F$3&aux_pr_ue!L127,precos_ue!$A$2:$A$3741,0))=0,"",INDEX(precos_ue!$AH$2:$AH$3741,MATCH(aux_pr_ue!$F$3&aux_pr_ue!L127,precos_ue!$A$2:$A$3741,0))) -> 113.2353 | L127: 2001/04 | M127: 137.66405 | N127: 113.2353
J128: =+IF(INDEX(precos_ue!$AG$2:$AG$3741,MATCH(aux_pr_ue!$E$3&aux_pr_ue!L128,precos_ue!$A$2:$A$3741,0))=0,"",INDEX(precos_ue!$AG$2:$AG$3741,MATCH(aux_pr_ue!$E$3&aux_pr_ue!L128,precos_ue!$A$2:$A$3741,0))) -> 143.2998 | K128: =+IF(INDEX(precos_ue!$AH$2:$AH$3741,MATCH(aux_pr_ue!$F$3&aux_pr_ue!L128,precos_ue!$A$2:$A$3741,0))=0,"",INDEX(precos_ue!$AH$2:$AH$3741,MATCH(aux_pr_ue!$F$3&aux_pr_ue!L128,precos_ue!$A$2:$A$3741,0))) -> 118.829 | L128: 2001/05 | M128: 143.2998 | N128: 118.829
J129: =+IF(INDEX(precos_ue!$AG$2:$AG$3741,MATCH(aux_pr_ue!$E$3&aux_pr_ue!L129,precos_ue!$A$2:$A$3741,0))=0,"",INDEX(precos_ue!$AG$2:$AG$3741,MATCH(aux_pr_ue!$E$3&aux_pr_ue!L129,precos_ue!$A$2:$A$3741,0))) -> 142.4754 | K129: =+IF(INDEX(precos_ue!$AH$2:$AH$3741,MATCH(aux_pr_ue!$F$3&aux_pr_ue!L129,precos_ue!$A$2:$A$3741,0))=0,"",INDEX(precos_ue!$AH$2:$AH$3741,MATCH(aux_pr_ue!$F$3&aux_pr_ue!L129,precos_ue!$A$2:$A$3741,0))) -> 119.4020667 | L129: 2001/06 | M129: 142.4754 | N129: 119.4020667
J130: =+IF(INDEX(precos_ue!$AG$2:$AG$3741,MATCH(aux_pr_ue!$E$3&aux_pr_ue!L130,precos_ue!$A$2:$A$3741,0))=0,"",INDEX(precos_ue!$AG$2:$AG$3741,MATCH(aux_pr_ue!$E$3&aux_pr_ue!L130,precos_ue!$A$2:$A$3741,0))) -> 137.726575 | K130: =+IF(INDEX(precos_ue!$AH$2:$AH$3741,MATCH(aux_pr_ue!$F$3&aux_pr_ue!L130,precos_ue!$A$2:$A$3741,0))=0,"",INDEX(precos_ue!$AH$2:$AH$3741,MATCH(aux_pr_ue!$F$3&aux_pr_ue!L130,precos_ue!$A$2:$A$3741,0))) -> 119.665 | L130: 2001/07 | M130: 137.726575 | N130: 119.665
J131: =+IF(INDEX(precos_ue!$AG$2:$AG$3741,MATCH(aux_pr_ue!$E$3&aux_pr_ue!L131,precos_ue!$A$2:$A$3741,0))=0,"",INDEX(precos_ue!$AG$2:$AG$3741,MATCH(aux_pr_ue!$E$3&aux_pr_ue!L131,precos_ue!$A$2:$A$3741,0))) -> 137.361675 | K131: =+IF(INDEX(precos_ue!$AH$2:$AH$3741,MATCH(aux_pr_ue!$F$3&aux_pr_ue!L131,precos_ue!$A$2:$A$3741,0))=0,"",INDEX(precos_ue!$AH$2:$AH$3741,MATCH(aux_pr_ue!$F$3&aux_pr_ue!L131,precos_ue!$A$2:$A$3741,0))) -> 119.5321667 | L131: 2001/08 | M131: 137.361675 | N131: 119.5321667
J132: =+IF(INDEX(precos_ue!$AG$2:$AG$3741,MATCH(aux_pr_ue!$E$3&aux_pr_ue!L132,precos_ue!$A$2:$A$3741,0))=0,"",INDEX(precos_ue!$AG$2:$AG$3741,MATCH(aux_pr_ue!$E$3&aux_pr_ue!L132,precos_ue!$A$2:$A$3741,0))) -> 136.176 | K132: =+IF(INDEX(precos_ue!$AH$2:$AH$3741,MATCH(aux_pr_ue!$F$3&aux_pr_ue!L132,precos_ue!$A$2:$A$3741,0))=0,"",INDEX(precos_ue!$AH$2:$AH$3741,MATCH(aux_pr_ue!$F$3&aux_pr_ue!L132,precos_ue!$A$2:$A$3741,0))) -> 118.4242667 | L132: 2001/09 | M132: 136.176 | N132: 118.4242667
J133: =+IF(INDEX(precos_ue!$AG$2:$AG$3741,MATCH(aux_pr_ue!$E$3&aux_pr_ue!L133,precos_ue!$A$2:$A$3741,0))=0,"",INDEX(precos_ue!$AG$2:$AG$3741,MATCH(aux_pr_ue!$E$3&aux_pr_ue!L133,precos_ue!$A$2:$A$3741,0))) -> 137.89685 | K133: =+IF(INDEX(precos_ue!$AH$2:$AH$3741,MATCH(aux_pr_ue!$F$3&aux_pr_ue!L133,precos_ue!$A$2:$A$3741,0))=0,"",INDEX(precos_ue!$AH$2:$AH$3741,MATCH(aux_pr_ue!$F$3&aux_pr_ue!L133,precos_ue!$A$2:$A$3741,0))) -> 116.2699667 | L133: 2001/10 | M133: 137.89685 | N133: 116.2699667
J134: =+IF(INDEX(precos_ue!$AG$2:$AG$3741,MATCH(aux_pr_ue!$E$3&aux_pr_ue!L134,precos_ue!$A$2:$A$3741,0))=0,"",INDEX(precos_ue!$AG$2:$AG$3741,MATCH(aux_pr_ue!$E$3&aux_pr_ue!L134,precos_ue!$A$2:$A$3741,0))) -> 141.68735 | K134: =+IF(INDEX(precos_ue!$AH$2:$AH$3741,MATCH(aux_pr_ue!$F$3&aux_pr_ue!L134,precos_ue!$A$2:$A$3741,0))=0,"",INDEX(precos_ue!$AH$2:$AH$3741,MATCH(aux_pr_ue!$F$3&aux_pr_ue!L134,precos_ue!$A$2:$A$3741,0))) -> 121.7965333 | L134: 2001/11 | M134: 141.68735 | N134: 121.7965333
J135: =+IF(INDEX(precos_ue!$AG$2:$AG$3741,MATCH(aux_pr_ue!$E$3&aux_pr_ue!L135,precos_ue!$A$2:$A$3741,0))=0,"",INDEX(precos_ue!$AG$2:$AG$3741,MATCH(aux_pr_ue!$E$3&aux_pr_ue!L135,precos_ue!$A$2:$A$3741,0))) -> 141.9269 | K135: =+IF(INDEX(precos_ue!$AH$2:$AH$3741,MATCH(aux_pr_ue!$F$3&aux_pr_ue!L135,precos_ue!$A$2:$A$3741,0))=0,"",INDEX(precos_ue!$AH$2:$AH$3741,MATCH(aux_pr_ue!$F$3&aux_pr_ue!L135,precos_ue!$A$2:$A$3741,0))) -> 123.8651 | L135: 2001/12 | M135: 141.9269 | N135: 123.8651
J136: =+IF(INDEX(precos_ue!$AG$2:$AG$3741,MATCH(aux_pr_ue!$E$3&aux_pr_ue!L136,precos_ue!$A$2:$A$3741,0))=0,"",INDEX(precos_ue!$AG$2:$AG$3741,MATCH(aux_pr_ue!$E$3&aux_pr_ue!L136,precos_ue!$A$2:$A$3741,0))) -> 140.8955 | K136: =+IF(INDEX(precos_ue!$AH$2:$AH$3741,MATCH(aux_pr_ue!$F$3&aux_pr_ue!L136,precos_ue!$A$2:$A$3741,0))=0,"",INDEX(precos_ue!$AH$2:$AH$3741,MATCH(aux_pr_ue!$F$3&aux_pr_ue!L136,precos_ue!$A$2:$A$3741,0))) -> 123.6773 | L136: 2002/01 | M136: 140.8955 | N136: 123.6773
J137: =+IF(INDEX(precos_ue!$AG$2:$AG$3741,MATCH(aux_pr_ue!$E$3&aux_pr_ue!L137,precos_ue!$A$2:$A$3741,0))=0,"",INDEX(precos_ue!$AG$2:$AG$3741,MATCH(aux_pr_ue!$E$3&aux_pr_ue!L137,precos_ue!$A$2:$A$3741,0))) -> 138.4216 | K137: =+IF(INDEX(precos_ue!$AH$2:$AH$3741,MATCH(aux_pr_ue!$F$3&aux_pr_ue!L137,precos_ue!$A$2:$A$3741,0))=0,"",INDEX(precos_ue!$AH$2:$AH$3741,MATCH(aux_pr_ue!$F$3&aux_pr_ue!L137,precos_ue!$A$2:$A$3741,0))) -> 120.9405 | L137: 2002/02 | M137: 138.4216 | N137: 120.9405
J138: =+IF(INDEX(precos_ue!$AG$2:$AG$3741,MATCH(aux_pr_ue!$E$3&aux_pr_ue!L138,precos_ue!$A$2:$A$3741,0))=0,"",INDEX(precos_ue!$AG$2:$AG$3741,MATCH(aux_pr_ue!$E$3&aux_pr_ue!L138,precos_ue!$A$2:$A$3741,0))) -> 133.69275 | K138: =+IF(INDEX(precos_ue!$AH$2:$AH$3741,MATCH(aux_pr_ue!$F$3&aux_pr_ue!L138,precos_ue!$A$2:$A$3741,0))=0,"",INDEX(precos_ue!$AH$2:$AH$3741,MATCH(aux_pr_ue!$F$3&aux_pr_ue!L138,precos_ue!$A$2:$A$3741,0))) -> 115.1344 | L138: 2002/03 | M138: 133.69275 | N138: 115.1344
J139: =+IF(INDEX(precos_ue!$AG$2:$AG$3741,MATCH(aux_pr_ue!$E$3&aux_pr_ue!L139,precos_ue!$A$2:$A$3741,0))=0,"",INDEX(precos_ue!$AG$2:$AG$3741,MATCH(aux_pr_ue!$E$3&aux_pr_ue!L139,precos_ue!$A$2:$A$3741,0))) -> 132.0073 | K139: =+IF(INDEX(precos_ue!$AH$2:$AH$3741,MATCH(aux_pr_ue!$F$3&aux_pr_ue!L139,precos_ue!$A$2:$A$3741,0))=0,"",INDEX(precos_ue!$AH$2:$AH$3741,MATCH(aux_pr_ue!$F$3&aux_pr_ue!L139,precos_ue!$A$2:$A$3741,0))) -> 113.3819667 | L139: 2002/04 | M139: 132.0073 | N139: 113.3819667
J140: =+IF(INDEX(precos_ue!$AG$2:$AG$3741,MATCH(aux_pr_ue!$E$3&aux_pr_ue!L140,precos_ue!$A$2:$A$3741,0))=0,"",INDEX(precos_ue!$AG$2:$AG$3741,MATCH(aux_pr_ue!$E$3&aux_pr_ue!L140,precos_ue!$A$2:$A$3741,0))) -> 128.39355 | K140: =+IF(INDEX(precos_ue!$AH$2:$AH$3741,MATCH(aux_pr_ue!$F$3&aux_pr_ue!L140,precos_ue!$A$2:$A$3741,0))=0,"",INDEX(precos_ue!$AH$2:$AH$3741,MATCH(aux_pr_ue!$F$3&aux_pr_ue!L140,precos_ue!$A$2:$A$3741,0))) -> 109.0787 | L140: 2002/05 | M140: 128.39355 | N140: 109.0787
J141: =+IF(INDEX(precos_ue!$AG$2:$AG$3741,MATCH(aux_pr_ue!$E$3&aux_pr_ue!L141,precos_ue!$A$2:$A$3741,0))=0,"",INDEX(precos_ue!$AG$2:$AG$3741,MATCH(aux_pr_ue!$E$3&aux_pr_ue!L141,precos_ue!$A$2:$A$3741,0))) -> 122.6655 | K141: =+IF(INDEX(precos_ue!$AH$2:$AH$3741,MATCH(aux_pr_ue!$F$3&aux_pr_ue!L141,precos_ue!$A$2:$A$3741,0))=0,"",INDEX(precos_ue!$AH$2:$AH$3741,MATCH(aux_pr_ue!$F$3&aux_pr_ue!L141,precos_ue!$A$2:$A$3741,0))) -> 105.5555667 | L141: 2002/06 | M141: 122.6655 | N141: 105.5555667
J142: =+IF(INDEX(precos_ue!$AG$2:$AG$3741,MATCH(aux_pr_ue!$E$3&aux_pr_ue!L142,precos_ue!$A$2:$A$3741,0))=0,"",INDEX(precos_ue!$AG$2:$AG$3741,MATCH(aux_pr_ue!$E$3&aux_pr_ue!L142,precos_ue!$A$2:$A$3741,0))) -> 120.539025 | K142: =+IF(INDEX(precos_ue!$AH$2:$AH$3741,MATCH(aux_pr_ue!$F$3&aux_pr_ue!L142,precos_ue!$A$2:$A$3741,0))=0,"",INDEX(precos_ue!$AH$2:$AH$3741,MATCH(aux_pr_ue!$F$3&aux_pr_ue!L142,precos_ue!$A$2:$A$3741,0))) -> 101.1333333 | L142: 2002/07 | M142: 120.539025 | N142: 101.1333333
J143: =+IF(INDEX(precos_ue!$AG$2:$AG$3741,MATCH(aux_pr_ue!$E$3&aux_pr_ue!L143,precos_ue!$A$2:$A$3741,0))=0,"",INDEX(precos_ue!$AG$2:$AG$3741,MATCH(aux_pr_ue!$E$3&aux_pr_ue!L143,precos_ue!$A$2:$A$3741,0))) -> 119.285025 | K143: =+IF(INDEX(precos_ue!$AH$2:$AH$3741,MATCH(aux_pr_ue!$F$3&aux_pr_ue!L143,precos_ue!$A$2:$A$3741,0))=0,"",INDEX(precos_ue!$AH$2:$AH$3741,MATCH(aux_pr_ue!$F$3&aux_pr_ue!L143,precos_ue!$A$2:$A$3741,0))) -> 95 | L143: 2002/08 | M143: 119.285025 | N143: 95
J144: =+IF(INDEX(precos_ue!$AG$2:$AG$3741,MATCH(aux_pr_ue!$E$3&aux_pr_ue!L144,precos_ue!$A$2:$A$3741,0))=0,"",INDEX(precos_ue!$AG$2:$AG$3741,MATCH(aux_pr_ue!$E$3&aux_pr_ue!L144,precos_ue!$A$2:$A$3741,0))) -> 119.73275 | K144: =+IF(INDEX(precos_ue!$AH$2:$AH$3741,MATCH(aux_pr_ue!$F$3&aux_pr_ue!L144,precos_ue!$A$2:$A$3741,0))=0,"",INDEX(precos_ue!$AH$2:$AH$3741,MATCH(aux_pr_ue!$F$3&aux_pr_ue!L144,precos_ue!$A$2:$A$3741,0))) -> 101.0703667 | L144: 2002/09 | M144: 119.73275 | N144: 101.0703667
J145: =+IF(INDEX(precos_ue!$AG$2:$AG$3741,MATCH(aux_pr_ue!$E$3&aux_pr_ue!L145,precos_ue!$A$2:$A$3741,0))=0,"",INDEX(precos_ue!$AG$2:$AG$3741,MATCH(aux_pr_ue!$E$3&aux_pr_ue!L145,precos_ue!$A$2:$A$3741,0))) -> 121.62065 | K145: =+IF(INDEX(precos_ue!$AH$2:$AH$3741,MATCH(aux_pr_ue!$F$3&aux_pr_ue!L145,precos_ue!$A$2:$A$3741,0))=0,"",INDEX(precos_ue!$AH$2:$AH$3741,MATCH(aux_pr_ue!$F$3&aux_pr_ue!L145,precos_ue!$A$2:$A$3741,0))) -> 111.37095 | L145: 2002/10 | M145: 121.62065 | N145: 111.37095
J146: =+IF(INDEX(precos_ue!$AG$2:$AG$3741,MATCH(aux_pr_ue!$E$3&aux_pr_ue!L146,precos_ue!$A$2:$A$3741,0))=0,"",INDEX(precos_ue!$AG$2:$AG$3741,MATCH(aux_pr_ue!$E$3&aux_pr_ue!L146,precos_ue!$A$2:$A$3741,0))) -> 121.8265 | K146: =+IF(INDEX(precos_ue!$AH$2:$AH$3741,MATCH(aux_pr_ue!$F$3&aux_pr_ue!L146,precos_ue!$A$2:$A$3741,0))=0,"",INDEX(precos_ue!$AH$2:$AH$3741,MATCH(aux_pr_ue!$F$3&aux_pr_ue!L146,precos_ue!$A$2:$A$3741,0))) -> 111.2167 | L146: 2002/11 | M146: 121.8265 | N146: 111.2167
J147: =+IF(INDEX(precos_ue!$AG$2:$AG$3741,MATCH(aux_pr_ue!$E$3&aux_pr_ue!L147,precos_ue!$A$2:$A$3741,0))=0,"",INDEX(precos_ue!$AG$2:$AG$3741,MATCH(aux_pr_ue!$E$3&aux_pr_ue!L147,precos_ue!$A$2:$A$3741,0))) -> 122.46125 | K147: =+IF(INDEX(precos_ue!$AH$2:$AH$3741,MATCH(aux_pr_ue!$F$3&aux_pr_ue!L147,precos_ue!$A$2:$A$3741,0))=0,"",INDEX(precos_ue!$AH$2:$AH$3741,MATCH(aux_pr_ue!$F$3&aux_pr_ue!L147,precos_ue!$A$2:$A$3741,0))) -> 111 | L147: 2002/12 | M147: 122.46125 | N147: 111
J148: =+IF(INDEX(precos_ue!$AG$2:$AG$3741,MATCH(aux_pr_ue!$E$3&aux_pr_ue!L148,precos_ue!$A$2:$A$3741,0))=0,"",INDEX(precos_ue!$AG$2:$AG$3741,MATCH(aux_pr_ue!$E$3&aux_pr_ue!L148,precos_ue!$A$2:$A$3741,0))) -> 121.73275 | K148: =+IF(INDEX(precos_ue!$AH$2:$AH$3741,MATCH(aux_pr_ue!$F$3&aux_pr_ue!L148,precos_ue!$A$2:$A$3741,0))=0,"",INDEX(precos_ue!$AH$2:$AH$3741,MATCH(aux_pr_ue!$F$3&aux_pr_ue!L148,precos_ue!$A$2:$A$3741,0))) -> 111.075 | L148: 2003/01 | M148: 121.73275 | N148: 111.075
J149: =+IF(INDEX(precos_ue!$AG$2:$AG$3741,MATCH(aux_pr_ue!$E$3&aux_pr_ue!L149,precos_ue!$A$2:$A$3741,0))=0,"",INDEX(precos_ue!$AG$2:$AG$3741,MATCH(aux_pr_ue!$E$3&aux_pr_ue!L149,precos_ue!$A$2:$A$3741,0))) -> 123.04 | K149: =+IF(INDEX(precos_ue!$AH$2:$AH$3741,MATCH(aux_pr_ue!$F$3&aux_pr_ue!L149,precos_ue!$A$2:$A$3741,0))=0,"",INDEX(precos_ue!$AH$2:$AH$3741,MATCH(aux_pr_ue!$F$3&aux_pr_ue!L149,precos_ue!$A$2:$A$3741,0))) -> 110.625 | L149: 2003/02 | M149: 123.04 | N149: 110.625
J150: =+IF(INDEX(precos_ue!$AG$2:$AG$3741,MATCH(aux_pr_ue!$E$3&aux_pr_ue!L150,precos_ue!$A$2:$A$3741,0))=0,"",INDEX(precos_ue!$AG$2:$AG$3741,MATCH(aux_pr_ue!$E$3&aux_pr_ue!L150,precos_ue!$A$2:$A$3741,0))) -> 122.8071 | K150: =+IF(INDEX(precos_ue!$AH$2:$AH$3741,MATCH(aux_pr_ue!$F$3&aux_pr_ue!L150,precos_ue!$A$2:$A$3741,0))=0,"",INDEX(precos_ue!$AH$2:$AH$3741,MATCH(aux_pr_ue!$F$3&aux_pr_ue!L150,precos_ue!$A$2:$A$3741,0))) -> 109.629 | L150: 2003/03 | M150: 122.8071 | N150: 109.629
J151: =+IF(INDEX(precos_ue!$AG$2:$AG$3741,MATCH(aux_pr_ue!$E$3&aux_pr_ue!L151,precos_ue!$A$2:$A$3741,0))=0,"",INDEX(precos_ue!$AG$2:$AG$3741,MATCH(aux_pr_ue!$E$3&aux_pr_ue!L151,precos_ue!$A$2:$A$3741,0))) -> 123.4385 | K151: =+IF(INDEX(precos_ue!$AH$2:$AH$3741,MATCH(aux_pr_ue!$F$3&aux_pr_ue!L151,precos_ue!$A$2:$A$3741,0))=0,"",INDEX(precos_ue!$AH$2:$AH$3741,MATCH(aux_pr_ue!$F$3&aux_pr_ue!L151,precos_ue!$A$2:$A$3741,0))) -> 110.8167 | L151: 2003/04 | M151: 123.4385 | N151: 110.8167
J152: =+IF(INDEX(precos_ue!$AG$2:$AG$3741,MATCH(aux_pr_ue!$E$3&aux_pr_ue!L152,precos_ue!$A$2:$A$3741,0))=0,"",INDEX(precos_ue!$AG$2:$AG$3741,MATCH(aux_pr_ue!$E$3&aux_pr_ue!L152,precos_ue!$A$2:$A$3741,0))) -> 128.1513 | K152: =+IF(INDEX(precos_ue!$AH$2:$AH$3741,MATCH(aux_pr_ue!$F$3&aux_pr_ue!L152,precos_ue!$A$2:$A$3741,0))=0,"",INDEX(precos_ue!$AH$2:$AH$3741,MATCH(aux_pr_ue!$F$3&aux_pr_ue!L152,precos_ue!$A$2:$A$3741,0))) -> 112.00805 | L152: 2003/05 | M152: 128.1513 | N152: 112.00805
J153: =+IF(INDEX(precos_ue!$AG$2:$AG$3741,MATCH(aux_pr_ue!$E$3&aux_pr_ue!L153,precos_ue!$A$2:$A$3741,0))=0,"",INDEX(precos_ue!$AG$2:$AG$3741,MATCH(aux_pr_ue!$E$3&aux_pr_ue!L153,precos_ue!$A$2:$A$3741,0))) -> 122.8504667 | K153: =+IF(INDEX(precos_ue!$AH$2:$AH$3741,MATCH(aux_pr_ue!$F$3&aux_pr_ue!L153,precos_ue!$A$2:$A$3741,0))=0,"",INDEX(precos_ue!$AH$2:$AH$3741,MATCH(aux_pr_ue!$F$3&aux_pr_ue!L153,precos_ue!$A$2:$A$3741,0))) -> 111.0667 | L153: 2003/06 | M153: 122.8504667 | N153: 111.0667
J154: =+IF(INDEX(precos_ue!$AG$2:$AG$3741,MATCH(aux_pr_ue!$E$3&aux_pr_ue!L154,precos_ue!$A$2:$A$3741,0))=0,"",INDEX(precos_ue!$AG$2:$AG$3741,MATCH(aux_pr_ue!$E$3&aux_pr_ue!L154,precos_ue!$A$2:$A$3741,0))) -> 125.39975 | K154: =+IF(INDEX(precos_ue!$AH$2:$AH$3741,MATCH(aux_pr_ue!$F$3&aux_pr_ue!L154,precos_ue!$A$2:$A$3741,0))=0,"",INDEX(precos_ue!$AH$2:$AH$3741,MATCH(aux_pr_ue!$F$3&aux_pr_ue!L154,precos_ue!$A$2:$A$3741,0))) -> 114 | L154: 2003/07 | M154: 125.39975 | N154: 114
J155: =+IF(INDEX(precos_ue!$AG$2:$AG$3741,MATCH(aux_pr_ue!$E$3&aux_pr_ue!L155,precos_ue!$A$2:$A$3741,0))=0,"",INDEX(precos_ue!$AG$2:$AG$3741,MATCH(aux_pr_ue!$E$3&aux_pr_ue!L155,precos_ue!$A$2:$A$3741,0))) -> 134.77 | K155: =+IF(INDEX(precos_ue!$AH$2:$AH$3741,MATCH(aux_pr_ue!$F$3&aux_pr_ue!L155,precos_ue!$A$2:$A$3741,0))=0,"",INDEX(precos_ue!$AH$2:$AH$3741,MATCH(aux_pr_ue!$F$3&aux_pr_ue!L155,precos_ue!$A$2:$A$3741,0))) -> 122.6129 | L155: 2003/08 | M155: 134.77 | N155: 122.6129
J156: =+IF(INDEX(precos_ue!$AG$2:$AG$3741,MATCH(aux_pr_ue!$E$3&aux_pr_ue!L156,precos_ue!$A$2:$A$3741,0))=0,"",INDEX(precos_ue!$AG$2:$AG$3741,MATCH(aux_pr_ue!$E$3&aux_pr_ue!L156,precos_ue!$A$2:$A$3741,0))) -> 140.5663333 | K156: =+IF(INDEX(precos_ue!$AH$2:$AH$3741,MATCH(aux_pr_ue!$F$3&aux_pr_ue!L156,precos_ue!$A$2:$A$3741,0))=0,"",INDEX(precos_ue!$AH$2:$AH$3741,MATCH(aux_pr_ue!$F$3&aux_pr_ue!L156,precos_ue!$A$2:$A$3741,0))) -> 131.55 | L156: 2003/09 | M156: 140.5663333 | N156: 131.55
J157: =+IF(INDEX(precos_ue!$AG$2:$AG$3741,MATCH(aux_pr_ue!$E$3&aux_pr_ue!L157,precos_ue!$A$2:$A$3741,0))=0,"",INDEX(precos_ue!$AG$2:$AG$3741,MATCH(aux_pr_ue!$E$3&aux_pr_ue!L157,precos_ue!$A$2:$A$3741,0))) -> 143.7503 | K157: =+IF(INDEX(precos_ue!$AH$2:$AH$3741,MATCH(aux_pr_ue!$F$3&aux_pr_ue!L157,precos_ue!$A$2:$A$3741,0))=0,"",INDEX(precos_ue!$AH$2:$AH$3741,MATCH(aux_pr_ue!$F$3&aux_pr_ue!L157,precos_ue!$A$2:$A$3741,0))) -> 138.5 | L157: 2003/10 | M157: 143.7503 | N157: 138.5
J158: =+IF(INDEX(precos_ue!$AG$2:$AG$3741,MATCH(aux_pr_ue!$E$3&aux_pr_ue!L158,precos_ue!$A$2:$A$3741,0))=0,"",INDEX(precos_ue!$AG$2:$AG$3741,MATCH(aux_pr_ue!$E$3&aux_pr_ue!L158,precos_ue!$A$2:$A$3741,0))) -> 174.99315 | K158: =+IF(INDEX(precos_ue!$AH$2:$AH$3741,MATCH(aux_pr_ue!$F$3&aux_pr_ue!L158,precos_ue!$A$2:$A$3741,0))=0,"",INDEX(precos_ue!$AH$2:$AH$3741,MATCH(aux_pr_ue!$F$3&aux_pr_ue!L158,precos_ue!$A$2:$A$3741,0))) -> 157.2333 | L158: 2003/11 | M158: 174.99315 | N158: 157.2333
J159: =+IF(INDEX(precos_ue!$AG$2:$AG$3741,MATCH(aux_pr_ue!$E$3&aux_pr_ue!L159,precos_ue!$A$2:$A$3741,0))=0,"",INDEX(precos_ue!$AG$2:$AG$3741,MATCH(aux_pr_ue!$E$3&aux_pr_ue!L159,precos_ue!$A$2:$A$3741,0))) -> 181.3385 | K159: =+IF(INDEX(precos_ue!$AH$2:$AH$3741,MATCH(aux_pr_ue!$F$3&aux_pr_ue!L159,precos_ue!$A$2:$A$3741,0))=0,"",INDEX(precos_ue!$AH$2:$AH$3741,MATCH(aux_pr_ue!$F$3&aux_pr_ue!L159,precos_ue!$A$2:$A$3741,0))) -> 161.3676 | L159: 2003/12 | M159: 181.3385 | N159: 161.3676
J160: =+IF(INDEX(precos_ue!$AG$2:$AG$3741,MATCH(aux_pr_ue!$E$3&aux_pr_ue!L160,precos_ue!$A$2:$A$3741,0))=0,"",INDEX(precos_ue!$AG$2:$AG$3741,MATCH(aux_pr_ue!$E$3&aux_pr_ue!L160,precos_ue!$A$2:$A$3741,0))) -> 179.6506 | K160: =+IF(INDEX(precos_ue!$AH$2:$AH$3741,MATCH(aux_pr_ue!$F$3&aux_pr_ue!L160,precos_ue!$A$2:$A$3741,0))=0,"",INDEX(precos_ue!$AH$2:$AH$3741,MATCH(aux_pr_ue!$F$3&aux_pr_ue!L160,precos_ue!$A$2:$A$3741,0))) -> 160.25875 | L160: 2004/01 | M160: 179.6506 | N160: 160.25875
J161: =+IF(INDEX(precos_ue!$AG$2:$AG$3741,MATCH(aux_pr_ue!$E$3&aux_pr_ue!L161,precos_ue!$A$2:$A$3741,0))=0,"",INDEX(precos_ue!$AG$2:$AG$3741,MATCH(aux_pr_ue!$E$3&aux_pr_ue!L161,precos_ue!$A$2:$A$3741,0))) -> 177.1293 | K161: =+IF(INDEX(precos_ue!$AH$2:$AH$3741,MATCH(aux_pr_ue!$F$3&aux_pr_ue!L161,precos_ue!$A$2:$A$3741,0))=0,"",INDEX(precos_ue!$AH$2:$AH$3741,MATCH(aux_pr_ue!$F$3&aux_pr_ue!L161,precos_ue!$A$2:$A$3741,0))) -> 156.8276 | L161: 2004/02 | M161: 177.1293 | N161: 156.8276
J162: =+IF(INDEX(precos_ue!$AG$2:$AG$3741,MATCH(aux_pr_ue!$E$3&aux_pr_ue!L162,precos_ue!$A$2:$A$3741,0))=0,"",INDEX(precos_ue!$AG$2:$AG$3741,MATCH(aux_pr_ue!$E$3&aux_pr_ue!L162,precos_ue!$A$2:$A$3741,0))) -> 175.81825 | K162: =+IF(INDEX(precos_ue!$AH$2:$AH$3741,MATCH(aux_pr_ue!$F$3&aux_pr_ue!L162,precos_ue!$A$2:$A$3741,0))=0,"",INDEX(precos_ue!$AH$2:$AH$3741,MATCH(aux_pr_ue!$F$3&aux_pr_ue!L162,precos_ue!$A$2:$A$3741,0))) -> 153.9355 | L162: 2004/03 | M162: 175.81825 | N162: 153.9355
J163: =+IF(INDEX(precos_ue!$AG$2:$AG$3741,MATCH(aux_pr_ue!$E$3&aux_pr_ue!L163,precos_ue!$A$2:$A$3741,0))=0,"",INDEX(precos_ue!$AG$2:$AG$3741,MATCH(aux_pr_ue!$E$3&aux_pr_ue!L163,precos_ue!$A$2:$A$3741,0))) -> 177.97085 | K163: =+IF(INDEX(precos_ue!$AH$2:$AH$3741,MATCH(aux_pr_ue!$F$3&aux_pr_ue!L163,precos_ue!$A$2:$A$3741,0))=0,"",INDEX(precos_ue!$AH$2:$AH$3741,MATCH(aux_pr_ue!$F$3&aux_pr_ue!L163,precos_ue!$A$2:$A$3741,0))) -> 153.4333 | L163: 2004/04 | M163: 177.97085 | N163: 153.4333
J164: =+IF(INDEX(precos_ue!$AG$2:$AG$3741,MATCH(aux_pr_ue!$E$3&aux_pr_ue!L164,precos_ue!$A$2:$A$3741,0))=0,"",INDEX(precos_ue!$AG$2:$AG$3741,MATCH(aux_pr_ue!$E$3&aux_pr_ue!L164,precos_ue!$A$2:$A$3741,0))) -> 168.6208 | K164: =+IF(INDEX(precos_ue!$AH$2:$AH$3741,MATCH(aux_pr_ue!$F$3&aux_pr_ue!L164,precos_ue!$A$2:$A$3741,0))=0,"",INDEX(precos_ue!$AH$2:$AH$3741,MATCH(aux_pr_ue!$F$3&aux_pr_ue!L164,precos_ue!$A$2:$A$3741,0))) -> 147.7742 | L164: 2004/05 | M164: 168.6208 | N164: 147.7742
J165: =+IF(INDEX(precos_ue!$AG$2:$AG$3741,MATCH(aux_pr_ue!$E$3&aux_pr_ue!L165,precos_ue!$A$2:$A$3741,0))=0,"",INDEX(precos_ue!$AG$2:$AG$3741,MATCH(aux_pr_ue!$E$3&aux_pr_ue!L165,precos_ue!$A$2:$A$3741,0))) -> 155.449 | K165: =+IF(INDEX(precos_ue!$AH$2:$AH$3741,MATCH(aux_pr_ue!$F$3&aux_pr_ue!L165,precos_ue!$A$2:$A$3741,0))=0,"",INDEX(precos_ue!$AH$2:$AH$3741,MATCH(aux_pr_ue!$F$3&aux_pr_ue!L165,precos_ue!$A$2:$A$3741,0))) -> 134.4 | L165: 2004/06 | M165: 155.449 | N165: 134.4
J166: =+IF(INDEX(precos_ue!$AG$2:$AG$3741,MATCH(aux_pr_ue!$E$3&aux_pr_ue!L166,precos_ue!$A$2:$A$3741,0))=0,"",INDEX(precos_ue!$AG$2:$AG$3741,MATCH(aux_pr_ue!$E$3&aux_pr_ue!L166,precos_ue!$A$2:$A$3741,0))) -> 136.252075 | K166: =+IF(INDEX(precos_ue!$AH$2:$AH$3741,MATCH(aux_pr_ue!$F$3&aux_pr_ue!L166,precos_ue!$A$2:$A$3741,0))=0,"",INDEX(precos_ue!$AH$2:$AH$3741,MATCH(aux_pr_ue!$F$3&aux_pr_ue!L166,precos_ue!$A$2:$A$3741,0))) -> 137.6667 | L166: 2004/07 | M166: 136.252075 | N166: 137.6667
J167: =+IF(INDEX(precos_ue!$AG$2:$AG$3741,MATCH(aux_pr_ue!$E$3&aux_pr_ue!L167,precos_ue!$A$2:$A$3741,0))=0,"",INDEX(precos_ue!$AG$2:$AG$3741,MATCH(aux_pr_ue!$E$3&aux_pr_ue!L167,precos_ue!$A$2:$A$3741,0))) -> 134.7896 | K167: =+IF(INDEX(precos_ue!$AH$2:$AH$3741,MATCH(aux_pr_ue!$F$3&aux_pr_ue!L167,precos_ue!$A$2:$A$3741,0))=0,"",INDEX(precos_ue!$AH$2:$AH$3741,MATCH(aux_pr_ue!$F$3&aux_pr_ue!L167,precos_ue!$A$2:$A$3741,0))) -> 106.2963 | L167: 2004/08 | M167: 134.7896 | N167: 106.2963
J168: =+IF(INDEX(precos_ue!$AG$2:$AG$3741,MATCH(aux_pr_ue!$E$3&aux_pr_ue!L168,precos_ue!$A$2:$A$3741,0))=0,"",INDEX(precos_ue!$AG$2:$AG$3741,MATCH(aux_pr_ue!$E$3&aux_pr_ue!L168,precos_ue!$A$2:$A$3741,0))) -> 125.8874333 | K168: =+IF(INDEX(precos_ue!$AH$2:$AH$3741,MATCH(aux_pr_ue!$F$3&aux_pr_ue!L168,precos_ue!$A$2:$A$3741,0))=0,"",INDEX(precos_ue!$AH$2:$AH$3741,MATCH(aux_pr_ue!$F$3&aux_pr_ue!L168,precos_ue!$A$2:$A$3741,0))) -> 104.2333 | L168: 2004/09 | M168: 125.8874333 | N168: 104.2333
J169: =+IF(INDEX(precos_ue!$AG$2:$AG$3741,MATCH(aux_pr_ue!$E$3&aux_pr_ue!L169,precos_ue!$A$2:$A$3741,0))=0,"",INDEX(precos_ue!$AG$2:$AG$3741,MATCH(aux_pr_ue!$E$3&aux_pr_ue!L169,precos_ue!$A$2:$A$3741,0))) -> 124.5719 | K169: =+IF(INDEX(precos_ue!$AH$2:$AH$3741,MATCH(aux_pr_ue!$F$3&aux_pr_ue!L169,precos_ue!$A$2:$A$3741,0))=0,"",INDEX(precos_ue!$AH$2:$AH$3741,MATCH(aux_pr_ue!$F$3&aux_pr_ue!L169,precos_ue!$A$2:$A$3741,0))) -> 104.0645 | L169: 2004/10 | M169: 124.5719 | N169: 104.0645
J170: =+IF(INDEX(precos_ue!$AG$2:$AG$3741,MATCH(aux_pr_ue!$E$3&aux_pr_ue!L170,precos_ue!$A$2:$A$3741,0))=0,"",INDEX(precos_ue!$AG$2:$AG$3741,MATCH(aux_pr_ue!$E$3&aux_pr_ue!L170,precos_ue!$A$2:$A$3741,0))) -> 130.06265 | K170: =+IF(INDEX(precos_ue!$AH$2:$AH$3741,MATCH(aux_pr_ue!$F$3&aux_pr_ue!L170,precos_ue!$A$2:$A$3741,0))=0,"",INDEX(precos_ue!$AH$2:$AH$3741,MATCH(aux_pr_ue!$F$3&aux_pr_ue!L170,precos_ue!$A$2:$A$3741,0))) -> 107.2333 | L170: 2004/11 | M170: 130.06265 | N170: 107.2333
J171: =+IF(INDEX(precos_ue!$AG$2:$AG$3741,MATCH(aux_pr_ue!$E$3&aux_pr_ue!L171,precos_ue!$A$2:$A$3741,0))=0,"",INDEX(precos_ue!$AG$2:$AG$3741,MATCH(aux_pr_ue!$E$3&aux_pr_ue!L171,precos_ue!$A$2:$A$3741,0))) -> 130.5625 | K171: =+IF(INDEX(precos_ue!$AH$2:$AH$3741,MATCH(aux_pr_ue!$F$3&aux_pr_ue!L171,precos_ue!$A$2:$A$3741,0))=0,"",INDEX(precos_ue!$AH$2:$AH$3741,MATCH(aux_pr_ue!$F$3&aux_pr_ue!L171,precos_ue!$A$2:$A$3741,0))) -> 106.2931 | L171: 2004/12 | M171: 130.5625 | N171: 106.2931
J172: =+IF(INDEX(precos_ue!$AG$2:$AG$3741,MATCH(aux_pr_ue!$E$3&aux_pr_ue!L172,precos_ue!$A$2:$A$3741,0))=0,"",INDEX(precos_ue!$AG$2:$AG$3741,MATCH(aux_pr_ue!$E$3&aux_pr_ue!L172,precos_ue!$A$2:$A$3741,0))) -> 125.9516 | K172: =+IF(INDEX(precos_ue!$AH$2:$AH$3741,MATCH(aux_pr_ue!$F$3&aux_pr_ue!L172,precos_ue!$A$2:$A$3741,0))=0,"",INDEX(precos_ue!$AH$2:$AH$3741,MATCH(aux_pr_ue!$F$3&aux_pr_ue!L172,precos_ue!$A$2:$A$3741,0))) -> 105.8269 | L172: 2005/01 | M172: 125.9516 | N172: 105.8269
J173: =+IF(INDEX(precos_ue!$AG$2:$AG$3741,MATCH(aux_pr_ue!$E$3&aux_pr_ue!L173,precos_ue!$A$2:$A$3741,0))=0,"",INDEX(precos_ue!$AG$2:$AG$3741,MATCH(aux_pr_ue!$E$3&aux_pr_ue!L173,precos_ue!$A$2:$A$3741,0))) -> 127.05125 | K173: =+IF(INDEX(precos_ue!$AH$2:$AH$3741,MATCH(aux_pr_ue!$F$3&aux_pr_ue!L173,precos_ue!$A$2:$A$3741,0))=0,"",INDEX(precos_ue!$AH$2:$AH$3741,MATCH(aux_pr_ue!$F$3&aux_pr_ue!L173,precos_ue!$A$2:$A$3741,0))) -> 106.0893 | L173: 2005/02 | M173: 127.05125 | N173: 106.0893
J174: =+IF(INDEX(precos_ue!$AG$2:$AG$3741,MATCH(aux_pr_ue!$E$3&aux_pr_ue!L174,precos_ue!$A$2:$A$3741,0))=0,"",INDEX(precos_ue!$AG$2:$AG$3741,MATCH(aux_pr_ue!$E$3&aux_pr_ue!L174,precos_ue!$A$2:$A$3741,0))) -> 128.3145 | K174: =+IF(INDEX(precos_ue!$AH$2:$AH$3741,MATCH(aux_pr_ue!$F$3&aux_pr_ue!L174,precos_ue!$A$2:$A$3741,0))=0,"",INDEX(precos_ue!$AH$2:$AH$3741,MATCH(aux_pr_ue!$F$3&aux_pr_ue!L174,precos_ue!$A$2:$A$3741,0))) -> 107.6452 | L174: 2005/03 | M174: 128.3145 | N174: 107.6452
J175: =+IF(INDEX(precos_ue!$AG$2:$AG$3741,MATCH(aux_pr_ue!$E$3&aux_pr_ue!L175,precos_ue!$A$2:$A$3741,0))=0,"",INDEX(precos_ue!$AG$2:$AG$3741,MATCH(aux_pr_ue!$E$3&aux_pr_ue!L175,precos_ue!$A$2:$A$3741,0))) -> 126.1333 | K175: =+IF(INDEX(precos_ue!$AH$2:$AH$3741,MATCH(aux_pr_ue!$F$3&aux_pr_ue!L175,precos_ue!$A$2:$A$3741,0))=0,"",INDEX(precos_ue!$AH$2:$AH$3741,MATCH(aux_pr_ue!$F$3&aux_pr_ue!L175,precos_ue!$A$2:$A$3741,0))) -> 104.9667 | L175: 2005/04 | M175: 126.1333 | N175: 104.9667
J176: =+IF(INDEX(precos_ue!$AG$2:$AG$3741,MATCH(aux_pr_ue!$E$3&aux_pr_ue!L176,precos_ue!$A$2:$A$3741,0))=0,"",INDEX(precos_ue!$AG$2:$AG$3741,MATCH(aux_pr_ue!$E$3&aux_pr_ue!L176,precos_ue!$A$2:$A$3741,0))) -> 126.5 | K176: =+IF(INDEX(precos_ue!$AH$2:$AH$3741,MATCH(aux_pr_ue!$F$3&aux_pr_ue!L176,precos_ue!$A$2:$A$3741,0))=0,"",INDEX(precos_ue!$AH$2:$AH$3741,MATCH(aux_pr_ue!$F$3&aux_pr_ue!L176,precos_ue!$A$2:$A$3741,0))) -> 106.1613 | L176: 2005/05 | M176: 126.5 | N176: 106.1613
J177: =+IF(INDEX(precos_ue!$AG$2:$AG$3741,MATCH(aux_pr_ue!$E$3&aux_pr_ue!L177,precos_ue!$A$2:$A$3741,0))=0,"",INDEX(precos_ue!$AG$2:$AG$3741,MATCH(aux_pr_ue!$E$3&aux_pr_ue!L177,precos_ue!$A$2:$A$3741,0))) -> 125.65 | K177: =+IF(INDEX(precos_ue!$AH$2:$AH$3741,MATCH(aux_pr_ue!$F$3&aux_pr_ue!L177,precos_ue!$A$2:$A$3741,0))=0,"",INDEX(precos_ue!$AH$2:$AH$3741,MATCH(aux_pr_ue!$F$3&aux_pr_ue!L177,precos_ue!$A$2:$A$3741,0))) -> 111.5667 | L177: 2005/06 | M177: 125.65 | N177: 111.5667
J178: =+IF(INDEX(precos_ue!$AG$2:$AG$3741,MATCH(aux_pr_ue!$E$3&aux_pr_ue!L178,precos_ue!$A$2:$A$3741,0))=0,"",INDEX(precos_ue!$AG$2:$AG$3741,MATCH(aux_pr_ue!$E$3&aux_pr_ue!L178,precos_ue!$A$2:$A$3741,0))) -> 123.4516333 | K178: =+IF(INDEX(precos_ue!$AH$2:$AH$3741,MATCH(aux_pr_ue!$F$3&aux_pr_ue!L178,precos_ue!$A$2:$A$3741,0))=0,"",INDEX(precos_ue!$AH$2:$AH$3741,MATCH(aux_pr_ue!$F$3&aux_pr_ue!L178,precos_ue!$A$2:$A$3741,0))) -> 114 | L178: 2005/07 | M178: 123.4516333 | N178: 114
J179: =+IF(INDEX(precos_ue!$AG$2:$AG$3741,MATCH(aux_pr_ue!$E$3&aux_pr_ue!L179,precos_ue!$A$2:$A$3741,0))=0,"",INDEX(precos_ue!$AG$2:$AG$3741,MATCH(aux_pr_ue!$E$3&aux_pr_ue!L179,precos_ue!$A$2:$A$3741,0))) -> 122.7580667 | K179: =+IF(INDEX(precos_ue!$AH$2:$AH$3741,MATCH(aux_pr_ue!$F$3&aux_pr_ue!L179,precos_ue!$A$2:$A$3741,0))=0,"",INDEX(precos_ue!$AH$2:$AH$3741,MATCH(aux_pr_ue!$F$3&aux_pr_ue!L179,precos_ue!$A$2:$A$3741,0))) -> 103.75 | L179: 2005/08 | M179: 122.7580667 | N179: 103.75
J180: =+IF(INDEX(precos_ue!$AG$2:$AG$3741,MATCH(aux_pr_ue!$E$3&aux_pr_ue!L180,precos_ue!$A$2:$A$3741,0))=0,"",INDEX(precos_ue!$AG$2:$AG$3741,MATCH(aux_pr_ue!$E$3&aux_pr_ue!L180,precos_ue!$A$2:$A$3741,0))) -> 125.5 | K180: =+IF(INDEX(precos_ue!$AH$2:$AH$3741,MATCH(aux_pr_ue!$F$3&aux_pr_ue!L180,precos_ue!$A$2:$A$3741,0))=0,"",INDEX(precos_ue!$AH$2:$AH$3741,MATCH(aux_pr_ue!$F$3&aux_pr_ue!L180,precos_ue!$A$2:$A$3741,0))) -> 102.85 | L180: 2005/09 | M180: 125.5 | N180: 102.85
J181: =+IF(INDEX(precos_ue!$AG$2:$AG$3741,MATCH(aux_pr_ue!$E$3&aux_pr_ue!L181,precos_ue!$A$2:$A$3741,0))=0,"",INDEX(precos_ue!$AG$2:$AG$3741,MATCH(aux_pr_ue!$E$3&aux_pr_ue!L181,precos_ue!$A$2:$A$3741,0))) -> 127 | K181: =+IF(INDEX(precos_ue!$AH$2:$AH$3741,MATCH(aux_pr_ue!$F$3&aux_pr_ue!L181,precos_ue!$A$2:$A$3741,0))=0,"",INDEX(precos_ue!$AH$2:$AH$3741,MATCH(aux_pr_ue!$F$3&aux_pr_ue!L181,precos_ue!$A$2:$A$3741,0))) -> 103.8548 | L181: 2005/10 | M181: 127 | N181: 103.8548
J182: =+IF(INDEX(precos_ue!$AG$2:$AG$3741,MATCH(aux_pr_ue!$E$3&aux_pr_ue!L182,precos_ue!$A$2:$A$3741,0))=0,"",INDEX(precos_ue!$AG$2:$AG$3741,MATCH(aux_pr_ue!$E$3&aux_pr_ue!L182,precos_ue!$A$2:$A$3741,0))) -> 132.7391 | K182: =+IF(INDEX(precos_ue!$AH$2:$AH$3741,MATCH(aux_pr_ue!$F$3&aux_pr_ue!L182,precos_ue!$A$2:$A$3741,0))=0,"",INDEX(precos_ue!$AH$2:$AH$3741,MATCH(aux_pr_ue!$F$3&aux_pr_ue!L182,precos_ue!$A$2:$A$3741,0))) -> 107.9833 | L182: 2005/11 | M182: 132.7391 | N182: 107.9833
J183: =+IF(INDEX(precos_ue!$AG$2:$AG$3741,MATCH(aux_pr_ue!$E$3&aux_pr_ue!L183,precos_ue!$A$2:$A$3741,0))=0,"",INDEX(precos_ue!$AG$2:$AG$3741,MATCH(aux_pr_ue!$E$3&aux_pr_ue!L183,precos_ue!$A$2:$A$3741,0))) -> 133.5833 | K183: =+IF(INDEX(precos_ue!$AH$2:$AH$3741,MATCH(aux_pr_ue!$F$3&aux_pr_ue!L183,precos_ue!$A$2:$A$3741,0))=0,"",INDEX(precos_ue!$AH$2:$AH$3741,MATCH(aux_pr_ue!$F$3&aux_pr_ue!L183,precos_ue!$A$2:$A$3741,0))) -> 108.64315 | L183: 2005/12 | M183: 133.5833 | N183: 108.64315
J184: =+IF(INDEX(precos_ue!$AG$2:$AG$3741,MATCH(aux_pr_ue!$E$3&aux_pr_ue!L184,precos_ue!$A$2:$A$3741,0))=0,"",INDEX(precos_ue!$AG$2:$AG$3741,MATCH(aux_pr_ue!$E$3&aux_pr_ue!L184,precos_ue!$A$2:$A$3741,0))) -> 130.7903 | K184: =+IF(INDEX(precos_ue!$AH$2:$AH$3741,MATCH(aux_pr_ue!$F$3&aux_pr_ue!L184,precos_ue!$A$2:$A$3741,0))=0,"",INDEX(precos_ue!$AH$2:$AH$3741,MATCH(aux_pr_ue!$F$3&aux_pr_ue!L184,precos_ue!$A$2:$A$3741,0))) -> 102.4934333 | L184: 2006/01 | M184: 130.7903 | N184: 102.4934333
J185: =+IF(INDEX(precos_ue!$AG$2:$AG$3741,MATCH(aux_pr_ue!$E$3&aux_pr_ue!L185,precos_ue!$A$2:$A$3741,0))=0,"",INDEX(precos_ue!$AG$2:$AG$3741,MATCH(aux_pr_ue!$E$3&aux_pr_ue!L185,precos_ue!$A$2:$A$3741,0))) -> 130.6039 | K185: =+IF(INDEX(precos_ue!$AH$2:$AH$3741,MATCH(aux_pr_ue!$F$3&aux_pr_ue!L185,precos_ue!$A$2:$A$3741,0))=0,"",INDEX(precos_ue!$AH$2:$AH$3741,MATCH(aux_pr_ue!$F$3&aux_pr_ue!L185,precos_ue!$A$2:$A$3741,0))) -> 105.1587333 | L185: 2006/02 | M185: 130.6039 | N185: 105.1587333
J186: =+IF(INDEX(precos_ue!$AG$2:$AG$3741,MATCH(aux_pr_ue!$E$3&aux_pr_ue!L186,precos_ue!$A$2:$A$3741,0))=0,"",INDEX(precos_ue!$AG$2:$AG$3741,MATCH(aux_pr_ue!$E$3&aux_pr_ue!L186,precos_ue!$A$2:$A$3741,0))) -> 129.871 | K186: =+IF(INDEX(precos_ue!$AH$2:$AH$3741,MATCH(aux_pr_ue!$F$3&aux_pr_ue!L186,precos_ue!$A$2:$A$3741,0))=0,"",INDEX(precos_ue!$AH$2:$AH$3741,MATCH(aux_pr_ue!$F$3&aux_pr_ue!L186,precos_ue!$A$2:$A$3741,0))) -> 106.0591333 | L186: 2006/03 | M186: 129.871 | N186: 106.0591333
J187: =+IF(INDEX(precos_ue!$AG$2:$AG$3741,MATCH(aux_pr_ue!$E$3&aux_pr_ue!L187,precos_ue!$A$2:$A$3741,0))=0,"",INDEX(precos_ue!$AG$2:$AG$3741,MATCH(aux_pr_ue!$E$3&aux_pr_ue!L187,precos_ue!$A$2:$A$3741,0))) -> 119.7988 | K187: =+IF(INDEX(precos_ue!$AH$2:$AH$3741,MATCH(aux_pr_ue!$F$3&aux_pr_ue!L187,precos_ue!$A$2:$A$3741,0))=0,"",INDEX(precos_ue!$AH$2:$AH$3741,MATCH(aux_pr_ue!$F$3&aux_pr_ue!L187,precos_ue!$A$2:$A$3741,0))) -> 112.8111333 | L187: 2006/04 | M187: 119.7988 | N187: 112.8111333
J188: =+IF(INDEX(precos_ue!$AG$2:$AG$3741,MATCH(aux_pr_ue!$E$3&aux_pr_ue!L188,precos_ue!$A$2:$A$3741,0))=0,"",INDEX(precos_ue!$AG$2:$AG$3741,MATCH(aux_pr_ue!$E$3&aux_pr_ue!L188,precos_ue!$A$2:$A$3741,0))) -> 135.7735 | K188: =+IF(INDEX(precos_ue!$AH$2:$AH$3741,MATCH(aux_pr_ue!$F$3&aux_pr_ue!L188,precos_ue!$A$2:$A$3741,0))=0,"",INDEX(precos_ue!$AH$2:$AH$3741,MATCH(aux_pr_ue!$F$3&aux_pr_ue!L188,precos_ue!$A$2:$A$3741,0))) -> 118.7620667 | L188: 2006/05 | M188: 135.7735 | N188: 118.7620667
J189: =+IF(INDEX(precos_ue!$AG$2:$AG$3741,MATCH(aux_pr_ue!$E$3&aux_pr_ue!L189,precos_ue!$A$2:$A$3741,0))=0,"",INDEX(precos_ue!$AG$2:$AG$3741,MATCH(aux_pr_ue!$E$3&aux_pr_ue!L189,precos_ue!$A$2:$A$3741,0))) -> 133.08 | K189: =+IF(INDEX(precos_ue!$AH$2:$AH$3741,MATCH(aux_pr_ue!$F$3&aux_pr_ue!L189,precos_ue!$A$2:$A$3741,0))=0,"",INDEX(precos_ue!$AH$2:$AH$3741,MATCH(aux_pr_ue!$F$3&aux_pr_ue!L189,precos_ue!$A$2:$A$3741,0))) -> 124.4333 | L189: 2006/06 | M189: 133.08 | N189: 124.4333
J190: =+IF(INDEX(precos_ue!$AG$2:$AG$3741,MATCH(aux_pr_ue!$E$3&aux_pr_ue!L190,precos_ue!$A$2:$A$3741,0))=0,"",INDEX(precos_ue!$AG$2:$AG$3741,MATCH(aux_pr_ue!$E$3&aux_pr_ue!L190,precos_ue!$A$2:$A$3741,0))) -> 132.45324 | K190: =+IF(INDEX(precos_ue!$AH$2:$AH$3741,MATCH(aux_pr_ue!$F$3&aux_pr_ue!L190,precos_ue!$A$2:$A$3741,0))=0,"",INDEX(precos_ue!$AH$2:$AH$3741,MATCH(aux_pr_ue!$F$3&aux_pr_ue!L190,precos_ue!$A$2:$A$3741,0))) -> 123.16995 | L190: 2006/07 | M190: 132.45324 | N190: 123.16995
J191: =+IF(INDEX(precos_ue!$AG$2:$AG$3741,MATCH(aux_pr_ue!$E$3&aux_pr_ue!L191,precos_ue!$A$2:$A$3741,0))=0,"",INDEX(precos_ue!$AG$2:$AG$3741,MATCH(aux_pr_ue!$E$3&aux_pr_ue!L191,precos_ue!$A$2:$A$3741,0))) -> 132.4309 | K191: =+IF(INDEX(precos_ue!$AH$2:$AH$3741,MATCH(aux_pr_ue!$F$3&aux_pr_ue!L191,precos_ue!$A$2:$A$3741,0))=0,"",INDEX(precos_ue!$AH$2:$AH$3741,MATCH(aux_pr_ue!$F$3&aux_pr_ue!L191,precos_ue!$A$2:$A$3741,0))) -> 125.1636667 | L191: 2006/08 | M191: 132.4309 | N191: 125.1636667
J192: =+IF(INDEX(precos_ue!$AG$2:$AG$3741,MATCH(aux_pr_ue!$E$3&aux_pr_ue!L192,precos_ue!$A$2:$A$3741,0))=0,"",INDEX(precos_ue!$AG$2:$AG$3741,MATCH(aux_pr_ue!$E$3&aux_pr_ue!L192,precos_ue!$A$2:$A$3741,0))) -> 143.1798 | K192: =+IF(INDEX(precos_ue!$AH$2:$AH$3741,MATCH(aux_pr_ue!$F$3&aux_pr_ue!L192,precos_ue!$A$2:$A$3741,0))=0,"",INDEX(precos_ue!$AH$2:$AH$3741,MATCH(aux_pr_ue!$F$3&aux_pr_ue!L192,precos_ue!$A$2:$A$3741,0))) -> 132.2333 | L192: 2006/09 | M192: 143.1798 | N192: 132.2333
J193: =+IF(INDEX(precos_ue!$AG$2:$AG$3741,MATCH(aux_pr_ue!$E$3&aux_pr_ue!L193,precos_ue!$A$2:$A$3741,0))=0,"",INDEX(precos_ue!$AG$2:$AG$3741,MATCH(aux_pr_ue!$E$3&aux_pr_ue!L193,precos_ue!$A$2:$A$3741,0))) -> 145.1333333 | K193: =+IF(INDEX(precos_ue!$AH$2:$AH$3741,MATCH(aux_pr_ue!$F$3&aux_pr_ue!L193,precos_ue!$A$2:$A$3741,0))=0,"",INDEX(precos_ue!$AH$2:$AH$3741,MATCH(aux_pr_ue!$F$3&aux_pr_ue!L193,precos_ue!$A$2:$A$3741,0))) -> 144.914 | L193: 2006/10 | M193: 145.1333333 | N193: 144.914
J194: =+IF(INDEX(precos_ue!$AG$2:$AG$3741,MATCH(aux_pr_ue!$E$3&aux_pr_ue!L194,precos_ue!$A$2:$A$3741,0))=0,"",INDEX(precos_ue!$AG$2:$AG$3741,MATCH(aux_pr_ue!$E$3&aux_pr_ue!L194,precos_ue!$A$2:$A$3741,0))) -> 173.2644 | K194: =+IF(INDEX(precos_ue!$AH$2:$AH$3741,MATCH(aux_pr_ue!$F$3&aux_pr_ue!L194,precos_ue!$A$2:$A$3741,0))=0,"",INDEX(precos_ue!$AH$2:$AH$3741,MATCH(aux_pr_ue!$F$3&aux_pr_ue!L194,precos_ue!$A$2:$A$3741,0))) -> 148.3840667 | L194: 2006/11 | M194: 173.2644 | N194: 148.3840667
J195: =+IF(INDEX(precos_ue!$AG$2:$AG$3741,MATCH(aux_pr_ue!$E$3&aux_pr_ue!L195,precos_ue!$A$2:$A$3741,0))=0,"",INDEX(precos_ue!$AG$2:$AG$3741,MATCH(aux_pr_ue!$E$3&aux_pr_ue!L195,precos_ue!$A$2:$A$3741,0))) -> 170.8889 | K195: =+IF(INDEX(precos_ue!$AH$2:$AH$3741,MATCH(aux_pr_ue!$F$3&aux_pr_ue!L195,precos_ue!$A$2:$A$3741,0))=0,"",INDEX(precos_ue!$AH$2:$AH$3741,MATCH(aux_pr_ue!$F$3&aux_pr_ue!L195,precos_ue!$A$2:$A$3741,0))) -> 145.9013333 | L195: 2006/12 | M195: 170.8889 | N195: 145.9013333
J196: =+IF(INDEX(precos_ue!$AG$2:$AG$3741,MATCH(aux_pr_ue!$E$3&aux_pr_ue!L196,precos_ue!$A$2:$A$3741,0))=0,"",INDEX(precos_ue!$AG$2:$AG$3741,MATCH(aux_pr_ue!$E$3&aux_pr_ue!L196,precos_ue!$A$2:$A$3741,0))) -> 170.75 | K196: =+IF(INDEX(precos_ue!$AH$2:$AH$3741,MATCH(aux_pr_ue!$F$3&aux_pr_ue!L196,precos_ue!$A$2:$A$3741,0))=0,"",INDEX(precos_ue!$AH$2:$AH$3741,MATCH(aux_pr_ue!$F$3&aux_pr_ue!L196,precos_ue!$A$2:$A$3741,0))) -> 147.293 | L196: 2007/01 | M196: 170.75 | N196: 147.293
J197: =+IF(INDEX(precos_ue!$AG$2:$AG$3741,MATCH(aux_pr_ue!$E$3&aux_pr_ue!L197,precos_ue!$A$2:$A$3741,0))=0,"",INDEX(precos_ue!$AG$2:$AG$3741,MATCH(aux_pr_ue!$E$3&aux_pr_ue!L197,precos_ue!$A$2:$A$3741,0))) -> 169.25 | K197: =+IF(INDEX(precos_ue!$AH$2:$AH$3741,MATCH(aux_pr_ue!$F$3&aux_pr_ue!L197,precos_ue!$A$2:$A$3741,0))=0,"",INDEX(precos_ue!$AH$2:$AH$3741,MATCH(aux_pr_ue!$F$3&aux_pr_ue!L197,precos_ue!$A$2:$A$3741,0))) -> 146.1666667 | L197: 2007/02 | M197: 169.25 | N197: 146.1666667
J198: =+IF(INDEX(precos_ue!$AG$2:$AG$3741,MATCH(aux_pr_ue!$E$3&aux_pr_ue!L198,precos_ue!$A$2:$A$3741,0))=0,"",INDEX(precos_ue!$AG$2:$AG$3741,MATCH(aux_pr_ue!$E$3&aux_pr_ue!L198,precos_ue!$A$2:$A$3741,0))) -> 170.4444333 | K198: =+IF(INDEX(precos_ue!$AH$2:$AH$3741,MATCH(aux_pr_ue!$F$3&aux_pr_ue!L198,precos_ue!$A$2:$A$3741,0))=0,"",INDEX(precos_ue!$AH$2:$AH$3741,MATCH(aux_pr_ue!$F$3&aux_pr_ue!L198,precos_ue!$A$2:$A$3741,0))) -> 147.4193333 | L198: 2007/03 | M198: 170.4444333 | N198: 147.4193333
J199: =+IF(INDEX(precos_ue!$AG$2:$AG$3741,MATCH(aux_pr_ue!$E$3&aux_pr_ue!L199,precos_ue!$A$2:$A$3741,0))=0,"",INDEX(precos_ue!$AG$2:$AG$3741,MATCH(aux_pr_ue!$E$3&aux_pr_ue!L199,precos_ue!$A$2:$A$3741,0))) -> 173 | K199: =+IF(INDEX(precos_ue!$AH$2:$AH$3741,MATCH(aux_pr_ue!$F$3&aux_pr_ue!L199,precos_ue!$A$2:$A$3741,0))=0,"",INDEX(precos_ue!$AH$2:$AH$3741,MATCH(aux_pr_ue!$F$3&aux_pr_ue!L199,precos_ue!$A$2:$A$3741,0))) -> 151.3101333 | L199: 2007/04 | M199: 173 | N199: 151.3101333
J200: =+IF(INDEX(precos_ue!$AG$2:$AG$3741,MATCH(aux_pr_ue!$E$3&aux_pr_ue!L200,precos_ue!$A$2:$A$3741,0))=0,"",INDEX(precos_ue!$AG$2:$AG$3741,MATCH(aux_pr_ue!$E$3&aux_pr_ue!L200,precos_ue!$A$2:$A$3741,0))) -> 176.4091 | K200: =+IF(INDEX(precos_ue!$AH$2:$AH$3741,MATCH(aux_pr_ue!$F$3&aux_pr_ue!L200,precos_ue!$A$2:$A$3741,0))=0,"",INDEX(precos_ue!$AH$2:$AH$3741,MATCH(aux_pr_ue!$F$3&aux_pr_ue!L200,precos_ue!$A$2:$A$3741,0))) -> 151.0443333 | L200: 2007/05 | M200: 176.4091 | N200: 151.0443333
... 177 more rows

Sheet pr_UE (hidden)
F1: EVOLUÇÃO dos PREÇOS MENSAIS do MERCADO INTERNO do GRÃO por DESTINO e TIPO de CEREAL e ESTADO-MEMBRO da UE 1991-2022
C4: Seleção 1: | G4: Seleção 2:
A45: Fonte: DGAGRI

Sheet CEA_DAdos (hidden)
A1: teste | B1: Tipo | C1: Região | D1: Cultura | E1: 1980 | F1: 1981 | G1: 1982 | H1: 1983 | I1: 1984 | J1: 1985 | K1: 1986 | L1: 1987 | M1: 1988 | N1: 1989 | O1: 1990 | P1: 1991 | Q1: 1992 | R1: 1993 | S1: 1994 | T1: 1995 | U1: 1996 | V1: 1997 | W1: 1998 | X1: 1999 | Y1: 2000 | Z1: 2001 | AA1: 2002 | AB1: 2003 | AC1: 2004 | AD1: 2005 | AE1: 2006 | AF1: 2007 | AG1: 2008 | AH1: 2009 | AI1: 2010 | AJ1: 2011 | AK1: 2012 | AL1: 2013 | AM1: 2014 | AN1: 2015 | AO1: 2016 | AP1: 2017 | AQ1: 2018 | AR1: 2019 | AS1: 2020Po | AT1: 2021Pe
A2: PbPCorrentesPortugalTotal | B2: PbPCorrentes | C2: Portugal | D2: Total | E2: 90.08 | F2: 86.52 | G2: 123.32 | H2: 142.99 | I2: 278.16 | J2: 309.08 | K2: 406.53 | L2: 451.81 | M2: 380.41 | N2: 508.51 | O2: 367.08 | P2: 449.48 | Q2: 301.66 | R2: 296.8 | S2: 323.45 | T2: 274.72 | U2: 299.56 | V2: 280.21 | W2: 256.22 | X2: 281.91 | Y2: 267.35 | Z2: 254.14 | AA2: 257.79 | AB2: 219.24 | AC2: 220.59 | AD2: 136.93 | AE2: 208.83 | AF2: 257.36 | AG2: 289.07 | AH2: 210.5 | AI2: 238.86 | AJ2: 275.22 | AK2: 322.17 | AL2: 282.73 | AM2: 272.27 | AN2: 263.17 | AO2: 237.5 | AP2: 224.51 | AQ2: 230.35 | AR2: 235.72 | AS2: 222.36 | AT2: 293.26
A3: PbPCorrentesPortugalTrigo e Espelta | B3: PbPCorrentes | C3: Portugal | D3: Trigo e Espelta | E3: 42.09 | F3: 35.39 | G3: 57.93 | H3: 59.72 | I3: 124.16 | J3: 125.9 | K3: 170.87 | L3: 195.22 | M3: 149.27 | N3: 240.6 | O3: 111.22 | P3: 212.18 | Q3: 110.3 | R3: 111.27 | S3: 110.53 | T3: 80.8 | U3: 83.68 | V3: 72.8 | W3: 60.29 | X3: 86.06 | Y3: 74.58 | Z3: 72.84 | AA3: 86.96 | AB3: 35.04 | AC3: 75.54 | AD3: 28.86 | AE3: 55.82 | AF3: 48.35 | AG3: 73.91 | AH3: 61.2 | AI3: 43.49 | AJ3: 36.04 | AK3: 45.97 | AL3: 50.51 | AM3: 48.88 | AN3: 52.89 | AO3: 53.04 | AP3: 40.34 | AQ3: 40.69 | AR3: 40.61 | AS3: 41.1 | AT3: 46.41
A4: PbPCorrentesPortugalCenteio e Mistura de trigo e centeio | B4: PbPCorrentes | C4: Portugal | D4: Centeio e Mistura de trigo e centeio | E4: 6.81 | F4: 8.56 | G4: 9.44 | H4: 9.35 | I4: 15.25 | J4: 18.15 | K4: 19.98 | L4: 23.52 | M4: 16.58 | N4: 24.41 | O4: 19.53 | P4: 11.83 | Q4: 9.66 | R4: 8.94 | S4: 8.02 | T4: 3.67 | U4: 6.04 | V4: 4.45 | W4: 3.1 | X4: 5.99 | Y4: 4.58 | Z4: 2.83 | AA4: 3.78 | AB4: 2.8 | AC4: 3.13 | AD4: 2.01 | AE4: 2.52 | AF4: 2.92 | AG4: 3.8 | AH4: 2.23 | AI4: 2.25 | AJ4: 2.61 | AK4: 2.43 | AL4: 3.26 | AM4: 3.17 | AN4: 2.56 | AO4: 2.64 | AP4: 2.31 | AQ4: 2.71 | AR4: 2.5 | AS4: 2.52 | AT4: 2.55
A5: PbPCorrentesPortugalCevada | B5: PbPCorrentes | C5: Portugal | D5: Cevada | E5: 2.3 | F5: 2.74 | G5: 3.71 | H5: 5.17 | I5: 13.93 | J5: 11.45 | K5: 18.58 | L5: 17.68 | M5: 11.29 | N5: 19.6 | O5: 20.48 | P5: 24.98 | Q5: 11.27 | R5: 16.99 | S5: 15.11 | T5: 7.73 | U5: 10.24 | V5: 3.33 | W5: 2.97 | X5: 3.36 | Y5: 4.27 | Z5: 1.71 | AA5: 2.54 | AB5: 1.55 | AC5: 3.37 | AD5: 2.92 | AE5: 12.98 | AF5: 13.61 | AG5: 21.09 | AH5: 9.99 | AI5: 4.05 | AJ5: 3.84 | AK5: 4.04 | AL5: 5.7 | AM5: 6.27 | AN5: 7.52 | AO5: 7.7 | AP5: 8.2 | AQ5: 11.23 | AR5: 9.69 | AS5: 8.34 | AT5: 8.94
A6: PbPCorrentesPortugalAveia e Mistura de cereais de verão | B6: PbPCorrentes | C6: Portugal | D6: Aveia e Mistura de cereais de verão | E6: 4.68 | F6: 4.66 | G6: 6.46 | H6: 8.94 | I6: 19.93 | J6: 16.73 | K6: 23.78 | L6: 24.49 | M6: 11.95 | N6: 20.03 | O6: 10.41 | P6: 11.93 | Q6: 6.26 | R6: 11.98 | S6: 10.14 | T6: 7.97 | U6: 9.6 | V6: 7.17 | W6: 5.55 | X6: 10.06 | Y6: 10.73 | Z6: 4.31 | AA6: 6.12 | AB6: 5.94 | AC6: 8.32 | AD6: 3.49 | AE6: 8.44 | AF6: 8.7 | AG6: 14.41 | AH6: 9.2 | AI6: 8.7 | AJ6: 8.28 | AK6: 5.57 | AL6: 11.11 | AM6: 10.37 | AN6: 7.62 | AO6: 9.62 | AP6: 6.34 | AQ6: 8.19 | AR6: 7.65 | AS6: 7.19 | AT6: 7.51
A7: PbPCorrentesPortugalMilho em grão | B7: PbPCorrentes | C7: Portugal | D7: Milho em grão | E7: 23.16 | F7: 25.36 | G7: 31.07 | H7: 44.41 | I7: 76.81 | J7: 100.02 | K7: 128.31 | L7: 133.75 | M7: 134.38 | N7: 138.66 | O7: 135.97 | P7: 116.41 | Q7: 115.31 | R7: 108.79 | S7: 106.34 | T7: 115.53 | U7: 120.66 | V7: 131.99 | W7: 131.1 | X7: 128.34 | Y7: 125.4 | Z7: 124.43 | AA7: 112.12 | AB7: 129.44 | AC7: 101.98 | AD7: 73.1 | AE7: 88.39 | AF7: 134.74 | AG7: 107.91 | AH7: 88.07 | AI7: 128.44 | AJ7: 171.58 | AK7: 206.06 | AL7: 159.27 | AM7: 153.92 | AN7: 148.24 | AO7: 125.69 | AP7: 131.15 | AQ7: 130.7 | AR7: 133.29 | AS7: 124.06 | AT7: 180.86
A8: PbPCorrentesPortugalArroz | B8: PbPCorrentes | C8: Portugal | D8: Arroz | E8: 11.04 | F8: 9.81 | G8: 14.67 | H8: 15.2 | I8: 26.87 | J8: 34.88 | K8: 38.86 | L8: 48.82 | M8: 46.51 | N8: 47.82 | O8: 52.35 | P8: 58.88 | Q8: 37.45 | R8: 25.32 | S8: 59.57 | T8: 50.98 | U8: 60.31 | V8: 53.93 | W8: 50.93 | X8: 43.39 | Y8: 42.56 | Z8: 45.72 | AA8: 42.85 | AB8: 43.04 | AC8: 25.93 | AD8: 25.69 | AE8: 34.76 | AF8: 44.26 | AG8: 59.06 | AH8: 33.99 | AI8: 47.61 | AJ8: 49.67 | AK8: 55.47 | AL8: 44.55 | AM8: 42.15 | AN8: 38.39 | AO8: 32.9 | AP8: 32.16 | AQ8: 32.4 | AR8: 38.16 | AS8: 35.7 | AT8: 43.67
A9: PbPCorrentesPortugalOutros cereais | B9: PbPCorrentes | C9: Portugal | D9: Outros cereais | E9: 0 | F9: 0 | G9: 0.04 | H9: 0.2 | I9: 1.21 | J9: 1.95 | K9: 6.15 | L9: 8.33 | M9: 10.43 | N9: 17.39 | O9: 17.12 | P9: 13.27 | Q9: 11.41 | R9: 13.51 | S9: 13.74 | T9: 8.04 | U9: 9.03 | V9: 6.54 | W9: 2.28 | X9: 4.71 | Y9: 5.23 | Z9: 2.3 | AA9: 3.42 | AB9: 1.43 | AC9: 2.32 | AD9: 0.86 | AE9: 5.92 | AF9: 4.78 | AG9: 8.89 | AH9: 5.82 | AI9: 4.32 | AJ9: 3.2 | AK9: 2.63 | AL9: 8.33 | AM9: 7.51 | AN9: 5.95 | AO9: 5.91 | AP9: 4.01 | AQ9: 4.43 | AR9: 3.82 | AS9: 3.45 | AT9: 3.32
A10: PbPconstantesPortugalTotal | B10: PbPconstantes | C10: Portugal | D10: Total | E10: 196.13 | F10: 147.99 | G10: 181.27 | H10: 151.12 | I10: 205.47 | J10: 193.44 | K10: 229.6 | L10: 239.78 | M10: 198.72 | N10: 264.64 | O10: 189.59 | P10: 263.57 | Q10: 187.6 | R10: 199.2 | S10: 228.45 | T10: 193.71 | U10: 225.5 | V10: 213.94 | W10: 203.87 | X10: 231.44 | Y10: 226.18 | Z10: 197.7 | AA10: 220.23 | AB10: 166.95 | AC10: 199.02 | AD10: 103.82 | AE10: 180.05 | AF10: 168.66 | AG10: 201.58 | AH10: 176.61 | AI10: 163.3 | AJ10: 182.28 | AK10: 185.16 | AL10: 217.38 | AM10: 243.97 | AN10: 251.82 | AO10: 237.5 | AP10: 229.23 | AQ10: 229.71 | AR10: 230.56 | AS10: 209.26 | AT10: 222.48
A11: PbPconstantesPortugalTrigo e Espelta | B11: PbPconstantes | C11: Portugal | D11: Trigo e Espelta | E11: 171.08 | F11: 124.46 | G11: 169.86 | H11: 132.09 | I11: 191.3 | J11: 164.09 | K11: 202.36 | L11: 215.99 | M11: 156.33 | N11: 251.98 | O11: 116.48 | P11: 250.78 | Q11: 144.22 | R11: 167.91 | S11: 186.92 | T11: 142.88 | U11: 154.98 | V11: 134.85 | W11: 88.1 | X11: 133.04 | Y11: 134.63 | Z11: 92.66 | AA11: 139.18 | AB11: 48.75 | AC11: 96.64 | AD11: 24.23 | AE11: 78.34 | AF11: 52.52 | AG11: 76.07 | AH11: 57.01 | AI11: 49.38 | AJ11: 34.05 | AK11: 32.07 | AL11: 47.96 | AM11: 56.86 | AN11: 49.68 | AO11: 53.04 | AP11: 40.46 | AQ11: 45.3 | AR11: 40.04 | AS11: 40.14 | AT11: 38.93
A12: PbPconstantesPortugalCenteio e Mistura de trigo e centeio | B12: PbPconstantes | C12: Portugal | D12: Centeio e Mistura de trigo e centeio | E12: 25.75 | F12: 23.18 | G12: 21.91 | H12: 16.25 | I12: 18.72 | J12: 17.54 | K12: 18.1 | L12: 19.93 | M12: 13.31 | N12: 19.59 | O12: 15.67 | P12: 12.98 | Q12: 11.05 | R12: 10.68 | S12: 10.24 | T12: 5.25 | U12: 8.52 | V12: 6.28 | W12: 4.84 | X12: 9.14 | Y12: 7.63 | Z12: 3.65 | AA12: 5.55 | AB12: 4.24 | AC12: 4.38 | AD12: 3.05 | AE12: 3.82 | AF12: 3.64 | AG12: 3.57 | AH12: 3.06 | AI12: 2.73 | AJ12: 2.91 | AK12: 2.43 | AL12: 3.11 | AM12: 3.02 | AN12: 2.6 | AO12: 2.64 | AP12: 2.43 | AQ12: 2.87 | AR12: 2.93 | AS12: 3.14 | AT12: 2.83
A13: PbPconstantesPortugalCevada | B13: PbPconstantes | C13: Portugal | D13: Cevada | E13: 9.09 | F13: 6.92 | G13: 8.74 | H13: 9.21 | I13: 16.93 | J13: 11.34 | K13: 15.92 | L13: 14.11 | M13: 8.63 | N13: 14.98 | O13: 13.85 | P13: 22.6 | Q13: 10.85 | R13: 17.63 | S13: 17.09 | T13: 9.14 | U13: 12.55 | V13: 4.94 | W13: 4.51 | X13: 5.16 | Y13: 6.65 | Z13: 2.18 | AA13: 3.59 | AB13: 2.19 | AC13: 4.36 | AD13: 4.19 | AE13: 19.22 | AF13: 14.5 | AG13: 18.15 | AH13: 13.41 | AI13: 5.49 | AJ13: 3.74 | AK13: 3.56 | AL13: 5.35 | AM13: 6.2 | AN13: 7.32 | AO13: 7.7 | AP13: 8.8 | AQ13: 11.17 | AR13: 9.54 | AS13: 8.11 | AT13: 7.7
A14: PbPconstantesPortugalAveia e Mistura de cereais de verão | B14: PbPconstantes | C14: Portugal | D14: Aveia e Mistura de cereais de verão | E14: 1.16 | F14: 0.86 | G14: 1.05 | H14: 1.12 | I14: 1.56 | J14: 1.21 | K14: 1.5 | L14: 1.54 | M14: 0.75 | N14: 1.25 | O14: 0.67 | P14: 0.72 | Q14: 0.38 | R14: 0.72 | S14: 0.75 | T14: 0.53 | U14: 0.55 | V14: 0.41 | W14: 0.41 | X14: 0.96 | Y14: 1.12 | Z14: 0.35 | AA14: 0.59 | AB14: 0.35 | AC14: 0.59 | AD14: 0.21 | AE14: 0.86 | AF14: 0.59 | AG14: 0.91 | AH14: 0.68 | AI14: 0.64 | AJ14: 0.45 | AK14: 0.27 | AL14: 0.59 | AM14: 2.32 | AN14: 6.95 | AO14: 9.62 | AP14: 6.97 | AQ14: 8.63 | AR14: 7.01 | AS14: 6.59 | AT14: 6.2
A15: PbPconstantesPortugalMilho em grão | B15: PbPconstantes | C15: Portugal | D15: Milho em grão | E15: 83.87 | F15: 64.46 | G15: 71.91 | H15: 65.34 | I15: 82.56 | J15: 91.47 | K15: 105.49 | L15: 109.96 | M15: 110.48 | N15: 114 | O15: 111.79 | P15: 110.21 | Q15: 113.86 | R15: 112.24 | S15: 119.45 | T15: 119.99 | U15: 132.53 | V15: 144.98 | W15: 164.7 | X15: 156.84 | Y15: 148.02 | Z15: 153.15 | AA15: 134.77 | AB15: 134.97 | AC15: 133.45 | AD15: 86.37 | AE15: 91.11 | AF15: 103.59 | AG15: 117.8 | AH15: 106.46 | AI15: 105.14 | AJ15: 139.63 | AK15: 144.63 | AL15: 158.41 | AM15: 153.36 | AN15: 144.19 | AO15: 125.69 | AP15: 131.79 | AQ15: 126.25 | AR15: 132.43 | AS15: 119.09 | AT15: 125.04
A16: PbPconstantesPortugalArroz | B16: PbPconstantes | C16: Portugal | D16: Arroz | E16: 26.53 | F16: 19.68 | G16: 24.41 | H16: 19.27 | I16: 23.25 | J16: 25.62 | K16: 25.87 | L16: 25.08 | M16: 25.61 | N16: 25.79 | O16: 27.84 | P16: 30.77 | Q16: 19.54 | R16: 12.38 | S16: 23.6 | T16: 22.26 | U16: 30.72 | V16: 29.14 | W16: 28.83 | X16: 27.14 | Y16: 25.29 | Z16: 26 | AA16: 26.09 | AB16: 26.28 | AC16: 28.11 | AD16: 22.61 | AE16: 26.76 | AF16: 27.94 | AG16: 27.08 | AH16: 29.06 | AI16: 30.5 | AJ16: 33.07 | AK16: 36.46 | AL16: 35.19 | AM16: 32.62 | AN16: 35.93 | AO16: 32.9 | AP16: 34.83 | AQ16: 31.13 | AR16: 34.38 | AS16: 28.4 | AT16: 36.92
A17: PbPconstantesPortugalOutros cereais | B17: PbPconstantes | C17: Portugal | D17: Outros cereais | E17: 0 | F17: 0 | G17: 0.06 | H17: 0.26 | I17: 1.04 | J17: 1.41 | K17: 3.9 | L17: 4.94 | M17: 6.19 | N17: 9.78 | O17: 9.63 | P17: 10.2 | Q17: 9.15 | R17: 11.98 | S17: 13.26 | T17: 7.17 | U17: 8.29 | V17: 6.03 | W17: 2.38 | X17: 5.1 | Y17: 6.32 | Z17: 2.32 | AA17: 3.96 | AB17: 1.62 | AC17: 2.27 | AD17: 0.87 | AE17: 6.39 | AF17: 3.7 | AG17: 6.37 | AH17: 5.29 | AI17: 3.82 | AJ17: 2.75 | AK17: 2.02 | AL17: 6.99 | AM17: 7 | AN17: 5.58 | AO17: 5.91 | AP17: 3.95 | AQ17: 4.36 | AR17: 3.29 | AS17: 3.21 | AT17: 2.73
A18: ppPortugalTotal | B18: pp | C18: Portugal | D18: Total | T18: 274.72 | U18: 299.56 | V18: 280.21 | W18: 256.22 | X18: 281.91 | Y18: 267.35 | Z18: 254.14 | AA18: 257.79 | AB18: 219.24 | AC18: 220.59 | AD18: 136.93 | AE18: 208.83 | AF18: 257.36 | AG18: 289.07 | AH18: 210.5 | AI18: 238.86 | AJ18: 275.22 | AK18: 322.17 | AL18: 282.73 | AM18: 272.27 | AN18: 263.17 | AO18: 237.5 | AP18: 224.51 | AQ18: 230.35 | AR18: 235.72 | AS18: 222.36
A19: ppPortugalTrigo e Espelta | B19: pp | C19: Portugal | D19: Trigo e Espelta | T19: 80.8 | U19: 83.68 | V19: 72.8 | W19: 60.29 | X19: 86.06 | Y19: 74.58 | Z19: 72.84 | AA19: 86.96 | AB19: 35.04 | AC19: 75.54 | AD19: 28.86 | AE19: 55.82 | AF19: 48.35 | AG19: 73.91 | AH19: 61.2 | AI19: 43.49 | AJ19: 36.04 | AK19: 45.97 | AL19: 50.51 | AM19: 48.88 | AN19: 52.89 | AO19: 53.04 | AP19: 40.34 | AQ19: 40.69 | AR19: 40.61 | AS19: 41.1
A20: ppPortugalCenteio e Mistura de trigo e centeio | B20: pp | C20: Portugal | D20: Centeio e Mistura de trigo e centeio | T20: 3.67 | U20: 6.04 | V20: 4.45 | W20: 3.1 | X20: 5.99 | Y20: 4.58 | Z20: 2.83 | AA20: 3.78 | AB20: 2.8 | AC20: 3.13 | AD20: 2.01 | AE20: 2.52 | AF20: 2.92 | AG20: 3.8 | AH20: 2.23 | AI20: 2.25 | AJ20: 2.61 | AK20: 2.43 | AL20: 3.26 | AM20: 3.17 | AN20: 2.56 | AO20: 2.64 | AP20: 2.31 | AQ20: 2.71 | AR20: 2.5 | AS20: 2.52
A21: ppPortugalCevada | B21: pp | C21: Portugal | D21: Cevada | T21: 7.73 | U21: 10.24 | V21: 3.33 | W21: 2.97 | X21: 3.36 | Y21: 4.27 | Z21: 1.71 | AA21: 2.54 | AB21: 1.55 | AC21: 3.37 | AD21: 2.92 | AE21: 12.98 | AF21: 13.61 | AG21: 21.09 | AH21: 9.99 | AI21: 4.05 | AJ21: 3.84 | AK21: 4.04 | AL21: 5.7 | AM21: 6.27 | AN21: 7.52 | AO21: 7.7 | AP21: 8.2 | AQ21: 11.23 | AR21: 9.69 | AS21: 8.34
A22: ppPortugalAveia e Mistura de cereais de verão | B22: pp | C22: Portugal | D22: Aveia e Mistura de cereais de verão | T22: 7.97 | U22: 9.6 | V22: 7.17 | W22: 5.55 | X22: 10.06 | Y22: 10.73 | Z22: 4.31 | AA22: 6.12 | AB22: 5.94 | AC22: 8.32 | AD22: 3.49 | AE22: 8.44 | AF22: 8.7 | AG22: 14.41 | AH22: 9.2 | AI22: 8.7 | AJ22: 8.28 | AK22: 5.57 | AL22: 11.11 | AM22: 10.37 | AN22: 7.62 | AO22: 9.62 | AP22: 6.34 | AQ22: 8.19 | AR22: 7.65 | AS22: 7.19
A23: ppPortugalMilho em grão | B23: pp | C23: Portugal | D23: Milho em grão | T23: 115.53 | U23: 120.66 | V23: 131.99 | W23: 131.1 | X23: 128.34 | Y23: 125.4 | Z23: 124.43 | AA23: 112.12 | AB23: 129.44 | AC23: 101.98 | AD23: 73.1 | AE23: 88.39 | AF23: 134.74 | AG23: 107.91 | AH23: 88.07 | AI23: 128.44 | AJ23: 171.58 | AK23: 206.06 | AL23: 159.27 | AM23: 153.92 | AN23: 148.24 | AO23: 125.69 | AP23: 131.15 | AQ23: 130.7 | AR23: 133.29 | AS23: 124.06
A24: ppPortugalArroz | B24: pp | C24: Portugal | D24: Arroz | T24: 50.98 | U24: 60.31 | V24: 53.93 | W24: 50.93 | X24: 43.39 | Y24: 42.56 | Z24: 45.72 | AA24: 42.85 | AB24: 43.04 | AC24: 25.93 | AD24: 25.69 | AE24: 34.76 | AF24: 44.26 | AG24: 59.06 | AH24: 33.99 | AI24: 47.61 | AJ24: 49.67 | AK24: 55.47 | AL24: 44.55 | AM24: 42.15 | AN24: 38.39 | AO24: 32.9 | AP24: 32.16 | AQ24: 32.4 | AR24: 38.16 | AS24: 35.7
A25: ppPortugalOutros cereais | B25: pp | C25: Portugal | D25: Outros cereais | T25: 8.04 | U25: 9.03 | V25: 6.54 | W25: 2.28 | X25: 4.71 | Y25: 5.23 | Z25: 2.3 | AA25: 3.42 | AB25: 1.43 | AC25: 2.32 | AD25: 0.86 | AE25: 5.92 | AF25: 4.78 | AG25: 8.89 | AH25: 5.82 | AI25: 4.32 | AJ25: 3.2 | AK25: 2.63 | AL25: 8.33 | AM25: 7.51 | AN25: 5.95 | AO25: 5.91 | AP25: 4.01 | AQ25: 4.43 | AR25: 3.82 | AS25: 3.45
A26: ppContinenteTotal | B26: pp | C26: Continente | D26: Total | T26: 273.6 | U26: 298.73 | V26: 279.44 | W26: 255.61 | X26: 281.44 | Y26: 266.92 | Z26: 253.69 | AA26: 257.43 | AB26: 218.86 | AC26: 220.27 | AD26: 136.69 | AE26: 208.58 | AF26: 257.07 | AG26: 288.9 | AH26: 210.35 | AI26: 238.66 | AJ26: 275.01 | AK26: 321.97 | AL26: 282.59 | AM26: 272.13 | AN26: 263.01 | AO26: 237.35 | AP26: 224.36 | AQ26: 230.2 | AR26: 235.68 | AS26: 222.31
A27: ppContinenteTrigo e Espelta | B27: pp | C27: Continente | D27: Trigo e Espelta | T27: 80.78 | U27: 83.67 | V27: 72.78 | W27: 60.24 | X27: 86.03 | Y27: 74.55 | Z27: 72.74 | AA27: 86.92 | AB27: 35 | AC27: 75.49 | AD27: 28.84 | AE27: 55.81 | AF27: 48.33 | AG27: 73.89 | AH27: 61.18 | AI27: 43.47 | AJ27: 35.99 | AK27: 45.92 | AL27: 50.47 | AM27: 48.84 | AN27: 52.84 | AO27: 52.99 | AP27: 40.28 | AQ27: 40.64 | AR27: 40.59 | AS27: 41.08
A28: ppContinenteCenteio e Mistura de trigo e centeio | B28: pp | C28: Continente | D28: Centeio e Mistura de trigo e centeio | T28: 3.67 | U28: 6.04 | V28: 4.45 | W28: 3.1 | X28: 5.99 | Y28: 4.58 | Z28: 2.83 | AA28: 3.78 | AB28: 2.8 | AC28: 3.13 | AD28: 2.01 | AE28: 2.52 | AF28: 2.92 | AG28: 3.8 | AH28: 2.23 | AI28: 2.25 | AJ28: 2.61 | AK28: 2.43 | AL28: 3.26 | AM28: 3.17 | AN28: 2.56 | AO28: 2.64 | AP28: 2.31 | AQ28: 2.71 | AR28: 2.5 | AS28: 2.52
A29: ppContinenteCevada | B29: pp | C29: Continente | D29: Cevada | T29: 7.73 | U29: 10.24 | V29: 3.33 | W29: 2.97 | X29: 3.36 | Y29: 4.27 | Z29: 1.71 | AA29: 2.54 | AB29: 1.55 | AC29: 3.37 | AD29: 2.92 | AE29: 12.98 | AF29: 13.61 | AG29: 21.09 | AH29: 9.99 | AI29: 4.05 | AJ29: 3.84 | AK29: 4.04 | AL29: 5.7 | AM29: 6.27 | AN29: 7.52 | AO29: 7.7 | AP29: 8.2 | AQ29: 11.23 | AR29: 9.69 | AS29: 8.34
A30: ppContinenteAveia e Mistura de cereais de verão | B30: pp | C30: Continente | D30: Aveia e Mistura de cereais de verão | T30: 7.97 | U30: 9.6 | V30: 7.17 | W30: 5.55 | X30: 10.06 | Y30: 10.73 | Z30: 4.31 | AA30: 6.12 | AB30: 5.94 | AC30: 8.32 | AD30: 3.49 | AE30: 8.44 | AF30: 8.7 | AG30: 14.41 | AH30: 9.2 | AI30: 8.7 | AJ30: 8.28 | AK30: 5.57 | AL30: 11.11 | AM30: 10.37 | AN30: 7.62 | AO30: 9.62 | AP30: 6.34 | AQ30: 8.19 | AR30: 7.65 | AS30: 7.19
A31: ppContinenteMilho em grão | B31: pp | C31: Continente | D31: Milho em grão | T31: 114.42 | U31: 119.85 | V31: 131.24 | W31: 130.54 | X31: 127.9 | Y31: 124.99 | Z31: 124.08 | AA31: 111.81 | AB31: 129.1 | AC31: 101.71 | AD31: 72.88 | AE31: 88.15 | AF31: 134.47 | AG31: 107.75 | AH31: 87.94 | AI31: 128.26 | AJ31: 171.42 | AK31: 205.91 | AL31: 159.17 | AM31: 153.81 | AN31: 148.13 | AO31: 125.58 | AP31: 131.05 | AQ31: 130.6 | AR31: 133.27 | AS31: 124.03
A32: ppContinenteArroz | B32: pp | C32: Continente | D32: Arroz | T32: 50.98 | U32: 60.31 | V32: 53.93 | W32: 50.93 | X32: 43.39 | Y32: 42.56 | Z32: 45.72 | AA32: 42.85 | AB32: 43.04 | AC32: 25.93 | AD32: 25.69 | AE32: 34.76 | AF32: 44.26 | AG32: 59.06 | AH32: 33.99 | AI32: 47.61 | AJ32: 49.67 | AK32: 55.47 | AL32: 44.55 | AM32: 42.15 | AN32: 38.39 | AO32: 32.9 | AP32: 32.16 | AQ32: 32.4 | AR32: 38.16 | AS32: 35.7
A33: ppContinenteOutros cereais | B33: pp | C33: Continente | D33: Outros cereais | T33: 8.04 | U33: 9.03 | V33: 6.54 | W33: 2.28 | X33: 4.71 | Y33: 5.23 | Z33: 2.3 | AA33: 3.42 | AB33: 1.43 | AC33: 2.32 | AD33: 0.86 | AE33: 5.92 | AF33: 4.78 | AG33: 8.89 | AH33: 5.82 | AI33: 4.32 | AJ33: 3.2 | AK33: 2.63 | AL33: 8.33 | AM33: 7.51 | AN33: 5.95 | AO33: 5.91 | AP33: 4.01 | AQ33: 4.43 | AR33: 3.82 | AS33: 3.45
A34: ppNorteTotal | B34: pp | C34: Norte | D34: Total | T34: 43.85 | U34: 44.57 | V34: 39.04 | W34: 36.24 | X34: 37.31 | Y34: 34.19 | Z34: 38.69 | AA34: 32.02 | AB34: 32.01 | AC34: 29.9 | AD34: 20.62 | AE34: 22.45 | AF34: 30.68 | AG34: 23.98 | AH34: 19.33 | AI34: 25.32 | AJ34: 29.44 | AK34: 32.55 | AL34: 26.29 | AM34: 24.84 | AN34: 23.78 | AO34: 22.14 | AP34: 21.44 | AQ34: 22.52 | AR34: 24.05 | AS34: 23.69
A35: ppNorteTrigo e Espelta | B35: pp | C35: Norte | D35: Trigo e Espelta | T35: 4.46 | U35: 7.01 | V35: 5.72 | W35: 9.27 | X35: 6.89 | Y35: 5.44 | Z35: 12.39 | AA35: 8.75 | AB35: 6.95 | AC35: 9.43 | AD35: 3.07 | AE35: 2.02 | AF35: 3.91 | AG35: 2.78 | AH35: 3.38 | AI35: 3.38 | AJ35: 4.01 | AK35: 4 | AL35: 5.06 | AM35: 2.97 | AN35: 2.9 | AO35: 2.62 | AP35: 2.94 | AQ35: 3.3 | AR35: 3.5 | AS35: 2.93
A36: ppNorteCenteio e Mistura de trigo e centeio | B36: pp | C36: Norte | D36: Centeio e Mistura de trigo e centeio | T36: 2.48 | U36: 4.44 | V36: 3.27 | W36: 2.19 | X36: 4.06 | Y36: 2.96 | Z36: 1.93 | AA36: 2.74 | AB36: 1.98 | AC36: 2.28 | AD36: 1.62 | AE36: 1.78 | AF36: 2.07 | AG36: 2.88 | AH36: 1.6 | AI36: 1.52 | AJ36: 1.82 | AK36: 1.86 | AL36: 2.23 | AM36: 2.2 | AN36: 1.85 | AO36: 1.9 | AP36: 1.71 | AQ36: 1.97 | AR36: 1.88 | AS36: 1.94
A37: ppNorteCevada | B37: pp | C37: Norte | D37: Cevada | T37: 0.04 | U37: 0.05 | V37: 0.03 | W37: 0.03 | X37: 0.06 | Y37: 0.05 | Z37: 0.05 | AA37: 0.06 | AB37: 0.05 | AC37: 0.05 | AD37: 0.03 | AE37: 0.04 | AF37: 0.06 | AG37: 0.07 | AH37: 0.02 | AI37: 0.02 | AJ37: 0.03 | AK37: 0.03 | AL37: 0.03 | AM37: 0.03 | AN37: 0.03 | AO37: 0.02 | AP37: 0.02 | AQ37: 0.03 | AR37: 0.02 | AS37: 0.02
A38: ppNorteAveia e Mistura de cereais de verão | B38: pp | C38: Norte | D38: Aveia e Mistura de cereais de verão | T38: 0.15 | U38: 0.23 | V38: 0.2 | W38: 0.24 | X38: 0.45 | Y38: 0.35 | Z38: 0.3 | AA38: 0.35 | AB38: 0.48 | AC38: 0.44 | AD38: 0.32 | AE38: 0.27 | AF38: 0.45 | AG38: 0.51 | AH38: 0.31 | AI38: 0.3 | AJ38: 0.39 | AK38: 0.38 | AL38: 0.46 | AM38: 0.33 | AN38: 0.29 | AO38: 0.26 | AP38: 0.27 | AQ38: 0.33 | AR38: 0.4 | AS38: 0.39
A39: ppNorteMilho em grão | B39: pp | C39: Norte | D39: Milho em grão | T39: 36.71 | U39: 32.83 | V39: 29.8 | W39: 24.51 | X39: 25.82 | Y39: 25.38 | Z39: 24.01 | AA39: 20.11 | AB39: 22.54 | AC39: 17.68 | AD39: 15.57 | AE39: 18.33 | AF39: 24.18 | AG39: 17.73 | AH39: 14.01 | AI39: 20.1 | AJ39: 23.19 | AK39: 26.29 | AL39: 18.49 | AM39: 19.3 | AN39: 18.7 | AO39: 17.33 | AP39: 16.47 | AQ39: 16.82 | AR39: 18.15 | AS39: 18.31
A40: ppNorteArroz | B40: pp | C40: Norte | D40: Arroz | T40: 0 | U40: 0 | V40: 0 | W40: 0 | X40: 0 | Y40: 0 | Z40: 0 | AA40: 0 | AB40: 0 | AC40: 0 | AD40: 0 | AE40: 0 | AF40: 0 | AG40: 0 | AH40: 0 | AI40: 0 | AJ40: 0 | AK40: 0 | AL40: 0 | AM40: 0 | AN40: 0 | AO40: 0 | AP40: 0 | AQ40: 0 | AR40: 0 | AS40: 0
A41: ppNorteOutros cereais | B41: pp | C41: Norte | D41: Outros cereais | T41: 0.02 | U41: 0.01 | V41: 0.01 | W41: 0.01 | X41: 0.02 | Y41: 0.01 | Z41: 0.01 | AA41: 0.01 | AB41: 0.01 | AC41: 0.01 | AD41: 0 | AE41: 0 | AF41: 0.01 | AG41: 0.01 | AH41: 0.01 | AI41: 0.01 | AJ41: 0 | AK41: 0 | AL41: 0.02 | AM41: 0.01 | AN41: 0.02 | AO41: 0.02 | AP41: 0.02 | AQ41: 0.07 | AR41: 0.1 | AS41: 0.09
A42: ppCentroTotal | B42: pp | C42: Centro | D42: Total | T42: 66.81 | U42: 61.64 | V42: 57.78 | W42: 51.72 | X42: 56.02 | Y42: 55.7 | Z42: 49 | AA42: 45.44 | AB42: 45.69 | AC42: 36.11 | AD42: 32.46 | AE42: 41.08 | AF42: 54.55 | AG42: 48.11 | AH42: 42.29 | AI42: 56.27 | AJ42: 66.82 | AK42: 70.13 | AL42: 57.98 | AM42: 57.49 | AN42: 58.28 | AO42: 57.48 | AP42: 60.81 | AQ42: 54.44 | AR42: 53.13 | AS42: 57.19
A43: ppCentroTrigo e Espelta | B43: pp | C43: Centro | D43: Trigo e Espelta | T43: 5.44 | U43: 3 | V43: 3.27 | W43: 3.64 | X43: 3.96 | Y43: 3.35 | Z43: 4.28 | AA43: 5.04 | AB43: 2.15 | AC43: 3.06 | AD43: 1.71 | AE43: 1.51 | AF43: 2.6 | AG43: 5.21 | AH43: 5.76 | AI43: 3.21 | AJ43: 3.44 | AK43: 2.93 | AL43: 3.28 | AM43: 2.88 | AN43: 3.96 | AO43: 3.56 | AP43: 3.17 | AQ43: 3.33 | AR43: 3.68 | AS43: 3.18
A44: ppCentroCenteio e Mistura de trigo e centeio | B44: pp | C44: Centro | D44: Centeio e Mistura de trigo e centeio | T44: 1.1 | U44: 1.5 | V44: 1.13 | W44: 0.86 | X44: 1.88 | Y44: 1.59 | Z44: 0.87 | AA44: 0.99 | AB44: 0.81 | AC44: 0.82 | AD44: 0.38 | AE44: 0.71 | AF44: 0.83 | AG44: 0.9 | AH44: 0.61 | AI44: 0.71 | AJ44: 0.78 | AK44: 0.57 | AL44: 1.02 | AM44: 0.95 | AN44: 0.68 | AO44: 0.71 | AP44: 0.58 | AQ44: 0.71 | AR44: 0.59 | AS44: 0.55
A45: ppCentroCevada | B45: pp | C45: Centro | D45: Cevada | T45: 0.79 | U45: 1.14 | V45: 0.46 | W45: 0.55 | X45: 0.35 | Y45: 0.3 | Z45: 0.16 | AA45: 0.23 | AB45: 0.17 | AC45: 0.19 | AD45: 0.24 | AE45: 0.08 | AF45: 0.09 | AG45: 0.12 | AH45: 0.53 | AI45: 0.1 | AJ45: 0.16 | AK45: 0.14 | AL45: 0.29 | AM45: 0.23 | AN45: 0.32 | AO45: 0.35 | AP45: 0.31 | AQ45: 0.51 | AR45: 0.61 | AS45: 0.56
A46: ppCentroAveia e Mistura de cereais de verão | B46: pp | C46: Centro | D46: Aveia e Mistura de cereais de verão | T46: 0.66 | U46: 0.75 | V46: 0.66 | W46: 0.43 | X46: 1.04 | Y46: 0.85 | Z46: 0.7 | AA46: 0.86 | AB46: 0.95 | AC46: 1.05 | AD46: 0.61 | AE46: 0.61 | AF46: 0.74 | AG46: 0.81 | AH46: 0.52 | AI46: 0.47 | AJ46: 0.64 | AK46: 0.45 | AL46: 0.66 | AM46: 0.52 | AN46: 0.47 | AO46: 0.53 | AP46: 0.48 | AQ46: 0.56 | AR46: 0.52 | AS46: 0.5
A47: ppCentroMilho em grão | B47: pp | C47: Centro | D47: Milho em grão | T47: 41 | U47: 39.44 | V47: 38.62 | W47: 33.84 | X47: 37.89 | Y47: 38.33 | Z47: 32.73 | AA47: 29.33 | AB47: 31.97 | AC47: 25.47 | AD47: 23.23 | AE47: 30.36 | AF47: 40.96 | AG47: 28.83 | AH47: 27.91 | AI47: 41.1 | AJ47: 51.55 | AK47: 54.62 | AL47: 43.18 | AM47: 45 | AN47: 45.72 | AO47: 45.66 | AP47: 50.18 | AQ47: 43.13 | AR47: 40.06 | AS47: 42.9
A48: ppCentroArroz | B48: pp | C48: Centro | D48: Arroz | T48: 17.59 | U48: 15.31 | V48: 13.27 | W48: 12.29 | X48: 10.61 | Y48: 11.03 | Z48: 10.04 | AA48: 8.84 | AB48: 9.52 | AC48: 5.44 | AD48: 6.25 | AE48: 7.68 | AF48: 9.18 | AG48: 12.05 | AH48: 6.67 | AI48: 10.39 | AJ48: 10.07 | AK48: 11.33 | AL48: 9.28 | AM48: 7.67 | AN48: 6.95 | AO48: 6.47 | AP48: 5.95 | AQ48: 6.05 | AR48: 7.5 | AS48: 9.34
A49: ppCentroOutros cereais | B49: pp | C49: Centro | D49: Outros cereais | T49: 0.22 | U49: 0.51 | V49: 0.36 | W49: 0.11 | X49: 0.28 | Y49: 0.25 | Z49: 0.21 | AA49: 0.16 | AB49: 0.12 | AC49: 0.09 | AD49: 0.04 | AE49: 0.13 | AF49: 0.16 | AG49: 0.19 | AH49: 0.3 | AI49: 0.29 | AJ49: 0.18 | AK49: 0.11 | AL49: 0.26 | AM49: 0.23 | AN49: 0.18 | AO49: 0.19 | AP49: 0.14 | AQ49: 0.15 | AR49: 0.18 | AS49: 0.16
A50: ppAMLTotal | B50: pp | C50: AML | D50: Total | T50: 7.94 | U50: 5.71 | V50: 12.69 | W50: 14.61 | X50: 9.48 | Y50: 10.19 | Z50: 8.62 | AA50: 10.23 | AB50: 13.28 | AC50: 9.95 | AD50: 11.13 | AE50: 12.91 | AF50: 18.87 | AG50: 21.21 | AH50: 10.51 | AI50: 12.28 | AJ50: 14.66 | AK50: 19.82 | AL50: 14.9 | AM50: 14.83 | AN50: 13.14 | AO50: 10.72 | AP50: 10.15 | AQ50: 11.22 | AR50: 12.48 | AS50: 11.93
A51: ppAMLTrigo e Espelta | B51: pp | C51: AML | D51: Trigo e Espelta | T51: 1.82 | U51: 0.27 | V51: 1.93 | W51: 0.93 | X51: 1.4 | Y51: 1.47 | Z51: 1 | AA51: 1.64 | AB51: 0.6 | AC51: 0.92 | AD51: 0.93 | AE51: 0.73 | AF51: 1.32 | AG51: 2.42 | AH51: 2.04 | AI51: 0.34 | AJ51: 0.35 | AK51: 0.59 | AL51: 0.37 | AM51: 0.77 | AN51: 0.98 | AO51: 1.11 | AP51: 0.81 | AQ51: 1.2 | AR51: 0.98 | AS51: 1.05
A52: ppAMLCenteio e Mistura de trigo e centeio | B52: pp | C52: AML | D52: Centeio e Mistura de trigo e centeio | T52: 0 | U52: 0 | V52: 0 | W52: 0 | X52: 0 | Y52: 0 | Z52: 0 | AA52: 0 | AB52: 0 | AC52: 0 | AD52: 0 | AE52: 0 | AF52: 0 | AG52: 0 | AH52: 0 | AI52: 0 | AJ52: 0 | AK52: 0 | AL52: 0 | AM52: 0 | AN52: 0 | AO52: 0 | AP52: 0 | AQ52: 0 | AR52: 0 | AS52: 0
A53: ppAMLCevada | B53: pp | C53: AML | D53: Cevada | T53: 0.04 | U53: 0.08 | V53: 0.14 | W53: 0.36 | X53: 0.18 | Y53: 0.15 | Z53: 0.06 | AA53: 0.05 | AB53: 0.03 | AC53: 0.07 | AD53: 0.25 | AE53: 0.18 | AF53: 0.28 | AG53: 0.24 | AH53: 0.25 | AI53: 0.04 | AJ53: 0.15 | AK53: 0.22 | AL53: 0.12 | AM53: 0.1 | AN53: 0.09 | AO53: 0.1 | AP53: 0.11 | AQ53: 0.25 | AR53: 0.26 | AS53: 0.21
A54: ppAMLAveia e Mistura de cereais de verão | B54: pp | C54: AML | D54: Aveia e Mistura de cereais de verão | T54: 0.26 | U54: 0.18 | V54: 0.16 | W54: 0.4 | X54: 0.14 | Y54: 0.13 | Z54: 0.06 | AA54: 0.08 | AB54: 0.1 | AC54: 0.09 | AD54: 0.06 | AE54: 0.06 | AF54: 0.07 | AG54: 0.07 | AH54: 0.06 | AI54: 0.01 | AJ54: 0.02 | AK54: 0.02 | AL54: 0.02 | AM54: 0.02 | AN54: 0.02 | AO54: 0.02 | AP54: 0.01 | AQ54: 0.01 | AR54: 0.02 | AS54: 0.02
A55: ppAMLMilho em grão | B55: pp | C55: AML | D55: Milho em grão | T55: 3.27 | U55: 3.34 | V55: 7.05 | W55: 9.7 | X55: 4.24 | Y55: 4.77 | Z55: 4.35 | AA55: 5.6 | AB55: 9.81 | AC55: 7.28 | AD55: 8.09 | AE55: 9.54 | AF55: 13.86 | AG55: 13.83 | AH55: 3.79 | AI55: 5.22 | AJ55: 7.07 | AK55: 10.03 | AL55: 7.75 | AM55: 6.76 | AN55: 5.34 | AO55: 3.96 | AP55: 3.26 | AQ55: 3.86 | AR55: 4.38 | AS55: 3.76
A56: ppAMLArroz | B56: pp | C56: AML | D56: Arroz | T56: 2.52 | U56: 1.81 | V56: 3.37 | W56: 3.19 | X56: 3.46 | Y56: 3.6 | Z56: 3.1 | AA56: 2.8 | AB56: 2.73 | AC56: 1.56 | AD56: 1.79 | AE56: 2.38 | AF56: 3.33 | AG56: 4.61 | AH56: 4.36 | AI56: 6.66 | AJ56: 7.05 | AK56: 8.91 | AL56: 6.61 | AM56: 7.14 | AN56: 6.68 | AO56: 5.5 | AP56: 5.92 | AQ56: 5.86 | AR56: 6.78 | AS56: 6.85
A57: ppAMLOutros cereais | B57: pp | C57: AML | D57: Outros cereais | T57: 0.04 | U57: 0.04 | V57: 0.04 | W57: 0.03 | X57: 0.06 | Y57: 0.07 | Z57: 0.04 | AA57: 0.07 | AB57: 0.01 | AC57: 0.01 | AD57: 0.01 | AE57: 0.01 | AF57: 0.01 | AG57: 0.04 | AH57: 0.01 | AI57: 0.01 | AJ57: 0.03 | AK57: 0.05 | AL57: 0.03 | AM57: 0.04 | AN57: 0.03 | AO57: 0.03 | AP57: 0.04 | AQ57: 0.04 | AR57: 0.05 | AS57: 0.04
A58: ppAlentejoTotal | B58: pp | C58: Alentejo | D58: Total | T58: 153.5 | U58: 184.71 | V58: 168.26 | W58: 151.38 | X58: 176.46 | Y58: 164.64 | Z58: 153.02 | AA58: 166.6 | AB58: 125.52 | AC58: 141.52 | AD58: 71.55 | AE58: 130.59 | AF58: 150.71 | AG58: 193.59 | AH58: 137.2 | AI58: 143.53 | AJ58: 162.63 | AK58: 198.36 | AL58: 182.25 | AM58: 173.82 | AN58: 166.57 | AO58: 145.75 | AP58: 130.61 | AQ58: 140.9 | AR58: 144.94 | AS58: 128.33
A59: ppAlentejoTrigo e Espelta | B59: pp | C59: Alentejo | D59: Trigo e Espelta | T59: 68.68 | U59: 72.84 | V59: 61.6 | W59: 46.2 | X59: 72.93 | Y59: 63.46 | Z59: 52.41 | AA59: 69.98 | AB59: 24.57 | AC59: 60.95 | AD59: 22.98 | AE59: 51.11 | AF59: 39.86 | AG59: 63 | AH59: 49.58 | AI59: 35.97 | AJ59: 27.48 | AK59: 37.97 | AL59: 41.2 | AM59: 41.79 | AN59: 44.45 | AO59: 45.16 | AP59: 32.74 | AQ59: 32.32 | AR59: 32 | AS59: 33.41
A60: ppAlentejoCenteio e Mistura de trigo e centeio | B60: pp | C60: Alentejo | D60: Centeio e Mistura de trigo e centeio | T60: 0.08 | U60: 0.09 | V60: 0.05 | W60: 0.04 | X60: 0.04 | Y60: 0.03 | Z60: 0.03 | AA60: 0.05 | AB60: 0.01 | AC60: 0.03 | AD60: 0.01 | AE60: 0.02 | AF60: 0.02 | AG60: 0.02 | AH60: 0.02 | AI60: 0.02 | AJ60: 0.01 | AK60: 0.01 | AL60: 0.02 | AM60: 0.02 | AN60: 0.03 | AO60: 0.03 | AP60: 0.02 | AQ60: 0.02 | AR60: 0.03 | AS60: 0.03
A61: ppAlentejoCevada | B61: pp | C61: Alentejo | D61: Cevada | T61: 6.79 | U61: 8.85 | V61: 2.65 | W61: 2 | X61: 2.62 | Y61: 3.62 | Z61: 1.29 | AA61: 2.05 | AB61: 1.21 | AC61: 2.92 | AD61: 2.36 | AE61: 12.5 | AF61: 13.04 | AG61: 20.47 | AH61: 9.15 | AI61: 3.85 | AJ61: 3.44 | AK61: 3.62 | AL61: 5.19 | AM61: 5.84 | AN61: 7.02 | AO61: 7.17 | AP61: 7.69 | AQ61: 10.36 | AR61: 8.73 | AS61: 7.56
A62: ppAlentejoAveia e Mistura de cereais de verão | B62: pp | C62: Alentejo | D62: Aveia e Mistura de cereais de verão | T62: 6.64 | U62: 8.01 | V62: 5.89 | W62: 4.34 | X62: 8.24 | Y62: 9.22 | Z62: 3.07 | AA62: 4.67 | AB62: 4.18 | AC62: 6.27 | AD62: 2.39 | AE62: 7.36 | AF62: 7.25 | AG62: 12.83 | AH62: 8.26 | AI62: 7.88 | AJ62: 7.16 | AK62: 4.69 | AL62: 9.9 | AM62: 9.44 | AN62: 6.77 | AO62: 8.74 | AP62: 5.5 | AQ62: 7.17 | AR62: 6.59 | AS62: 6.13
A63: ppAlentejoMilho em grão | B63: pp | C63: Alentejo | D63: Milho em grão | T63: 32.7 | U63: 43.64 | V63: 54.96 | W63: 61.61 | X63: 58.97 | Y63: 55.49 | Z63: 62 | AA63: 55.77 | AB63: 63.68 | AC63: 50.4 | AD63: 25.34 | AE63: 29.39 | AF63: 54.52 | AG63: 46.67 | AH63: 41.98 | AI63: 61.55 | AJ63: 89.29 | AK63: 114.69 | AL63: 89.46 | AM63: 82.45 | AN63: 77.98 | AO63: 58.23 | AP63: 60.74 | AQ63: 66.62 | AR63: 70.48 | AS63: 58.87
A64: ppAlentejoArroz | B64: pp | C64: Alentejo | D64: Arroz | T64: 30.87 | U64: 42.83 | V64: 36.99 | W64: 35.06 | X64: 29.32 | Y64: 27.93 | Z64: 32.21 | AA64: 30.92 | AB64: 30.59 | AC64: 18.75 | AD64: 17.65 | AE64: 24.44 | AF64: 31.44 | AG64: 41.97 | AH64: 22.72 | AI64: 30.27 | AJ64: 32.28 | AK64: 34.93 | AL64: 28.5 | AM64: 27.07 | AN64: 24.62 | AO64: 20.76 | AP64: 20.11 | AQ64: 20.25 | AR64: 23.62 | AS64: 19.19
A65: ppAlentejoOutros cereais | B65: pp | C65: Alentejo | D65: Outros cereais | T65: 7.74 | U65: 8.45 | V65: 6.13 | W65: 2.13 | X65: 4.34 | Y65: 4.88 | Z65: 2.02 | AA65: 3.16 | AB65: 1.28 | AC65: 2.19 | AD65: 0.81 | AE65: 5.76 | AF65: 4.58 | AG65: 8.63 | AH65: 5.48 | AI65: 4 | AJ65: 2.96 | AK65: 2.46 | AL65: 7.99 | AM65: 7.2 | AN65: 5.7 | AO65: 5.65 | AP65: 3.8 | AQ65: 4.16 | AR65: 3.48 | AS65: 3.14
A66: ppAlgarveTotal | B66: pp | C66: Algarve | D66: Total | T66: 1.5 | U66: 2.11 | V66: 1.67 | W66: 1.66 | X66: 2.19 | Y66: 2.19 | Z66: 4.36 | AA66: 3.14 | AB66: 2.36 | AC66: 2.8 | AD66: 0.94 | AE66: 1.56 | AF66: 2.26 | AG66: 2.01 | AH66: 1.02 | AI66: 1.27 | AJ66: 1.46 | AK66: 1.09 | AL66: 1.17 | AM66: 1.15 | AN66: 1.25 | AO66: 1.26 | AP66: 1.35 | AQ66: 1.12 | AR66: 1.08 | AS66: 1.18
A67: ppAlgarveTrigo e Espelta | B67: pp | C67: Algarve | D67: Trigo e Espelta | T67: 0.39 | U67: 0.56 | V67: 0.25 | W67: 0.21 | X67: 0.85 | Y67: 0.83 | Z67: 2.67 | AA67: 1.51 | AB67: 0.73 | AC67: 1.13 | AD67: 0.15 | AE67: 0.43 | AF67: 0.63 | AG67: 0.49 | AH67: 0.42 | AI67: 0.58 | AJ67: 0.71 | AK67: 0.43 | AL67: 0.56 | AM67: 0.43 | AN67: 0.56 | AO67: 0.54 | AP67: 0.61 | AQ67: 0.49 | AR67: 0.42 | AS67: 0.51
A68: ppAlgarveCenteio e Mistura de trigo e centeio | B68: pp | C68: Algarve | D68: Centeio e Mistura de trigo e centeio | T68: 0 | U68: 0.01 | V68: 0.01 | W68: 0 | X68: 0 | Y68: 0 | Z68: 0 | AA68: 0 | AB68: 0 | AC68: 0 | AD68: 0 | AE68: 0 | AF68: 0 | AG68: 0 | AH68: 0 | AI68: 0 | AJ68: 0 | AK68: 0 | AL68: 0 | AM68: 0 | AN68: 0 | AO68: 0 | AP68: 0 | AQ68: 0 | AR68: 0 | AS68: 0
A69: ppAlgarveCevada | B69: pp | C69: Algarve | D69: Cevada | T69: 0.08 | U69: 0.12 | V69: 0.05 | W69: 0.02 | X69: 0.14 | Y69: 0.15 | Z69: 0.15 | AA69: 0.15 | AB69: 0.09 | AC69: 0.13 | AD69: 0.03 | AE69: 0.18 | AF69: 0.15 | AG69: 0.19 | AH69: 0.05 | AI69: 0.04 | AJ69: 0.06 | AK69: 0.03 | AL69: 0.07 | AM69: 0.06 | AN69: 0.06 | AO69: 0.06 | AP69: 0.06 | AQ69: 0.08 | AR69: 0.07 | AS69: 0
A70: ppAlgarveAveia e Mistura de cereais de verão | B70: pp | C70: Algarve | D70: Aveia e Mistura de cereais de verão | T70: 0.26 | U70: 0.44 | V70: 0.25 | W70: 0.14 | X70: 0.19 | Y70: 0.18 | Z70: 0.18 | AA70: 0.17 | AB70: 0.22 | AC70: 0.47 | AD70: 0.11 | AE70: 0.14 | AF70: 0.19 | AG70: 0.18 | AH70: 0.04 | AI70: 0.04 | AJ70: 0.07 | AK70: 0.04 | AL70: 0.08 | AM70: 0.06 | AN70: 0.08 | AO70: 0.07 | AP70: 0.07 | AQ70: 0.12 | AR70: 0.12 | AS70: 0.15
A71: ppAlgarveMilho em grão | B71: pp | C71: Algarve | D71: Milho em grão | T71: 0.74 | U71: 0.6 | V71: 0.8 | W71: 0.89 | X71: 0.99 | Y71: 1.02 | Z71: 0.98 | AA71: 1 | AB71: 1.11 | AC71: 0.88 | AD71: 0.64 | AE71: 0.53 | AF71: 0.96 | AG71: 0.69 | AH71: 0.25 | AI71: 0.29 | AJ71: 0.32 | AK71: 0.27 | AL71: 0.28 | AM71: 0.31 | AN71: 0.39 | AO71: 0.4 | AP71: 0.41 | AQ71: 0.17 | AR71: 0.19 | AS71: 0.19
A72: ppAlgarveArroz | B72: pp | C72: Algarve | D72: Arroz | T72: 0 | U72: 0.36 | V72: 0.3 | W72: 0.38 | X72: 0 | Y72: 0 | Z72: 0.37 | AA72: 0.29 | AB72: 0.2 | AC72: 0.17 | AD72: 0 | AE72: 0.26 | AF72: 0.31 | AG72: 0.44 | AH72: 0.23 | AI72: 0.29 | AJ72: 0.28 | AK72: 0.31 | AL72: 0.16 | AM72: 0.27 | AN72: 0.14 | AO72: 0.16 | AP72: 0.18 | AQ72: 0.25 | AR72: 0.26 | AS72: 0.31
A73: ppAlgarveOutros cereais | B73: pp | C73: Algarve | D73: Outros cereais | T73: 0.02 | U73: 0.02 | V73: 0.01 | W73: 0.01 | X73: 0.02 | Y73: 0.02 | Z73: 0.02 | AA73: 0.02 | AB73: 0.01 | AC73: 0.01 | AD73: 0 | AE73: 0.02 | AF73: 0.02 | AG73: 0.02 | AH73: 0.02 | AI73: 0.02 | AJ73: 0.02 | AK73: 0.01 | AL73: 0.02 | AM73: 0.02 | AN73: 0.02 | AO73: 0.02 | AP73: 0.02 | AQ73: 0.02 | AR73: 0.01 | AS73: 0.01
A74: ppRAATotal | B74: pp | C74: RAA | D74: Total | T74: 1.11 | U74: 0.81 | V74: 0.75 | W74: 0.56 | X74: 0.4 | Y74: 0.37 | Z74: 0.31 | AA74: 0.28 | AB74: 0.3 | AC74: 0.23 | AD74: 0.19 | AE74: 0.2 | AF74: 0.22 | AG74: 0.13 | AH74: 0.11 | AI74: 0.14 | AJ74: 0.12 | AK74: 0.11 | AL74: 0.07 | AM74: 0.08 | AN74: 0.08 | AO74: 0.07 | AP74: 0.06 | AQ74: 0.06 | AR74: 0.01 | AS74: 0.02
A75: ppRAATrigo e Espelta | B75: pp | C75: RAA | D75: Trigo e Espelta | T75: 0 | U75: 0 | V75: 0 | W75: 0 | X75: 0 | Y75: 0 | Z75: 0 | AA75: 0 | AB75: 0 | AC75: 0 | AD75: 0 | AE75: 0 | AF75: 0 | AG75: 0 | AH75: 0 | AI75: 0 | AJ75: 0 | AK75: 0 | AL75: 0 | AM75: 0 | AN75: 0 | AO75: 0 | AP75: 0 | AQ75: 0 | AR75: 0 | AS75: 0
A76: ppRAACenteio e Mistura de trigo e centeio | B76: pp | C76: RAA | D76: Centeio e Mistura de trigo e centeio | T76: 0 | U76: 0 | V76: 0 | W76: 0 | X76: 0 | Y76: 0 | Z76: 0 | AA76: 0 | AB76: 0 | AC76: 0 | AD76: 0 | AE76: 0 | AF76: 0 | AG76: 0 | AH76: 0 | AI76: 0 | AJ76: 0 | AK76: 0 | AL76: 0 | AM76: 0 | AN76: 0 | AO76: 0 | AP76: 0 | AQ76: 0 | AR76: 0 | AS76: 0
A77: ppRAACevada | B77: pp | C77: RAA | D77: Cevada | T77: 0 | U77: 0 | V77: 0 | W77: 0 | X77: 0 | Y77: 0 | Z77: 0 | AA77: 0 | AB77: 0 | AC77: 0 | AD77: 0 | AE77: 0 | AF77: 0 | AG77: 0 | AH77: 0 | AI77: 0 | AJ77: 0 | AK77: 0 | AL77: 0 | AM77: 0 | AN77: 0 | AO77: 0 | AP77: 0 | AQ77: 0 | AR77: 0 | AS77: 0
A78: ppRAAAveia e Mistura de cereais de verão | B78: pp | C78: RAA | D78: Aveia e Mistura de cereais de verão | T78: 0 | U78: 0 | V78: 0 | W78: 0 | X78: 0 | Y78: 0 | Z78: 0 | AA78: 0 | AB78: 0 | AC78: 0 | AD78: 0 | AE78: 0 | AF78: 0 | AG78: 0 | AH78: 0 | AI78: 0 | AJ78: 0 | AK78: 0 | AL78: 0 | AM78: 0 | AN78: 0 | AO78: 0 | AP78: 0 | AQ78: 0 | AR78: 0 | AS78: 0
A79: ppRAAMilho em grão | B79: pp | C79: RAA | D79: Milho em grão | T79: 1.11 | U79: 0.81 | V79: 0.75 | W79: 0.56 | X79: 0.4 | Y79: 0.37 | Z79: 0.31 | AA79: 0.28 | AB79: 0.3 | AC79: 0.23 | AD79: 0.19 | AE79: 0.2 | AF79: 0.22 | AG79: 0.13 | AH79: 0.11 | AI79: 0.14 | AJ79: 0.12 | AK79: 0.11 | AL79: 0.07 | AM79: 0.08 | AN79: 0.08 | AO79: 0.07 | AP79: 0.06 | AQ79: 0.06 | AR79: 0.01 | AS79: 0.02
A80: ppRAAArroz | B80: pp | C80: RAA | D80: Arroz | T80: 0 | U80: 0 | V80: 0 | W80: 0 | X80: 0 | Y80: 0 | Z80: 0 | AA80: 0 | AB80: 0 | AC80: 0 | AD80: 0 | AE80: 0 | AF80: 0 | AG80: 0 | AH80: 0 | AI80: 0 | AJ80: 0 | AK80: 0 | AL80: 0 | AM80: 0 | AN80: 0 | AO80: 0 | AP80: 0 | AQ80: 0 | AR80: 0 | AS80: 0
A81: ppRAAOutros cereais | B81: pp | C81: RAA | D81: Outros cereais | T81: 0 | U81: 0 | V81: 0 | W81: 0 | X81: 0 | Y81: 0 | Z81: 0 | AA81: 0 | AB81: 0 | AC81: 0 | AD81: 0 | AE81: 0 | AF81: 0 | AG81: 0 | AH81: 0 | AI81: 0 | AJ81: 0 | AK81: 0 | AL81: 0 | AM81: 0 | AN81: 0 | AO81: 0 | AP81: 0 | AQ81: 0 | AR81: 0 | AS81: 0
A82: ppRAMTotal | B82: pp | C82: RAM | D82: Total | T82: 0.02 | U82: 0.01 | V82: 0.02 | W82: 0.05 | X82: 0.07 | Y82: 0.07 | Z82: 0.13 | AA82: 0.08 | AB82: 0.08 | AC82: 0.08 | AD82: 0.06 | AE82: 0.05 | AF82: 0.07 | AG82: 0.05 | AH82: 0.05 | AI82: 0.06 | AJ82: 0.08 | AK82: 0.09 | AL82: 0.07 | AM82: 0.07 | AN82: 0.08 | AO82: 0.08 | AP82: 0.09 | AQ82: 0.08 | AR82: 0.03 | AS82: 0.03
A83: ppRAMTrigo e Espelta | B83: pp | C83: RAM | D83: Trigo e Espelta | T83: 0.02 | U83: 0.01 | V83: 0.02 | W83: 0.05 | X83: 0.03 | Y83: 0.03 | Z83: 0.1 | AA83: 0.04 | AB83: 0.04 | AC83: 0.05 | AD83: 0.02 | AE83: 0.01 | AF83: 0.02 | AG83: 0.02 | AH83: 0.02 | AI83: 0.02 | AJ83: 0.05 | AK83: 0.05 | AL83: 0.04 | AM83: 0.04 | AN83: 0.05 | AO83: 0.05 | AP83: 0.06 | AQ83: 0.05 | AR83: 0.02 | AS83: 0.02
A84: ppRAMCenteio e Mistura de trigo e centeio | B84: pp | C84: RAM | D84: Centeio e Mistura de trigo e centeio | T84: 0 | U84: 0 | V84: 0 | W84: 0 | X84: 0 | Y84: 0 | Z84: 0 | AA84: 0 | AB84: 0 | AC84: 0 | AD84: 0 | AE84: 0 | AF84: 0 | AG84: 0 | AH84: 0 | AI84: 0 | AJ84: 0 | AK84: 0 | AL84: 0 | AM84: 0 | AN84: 0 | AO84: 0 | AP84: 0 | AQ84: 0 | AR84: 0 | AS84: 0
A85: ppRAMCevada | B85: pp | C85: RAM | D85: Cevada | T85: 0 | U85: 0 | V85: 0 | W85: 0 | X85: 0 | Y85: 0 | Z85: 0 | AA85: 0 | AB85: 0 | AC85: 0 | AD85: 0 | AE85: 0 | AF85: 0 | AG85: 0 | AH85: 0 | AI85: 0 | AJ85: 0 | AK85: 0 | AL85: 0 | AM85: 0 | AN85: 0 | AO85: 0 | AP85: 0 | AQ85: 0 | AR85: 0 | AS85: 0
A86: ppRAMAveia e Mistura de cereais de verão | B86: pp | C86: RAM | D86: Aveia e Mistura de cereais de verão | T86: 0 | U86: 0 | V86: 0 | W86: 0 | X86: 0 | Y86: 0 | Z86: 0 | AA86: 0 | AB86: 0 | AC86: 0 | AD86: 0 | AE86: 0 | AF86: 0 | AG86: 0 | AH86: 0 | AI86: 0 | AJ86: 0 | AK86: 0 | AL86: 0 | AM86: 0 | AN86: 0 | AO86: 0 | AP86: 0 | AQ86: 0 | AR86: 0 | AS86: 0
A87: ppRAMMilho em grão | B87: pp | C87: RAM | D87: Milho em grão | T87: 0 | U87: 0 | V87: 0 | W87: 0 | X87: 0.04 | Y87: 0.04 | Z87: 0.04 | AA87: 0.04 | AB87: 0.04 | AC87: 0.03 | AD87: 0.03 | AE87: 0.03 | AF87: 0.04 | AG87: 0.03 | AH87: 0.03 | AI87: 0.04 | AJ87: 0.04 | AK87: 0.04 | AL87: 0.03 | AM87: 0.03 | AN87: 0.03 | AO87: 0.03 | AP87: 0.03 | AQ87: 0.03 | AR87: 0.01 | AS87: 0.01
A88: ppRAMArroz | B88: pp | C88: RAM | D88: Arroz | T88: 0 | U88: 0 | V88: 0 | W88: 0 | X88: 0 | Y88: 0 | Z88: 0 | AA88: 0 | AB88: 0 | AC88: 0 | AD88: 0 | AE88: 0 | AF88: 0 | AG88: 0 | AH88: 0 | AI88: 0 | AJ88: 0 | AK88: 0 | AL88: 0 | AM88: 0 | AN88: 0 | AO88: 0 | AP88: 0 | AQ88: 0 | AR88: 0 | AS88: 0
A89: ppRAMOutros cereais | B89: pp | C89: RAM | D89: Outros cereais | T89: 0 | U89: 0 | V89: 0 | W89: 0 | X89: 0 | Y89: 0 | Z89: 0 | AA89: 0 | AB89: 0 | AC89: 0 | AD89: 0 | AE89: 0 | AF89: 0 | AG89: 0 | AH89: 0 | AI89: 0 | AJ89: 0 | AK89: 0 | AL89: 0 | AM89: 0 | AN89: 0 | AO89: 0 | AP89: 0 | AQ89: 0 | AR89: 0 | AS89: 0
A90: pbPortugalTotal | B90: pb | C90: Portugal | D90: Total | T90: 466.35 | U90: 482.19 | V90: 473.17 | W90: 415.85 | X90: 461.08 | Y90: 419.19 | Z90: 437.65 | AA90: 427.26 | AB90: 391.29 | AC90: 420.24 | AD90: 190.89 | AE90: 224.89 | AF90: 271.38 | AG90: 304.66 | AH90: 227.08 | AI90: 253.94 | AJ90: 291.47 | AK90: 329.3 | AL90: 289.74 | AM90: 279.18 | AN90: 277.13 | AO90: 247.65 | AP90: 235.65 | AQ90: 241.69 | AR90: 247.6 | AS90: 234.37
A91: pbPortugalTrigo e Espelta | B91: pb | C91: Portugal | D91: Trigo e Espelta | T91: 136.02 | U91: 115.27 | V91: 111.69 | W91: 77.03 | X91: 123.12 | Y91: 118.71 | Z91: 119.49 | AA91: 139.52 | AB91: 80.4 | AC91: 131.26 | AD91: 45.8 | AE91: 57.09 | AF91: 49.48 | AG91: 74.71 | AH91: 62 | AI91: 44.08 | AJ91: 36.87 | AK91: 46.8 | AL91: 51.44 | AM91: 49.11 | AN91: 53.18 | AO91: 53.04 | AP91: 40.34 | AQ91: 40.69 | AR91: 40.61 | AS91: 41.1
A92: pbPortugalCenteio e Mistura de trigo e centeio | B92: pb | C92: Portugal | D92: Centeio e Mistura de trigo e centeio | T92: 8.45 | U92: 9.78 | V92: 7.45 | W92: 4.86 | X92: 8.87 | Y92: 6.42 | Z92: 4.02 | AA92: 5.09 | AB92: 3.96 | AC92: 4.16 | AD92: 3.58 | AE92: 2.63 | AF92: 3.17 | AG92: 3.88 | AH92: 2.32 | AI92: 2.37 | AJ92: 2.81 | AK92: 2.62 | AL92: 3.43 | AM92: 3.21 | AN92: 2.61 | AO92: 2.64 | AP92: 2.31 | AQ92: 2.71 | AR92: 2.5 | AS92: 2.52
A93: pbPortugalCevada | B93: pb | C93: Portugal | D93: Cevada | T93: 14.73 | U93: 15.09 | V93: 5.45 | W93: 4.39 | X93: 4.88 | Y93: 5.71 | Z93: 2.33 | AA93: 3.31 | AB93: 2.11 | AC93: 4.36 | AD93: 5 | AE93: 13.45 | AF93: 14.51 | AG93: 21.45 | AH93: 10.34 | AI93: 4.26 | AJ93: 4.07 | AK93: 4.31 | AL93: 6.01 | AM93: 6.35 | AN93: 7.66 | AO93: 7.7 | AP93: 8.2 | AQ93: 11.23 | AR93: 9.69 | AS93: 8.34
A94: pbPortugalAveia e Mistura de cereais de verão | B94: pb | C94: Portugal | D94: Aveia e Mistura de cereais de verão | T94: 15.57 | U94: 13.79 | V94: 10.44 | W94: 7.1 | X94: 15.22 | Y94: 15.18 | Z94: 6.22 | AA94: 8.48 | AB94: 7.63 | AC94: 10.64 | AD94: 5.48 | AE94: 8.83 | AF94: 9.39 | AG94: 14.74 | AH94: 9.54 | AI94: 9.16 | AJ94: 8.81 | AK94: 5.96 | AL94: 11.69 | AM94: 10.51 | AN94: 7.77 | AO94: 9.62 | AP94: 6.34 | AQ94: 8.19 | AR94: 7.65 | AS94: 7.19
A95: pbPortugalMilho em grão | B95: pb | C95: Portugal | D95: Milho em grão | T95: 209.76 | U95: 243.13 | V95: 259.88 | W95: 254.09 | X95: 243.23 | Y95: 210.86 | Z95: 241.73 | AA95: 212.62 | AB95: 237.34 | AC95: 206.84 | AD95: 93.82 | AE95: 90.4 | AF95: 136.84 | AG95: 110.44 | AH95: 90.69 | AI95: 131.46 | AJ95: 174.78 | AK95: 210.49 | AL95: 163.46 | AM95: 160.04 | AN95: 155.61 | AO95: 130.15 | AP95: 136.62 | AQ95: 136.27 | AR95: 139.56 | AS95: 130.31
A96: pbPortugalArroz | B96: pb | C96: Portugal | D96: Arroz | T96: 67.41 | U96: 72.24 | V96: 68.84 | W96: 65.17 | X96: 59.34 | Y96: 55.49 | Z96: 60.76 | AA96: 53.85 | AB96: 57.93 | AC96: 60.03 | AD96: 35.7 | AE96: 46.39 | AF96: 52.93 | AG96: 70.4 | AH96: 46.2 | AI96: 58.11 | AJ96: 60.67 | AK96: 56.27 | AL96: 44.94 | AM96: 42.35 | AN96: 44.23 | AO96: 38.59 | AP96: 37.83 | AQ96: 38.17 | AR96: 43.77 | AS96: 41.46
A97: pbPortugalOutros cereais | B97: pb | C97: Portugal | D97: Outros cereais | T97: 14.41 | U97: 12.89 | V97: 9.42 | W97: 3.21 | X97: 6.42 | Y97: 6.82 | Z97: 3.1 | AA97: 4.39 | AB97: 1.92 | AC97: 2.95 | AD97: 1.51 | AE97: 6.1 | AF97: 5.06 | AG97: 9.04 | AH97: 5.99 | AI97: 4.5 | AJ97: 3.46 | AK97: 2.85 | AL97: 8.77 | AM97: 7.61 | AN97: 6.07 | AO97: 5.91 | AP97: 4.01 | AQ97: 4.43 | AR97: 3.82 | AS97: 3.45
A98: pbContinenteTotal | B98: pb | C98: Continente | D98: Total | T98: 463.37 | U98: 479.14 | V98: 469.64 | W98: 412.57 | X98: 457.47 | Y98: 416.17 | Z98: 432.89 | AA98: 423.4 | AB98: 388.36 | AC98: 418.9 | AD98: 190.09 | AE98: 224.64 | AF98: 271.09 | AG98: 304.49 | AH98: 226.93 | AI98: 250.72 | AJ98: 288.06 | AK98: 324.96 | AL98: 285.59 | AM98: 274.78 | AN98: 272.19 | AO98: 243.05 | AP98: 230.04 | AQ98: 235.98 | AR98: 241.3 | AS98: 228.06
A99: pbContinenteTrigo e Espelta | B99: pb | C99: Continente | D99: Trigo e Espelta | T99: 136 | U99: 115.26 | V99: 111.67 | W99: 76.98 | X99: 123.09 | Y99: 118.68 | Z99: 119.39 | AA99: 139.48 | AB99: 80.36 | AC99: 131.21 | AD99: 45.78 | AE99: 57.08 | AF99: 49.46 | AG99: 74.69 | AH99: 61.98 | AI99: 44.06 | AJ99: 36.82 | AK99: 46.75 | AL99: 51.4 | AM99: 49.07 | AN99: 53.13 | AO99: 52.99 | AP99: 40.28 | AQ99: 40.64 | AR99: 40.59 | AS99: 41.08
A100: pbContinenteCenteio e Mistura de trigo e centeio | B100: pb | C100: Continente | D100: Centeio e Mistura de trigo e centeio | T100: 8.45 | U100: 9.78 | V100: 7.45 | W100: 4.86 | X100: 8.87 | Y100: 6.42 | Z100: 4.02 | AA100: 5.09 | AB100: 3.96 | AC100: 4.16 | AD100: 3.58 | AE100: 2.63 | AF100: 3.17 | AG100: 3.88 | AH100: 2.32 | AI100: 2.36 | AJ100: 2.81 | AK100: 2.62 | AL100: 3.43 | AM100: 3.21 | AN100: 2.61 | AO100: 2.64 | AP100: 2.31 | AQ100: 2.71 | AR100: 2.5 | AS100: 2.52
A101: pbContinenteCevada | B101: pb | C101: Continente | D101: Cevada | T101: 14.73 | U101: 15.09 | V101: 5.45 | W101: 4.39 | X101: 4.88 | Y101: 5.71 | Z101: 2.33 | AA101: 3.31 | AB101: 2.11 | AC101: 4.36 | AD101: 5 | AE101: 13.45 | AF101: 14.51 | AG101: 21.45 | AH101: 10.34 | AI101: 4.26 | AJ101: 4.07 | AK101: 4.31 | AL101: 6.01 | AM101: 6.35 | AN101: 7.66 | AO101: 7.7 | AP101: 8.2 | AQ101: 11.23 | AR101: 9.69 | AS101: 8.34
A102: pbContinenteAveia e Mistura de cereais de verão | B102: pb | C102: Continente | D102: Aveia e Mistura de cereais de verão | T102: 15.57 | U102: 13.79 | V102: 10.44 | W102: 7.1 | X102: 15.22 | Y102: 15.18 | Z102: 6.22 | AA102: 8.48 | AB102: 7.63 | AC102: 10.64 | AD102: 5.48 | AE102: 8.83 | AF102: 9.39 | AG102: 14.74 | AH102: 9.54 | AI102: 9.16 | AJ102: 8.81 | AK102: 5.96 | AL102: 11.69 | AM102: 10.51 | AN102: 7.77 | AO102: 9.62 | AP102: 6.34 | AQ102: 8.19 | AR102: 7.65 | AS102: 7.19
A103: pbContinenteMilho em grão | B103: pb | C103: Continente | D103: Milho em grão | T103: 206.79 | U103: 240.1 | V103: 256.42 | W103: 250.86 | X103: 239.65 | Y103: 207.86 | Z103: 237.07 | AA103: 208.81 | AB103: 234.45 | AC103: 205.55 | AD103: 93.04 | AE103: 90.16 | AF103: 136.57 | AG103: 110.28 | AH103: 90.56 | AI103: 128.27 | AJ103: 171.42 | AK103: 206.2 | AL103: 159.35 | AM103: 155.67 | AN103: 150.72 | AO103: 125.59 | AP103: 131.06 | AQ103: 130.61 | AR103: 133.28 | AS103: 124.02
A104: pbContinenteArroz | B104: pb | C104: Continente | D104: Arroz | T104: 67.41 | U104: 72.24 | V104: 68.79 | W104: 65.17 | X104: 59.34 | Y104: 55.49 | Z104: 60.76 | AA104: 53.85 | AB104: 57.93 | AC104: 60.03 | AD104: 35.7 | AE104: 46.39 | AF104: 52.93 | AG104: 70.4 | AH104: 46.2 | AI104: 58.11 | AJ104: 60.67 | AK104: 56.27 | AL104: 44.94 | AM104: 42.35 | AN104: 44.23 | AO104: 38.59 | AP104: 37.83 | AQ104: 38.17 | AR104: 43.77 | AS104: 41.46
